Workbook

Sheet C_EEFF-2009
B1: CORPAC.
B2: Formato 1: Estados Financieros Al 31 de Diciembre del 2009
B3: Perdidas y Ganancias para el periodo terminado
B4: Expresado en Soles
X5: Ingreso total | Y5: =E11+F11+G11+R11+S11+W11+X11 -> 172091210.7
B6: Código Contable | C6: Descripción | D6: Estado Financiero Auditado | E6: Snar Nacional | F6: Snar Internacional | G6: Aproximaciòn | H6: Pista y rodadura | I6: Mangas | J6: TUUA | K6: Total Servicios con Reg. Tarifaria | L6: Asistencia en Tierra | M6: Almacenamiento y trasporte de combustible | N6: Check in counter | O6: Documento de Identidad | P6: Alquiler de Ofic, Almacenes, Talleres y Hangar | Q6: Total de Servicios sin Tarifa Regulada | R6: Sobrevuelo | S6: Otros Aeronavegaciòn | T6: Actividades Auxiliares | U6: Otros aeroportuarios | V6: Total Servicios No Regulados | W6: 50% A/D Concesiòn J.Chavez | X6: 20% TUUA Int. Concesiòn J.Chavez | Y6: TOTAL
C9: Ingresos
C10: Ingresos | D10: 192286951.7 | E10: 16499875.67 | F10: 43290520.34 | G10: 5426923.93 | H10: 5462474.66 | I10: 596483.98 | J10: 12812914.88 | K10: 84089193.46 | L10: 1033810.37 | M10: 278816.94 | N10: 242119.6 | O10: 58484 | P10: 544566.74 | Q10: 2157797.65 | R10: 39694450.04 | S10: 1136251.59 | T10: 5247453.71 | U10: 162657.48 | V10: 46240812.82 | W10: 34236145.08 | X10: 31807044.08 | Y10: 198530993.1
C11: Total de Ingresos | D11: =+SUM(K11,V11,Q11) -> 132487803.9 | E11: 16499875.67 | F11: 43290520.34 | G11: 5426923.93 | H11: 5462474.66 | I11: 596483.98 | J11: 12812914.88 | K11: 84089193.46 | L11: 1033810.37 | M11: 278816.94 | N11: 242119.6 | O11: 58484 | P11: 544566.74 | Q11: 2157797.65 | R11: 39694450.04 | S11: 1136251.59 | T11: 5247453.71 | U11: 162657.48 | V11: 46240812.82 | W11: 34236145.08 | X11: 31807044.08 | Y11: =+W11+X11+D11 -> 198530993.1
C12: Gastos
C13: Gastos de Personal | D13: -91118107.77 | E13: 7601306.354 | F13: 20422606.03 | G13: 22874148.31 | H13: 1479679.769 | I13: 23537.37886 | J13: 2506195.521 | K13: 54907473.36 | L13: 135254.5631 | M13: 62653.83997 | N13: 60969.31878 | O13: 1265274.746 | P13: 326125.8445 | Q13: 1850278.313 | R13: 18018484.35 | S13: 399386.6853 | T13: 15442224.86 | U13: 653140.204 | V13: 34513236.1 | W13: 0 | X13: 0 | Y13: 91270987.77
C14: Depreciación | D14: -19938612.04 | E14: 1421082.903 | F14: 2879755.929 | G14: 3220413.128 | H14: 4838946.909 | I14: 566964.5582 | J14: 1897761.215 | K14: 14824924.64 | L14: 120640.0908 | M14: 30936.29631 | N14: 44580.84364 | O14: 214727.3675 | P14: 143763.1966 | Q14: 554647.7949 | R14: 1890783.326 | S14: 426367.7224 | T14: 2039699.43 | U14: 202189.124 | V14: 4559039.603 | W14: 0 | X14: 0 | Y14: 19938612.04
C15: Amortización de Intangibles | D15: -203833.73 | E15: 18449.0232 | F15: 52241.98131 | G15: 822.52 | H15: 0 | I15: 0 | J15: 0 | K15: 71513.52452 | L15: 0 | M15: 0 | N15: 0 | O15: 5077.519682 | P15: 0 | Q15: 5077.519682 | R15: 48529.71198 | S15: 449.7953857 | T15: 78263.17844 | U15: 0 | V15: 127242.6858 | W15: 0 | X15: 0 | Y15: 203833.73
C16: Servicios Prestados por Terceros | D16: -33597980.96 | E16: 1709746.414 | F16: 4718680.966 | G16: 4503223.517 | H16: 5654768.474 | I16: 27702.77423 | J16: 3957881.803 | K16: 20572003.95 | L16: 257668.4321 | M16: 103127.791 | N16: 102567.5224 | O16: 682555.836 | P16: 373641.4656 | Q16: 1519561.047 | R16: 3925405.028 | S16: 198603.115 | T16: 5132307.822 | U16: 548174.8295 | V16: 9804490.794 | W16: 0 | X16: 0 | Y16: 31896055.79
C17: Mantenimiento de Activos | D17: -8453908.75 | E17: 196270.8662 | F17: 627270.6081 | G17: 254639.6319 | H17: 5640745.952 | I17: 47.93764148 | J17: 300435.3213 | K17: 7019410.317 | L17: 18468.33949 | M17: 5031.560652 | N17: 8814.289886 | O17: 64730.68437 | P17: 54734.02272 | Q17: 151778.8971 | R17: 384635.1422 | S17: 69805.85915 | T17: 596741.4236 | U17: 231537.111 | V17: 1282719.536 | W17: 0 | X17: 0 | Y17: 8453908.75
C18: Suministros y Materiales | D18: -4715487.81 | E18: 384096.0435 | F18: 1005345.055 | G18: 806371.559 | H18: 98351.54874 | I18: 1501.711607 | J18: 256163.6166 | K18: 2551829.534 | L18: 23938.8767 | M18: 4224.255642 | N18: 14230.39638 | O18: 106804.7272 | P18: 31358.72637 | Q18: 180556.9823 | R18: 808002.5203 | S18: 48159.00012 | T18: 1099770.433 | U18: 27169.33987 | V18: 1983101.293 | W18: 0 | X18: 0 | Y18: 4715487.81
C19: Tributos y Seguros | D19: -13966047.1 | E19: 386060.2217 | F19: 1071865.546 | G19: 2192130.217 | H19: 303393.0793 | I19: 3500.872415 | J19: 306163.4001 | K19: 4263113.337 | L19: 19949.19706 | M19: 6337.861505 | N19: 5704.484947 | O19: 52987.63464 | P19: 22431.9398 | Q19: 107411.1179 | R19: 981366.3362 | S19: 11282.24981 | T19: 578937.8479 | U19: 22391.98138 | V19: 1593978.415 | W19: 0 | X19: 0 | Y19: 5964502.87
C20: Contribución | D20: 0 | E20: 1646738.408 | F20: 4663068.312 | G20: 886678.074 | H20: 149985.8944 | I20: 54.05928389 | J20: 65440.75869 | K20: 7411965.507 | L20: 4535.484606 | M20: 1464.685904 | N20: 1052.215576 | O20: 2352.075694 | P20: 10021.01448 | Q20: 19425.47626 | R20: 4331705.792 | S20: 40163.14437 | T20: 63770.64489 | U20: 11508.4356 | V20: 4447148.017 | W20: 0 | X20: 0 | Y20: 11878539
C21: Otros Costos | D21: -7677356.3 | E21: 349470.7248 | F21: 983188.6689 | G21: 142430.3125 | H21: 63651.08156 | I21: 4457.413928 | J21: 220063.8644 | K21: 1763262.066 | L21: 15311.84146 | M21: 2987.619857 | N21: 5551.475285 | O21: 135661.3458 | P21: 14970.9367 | Q21: 174483.2191 | R21: 906976.7117 | S21: 13157.09928 | T21: 2472605.798 | U21: 18921.80595 | V21: 3411661.415 | W21: 0 | X21: 0 | Y21: 5349406.7
C22: Total de Gastos | D22: -179671334.5 | E22: 13713220.96 | F22: 36424023.09 | G22: 34880857.27 | H22: 18229522.71 | I22: 627766.7062 | J22: 9510105.499 | K22: 113385496.2 | L22: 595766.8253 | M22: 216763.9109 | N22: 243470.5469 | O22: 2530171.937 | P22: 977047.1468 | Q22: 4563220.367 | R22: 31295888.92 | S22: 1207374.671 | T22: 27504321.44 | U22: 1715032.831 | V22: 61722617.86 | W22: 0 | X22: 0 | Y22: 179671334.5
C24: Utilidad (Pérdida) Operativa | D24: 12615617.24 | Y24: 18859658.63
C26: Retribución al Estado
C28: Ingresos Excepcionales
C29: Ingresos Diversos | D29: 11724115.52 | Y29: 5480074.13
C30: Ingresos Financieros | D30: 47032612.59 | Y30: 47032612.59
C31: Gastos Financieros | D31: -54647569.21 | Y31: 54647569.21
C32: Resultados por Exposición a la Inflación
C33: Utilidad (Pérdida) antes de Part / IR | D33: 16724776.14 | Y33: 16724776.14
C34: Participaciones
C35: Impuesto a la Renta
C37: Utilidad (Pérdida) Neta | D37: 16724776.14
C38: Dividendos Pagados
C40: Utilidades Retenidas | D40: 16724776.14

Sheet C_EEFF-2010
B1: CORPAC.
B2: Formato 1: Estados Financieros Al 31 de Diciembre del 2010
B3: Perdidas y Ganancias para el periodo terminado
B4: Expresado en Soles
B6: Código Contable | C6: Descripción | D6: Estado Financiero Auditado | E6: Snar Nacional | F6: Snar Internacional | G6: Aproximaciòn | H6: Pista y rodadura | I6: Mangas | J6: TUUA | K6: Total Servicios con Reg. Tarifaria | L6: Asistencia en Tierra | M6: Almacenamiento y trasporte de combustible | N6: Check in counter | O6: Documento de Identidad | P6: Alquiler de Ofic, Almacenes, Talleres y Hangar | Q6: Total de Servicios sin Tarifa Regulada | R6: Sobrevuelo | S6: Otros Aeronavegaciòn | T6: Actividades Auxiliares | U6: Otros aeroportuarios | V6: Total Servicios No Regulados | W6: 50% A/D Concesiòn J.Chavez | X6: 20% TUUA Int. Concesiòn J.Chavez | Y6: TOTAL
C9: Ingresos
C10: Ingresos | D10: 132949354.8 | E10: 19411160.63 | F10: 43571381.45 | G10: 6075805.22 | H10: 5158138.31 | I10: 491117.83 | J10: 14799643.43 | K10: 89507246.87 | L10: 1263316.7 | M10: 249389.3 | N10: 329776.14 | O10: 74247.93 | P10: 567248.07 | Q10: 2483978.14 | R10: 41091986.07 | S10: 912179.59 | T10: 5748288.21 | U10: 68045.24 | V10: 47820499.11 | W10: 36179835.32 | X10: 31760459.84 | Y10: 207752019.3
C11: Total de Ingresos | D11: =+SUM(K11,V11,Q11) -> 139811724.1 | E11: 19411160.63 | F11: 43571381.45 | G11: 6075805.22 | H11: 5158138.31 | I11: 491117.83 | J11: 14799643.43 | K11: 89507246.87 | L11: 1263316.7 | M11: 249389.3 | N11: 329776.14 | O11: 74247.93 | P11: 567248.07 | Q11: 2483978.14 | R11: 41091986.07 | S11: 912179.59 | T11: 5748288.21 | U11: 68045.24 | V11: 47820499.11 | W11: 36179835.32 | X11: 31760459.84 | Y11: =+W11+X11+D11 -> 207752019.3
C12: Gastos
C13: Gastos de Personal | D13: -97229667.67 | E13: 11518652.82 | F13: 23881137.53 | G13: 25629837.03 | H13: 980247.2017 | I13: 26806.60799 | J13: 2777494.209 | K13: 64814175.4 | L13: 256799.3638 | M13: 52375.74714 | N13: 99768.25143 | O13: 514835.5967 | P13: 193202.5029 | Q13: 1116981.462 | R13: 21663355.19 | S13: 487378.7839 | T13: 9324790.983 | U13: 10185.85142 | V13: 31485710.81 | W13: 0 | X13: 0 | Y13: 97416867.67
C14: Depreciación | D14: -25705087.85 | E14: 1712254.373 | F14: 2952338.861 | G14: 5671038.963 | H14: 3999270.792 | I14: 61259.66261 | J14: 2308996.927 | K14: 16705159.58 | L14: 175434.655 | M14: 23653.97015 | N14: 58817.39988 | O14: 50471.35632 | P14: 104210.7877 | Q14: 412588.169 | R14: 2096805.195 | S14: 292158.2438 | T14: 1259229.78 | U14: 9841.614824 | V14: 3658034.833 | W14: 0 | X14: 0 | Y14: 20775782.58
C15: Amortización de Intangibles | D15: -146070.12 | E15: 25544.84409 | F15: 60760.30329 | G15: 822.52 | H15: 845.4989418 | I15: 0 | J15: 0 | K15: 87973.16632 | L15: 0 | M15: 0 | N15: 0 | O15: 15.51105824 | P15: 0 | Q15: 15.51105824 | R15: 57835.17183 | S15: 246.270794 | T15: -1.640251065e-12 | U15: 0 | V15: 58081.44262 | W15: 0 | X15: 0 | Y15: 146070.12
C16: Servicios Prestados por Terceros | D16: -33218295.14 | E16: 2883219.245 | F16: 5356944.481 | G16: 6452376.152 | H16: 6681987.144 | I16: 60210.4139 | J16: 3512538.937 | K16: 24947276.37 | L16: 312421.3289 | M16: 70638.98427 | N16: 104784.1189 | O16: 200599.418 | P16: 192266.8579 | Q16: 880710.708 | R16: 4534959.058 | S16: 293896.8449 | T16: 3073225.011 | U16: 14190.79607 | V16: 7916271.71 | W16: 0 | X16: 0 | Y16: 33744258.79
C17: Mantenimiento de Activos | D17: -7210095.32 | E17: 426337.8249 | F17: 645958.0086 | G17: 611763.4227 | H17: 4135669.215 | I17: 7185.563413 | J17: 456028.7145 | K17: 6282942.749 | L17: 44312.91793 | M17: 3757.041523 | N17: 17584.91327 | O17: 12219.24982 | P17: 33323.06633 | Q17: 111197.1889 | R17: 389648.4222 | S17: 45339.19829 | T17: 379969.8391 | U17: 997.9227517 | V17: 815955.3823 | W17: 0 | X17: 0 | Y17: 7210095.32
C18: Suministros y Materiales | D18: -5430843.88 | E18: 597814.1452 | F18: 1249973.653 | G18: 972301.3302 | H18: 153650.3139 | I18: 610.6184536 | J18: 276545.6639 | K18: 3250895.725 | L18: 27213.74822 | M18: 3942.337242 | N18: 11545.81247 | O18: 49790.28536 | P18: 22321.35747 | Q18: 114813.5408 | R18: 1078425.904 | S18: 75711.64981 | T18: 909926.4822 | U18: 1070.57803 | V18: 2065134.614 | W18: 0 | X18: 0 | Y18: 5430843.88
C19: Tributos y Seguros | D19: -15142007.81 | E19: 511701.1476 | F19: 1128301.519 | G19: 2126885.35 | H19: 249936.4024 | I19: 3316.089651 | J19: 301381.9792 | K19: 4321522.488 | L19: 24873.78264 | M19: 4713.85955 | N19: 8815.584231 | O19: 58589.52722 | P19: 14503.26469 | Q19: 111496.0183 | R19: 1046424.72 | S19: 22042.68955 | T19: 1027016.809 | U19: 1343.594948 | V19: 2096827.814 | W19: 0 | X19: 0 | Y19: 6529846.32
C20: Contribución | D20: 0 | E20: 1971156.627 | F20: 4644357.296 | G20: 1041587.727 | H20: 88042.38703 | I20: 1773.153855 | J20: 56605.44951 | K20: 7803522.64 | L20: 4802.198876 | M20: 1009.689378 | N20: 1292.892508 | O20: 445.58355 | P20: 2232.590228 | Q20: 9782.95454 | R20: 4386173.746 | S20: 19955.8612 | T20: 25019.36028 | U20: 240.7774126 | V20: 4431389.745 | W20: 0 | X20: 0 | Y20: 12244695.34
C21: Otros Costos | D21: -7250532.64 | E21: 375303.969 | F21: 823386.9897 | G21: 1938166.95 | H21: 12279.49059 | I21: 17707.76822 | J21: 1816084.408 | K21: 4982929.575 | L21: 161383.836 | M21: 36389.3701 | N21: 57020.11255 | O21: 90192.85014 | P21: 99924.5819 | Q21: 444910.7507 | R21: 743104.9449 | S21: 29256.83788 | T21: 1626413.981 | U21: 7524.320932 | V21: 2406300.084 | W21: 0 | X21: 0 | Y21: 7834140.41
C22: Total de Gastos | D22: -191332600.4 | E22: 20021984.99 | F22: 40743158.64 | G22: 44444779.45 | H22: 16301928.44 | I22: 178869.8781 | J22: 11505676.29 | K22: 133196397.7 | L22: 1007241.831 | M22: 196480.9993 | N22: 359629.0853 | O22: 977159.3782 | P22: 661985.0091 | Q22: 3202496.303 | R22: 35996732.36 | S22: 1265986.38 | T22: 17625592.25 | U22: 45395.45639 | V22: 54933706.44 | W22: 0 | X22: 0 | Y22: 191332600.4
C24: Utilidad (Pérdida) Operativa | D24: -58383245.62 | Y24: 16419418.85
C26: Retribución al Estado
C28: Ingresos Excepcionales
C29: Ingresos Diversos | D29: 83862882.61 | Y29: 9060218.14
C30: Ingresos Financieros | D30: 46741795.73 | Y30: 46741795.73
C31: Gastos Financieros | D31: -48639950.77 | P31: º | Y31: 48639950.77
C32: Resultados por Exposición a la Inflación
C33: Utilidad (Pérdida) antes de Part / IR | D33: 23581481.95 | Y33: 23581481.95
C34: Participaciones
C35: Impuesto a la Renta
C37: Utilidad (Pérdida) Neta | D37: 23581481.95
C38: Dividendos Pagados
C40: Utilidades Retenidas | D40: 23581481.95

Sheet C_EEFF-2011
B1: CORPAC.
B2: Formato 1: Estados Financieros Al 31 de Diciembre del 2011
B3: Perdidas y Ganancias para el periodo terminado | R3: 2.755000001
B4: Expresado en Soles | R4: =R11/R3 -> 16928075.77
B6: Código Contable | C6: Descripción | D6: Estado Financiero Auditado | E6: Snar Nacional | F6: Snar Internacional | G6: Aproximaciòn | H6: Pista y rodadura | I6: Mangas | J6: TUUA | K6: Total Servicios con Reg. Tarifaria | L6: Asistencia en Tierra | M6: Almacenamiento y trasporte de combustible | N6: Check in counter | O6: Documento de Identidad | P6: Alquiler de Ofic, Almacenes, Talleres y Hangar | Q6: Total de Servicios sin Tarifa Regulada | R6: Sobrevuelo | S6: Otros Aeronavegaciòn | T6: Actividades Auxiliares | U6: Otros aeroportuarios | V6: Total Servicios No Regulados | W6: 50% A/D Concesiòn J.Chavez | X6: 20% TUUA Int. Concesiòn J.Chavez | Y6: TOTAL
C9: Ingresos
C10: Ingresos | D10: 139177053.9 | E10: 21492665.54 | F10: 45602035.38 | G10: 6567189.21 | H10: 4041601.28 | I10: 523695.63 | J10: 8885673.51 | K10: 87112860.55 | L10: 921164.64 | M10: 3494.73 | N10: 217034.73 | O10: 59677.59 | P10: 404191.85 | Q10: 1605563.54 | R10: 46636848.76 | S10: 268752.2 | T10: 3545362.04 | U10: 6233.28 | V10: 50457196.28 | W10: 38074309.36 | X10: 34872863.59 | Y10: 212122793.3
C11: Total de Ingresos | D11: =+SUM(K11,V11,Q11) -> 139175620.4 | E11: 21492665.54 | F11: 45602035.38 | G11: 6567189.21 | H11: 4041601.28 | I11: 523695.63 | J11: 8885673.51 | K11: 87112860.55 | L11: 921164.64 | M11: 3494.73 | N11: 217034.73 | O11: 59677.59 | P11: 404191.85 | Q11: 1605563.54 | R11: 46636848.76 | S11: 268752.2 | T11: 3545362.04 | U11: 6233.28 | V11: 50457196.28 | W11: 38074309.36 | X11: 34872863.59 | Y11: =+W11+X11+D11 -> 212122793.3
C12: Gastos
C13: Gastos de Personal | D13: -115969376.8 | E13: 13690700.77 | F13: 26140036.36 | G13: 31084587.11 | H13: 545919.52 | I13: 36530.67439 | J13: 2169928.584 | K13: 73667703.02 | L13: 296157.6495 | M13: 10647.96059 | N13: 109080.116 | O13: 1620840.391 | P13: 325496.2361 | Q13: 2362222.354 | R13: 22883731.47 | S13: 267301.8453 | T13: 12672365.63 | U13: 4133182.478 | V13: 39956581.42 | W13: 0 | X13: 0 | Y13: 115986506.8
C14: Depreciación | D14: -32376852.62 | E14: 2463404.415 | F14: 5389897.645 | G14: 6376158.27 | H14: 7532239.53 | I14: 318400.8591 | J14: 1638465.974 | K14: 23718566.69 | L14: 204010.1087 | M14: 3689.509508 | N14: 64501.83389 | O14: 297432.5033 | P14: 202157.656 | Q14: 771791.6115 | R14: 4133711.794 | S14: 195456.9637 | T14: 1409089.134 | U14: 1100541.243 | V14: 6838799.135 | W14: 0 | X14: 0 | Y14: 31329157.44
C15: Amortización de Intangibles | D15: -82857.03 | E15: 4398.897491 | F15: 9867.445904 | G15: 616.89 | H15: 0 | I15: 40.29515238 | J15: 518.2554425 | K15: 15441.78399 | L15: 52.62920767 | M15: 0 | N15: 11.84949652 | O15: 4676.236505 | P15: -106.4007004 | Q15: 4634.314509 | R15: 10425.44747 | S15: 47.18061229 | T15: 43443.105 | U15: 8865.19842 | V15: 62780.9315 | W15: 0 | X15: 0 | Y15: 82857.03
C16: Servicios Prestados por Terceros | D16: -36525248.99 | E16: 4594585.787 | F16: 5989722.264 | G16: 4834111.38 | H16: 491423.07 | I16: 133924.3386 | J16: 5620537.008 | K16: 21664303.85 | L16: 768285.3228 | M16: 6951.830804 | N16: 275231.1476 | O16: 1136029.589 | P16: 959434.2908 | Q16: 3145932.181 | R16: 4003014.779 | S16: 385767.9482 | T16: 5200386.602 | U16: 1837405.272 | V16: 11426574.6 | W16: 0 | X16: 0 | Y16: 36236810.63
C17: Mantenimiento de Activos | D17: -7528771.86 | E17: 429000.0468 | F17: 639048.427 | G17: 1178337.1 | H17: 1234240.84 | I17: 14590.49574 | J17: 750943.1611 | K17: 4246160.071 | L17: 107217.6615 | M17: 748.4803373 | N17: 37944.29308 | O17: 55559.1652 | P17: 135955.4457 | Q17: 337425.0458 | R17: 253705.2479 | S17: -109827.2095 | T17: 640125.1858 | U17: 2213038.559 | V17: 2997041.783 | W17: 0 | X17: 0 | Y17: 7580626.9
C18: Suministros y Materiales | D18: -5230095.82 | E18: 573274.9339 | F18: 909554.2047 | G18: 2292442.27 | H18: 15802.97 | I18: 1484.121535 | J18: 229226.9321 | K18: 4021785.432 | L18: 31843.21284 | M18: 441.0567501 | N18: 13789.57052 | O18: 2278.258309 | P18: 54724.81535 | Q18: 103076.9138 | R18: 694330.8058 | S18: 47322.03698 | T18: 99383.99879 | U18: 264196.6325 | V18: 1105233.474 | W18: 0 | X18: 0 | Y18: 5230095.82
C19: Tributos y Seguros | D19: -6803503.95 | E19: 571786.4832 | F19: 1131492.384 | G19: 2512890.71 | H19: 7363.15 | I19: 7919.587811 | J19: 279554.0566 | K19: 4511006.371 | L19: 39367.74121 | M19: 2516.000586 | N19: 8251.358134 | O19: 45725.69673 | P19: 23264.03796 | Q19: 119124.8346 | R19: 1062403.061 | S19: 27192.6877 | T19: 364633.373 | U19: 36488.12224 | V19: 1490717.244 | W19: 0 | X19: 0 | Y19: 6120848.45
C20: Contribución | D20: -13452469.14 | E20: 2208490.27 | F20: 4864792.095 | G20: 1314492.44 | H20: 11909.88 | I20: 3202.141253 | J20: 64694.54005 | K20: 8467581.366 | L20: 7793.635453 | M20: 317.2381851 | N20: 1511.598845 | O20: 7919.589888 | P20: 3258.726109 | Q20: 20800.78848 | R20: 4903361.115 | S20: 27513.1581 | T20: 31060.52603 | U20: 2152.186202 | V20: 4964086.985 | W20: 0 | X20: 0 | Y20: 13452469.14
C21: Otros Costos | D21: -11721740.75 | E21: 381625.6745 | F21: 611125.6073 | G21: 90714.87 | H21: 0 | I21: 3360.540106 | J21: 100383.5184 | K21: 1187210.21 | L21: 11533.22722 | M21: 46.32961469 | N21: 3932.302979 | O21: 253324.0058 | P21: 12156.52031 | Q21: 280992.3859 | R21: 613967.5053 | S21: 12761.91787 | T21: 2406270.227 | U21: 9170342.504 | V21: 12203342.15 | W21: 0 | X21: 0 | Y21: 13671544.75
C22: Total de Gastos | D22: -229690917 | E22: 24917267.28 | F22: 45685536.44 | G22: 49684351.04 | H22: 9838898.96 | I22: 519453.0536 | J22: 10854252.03 | K22: 141499758.8 | L22: 1466261.189 | M22: 25358.40638 | N22: 514254.0705 | O22: 3423785.436 | P22: 1716341.328 | Q22: 7146000.429 | R22: 38558651.22 | S22: 853536.529 | T22: 22866757.78 | U22: 18766212.2 | V22: 81045157.73 | W22: 0 | X22: 0 | Y22: 229690917
C24: Utilidad (Pérdida) Operativa | D24: -90513863.09 | Y24: -17568123.64
C26: Retribución al Estado
C28: Ingresos Excepcionales | D28: 2396.3 | Y28: 2396.3
C29: Ingresos Diversos | D29: 76607096.99 | Y29: 3661357.54
C30: Ingresos Financieros | D30: 8648882.406 | Y30: 8648882.41
C31: Gastos Financieros | D31: -3794460.795 | Y31: 3794460.8
C32: Resultados por Exposición a la Inflación
C33: Utilidad (Pérdida) antes de Part / IR | D33: -9049948.19 | Y33: -9049948.19
C34: Participaciones
C35: Impuesto a la Renta
C37: Utilidad (Pérdida) Neta | D37: -9049948.19
C38: Dividendos Pagados
C40: Utilidades Retenidas | D40: -9049948.19

Sheet C_EEFF-2012
B1: CORPAC | D1: Ingresos | F1: =SUM(E12:G12) -> 76583234.94 | G1: =R12+S12 -> 57406894.09
D2: Costos | F2: =SUM(E14:G14) -> 81304504.25 | G2: =SUM(R14:S14) -> 29529820.7
B3: Formato 1: Estados Financieros
B4: Perdidas y Ganancias para el periodo terminado 31/12/2012
B5: Expresado en Soles | W5: =5.23%*W6 -> 802456.8347
E6: =E12/2.638 -> 8739989.526 | F6: =F12/2.638 -> 17641649.23 | G6: =G12/2.638 -> 2649155.379 | W6: =W11/2.638 -> 15343342.92
B7: Código Contable | C7: Descripción | D7: Estado Financiero Auditado | E7: Snar Nacional | F7: Snar Internacional | G7: Aproximaciòn | H7: Pista y rodadura | I7: Mangas | J7: TUUA | K7: Total Servicios con Reg. Tarifaria | L7: Asistencia en Tierra | M7: Almacenamiento y trasporte de combustible | N7: Check in counter | O7: Documento de Identidad | P7: Alquiler de Ofic, Almacenes, Talleres y Hangar | Q7: Total de Servicios sin Tarifa Regulada | R7: Sobrevuelo | S7: Otros Aeronavegaciòn | T7: Actividades Auxiliares | U7: Otros aeroportuarios | V7: Total Servicios No Regulados | W7: 50% A/D Concesiòn J.Chavez | X7: 20% TUUA Int. Concesiòn J.Chavez | Y7: TOTAL
C10: Ingresos
C11: Ingresos | D11: 225854592.5 | E11: 23056092.37 | F11: 46538670.68 | G11: 6988471.89 | H11: 4478170.78 | I11: 722390.64 | J11: 9633253.97 | K11: 91417050.33 | L11: 1029454.77 | M11: 581.12 | N11: 169256.42 | O11: 50577.81 | P11: 448425.13 | Q11: 1698295.25 | R11: 57060453.07 | S11: 346441.02 | T11: 4078960.48 | U11: 0 | V11: 61485854.57 | W11: 40475738.62 | X11: 35494534.44 | Y11: 230571473.2
C12: Total de Ingresos | D12: 225854592.5 | E12: 23056092.37 | F12: 46538670.68 | G12: 6988471.89 | H12: 4478170.78 | I12: 722390.64 | J12: 9633253.97 | K12: 91417050.33 | L12: 1029454.77 | M12: 581.12 | N12: 169256.42 | O12: 50577.81 | P12: 448425.13 | Q12: 1698295.25 | R12: 57060453.07 | S12: 346441.02 | T12: 4078960.48 | U12: 0 | V12: 61485854.57 | W12: 40475738.62 | X12: 35494534.44 | Y12: 230571473.2
C13: Gastos
C14: Gastos de Personal | D14: 145509610.2 | E14: 17042846.59 | F14: 24046125.13 | G14: 40215532.53 | H14: 1530974.7 | I14: 79167.34004 | J14: 2521113.191 | K14: 85435759.48 | L14: 279576.9181 | M14: 1986.743972 | N14: 95100.22741 | O14: 1560297.163 | P14: -982718.5144 | Q14: 954242.5383 | R14: 28703372.48 | S14: 826448.2138 | T14: 22179857.44 | U14: 0 | V14: 51709678.14 | W14: 3946098.478 | X14: 3463882.612 | Y14: 145509661.2
C15: Depreciación | D15: 26737368.62 | E15: 2309494.596 | F15: 2336959.907 | G15: 6545486.379 | H15: 8599103.05 | I15: 85011.10013 | J15: 1460201.286 | K15: 21336256.32 | L15: 161288.9021 | M15: 971.5248167 | N15: 49614.09776 | O15: 396831.7896 | P15: -2868.687294 | Q15: 605837.627 | R15: 2636024.325 | S15: 142823.1301 | T15: 1993024.256 | U15: 0 | V15: 4771871.711 | W15: 10737.68901 | X15: 12665.27446 | Y15: 26737368.62
C16: Amortización de Intangibles | D16: 81368.66 | E16: 2802.2317 | F16: 5979.278856 | G16: 3.201265647 | H16: 0 | I16: 43.96124602 | J16: 563.9777288 | K16: 9392.650796 | L16: 60.94790041 | M16: 0 | N16: 7.83669421 | O16: 21282.87435 | P16: -4276.725901 | Q16: 17074.93304 | R16: 7438.371427 | S16: 30.10554391 | T16: 47432.59919 | U16: 0 | V16: 54901.07616 | W16: 0 | X16: 0 | Y16: 81368.66
C17: Servicios Prestados por Terceros | D17: 32469112.66 | E17: 4029237.174 | F17: 4009257.259 | G17: 8950768.269 | H17: 3841650.27 | I17: 222981.7492 | J17: 1639791.521 | K17: 22693686.24 | L17: 195718.6927 | M17: -383.6509858 | N17: 57051.08258 | O17: 59933.26272 | P17: -104009.5991 | Q17: 208309.788 | R17: 4579953.182 | S17: 265571.0042 | T17: 4608980.133 | U17: 0 | V17: 9454504.319 | W17: 59716.13137 | X17: 52896.17964 | Y17: 32469112.66
C18: Mantenimiento de Activos | D18: 4388228.74 | E18: 403469.9331 | F18: 573186.0393 | G18: 534229.7953 | H18: 244714.56 | I18: 91692.66299 | J18: 309134.2145 | K18: 2156427.205 | L18: 29369.0036 | M18: 243.6175574 | N18: 10281.68559 | O18: -263273.1909 | P18: -172880.4917 | Q18: -396259.3758 | R18: 714126.2407 | S18: 25685.25791 | T18: 1883489.052 | U18: 0 | V18: 2623300.551 | W18: 2543.818948 | X18: 2216.54108 | Y18: 4388228.74
C19: Suministros y Materiales | D19: 4810390.69 | E19: 555630.7767 | F19: 764229.3624 | G19: 1321775.579 | H19: 78749.1 | I19: 1798.349493 | J19: 218328.6731 | K19: 2940511.841 | L19: 24635.89457 | M19: 247.4455201 | N19: 9931.972095 | O19: 125620.2714 | P19: -184529.7849 | Q19: -24094.20129 | R19: 915193.1126 | S19: 28609.23738 | T19: 937649.5114 | U19: 0 | V19: 1881451.861 | W19: 6742.730689 | X19: 5727.358404 | Y19: 4810339.59
C20: Tributos y Seguros | D20: 5524642.103 | E20: 533160.7567 | F20: 789419.0905 | G20: 1703667.636 | H20: 77989.75 | I20: 7782.952288 | J20: 506579.6671 | K20: 3618599.852 | L20: 57759.46892 | M20: 496.1914186 | N20: 22208.57093 | O20: 76192.08519 | P20: 46841.20783 | Q20: 203497.5243 | R20: 940971.943 | S20: 46167.79106 | T20: 426403.6224 | U20: 0 | V20: 1413543.356 | W20: 153819.9543 | X20: 135181.4161 | Y20: 5524642.103
C21: Contribución | D21: 13054920.15 | E21: 2113755.962 | F21: 4131392.169 | G21: 827520.0071 | H21: 69484.23 | I21: 6546.901819 | J21: 89497.32677 | K21: 7238196.597 | L21: 9431.694942 | M21: 6.139988003 | N21: 1538.336828 | O21: 16745.00932 | P21: -1778.914078 | Q21: 25942.267 | R21: 5026315.068 | S21: 24868.71189 | T21: 139992.4938 | U21: 0 | V21: 5191176.274 | W21: 320898.6492 | X21: 278706.3633 | Y21: 13054920.15
C22: Otros Costos | D22: 6246527.15 | E22: 209709.9307 | F22: 386439.0439 | G22: 369285.4529 | H22: 0 | I22: 7757.826486 | J22: 123322.2366 | K22: 1096514.491 | L22: 13916.08203 | M22: -4.030108545 | N22: 2742.346956 | O22: 163504.4462 | P22: -299483.1875 | Q22: -119324.3424 | R22: 446996.4575 | S22: 7627.978084 | T22: 4811624.39 | U22: 0 | V22: 5266248.826 | W22: 1700.879636 | X22: 1387.296375 | Y22: 6246527.15
C23: Total de Gastos | D23: -238822168.9 | E23: 27200107.95 | F23: 37042987.28 | G23: 60468268.85 | H23: 14442665.66 | I23: 502782.8437 | J23: 6868532.094 | K23: 146525344.7 | L23: 771757.6049 | M23: 3563.982178 | N23: 248476.1568 | O23: 2157133.711 | P23: -1705704.697 | Q23: 1475226.758 | R23: 43970391.18 | S23: 1367831.43 | T23: 37028453.5 | U23: 0 | V23: 82366676.12 | W23: 4502258.331 | X23: 3952663.042 | Y23: -238822168.9
C25: Utilidad (Pérdida) Operativa | D25: -12967576.39 | Y25: -8250695.713
C27: Retribución al Estado | Y27: 0
Y28: 0
C29: Ingresos Excepcionales | Y29: 0
C30: Ingresos Diversos | D30: 8590443.85 | Y30: 3873549.63
C31: Ingresos Financieros | D31: 14035244.21 | Y31: 14035257.75
C32: Cargas excepcionales | D32: -48565.52 | Y32: -48565.52
C33: Gastos Financieros | D33: -4030750.06 | Y33: -4030750.06
C34: Resultados por Exposición a la Inflación
C35: Utilidad (Pérdida) antes de Part / IR | D35: 5578796.087 | Y35: 5578796.087
C36: Participaciones
C37: Impuesto a la Renta
C39: Utilidad (Pérdida) Neta | D39: 5578796.087 | Y39: 5578796.087
C40: Dividendos Pagados
C42: Utilidades Retenidas | D42: 5578796.087 | Y42: 5578796.087

Sheet Tarifario
B3: SNAR NACIONAL* | C3: Unidad de Cobro | D3: Tarifa Actual US$ sin IGV | E3: Nueva Tarifa
B4: Hasta 10 TM | C4: Por kilómetro recorrido | D4: 0.1 | E4: =+Modelo!D13 -> 0.126809548
B5: Más de 10 hasta 35 TM | D5: 0.11 | E5: =+Modelo!D14 -> 0.1394905028
B6: Más de 35 hasta 70 TM | D6: 0.15 | E6: =+Modelo!D15 -> 0.1902143219
B7: Más de 70 hasta 105 TM | D7: 0.23 | E7: =+Modelo!D16 -> 0.2916619603
B8: Más de 105 TM | D8: 0.3 | E8: =+Modelo!D17 -> 0.3804286439
B9: (*) Cargo mínimo igual a US$ 5 más IGV, vigente desde 00.00 horas UTC del 12/06/2004 | D9: 5 | E9: =+Modelo!D12 -> 6.340477398
B10: SNAR INTERNACIONAL** | C10: Unidad de Cobro | D10: Tarifa Actual US$ sin IGV | E10: Nueva Tarifa
B11: Hasta 10 TM | C11: Por kilómetro recorrido | D11: 0.13 | E11: =+Modelo!D22 -> 0.1648524124
B12: Más de 10 hasta 35 TM | D12: 0.15 | E12: =+Modelo!D23 -> 0.1902143219
B13: Más de 35 hasta 70 TM | D13: 0.2 | E13: =+Modelo!D24 -> 0.2536190959
B14: Más de 70 hasta 105 TM | D14: 0.3 | E14: =+Modelo!D25 -> 0.3804286439
B15: Más de 105 TM | D15: 0.4 | E15: =+Modelo!D26 -> 0.5072381919
B16: (**) Cargo mínimo igual a US$ 7 más IGV, vigente desde 00.00 horas UTC del 12/06/2004 | D16: 7 | E16: =+Modelo!D21 -> 8.876668358
B17: APROXIMACIÓN*** | C17: Unidad de Cobro | D17: Tarifa Actual US$ sin IGV | E17: Nueva Tarifa
B18: Hasta 10 TM | C18: Por Tonelada métrica en operación de aproximación | D18: 0.8 | E18: =+Modelo!D32 -> 1.014476384
B19: Más de 10 hasta 35 TM | D19: 0.9 | E19: =+Modelo!D33 -> 1.141285932
B20: Más de 35 hasta 70 TM | D20: 1 | E20: =+Modelo!D34 -> 1.26809548
B21: Más de 70 hasta 105 TM | D21: 1.1 | E21: =+Modelo!D35 -> 1.394905028
B22: Más de 105 TM | D22: 1.2 | E22: =+Modelo!D36 -> 1.521714576
B23: (**) Cargo mínimo igual a US$ 2 más IGV, vigente desde 00.00 horas UTC del 12/06/2004 | D23: 2 | E23: =Modelo!D31 -> 2.536190959

Sheet Panel de control
B2: PROPUESTA TARIFARIA SERVICIOS DE AERONAVEGACION REGULADOS MODELO FINANCIERO
B6: I. Tasa de descuento | G6: 2009 | H6: =G6+1 -> 2010 | I6: =H6+1 -> 2011 | J6: 2012 | K6: 2013 | L6: 2014 | M6: 2015 | N6: 2016 | O6: 2017 | P6: 2018
B7: CPPC | C7: =(1+'Tasa de descuento'!E100)/(1+inf)-1 -> 0.08298503333 | F7: Tipo de Cambio | G7: 3.012 | H7: 2.83 | I7: 2.75 | J7: 2.67 | K7: 2.75 | L7: 2.82 | M7: =L7 -> 2.82 | N7: =M7 -> 2.82 | O7: =N7 -> 2.82 | P7: =O7 -> 2.82
B8: KOA | C8: =(1+'Tasa de descuento'!D84)/(1+inf)-1 -> 0.08278562879
B9: IR y PT | C9: 0.335 | F9: Período de análisis
B10: K RPI | C10: =+Koa/(1-C9) -> 0.1244896674 | F10: Año inicio | G10: 2012
B11: Inflación (US$) | C11: 0.018 | F11: Año de cambio de tarifa | G11: 2014
F12: Año fin de período tarifario | G12: 2018
B13: II. Driver de asignación
B14: Driver | D14: Ingresos C.R. (USD)
B15: Ingresos (US$) | C15: % | D15: 2012
B16: Aproximación | C16: =+D16/$D$22 -> 0.05215661736 | D16: =+'C_EEFF-2012'!G12/CostosyGastos!E7 -> 2617405.202
B17: Snar Nacional | C17: 0.1720730664 | D17: =+'C_EEFF-2012'!E12/CostosyGastos!E7 -> 8635240.588
B18: Snar Internacional | C18: 0.3473290982 | D18: =+'C_EEFF-2012'!F12/CostosyGastos!E7 -> 17430213.74
B19: Sobrevuelo | C19: 0.4258556469 | D19: =+'C_EEFF-2012'!R12/CostosyGastos!E7 -> 21370956.21
B20: Mensaje Clase B | C20: 0.0008539090253 | D20: 42852.20243
B21: Otros | C21: 0.001731662184 | D21: ='C_EEFF-2012'!S12/CostosyGastos!E7-D20 -> 86900.98859
B22: Total general | C22: =SUM(C16:C21) -> 1 | D22: =SUM(D16:D21) -> 50183568.93
B24: III. Escenario proyección demanda
B25: Escenario | D25: 1
B26: Crec. Tendencia Operaciones (2003) | D26: 1
B27: Crec. Tendencia Operaciones (2008) | D27: 2
B30: IV. Resumen Tarifas
B31: Incremento Tarifas | D31: VAN
B32: Regulados | C32: =+Modelo!F6 -> 0.2680954797 | D32: =+Modelo!C95 -> 0
B35: V. Sensibilidad
B36: Crecimiento de demanda
C38: VAN
B39: Escenarios
C40: =+Modelo!C95 -> 0
B41: 1 | C41: 0 | D41: 0
B42: 2 | C42: 3904132.046 | D42: 0
B44: Crecimiento de costos incrementales | F44: Crec de inversión en nuevos proyectos | J44: Crec de inversión en reposiciones (no proyectos) | N44: Crec de demanda
D45: 0 | H45: 0 | L45: 0 | P45: 0
C47: VAN | G47: VAN | K47: VAN | O47: VAN
B48: Variación | F48: Variación | J48: Variación | N48: Variación
C49: =+Modelo!C95 -> 0 | G49: =+Modelo!C95 -> 0 | K49: =+Modelo!C95 -> 0 | O49: =+Modelo!C95 -> 0
B50: 0.2 | C50: -118121.4047 | D50: 0 | F50: 0.2 | G50: -3190058.509 | H50: 0 | J50: 0.2 | K50: -2591273.003 | L50: 0 | N50: 0.2 | O50: 6285457.4 | P50: 0
B51: 0.15 | C51: -88591.0535 | D51: 0 | F51: 0.15 | G51: -2392543.882 | H51: 0 | J51: 0.15 | K51: -1943454.752 | L51: 0 | N51: 0.15 | O51: 4693032.903 | P51: 0
B52: 0.1 | C52: -59060.70234 | D52: 0 | F52: 0.1 | G52: -1595029.254 | H52: 0 | J52: 0.1 | K52: -1295636.502 | L52: 0 | N52: 0.1 | O52: 3114725.022 | P52: 0
B53: 0.05 | C53: -29530.35117 | D53: 0 | F53: 0.05 | G53: -797514.6272 | H53: 0 | J53: 0.05 | K53: -647818.2508 | L53: 0 | N53: 0.05 | O53: 1550418.789 | P53: 0
B54: 0 | C54: 0 | D54: 0 | F54: 0 | G54: 0 | H54: 0 | J54: 0 | K54: 0 | L54: 0 | N54: 0 | O54: 0 | P54: 0
B55: -0.05 | C55: 29530.35117 | D55: 0 | F55: -0.05 | G55: 797514.6272 | H55: 0 | J55: -0.05 | K55: 647818.2508 | L55: 0 | N55: -0.05 | O55: -1536644.788 | P55: 0
B56: -0.1 | C56: 59060.70234 | D56: 0 | F56: -0.1 | G56: 1595029.254 | H56: 0 | J56: -0.1 | K56: 1295636.502 | L56: 0 | N56: -0.1 | O56: -3059628.256 | P56: 0
B57: -0.15 | C57: 88591.0535 | D57: 0 | F57: -0.15 | G57: 2392543.882 | H57: 0 | J57: -0.15 | K57: 1943454.752 | L57: 0 | N57: -0.15 | O57: -4569062.334 | P57: 0
B58: -0.2 | C58: 118121.4047 | D58: 0 | F58: -0.2 | G58: 3190058.509 | H58: 0 | J58: -0.2 | K58: 2591273.003 | L58: 0 | N58: -0.2 | O58: -6065058.197 | P58: 0

Sheet Proy Demanda
A1: Objetivo:
A2: Proyectar la demanda para cada uno de los servicios utilizando las tasas de crecimiento obtenidas mediante la extracción de la tendencia de crecimiento mediante filtros para las operaciones totales (entradas y salidas de aeronaves) (1) Media geométrica de tasas desde el 2003. (2) Media geométrica de tasas desde el 2010.
A4: Supuestos:
A5: Para las operaciones totales se utilizan datos desde 1985 disponibles en la página web de CORPAC.
A6: Para el caso de aproximación, los datos provistos no contaban con información para el aeropuerto de Lima por lo que se tomó como base la información de las operaciones de navegación en ruta (nacional e internacional) bajo el supuesto de que estos eventualmente solicitan servicios de aproximación.
A8: Las proyecciones de demanda varían cada vez que se eligen cada uno de los escenarios en la hoja "Panel de Control".
A10: Escenarios de crecimiento de demanda
B12: (1) Filtros tendencia (crecimiento anual) | E12: Escenario 1 | F12: 2014 | G12: 2015 | H12: 2016 | I12: 2017 | J12: 2018 | K12: Data desde el 2003
B13: Operaciones nacionales (tendencia) | E13: ='Tasas de crecimiento de Demanda'!$J$32*(1+'Panel de control'!$P$45) -> 0.04067302151 | F13: =+E13 -> 0.04067302151 | G13: 0.04067302151 | H13: 0.04067302151 | I13: 0.04067302151 | J13: 0.04067302151
B14: Operaciones Internacionales (tendencia) | E14: ='Tasas de crecimiento de Demanda'!$K$32*(1+'Panel de control'!$P$45) -> 0.06500743607 | F14: 0.06500743607 | G14: 0.06500743607 | H14: 0.06500743607 | I14: 0.06500743607 | J14: 0.06500743607
B16: (2) Filtros tendencia (crecimiento anual) | E16: Escenario 2 | F16: 2014 | G16: 2015 | H16: 2016 | I16: 2017 | J16: 2018 | K16: Data desde el 2008
B17: Operaciones nacionales (tendencia) | E17: ='Tasas de crecimiento de Demanda'!$J$33*(1+'Panel de control'!$P$45) -> 0.04909429739 | F17: =E17 -> 0.04909429739 | G17: 0.04909429739 | H17: 0.04909429739 | I17: 0.04909429739 | J17: 0.04909429739
B18: Operaciones Internacionales (tendencia) | E18: ='Tasas de crecimiento de Demanda'!$K$33*(1+'Panel de control'!$P$45) -> 0.07081176629 | F18: 0.07081176629 | G18: 0.07081176629 | H18: 0.07081176629 | I18: 0.07081176629 | J18: 0.07081176629
A20: SNAR Nacional
A21: Crecimiento total de kilómetros
A22: Kilómetros | B22: % asig | C22: 2009 | D22: 2010 | E22: 2011 | F22: =1+E22 -> 2012 | G22: 2013 | H22: 2014 | I22: 2015 | J22: 2016 | K22: 2017 | L22: 2018
A23: (>0-10) | B23: =+F23/SUM($F$28) -> 0.09399525601 | C23: 7193701.78 | D23: 7385394.5 | E23: 6107353.89 | F23: 5872541.84 | G23: =+G$28*$B23 -> 6111395.861 | H23: 6359964.796 | I23: 6618643.781 | J23: 6887844.022 | K23: 7167993.45 | L23: 7459537.401
A24: (>10-35) | B24: =+F24/SUM($F$28) -> 0.1159033713 | C24: 2671645.64 | D24: 3416417.8 | E24: 3967264.47 | F24: 7241295.21 | G24: =+G$28*$B24 -> 7535820.566 | H24: =+H$28*$B24 -> 7842325.158 | I24: 8161296.218 | J24: 8493240.794 | K24: 8838686.56 | L24: 9198182.648
A25: (>35-70) | B25: =+F25/SUM($F$28) -> 0.7327443857 | C25: 29493050.98 | D25: 36644169.04 | E25: 44185059.83 | F25: 45779672.78 | G25: =+G$28*$B25 -> 47641670.4 | H25: 49579401.08 | I25: 51595945.13 | J25: 53694508.11 | K25: 55878426 | L25: 58151170.42
A26: (>70-105) | B26: =+F26/SUM($F$28) -> 0.05712260336 | C26: 1102319.98 | D26: 2651551.39 | E26: 1831718.98 | F26: 3568849.03 | G26: =+G$28*$B26 -> 3714004.903 | H26: 3865064.705 | I26: 4022268.565 | J26: 4185866.38 | K26: 4356118.214 | L26: 4533294.704
A27: (>105) | B27: =+F27/SUM($F$28) -> 0.000234383684 | C27: 70988.93 | D27: 97152.73 | E27: 79910.97 | F27: 14643.59 | G27: =+G$28*$B27 -> 15239.18905 | H27: 15859.01292 | I27: 16504.04689 | J27: 17175.31634 | K27: 17873.88835 | L27: 18600.8734
A28: Total | B28: =SUM(B23:B27) -> 1 | C28: =SUM(C23:C27) -> 40531707.31 | D28: =SUM(D23:D27) -> 50194685.46 | E28: =SUM(E23:E27) -> 56171308.14 | F28: =SUM(F23:F27) -> 62477002.45 | G28: =+IF('Panel de control'!$D$25=1,F28*(1+E13),F28*(1+E17)) -> 65018130.91 | H28: =+IF('Panel de control'!$D$25=1,G28*(1+F13),G28*(1+F17)) -> 67662614.75 | I28: =+IF('Panel de control'!$D$25=1,H28*(1+G13),H28*(1+G17)) -> 70414657.74 | J28: =+IF('Panel de control'!$D$25=1,I28*(1+H13),I28*(1+H17)) -> 73278634.63 | K28: =+IF('Panel de control'!$D$25=1,J28*(1+I13),J28*(1+I17)) -> 76259098.11 | L28: =+IF('Panel de control'!$D$25=1,K28*(1+J13),K28*(1+J17)) -> 79360786.05
A30: Kilómetros con cargo mínimo | C30: 6668.9 | D30: 5016.44 | E30: 6508.77 | F30: 6746.36 | G30: =+F30 -> 6746.36 | H30: =+G30 -> 6746.36 | I30: 6746.36 | J30: 6746.36 | K30: 6746.36 | L30: 6746.36
A31: Operaciones con cargo mínimo | C31: 414 | D31: 342 | E31: 421 | F31: 475 | G31: 475 | H31: 475 | I31: 475 | J31: 475 | K31: 475 | L31: 475
A33: SNAR Internacional
A34: Crecimiento total de kilómetros
A35: Kilómetros | B35: % asig | C35: 2009 | D35: 2010 | E35: 2011 | F35: =1+E35 -> 2012 | G35: 2013 | H35: 2014 | I35: 2015 | J35: 2016 | K35: 2017 | L35: 2018
A36: (>0-10) | B36: =+F36/SUM($F$41) -> 0.02545979038 | C36: 1294731.12 | D36: 1752061.64 | E36: 1098896.91 | F36: 1472509.25 | G36: =+G$41*$B36 -> 1568233.301 | H36: 1670180.127 | I36: 1778754.255 | J36: 1894386.508 | K36: 2017535.718 | L36: 2148690.542
A37: (>10-35) | B37: =+F37/SUM($F$41) -> 0.01832619177 | C37: 618195.62 | D37: 784410.41 | E37: 916552.17 | F37: 1059925.73 | G37: =+G$41*$B37 -> 1128828.784 | H37: 1202211.049 | I37: 1280363.707 | J37: 1363596.869 | K37: 1452240.805 | L37: 1546647.256
A38: (>35-70) | B38: =+F38/SUM($F$41) -> 0.1889850343 | C38: 8022610.56 | D38: 5432683.34 | E38: 9720675.79 | F38: 10930263.25 | G38: 11640811.64 | H38: 12397550.96 | I38: 13203483.96 | J38: 14061808.6 | K38: 14975930.72 | L38: 15949477.58
A39: (>70-105) | B39: =+F39/SUM($F$41) -> 0.4266440073 | C39: 18299527.45 | D39: 21646647.1 | E39: 23671780.5 | F39: 24675664.56 | G39: 26279766.25 | H39: 27988146.47 | I39: 29807584.11 | J39: 31745298.73 | K39: 33808979.21 | L39: 36006814.26
A40: (>105) | B40: =+F40/SUM($F$41) -> 0.3405849763 | C40: 17558893.96 | D40: 18757629.49 | E40: 18503960.54 | F40: 19698297.61 | G40: 20978833.43 | H40: 22342613.61 | I40: 23795049.63 | J40: 25341904.8 | K40: 26989317.05 | L40: 28743823.36
A41: Total | B41: =SUM(B36:B40) -> 1 | C41: =SUM(C36:C40) -> 45793958.71 | D41: =SUM(D36:D40) -> 48373431.98 | E41: =SUM(E36:E40) -> 53911865.91 | F41: =SUM(F36:F40) -> 57836660.4 | G41: =+IF('Panel de control'!$D$25=1,F41*(1+E14),F41*(1+E18)) -> 61596473.4 | H41: =+IF('Panel de control'!$D$25=1,G41*(1+F14),G41*(1+F18)) -> 65600702.21 | I41: =+IF('Panel de control'!$D$25=1,H41*(1+G14),H41*(1+G18)) -> 69865235.66 | J41: =+IF('Panel de control'!$D$25=1,I41*(1+H14),I41*(1+H18)) -> 74406995.51 | K41: =+IF('Panel de control'!$D$25=1,J41*(1+I14),J41*(1+I18)) -> 79244003.51 | L41: =+IF('Panel de control'!$D$25=1,K41*(1+J14),K41*(1+J18)) -> 84395453
A43: Kilómetros con cargo mínimo | C43: 842.74 | D43: 1265.36 | E43: 1606.94 | F43: 4040.67 | G43: =+F43 -> 4040.67 | H43: 4040.67 | I43: 4040.67 | J43: 4040.67 | K43: 4040.67 | L43: 4040.67
A44: Operaciones con cargo mínimo | C44: 39 | D44: 47 | E44: 46 | F44: 97 | G44: 97 | H44: 97 | I44: 97 | J44: 97 | K44: 97 | L44: 97
A47: Sobrevuelo
A48: Crecimiento total de kilómetros
A49: Kilómetros | B49: % | C49: 2009 | D49: 2010 | E49: 2011 | F49: =1+E49 -> 2012 | G49: 2013 | H49: 2014 | I49: 2015 | J49: 2016 | K49: 2017 | L49: 2018
A50: (>0-55) | B50: =+F50/SUM($F$57:$F$60) -> 0.04076940716 | C50: 1017018.61 | D50: 1231493.68 | E50: 1239622.71 | F50: 1471876.63 | G50: =+G$54*$B50 -> 
A51: (>55-115) | B51: =+F51/SUM($F$57:$F$60) -> 0.307729328 | C51: 6044050.37 | D51: 6659445.98 | E51: 8894350.85 | F51: 11109791.33 | G51: =+G$54*$B51 -> 
A52: (>115-200) | B52: =+F52/SUM($F$57:$F$60) -> 0.4467193284 | C52: 14392875.63 | D52: 14170647.69 | E52: 14442351.5 | F52: 16127674.78
A53: (>200) | B53: =+F53/SUM($F$57:$F$60) -> 0.2047819364 | C53: 2861280.64 | D53: 4289204.56 | E53: 6007586.76 | F53: 7393135.38
B54: =SUM(B50:B53) -> 1 | C54: =SUM(C50:C53) -> 24315225.25 | D54: =SUM(D50:D53) -> 26350791.91 | E54: =SUM(E50:E53) -> 30583911.82 | F54: =SUM(F50:F53) -> 36102478.12 | G54: =+F54*(1+'Proy Demanda'!#REF!) ->  | H54: =+G54*(1+'Proy Demanda'!#REF!) ->  | I54: =+H54*(1+'Proy Demanda'!#REF!) ->  | J54: =+I54*(1+'Proy Demanda'!#REF!) ->  | K54: =+J54*(1+'Proy Demanda'!#REF!) ->  | L54: =+K54*(1+'Proy Demanda'!#REF!) -> 
A55: Crecimiento de kilómetros de acuerdo a los rangos
A56: Kilómetros | B56: tasa crec rango | C56: 2009 | D56: 2010 | E56: 2011 | F56: =1+E56 -> 2012 | G56: 2013 | H56: 2014 | I56: 2015 | J56: 2016 | K56: 2017 | L56: 2018
A57: (>0-55) | B57: 0.07022353978 | C57: 1017018.61 | D57: 1231493.68 | E57: 1239622.71 | F57: 1471876.63 | G57: =+F57*(1+$B57) -> 1575237.017 | H57: 1685855.736 | I57: 1804242.494 | J57: 1930942.788 | K57: 2066540.426 | L57: 2211660.21
A58: (>55-115) | B58: 0.165978917 | C58: 6044050.37 | D58: 6659445.98 | E58: 8894350.85 | F58: 11109791.33 | G58: =+F58*(1+$B58) -> 12953782.46 | H58: 15103837.25 | I58: 17610755.8 | J58: 20533769.97 | K58: 23941942.87 | L58: 27915800.62
A59: (>115-200) | B59: 0.03796659195 | C59: 14392875.63 | D59: 14170647.69 | E59: 14442351.5 | F59: 16127674.78 | G59: 16739987.63 | H59: 17375547.91 | I59: 18035238.24 | J59: 18719974.78 | K59: 19430708.42 | L59: 20168426.2
A60: (>200) | B60: 0.2866248178 | C60: 2861280.64 | D60: 4289204.56 | E60: 6007586.76 | F60: 7393135.38 | G60: 9512191.461 | H60: 12238621.61 | I60: 15746514.29 | J60: 20259856.08 | K60: 26066833.64 | L60: 33538235.09
C61: =SUM(C57:C60) -> 24315225.25 | D61: 26350791.91 | E61: 30583911.82 | F61: 36102478.12 | G61: 40781198.57 | H61: 46403862.5 | I61: =SUM(I57:I60) -> 53196750.83 | J61: =SUM(J57:J60) -> 61444543.62 | K61: =SUM(K57:K60) -> 71506025.36 | L61: =SUM(L57:L60) -> 83834122.11
A63: Kilómetros con cargo mínimo | C63: 753.72 | D63: 4179.72 | E63: 10072.44 | F63: 342.6 | G63: =+F63 -> 342.6 | H63: 342.6 | I63: 342.6 | J63: 342.6 | K63: 342.6 | L63: 342.6
A64: Operaciones con cargo mínimo | C64: 11 | D64: 61 | E64: 147 | F64: 5 | G64: 5 | H64: 5 | I64: 5 | J64: 5 | K64: 5 | L64: 5
A65: Total operaciones | C65: 20153 | D65: 21257 | E65: 23964 | F65: 30448 | G65: =+F65*(1+'Proy Demanda'!#REF!) ->  | H65: =+G65*(1+'Proy Demanda'!#REF!) ->  | I65: =+H65*(1+'Proy Demanda'!#REF!) ->  | J65: =+I65*(1+'Proy Demanda'!#REF!) ->  | K65: =+J65*(1+'Proy Demanda'!#REF!) ->  | L65: =+K65*(1+'Proy Demanda'!#REF!) -> 
A67: APROXIMACIÓN
A68: Operaciones de aterrizaje
A69: Pesos promedio por operación internacional | C69: 2009 | D69: 2010 | E69: 2011 | F69: 2012
A70: (>0-10) | D70: 5.130246841 | E70: 5.671545946 | F70: 5.197067316
A71: (>10-35) | D71: 19.23256 | E71: 18.47771109 | F71: 17.92269934
A72: (>35-70) | D72: 67.68559707 | E72: 66.91843691 | F72: 66.11123036
A73: (>70-105) | D73: 77.81552313 | E73: 77.73539619 | F73: 77.94111833
A74: (>105) | D74: 199.0585817 | E74: 203.478562 | F74: 205.9570574
A76: Pesos promedio por operación nacional | C76: 2009 | D76: 2010 | E76: 2011 | F76: 2012
A77: (>0-10) | D77: 5.691636332 | E77: 5.403354942 | F77: 5.161197335
A78: (>10-35) | D78: 19.91207847 | E78: 21.1436844 | F78: 19.84109842
A79: (>35-70) | D79: 61.97305223 | E79: 60.17607573 | F79: 61.31914436
A80: (>70-105) | D80: 74.69587515 | E80: 74.73684941 | F80: 75.56333207
A81: (>105) | D81: 259.8171875 | E81: 257.15075 | F81: 210.6013333
A84: Aproximación Internacional
A85: Crecimiento total de operaciones
A86: Operaciones internacionales | B86: % asig | C86: 2009 | D86: 2010 | E86: 2011 | F86: 2012 | G86: 2013 | H86: 2014 | I86: 2015 | J86: 2016 | K86: 2017 | L86: 2018
A87: (>0-10) | B87: =+F87/SUM($F$92) -> 0.0880020818 | C87: 3984 | D87: 6806 | E87: 2775 | F87: 5749 | G87: =+$B87*G$92 -> 6122.72775
A88: (>10-35) | B88: =+F88/SUM($F$92) -> 0.01843007592 | C88: 668 | D88: 875 | E88: 983 | F88: 1204 | G88: =+$B88*G$92 -> 1282.268953
A89: (>35-70) | B89: =+F89/SUM($F$92) -> 0.1734325251 | C89: 8726 | D89: 5862 | E89: 10588 | F89: 11330 | G89: =+$B89*G$92 -> 12066.53425
A90: (>70-105) | B90: =+F90/SUM($F$92) -> 0.3932463875 | C90: 18193 | D90: 21725 | E90: 24117 | F90: 25690 | G90: =+$B90*G$92 -> 27360.04103
A91: (>105) | B91: =+F91/SUM($F$92) -> 0.3268889297 | C91: 19127 | D91: 20539 | E91: 20431 | F91: 21355 | G91: =+$B91*G$92 -> 22743.2338
B92: =SUM(B87:B91) -> 1 | C92: =SUM(C87:C91) -> 50698 | D92: =SUM(D87:D91) -> 55807 | E92: =SUM(E87:E91) -> 58894 | F92: =SUM(F87:F91) -> 65328 | G92: =+IF('Panel de control'!$D$25=1,F92*(1+'Proy Demanda'!E$14),F92*(1+E18)) -> 69574.80578
A94: Crecimiento total de operaciones
A95: Operaciones sin AJCH | B95: % asig | C95: 2009 | D95: 2010 | E95: 2011 | F95: 2012 | G95: 2013 | H95: 2014 | I95: 2015 | J95: 2016 | K95: 2017 | L95: 2018
A96: (>0-10) | B96: =+F96/SUM($F$101) -> 0.9411764706 | C96: 2156 | D96: 5267 | E96: 1437 | F96: 3264 | G96: =+$B96*G$101 -> 3476.184271 | H96: 3702.162098 | I96: 3942.830164 | J96: 4199.143444 | K96: 4472.118993 | L96: 4762.839982
A97: (>10-35) | B97: =+F97/SUM($F$101) -> 0.0184544406 | C97: 26 | D97: 44 | E97: 44 | F97: 64 | G97: =+$B97*G$101 -> 68.16047591 | H97: 72.59141369 | I97: =+$B97*I$101 -> 77.31039537 | J97: 82.33614596 | K97: 87.6886077 | L97: 93.38901926
A98: (>35-70) | B98: =+F98/SUM($F$101) -> 0.02076124567 | C98: 77 | D98: 163 | E98: 88 | F98: 72 | G98: 76.6805354 | H98: 81.6653404 | I98: 86.97419479 | J98: 92.6281642 | K98: 98.64968366 | L98: 105.0626467
A99: (>70-105) | B99: =+F99/SUM($F$101) -> 0.01297577855 | C99: 82 | D99: 36 | E99: 8 | F99: 45 | G99: 47.92533462 | H99: 51.04083775 | I99: 54.35887175 | J99: 57.89260263 | K99: 61.65605229 | L99: 65.66415417
A100: (>105) | B100: =+F100/SUM($F$101) -> 0.006632064591 | C100: 80 | D100: 20 | E100: 14 | F100: 23 | G100: =+$B100*G$101 -> 24.49517103 | H100: 26.08753929 | I100: 27.78342334 | J100: 29.58955245 | K100: 31.51309339 | L100: =+$B100*L$101 -> 33.5616788
B101: =SUM(B96:B100) -> 1 | C101: =SUM(C96:C100) -> 2421 | D101: =SUM(D96:D100) -> 5530 | E101: =SUM(E96:E100) -> 1591 | F101: =SUM(F96:F100) -> 3468 | G101: =+IF('Panel de control'!$D$25=1,F101*(1+E$14),F101*(1+E$18)) -> 3693.445788 | H101: =+IF('Panel de control'!$D$25=1,G101*(1+F$14),G101*(1+F$18)) -> 3933.547229 | I101: =+IF('Panel de control'!$D$25=1,H101*(1+G$14),H101*(1+G$18)) -> 4189.257049 | J101: =+IF('Panel de control'!$D$25=1,I101*(1+H$14),I101*(1+H$18)) -> 4461.589909 | K101: =+IF('Panel de control'!$D$25=1,J101*(1+I$14),J101*(1+I$18)) -> 4751.62643 | L101: =+IF('Panel de control'!$D$25=1,K101*(1+J$14),K101*(1+J$18)) -> 5060.517481
A103: Operaciones con cargo mínimo | C103: 22 | D103: 0 | E103: 11 | F103: 30 | G103: =F103 -> 30 | H103: =G103 -> 30 | I103: 30 | J103: 30 | K103: 30 | L103: 30
A105: Aproximación Nacional
A106: Crecimiento total de operaciones
A107: Operaciones nacionales | B107: % asig | C107: 2009 | D107: 2010 | E107: 2011 | F107: =1+E107 -> 2012 | G107: 2013 | H107: 2014 | I107: 2015 | J107: 2016 | K107: 2017 | L107: 2018
A108: (>0-10) | B108: =+F108/SUM($F$113) -> 0.1747546466 | C108: 22255 | D108: 23021 | E108: 19899 | F108: 19961 | G108: =+$B108*G$113 -> 20772.87418
A109: (>10-35) | B109: =+F109/SUM($F$113) -> 0.1731962915 | C109: 7913 | D109: 10118 | E109: 11033 | F109: 19783 | G109: =+$B109*G$113 -> 20587.63438
A110: (>35-70) | B110: =+F110/SUM($F$113) -> 0.6056223353 | C110: 44896 | D110: 55176 | E110: 67210 | F110: 69176 | G110: =+$B110*G$113 -> 71989.59694
A111: (>70-105) | B111: =+F111/SUM($F$113) -> 0.0462954046 | C111: 1697 | D111: 4085 | E111: 2882 | F111: 5288 | G111: =+$B111*G$113 -> 5503.078938
A112: (>105) | B112: =+F112/SUM($F$113) -> 0.000131322063 | C112: 77 | D112: 96 | E112: 80 | F112: 15 | G112: =+$B112*G$113 -> 15.61009532
B113: =SUM(B108:B112) -> 1 | C113: =SUM(C108:C112) -> 76838 | D113: =SUM(D108:D112) -> 92496 | E113: =SUM(E108:E112) -> 101104 | F113: =SUM(F108:F112) -> 114223 | G113: =+IF('Panel de control'!$D$25=1,F113*(1+'Proy Demanda'!E$13),F113*(1+E17)) -> 118868.7945
A115: Crecimiento total de operaciones
A116: Operaciones sin AJCH | B116: % asig | C116: 2009 | D116: 2010 | E116: 2011 | F116: =1+E116 -> 2012 | G116: 2013 | H116: 2014 | I116: 2015 | J116: 2016 | K116: 2017 | L116: 2018
A117: (>0-10) | B117: =+F117/SUM($F$122) -> 0.1381670681 | C117: 9526 | D117: 9826 | E117: 8026 | F117: 7630 | G117: =+$B117*G$122 -> 7940.335154 | H117: 8263.292577 | I117: 8599.385653 | J117: 8949.148651 | K117: 9313.137567 | L117: 9691.931011
A118: (>10-35) | B118: =+F118/SUM($F$122) -> 0.1371892146 | C118: 2667 | D118: 3961 | E118: 4025 | F118: 7576 | G118: =+$B118*G$122 -> 7884.138811 | H118: 8204.810558 | I118: 8538.524995 | J118: 8885.812605 | K118: 9247.225453 | L118: 9623.338052
A119: (>35-70) | B119: =+F119/SUM($F$122) -> 0.6739945313 | C119: 25040 | D119: 30548 | E119: 36546 | F119: 37220 | G119: 38733.84986 | H119: 40309.27257 | I119: 41948.77248 | J119: 43654.9558 | K119: 45430.53476 | L119: 47278.33188
A120: (>70-105) | B120: =+F120/SUM($F$122) -> 0.05059486084 | C120: 686 | D120: 1964 | E120: 1269 | F120: 2794 | G120: 2907.640422 | H120: 3025.902944 | I120: 3148.975559 | J120: 3277.05391 | K120: 3410.341594 | L120: 3549.050491
A121: (>105) | B121: =+F121/SUM($F$122) -> 5.432519059e-05 | C121: 60 | D121: 61 | E121: 47 | F121: 3 | G121: 3.122019065 | H121: 3.249001013 | I121: 3.381147701 | J121: 3.518669194 | K121: 3.661784102 | L121: 3.810719926
B122: =SUM(B117:B121) -> 1 | C122: =SUM(C117:C121) -> 37979 | D122: =SUM(D117:D121) -> 46360 | E122: =SUM(E117:E121) -> 49913 | F122: =SUM(F117:F121) -> 55223 | G122: =+IF('Panel de control'!$D$25=1,F122*(1+E$13),F122*(1+E17)) -> 57469.08627 | H122: =+IF('Panel de control'!$D$25=1,G122*(1+F$13),G122*(1+F17)) -> 59806.52765 | I122: =+IF('Panel de control'!$D$25=1,H122*(1+G$13),H122*(1+G17)) -> 62239.03983 | J122: =+IF('Panel de control'!$D$25=1,I122*(1+H$13),I122*(1+H17)) -> 64770.48964 | K122: =+IF('Panel de control'!$D$25=1,J122*(1+I$13),J122*(1+I17)) -> 67404.90116 | L122: =+IF('Panel de control'!$D$25=1,K122*(1+J$13),K122*(1+J17)) -> 70146.46215
A124: Operaciones con cargo mínimo | C124: 1534 | D124: 1105 | E124: 1067 | F124: 875 | G124: =F124 -> 875 | H124: =G124 -> 875 | I124: 875 | J124: 875 | K124: 875 | L124: 875
A127: % Operac AIJCH
A129: Operac Internacionales AIJCh | C129: =C92-C101 -> 48277 | D129: =D92-D101 -> 50277 | E129: 57303 | F129: 61860
A130: Operac Nacionales AIJCh | C130: =C113-C122 -> 38859 | D130: =D113-D122 -> 46136 | E130: 51191 | F130: 59000
A131: Total Operaciones AIJCH | C131: =C129+C130 -> 87136 | D131: =D129+D130 -> 96413 | E131: =E129+E130 -> 108494 | F131: =F129+F130 -> 120860
A133: % Operac Internacionales | C133: =C129/C131*100 -> 55.40419574 | D133: =D129/D131*100 -> 52.14753197 | E133: =E129/E131*100 -> 52.81674563 | F133: =F129/F131*100 -> 51.18318716 | G133: =AVERAGE(C133:F133) -> 52.88791512 | H133: =G133/100 -> 0.5288791512
A134: % Operac Nacionales | C134: =C130/C131*100 -> 44.59580426 | D134: =D130/D131*100 -> 47.85246803 | E134: =E130/E131*100 -> 47.18325437 | F134: =F130/F131*100 -> 48.81681284 | G134: =AVERAGE(C134:F134) -> 47.11208488 | H134: =G134/100 -> 0.4711208488

Sheet Tasas de crecimiento de Demanda
A1: Título: Operaciones aéreas /1 | E1: Título: Análisis de tendencia de las operaciones aéreas/1
A2: AÑO | B2: OPERACIONES NACIONALES | C2: OPERACIONES INTERNACIONALES | E2: AÑO | F2: HP-OPERACIONES NACIONALES | G2: HP-OPERACIONES INTERNACIONALES | H2: tasa de crecimiento O.N | I2: tasa de crecimiento O.I.
A3: 1985 | B3: 109215 | C3: 11391 | E3: 1985 | F3: 118090.4303 | G3: 10173.37463
A4: 1986 | B4: 116712 | C4: 11710 | E4: 1986 | F4: 123580.1696 | G4: 10917.95173 | H4: =F4/F3-1 -> 0.0464875882 | I4: =G4/G3-1 -> 0.07318880109 | J4: =H4+1 -> 1.046487588 | K4: =I4+1 -> 1.073188801
A5: 1987 | B5: 154427 | C5: 12577 | E5: 1987 | F5: 128981.1546 | G5: 11674.70507 | H5: =F5/F4-1 -> 0.0437043015 | I5: 0.06931275802 | J5: =H5+1 -> 1.043704301 | K5: 1.069312758
A6: 1988 | B6: 144388 | C6: 13148 | E6: 1988 | F6: 134135.9493 | G6: 12463.73141 | H6: 0.03996548725 | I6: 0.06758426284 | J6: 1.039965487 | K6: 1.067584263
A7: 1989 | B7: 121642 | C7: 14086 | E7: 1989 | F7: 139141.5761 | G7: 13314.15042 | H7: 0.03731756378 | I7: 0.06823149377 | J7: 1.037317564 | K7: 1.068231494
A8: 1990 | B8: 133307 | C8: 13133 | E8: 1990 | F8: 144197.5781 | G8: 14261.92448 | H8: 0.03633710425 | I8: 0.07118547031 | J8: 1.036337104 | K8: 1.07118547
A9: 1991 | B9: 144653 | C9: 12642 | E9: 1991 | F9: 149328.5024 | G9: 15350.73445 | H9: 0.03558259675 | I9: 0.07634383254 | J9: 1.035582597 | K9: 1.076343833
A10: 1992 | B10: 153409 | C10: 12005 | E10: 1992 | F10: 154449.9904 | G10: 16612.97196 | H10: 0.03429678814 | I10: 0.08222652248 | J10: 1.034296788 | K10: 1.082226522
A11: 1993 | B11: 157757 | C11: 14791 | E11: 1993 | F11: 159430.9285 | G11: 18053.94129 | H11: 0.03224952057 | I11: 0.08673760061 | J11: 1.032249521 | K11: 1.086737601
A12: 1994 | B12: 157376 | C12: 18025 | E12: 1994 | F12: 164129.7933 | G12: 19632.86699 | H12: 0.02947273036 | I12: 0.08745601172 | J12: 1.02947273 | K12: 1.087456012
A13: 1995 | B13: 190384 | C13: 23092 | E13: 1995 | F13: 168388.3219 | G13: 21276.34421 | H13: 0.02594610347 | I13: 0.08371050552 | J13: 1.025946103 | K13: 1.083710506
A14: 1996 | B14: 181563 | C14: 26076 | E14: 1996 | F14: 171980.7136 | G14: 22894.88943 | H14: 0.02133397178 | I14: 0.07607252448 | J14: 1.021333972 | K14: 1.076072524
A15: 1997 | B15: 166498 | C15: 27975 | E15: 1997 | F15: 174901.1245 | G15: 24417.17567 | H15: 0.01698103706 | I15: 0.06649022042 | J15: 1.016981037 | K15: 1.06649022
A16: 1998 | B16: 203117 | C16: 33528 | E16: 1998 | F16: 177239.5334 | G16: 25803.68709 | H16: 0.01336989092 | I16: 0.05678426657 | J16: 1.013369891 | K16: 1.056784267
A17: 1999 | B17: 198677 | C17: 26826 | E17: 1999 | F17: 179001.8881 | G17: 27050.48605 | H17: 0.009943350016 | I17: 0.04831863595 | J17: 1.00994335 | K17: 1.048318636
A18: 2000 | B18: 185448 | C18: 28679 | E18: 2000 | F18: 180452.9109 | G18: 28230.87807 | H18: 0.008106187233 | I18: 0.04363662901 | J18: 1.008106187 | K18: 1.043636629
A19: 2001 | B19: 175740 | C19: 31025 | E19: 2001 | F19: 182054.0753 | G19: 29415.92381 | H19: 0.008873031614 | I19: 0.04197693512 | J19: 1.008873032 | K19: 1.041976935
A20: 2002 | B20: 170853 | C20: 30437 | E20: 2002 | F20: 184316.8056 | G20: 30681.16513 | H20: 0.01242889122 | I20: 0.04301212256 | J20: 1.012428891 | K20: 1.043012123
A21: 2003 | B21: 170202 | C21: 28821 | E21: 2003 | F21: 187689.3854 | G21: 32118.23467 | H21: 0.01829773362 | I21: 0.04683881885 | J21: 1.018297734 | K21: 1.046838819
A22: 2004 | B22: 179259 | C22: 31356 | E22: 2004 | F22: 192485.4603 | G22: 33816.3234 | H22: 0.02555325574 | I22: 0.0528699273 | J22: 1.025553256 | K22: 1.052869927
A23: 2005 | B23: 180542 | C23: 32813 | E23: 2005 | F23: 198843.8019 | G23: 35831.64996 | H23: 0.03303284101 | I23: 0.05959626475 | J23: 1.033032841 | K23: 1.059596265
A24: 2006 | B24: 197359 | C24: 32375 | E24: 2006 | F24: 206770.9173 | G24: 38195.82975 | H24: 0.03986604237 | I24: 0.0659802101 | J24: 1.039866042 | K24: 1.06598021
A25: 2007 | B25: 218278 | C25: 39820 | E25: 2007 | F25: 216090.2957 | G25: 40910.29168 | H25: 0.04507103051 | I25: 0.07106697096 | J25: 1.045071031 | K25: 1.071066971
A26: 2008 | B26: 227949 | C26: 44550 | E26: 2008 | F26: 226531.3068 | G26: 43918.25634 | H26: 0.04831781582 | I26: 0.07352586684 | J26: 1.048317816 | K26: 1.073525867
A27: 2009 | B27: 233928 | C27: 47331 | E27: 2009 | F27: 237845.1976 | G27: 47152.04142 | H27: 0.04994404961 | I27: 0.07363190957 | J27: 1.04994405 | K27: 1.07363191
A28: 2010 | B28: 258093 | C28: 50046 | E28: 2010 | F28: 249797.392 | G28: 50550.28204 | H28: 0.05025198966 | I28: 0.0720698515 | J28: 1.05025199 | K28: 1.072069851
A29: 2011 | B29: 263817 | C29: 56489 | E29: 2011 | F29: 262114.1419 | G29: 54053.40291 | H29: 0.04930695948 | I29: 0.06929972957 | J29: 1.049306959 | K29: 1.06929973
A30: 2012 | B30: 291981 | C30: 61623 | E30: 2012 | F30: 274604.6552 | G30: 57596.78593 | H30: 0.04765295472 | I30: 0.06555337545 | J30: 1.047652955 | K30: 1.065553375
A31: /1.Fuente: Página web CORPAC | E31: /2. Se aplicó el filtro HP a las operaciones y se extrajo la tendencia | H31: Promedio geométrico: | J31: =GEOMEAN(J4:J30)-1 -> 0.03174844228 | K31: =GEOMEAN(K4:K30)-1 -> 0.06631720168
I32: 2003 | J32: =GEOMEAN(J21:J30)-1 -> 0.04067302151 | K32: =GEOMEAN(K21:K30)-1 -> 0.06500743607
I33: 2008 | J33: =GEOMEAN(J26:J30)-1 -> 0.04909429739 | K33: =GEOMEAN(K26:K30)-1 -> 0.07081176629

Sheet Demanda
A1: Objetivo:
A2: Calcular la cantidad demandada de cada uno de los servicios de aeronavegación. Las unidades de medida varían de acuerdo a la unidad de cobro (kilómetros o peso). A partir de esta página se calculan los ingresos en la hoja "Modelo".
A4: Supuestos:
A5: Se asume una cantidad constante de operaciones que pagan tarífa mínima.
A8: SNAR Nacional (kilómetros) | D8: 2011 | E8: 2012 | F8: =1+E8 -> 2013 | G8: 2014 | H8: 2015 | I8: 2016 | J8: 2017 | K8: 2018
A9: Operaciones (cargo mínimo) | D9: =+'Proy Demanda'!E31 -> 421 | E9: =+'Proy Demanda'!F31 -> 475 | F9: =+'Proy Demanda'!G31 -> 475 | G9: =+'Proy Demanda'!H31 -> 475 | H9: =+'Proy Demanda'!I31 -> 475 | I9: =+'Proy Demanda'!J31 -> 475 | J9: =+'Proy Demanda'!K31 -> 475 | K9: =+'Proy Demanda'!L31 -> 475
A10: (>0-10) | D10: ='Proy Demanda'!E23-'Proy Demanda'!E30 -> 6100845.12 | E10: ='Proy Demanda'!F23-'Proy Demanda'!F30 -> 5865795.48 | F10: ='Proy Demanda'!G23-'Proy Demanda'!G30 -> 6104649.501 | G10: ='Proy Demanda'!H23-'Proy Demanda'!H30 -> 6353218.436 | H10: ='Proy Demanda'!I23-'Proy Demanda'!I30 -> 6611897.421 | I10: ='Proy Demanda'!J23-'Proy Demanda'!J30 -> 6881097.662 | J10: ='Proy Demanda'!K23-'Proy Demanda'!K30 -> 7161247.09 | K10: ='Proy Demanda'!L23-'Proy Demanda'!L30 -> 7452791.041
A11: (>10-35) | D11: ='Proy Demanda'!E24 -> 3967264.47 | E11: ='Proy Demanda'!F24 -> 7241295.21 | F11: ='Proy Demanda'!G24 -> 7535820.566 | G11: ='Proy Demanda'!H24 -> 7842325.158 | H11: ='Proy Demanda'!I24 -> 8161296.218 | I11: ='Proy Demanda'!J24 -> 8493240.794 | J11: ='Proy Demanda'!K24 -> 8838686.56 | K11: ='Proy Demanda'!L24 -> 9198182.648
A12: (>35-70) | D12: ='Proy Demanda'!E25 -> 44185059.83 | E12: ='Proy Demanda'!F25 -> 45779672.78 | F12: ='Proy Demanda'!G25 -> 47641670.4 | G12: ='Proy Demanda'!H25 -> 49579401.08 | H12: ='Proy Demanda'!I25 -> 51595945.13 | I12: ='Proy Demanda'!J25 -> 53694508.11 | J12: ='Proy Demanda'!K25 -> 55878426 | K12: ='Proy Demanda'!L25 -> 58151170.42
A13: (>70-105) | D13: ='Proy Demanda'!E26 -> 1831718.98 | E13: ='Proy Demanda'!F26 -> 3568849.03 | F13: ='Proy Demanda'!G26 -> 3714004.903 | G13: ='Proy Demanda'!H26 -> 3865064.705 | H13: ='Proy Demanda'!I26 -> 4022268.565 | I13: ='Proy Demanda'!J26 -> 4185866.38 | J13: ='Proy Demanda'!K26 -> 4356118.214 | K13: ='Proy Demanda'!L26 -> 4533294.704
A14: (>105) | D14: ='Proy Demanda'!E27 -> 79910.97 | E14: ='Proy Demanda'!F27 -> 14643.59 | F14: ='Proy Demanda'!G27 -> 15239.18905 | G14: ='Proy Demanda'!H27 -> 15859.01292 | H14: ='Proy Demanda'!I27 -> 16504.04689 | I14: ='Proy Demanda'!J27 -> 17175.31634 | J14: ='Proy Demanda'!K27 -> 17873.88835 | K14: ='Proy Demanda'!L27 -> 18600.8734
A15: TOTAL | D15: =SUM(D9:D14) -> 56165220.37 | E15: 62470731.09 | F15: 65011859.55 | G15: 67656343.39 | H15: 70408386.38 | I15: 73272363.27 | J15: 76252826.75 | K15: 79354514.69
A17: SNAR Internacional (kilómetros) | D17: 2011 | E17: 2012 | F17: =1+E17 -> 2013 | G17: 2014 | H17: 2015 | I17: 2016 | J17: 2017 | K17: 2018
A18: Operaciones (cargo mínimo) | D18: =+'Proy Demanda'!E44 -> 46 | E18: =+'Proy Demanda'!F44 -> 97 | F18: =+'Proy Demanda'!G44 -> 97 | G18: =+'Proy Demanda'!H44 -> 97 | H18: =+'Proy Demanda'!I44 -> 97 | I18: =+'Proy Demanda'!J44 -> 97 | J18: =+'Proy Demanda'!K44 -> 97 | K18: =+'Proy Demanda'!L44 -> 97
A19: (>0-10) | D19: ='Proy Demanda'!E36-'Proy Demanda'!E43 -> 1097289.97 | E19: ='Proy Demanda'!F36-'Proy Demanda'!F43 -> 1468468.58 | F19: ='Proy Demanda'!G36-'Proy Demanda'!G43 -> 1564192.631 | G19: ='Proy Demanda'!H36-'Proy Demanda'!H43 -> 1666139.457 | H19: ='Proy Demanda'!I36-'Proy Demanda'!I43 -> 1774713.585 | I19: ='Proy Demanda'!J36-'Proy Demanda'!J43 -> 1890345.838 | J19: ='Proy Demanda'!K36-'Proy Demanda'!K43 -> 2013495.048 | K19: ='Proy Demanda'!L36-'Proy Demanda'!L43 -> 2144649.872
A20: (>10-35) | D20: ='Proy Demanda'!E37-'Proy Demanda'!E44 -> 916506.17 | E20: ='Proy Demanda'!F37-'Proy Demanda'!F44 -> 1059828.73 | F20: ='Proy Demanda'!G37-'Proy Demanda'!G44 -> 1128731.784 | G20: ='Proy Demanda'!H37-'Proy Demanda'!H44 -> 1202114.049 | H20: ='Proy Demanda'!I37-'Proy Demanda'!I44 -> 1280266.707 | I20: ='Proy Demanda'!J37-'Proy Demanda'!J44 -> 1363499.869 | J20: ='Proy Demanda'!K37-'Proy Demanda'!K44 -> 1452143.805 | K20: ='Proy Demanda'!L37-'Proy Demanda'!L44 -> 1546550.256
A21: (>35-70) | D21: ='Proy Demanda'!E38-'Proy Demanda'!E45 -> 9720675.79 | E21: ='Proy Demanda'!F38-'Proy Demanda'!F45 -> 10930263.25 | F21: ='Proy Demanda'!G38-'Proy Demanda'!G45 -> 11640811.64 | G21: ='Proy Demanda'!H38-'Proy Demanda'!H45 -> 12397550.96 | H21: ='Proy Demanda'!I38-'Proy Demanda'!I45 -> 13203483.96 | I21: ='Proy Demanda'!J38-'Proy Demanda'!J45 -> 14061808.6 | J21: ='Proy Demanda'!K38-'Proy Demanda'!K45 -> 14975930.72 | K21: ='Proy Demanda'!L38-'Proy Demanda'!L45 -> 15949477.58
A22: (>70-105) | D22: ='Proy Demanda'!E39-'Proy Demanda'!E46 -> 23671780.5 | E22: ='Proy Demanda'!F39-'Proy Demanda'!F46 -> 24675664.56 | F22: ='Proy Demanda'!G39-'Proy Demanda'!G46 -> 26279766.25 | G22: ='Proy Demanda'!H39-'Proy Demanda'!H46 -> 27988146.47 | H22: ='Proy Demanda'!I39-'Proy Demanda'!I46 -> 29807584.11 | I22: ='Proy Demanda'!J39-'Proy Demanda'!J46 -> 31745298.73 | J22: ='Proy Demanda'!K39-'Proy Demanda'!K46 -> 33808979.21 | K22: ='Proy Demanda'!L39-'Proy Demanda'!L46 -> 36006814.26
A23: (>105) | D23: ='Proy Demanda'!E40-'Proy Demanda'!E47 -> 18503960.54 | E23: ='Proy Demanda'!F40-'Proy Demanda'!F47 -> 19698297.61 | F23: ='Proy Demanda'!G40-'Proy Demanda'!G47 -> 20978833.43 | G23: ='Proy Demanda'!H40-'Proy Demanda'!H47 -> 22342613.61 | H23: ='Proy Demanda'!I40-'Proy Demanda'!I47 -> 23795049.63 | I23: ='Proy Demanda'!J40-'Proy Demanda'!J47 -> 25341904.8 | J23: ='Proy Demanda'!K40-'Proy Demanda'!K47 -> 26989317.05 | K23: ='Proy Demanda'!L40-'Proy Demanda'!L47 -> 28743823.36
A24: TOTAL | D24: =SUM(D18:D23) -> 53910258.97 | E24: 57832619.73 | F24: 61592432.73 | G24: 65596661.54 | H24: 69861194.99 | I24: 74402954.84 | J24: 79239962.84 | K24: 84391412.33
A27: Aproximación total (pesos en kg) | D27: 2011 | E27: 2012 | F27: =1+E27 -> 2013 | G27: 2014 | H27: 2015 | I27: 2016 | J27: 2017 | K27: 2018
A28: Operaciones (cargo mínimo) | D28: =D37+D46 -> 5827.766729 | E28: =E37+E46 -> 4883.847594 | F28: 4671.959687 | G28: 4671.959687 | H28: 4671.959687 | I28: 4671.959687 | J28: 4671.959687 | K28: 4671.959687
A29: (>0-10) | D29: =Demanda!D38+Demanda!D47 -> 123259.9 | E29: =Demanda!E38+Demanda!E47 -> 132900.6 | F29: =Demanda!F38+Demanda!F47 -> 54375.64061 | G29: =Demanda!G38+Demanda!G47 -> 57216.90957 | H29: =Demanda!H38+Demanda!H47 -> 60202.32041 | I29: =Demanda!I38+Demanda!I47 -> 63339.59363 | J29: =Demanda!J38+Demanda!J47 -> 66636.88455 | K29: =Demanda!K38+Demanda!K47 -> 70102.80882
A30: (>10-35) | D30: =Demanda!D39+Demanda!D48 -> 251441.86 | E30: =Demanda!E39+Demanda!E48 -> 414095.38 | F30: =Demanda!F39+Demanda!F48 -> 157651.5938 | G30: =Demanda!G39+Demanda!G48 -> 164093.4879 | H30: =Demanda!H39+Demanda!H48 -> 170799.3257 | I30: =Demanda!I39+Demanda!I48 -> 177779.9684 | J30: =Demanda!J39+Demanda!J48 -> 185046.7269 | K30: =Demanda!K39+Demanda!K48 -> 192611.3807
A31: (>35-70) | D31: =Demanda!D40+Demanda!D49 -> 4752966.46 | E31: =Demanda!E40+Demanda!E49 -> 4990853.37 | F31: =Demanda!F40+Demanda!F49 -> 2380195.976 | G31: =Demanda!G40+Demanda!G49 -> 2477129.1 | H31: =Demanda!H40+Demanda!H49 -> 2578012.806 | I31: =Demanda!I40+Demanda!I49 -> 2683008.299 | J31: =Demanda!J40+Demanda!J49 -> 2792283.371 | K31: =Demanda!K40+Demanda!K49 -> 2906012.678
A32: (>70-105) | D32: =Demanda!D41+Demanda!D50 -> 2090136.15 | E32: =Demanda!E41+Demanda!E50 -> 2401886.23 | F32: =Demanda!F41+Demanda!F50 -> 223446.3529 | G32: =Demanda!G41+Demanda!G50 -> 232625.4889 | H32: =Demanda!H41+Demanda!H50 -> 242183.8771 | I32: =Demanda!I41+Demanda!I50 -> 252137.327 | J32: =Demanda!J41+Demanda!J50 -> 262502.316 | K32: =Demanda!K41+Demanda!K50 -> 273296.0184
A33: (>105) | D33: =Demanda!D42+Demanda!D51 -> 4177842.56 | E33: =Demanda!E42+Demanda!E51 -> 4401371.98 | F33: =Demanda!F42+Demanda!F51 -> 5702.454723 | G33: =Demanda!G42+Demanda!G51 -> 6057.156772 | H33: =Demanda!H42+Demanda!H51 -> 6434.266328 | I33: =Demanda!I42+Demanda!I51 -> 6835.213576 | J33: =Demanda!J42+Demanda!J51 -> 7261.520598 | K33: =Demanda!K42+Demanda!K51 -> 7714.807302
A34: TOTAL | D34: =SUM(D29:D33) -> 11395646.93 | E34: =SUM(E29:E33) -> 12341107.56 | F34: 2821372.018 | G34: 2937122.143 | H34: 3057632.596 | I34: 3183100.401 | J34: 3313730.819 | K34: =SUM(K29:K33) -> 3449737.693
A36: Aprox Internac (pesos en kg) | D36: 2011 | E36: =1+D36 -> 2012 | F36: 2013 | G36: 2014 | H36: 2015 | I36: 2016 | J36: 2017 | K36: 2018
A37: Operaciones (cargo mínimo) | D37: ='Proy Demanda'!E103*'Proy Demanda'!E70 -> 62.38700541 | E37: ='Proy Demanda'!F103*'Proy Demanda'!F70 -> 155.9120195 | F37: ='Proy Demanda'!G103*'Proy Demanda'!$F$70 -> 155.9120195 | G37: ='Proy Demanda'!H103*'Proy Demanda'!$F$70 -> 155.9120195 | H37: ='Proy Demanda'!I103*'Proy Demanda'!$F$70 -> 155.9120195 | I37: ='Proy Demanda'!J103*'Proy Demanda'!$F$70 -> 155.9120195 | J37: ='Proy Demanda'!K103*'Proy Demanda'!$F$70 -> 155.9120195 | K37: ='Proy Demanda'!L103*'Proy Demanda'!$F$70 -> 155.9120195
A38: (>0-10) | D38: 15738.54 | E38: 29877.94 | F38: ='Proy Demanda'!G96*'Proy Demanda'!$F70-F37 -> 17910.05164 | G38: ='Proy Demanda'!H96*'Proy Demanda'!$F70-G37 -> 19084.47362 | H38: ='Proy Demanda'!I96*'Proy Demanda'!$F70-H37 -> 20335.24176 | I38: ='Proy Demanda'!J96*'Proy Demanda'!$F70-I37 -> 21667.31913 | J38: ='Proy Demanda'!K96*'Proy Demanda'!$F70-J37 -> 23085.99143 | K38: ='Proy Demanda'!L96*'Proy Demanda'!$F70-K37 -> 24596.88798
A39: (>10-35) | D39: 18163.59 | E39: 21578.93 | F39: ='Proy Demanda'!G97*'Proy Demanda'!$F71 -> 1221.619716 | G39: ='Proy Demanda'!H97*'Proy Demanda'!$F71 -> 1301.034082 | H39: ='Proy Demanda'!I97*'Proy Demanda'!$F71 -> 1385.610972 | I39: ='Proy Demanda'!J97*'Proy Demanda'!$F71 -> 1475.685988 | J39: ='Proy Demanda'!K97*'Proy Demanda'!$F71 -> 1571.616551 | K39: ='Proy Demanda'!L97*'Proy Demanda'!$F71 -> 1673.783313
A40: (>35-70) | D40: 708532.41 | E40: 749040.24 | F40: ='Proy Demanda'!G98*'Proy Demanda'!$F72 -> 5069.44454 | G40: ='Proy Demanda'!H98*'Proy Demanda'!$F72 -> 5398.996132 | H40: ='Proy Demanda'!I98*'Proy Demanda'!$F72 -> 5749.971028 | I40: ='Proy Demanda'!J98*'Proy Demanda'!$F72 -> 6123.761902 | J40: ='Proy Demanda'!K98*'Proy Demanda'!$F72 -> 6521.851962 | K40: ='Proy Demanda'!L98*'Proy Demanda'!$F72 -> 6945.820836
A41: (>70-105) | D41: 1874744.55 | E41: 2002307.33 | F41: ='Proy Demanda'!G99*'Proy Demanda'!$F73 -> 3735.354177 | G41: ='Proy Demanda'!H99*'Proy Demanda'!$F73 -> 3978.179975 | H41: ='Proy Demanda'!I99*'Proy Demanda'!$F73 -> 4236.791255 | I41: ='Proy Demanda'!J99*'Proy Demanda'!$F73 -> 4512.214192 | J41: ='Proy Demanda'!K99*'Proy Demanda'!$F73 -> 4805.541668 | K41: ='Proy Demanda'!L99*'Proy Demanda'!$F73 -> 5117.93761
A42: (>105) | D42: 4157270.5 | E42: 4398212.96 | F42: ='Proy Demanda'!G100*'Proy Demanda'!$F74 -> 5044.953345 | G42: ='Proy Demanda'!H100*'Proy Demanda'!$F74 -> 5372.912827 | H42: ='Proy Demanda'!I100*'Proy Demanda'!$F74 -> 5722.192114 | I42: ='Proy Demanda'!J100*'Proy Demanda'!$F74 -> 6094.177152 | J42: ='Proy Demanda'!K100*'Proy Demanda'!$F74 -> 6490.343984 | K42: ='Proy Demanda'!L100*'Proy Demanda'!$F74 -> 6912.264605
D43: =SUM(D38:D42) -> 6774449.59 | E43: 7201017.4 | F43: 32981.42342 | G43: 35135.59663 | H43: 37429.80713 | I43: 39873.15836 | J43: 42475.3456 | K43: 45246.69435
A45: Aprox Nac (pesos en kg) | D45: 2011 | E45: =1+D45 -> 2012 | F45: 2013 | G45: 2014 | H45: 2015 | I45: 2016 | J45: 2017 | K45: 2018
A46: Operaciones (cargo mínimo) | D46: ='Proy Demanda'!E124*'Proy Demanda'!E77 -> 5765.379724 | E46: ='Proy Demanda'!F124*'Proy Demanda'!E77 -> 4727.935575 | F46: ='Proy Demanda'!G124*'Proy Demanda'!$F$77 -> 4516.047668 | G46: ='Proy Demanda'!H124*'Proy Demanda'!$F$77 -> 4516.047668 | H46: ='Proy Demanda'!I124*'Proy Demanda'!$F$77 -> 4516.047668 | I46: ='Proy Demanda'!J124*'Proy Demanda'!$F$77 -> 4516.047668 | J46: ='Proy Demanda'!K124*'Proy Demanda'!$F$77 -> 4516.047668 | K46: ='Proy Demanda'!L124*'Proy Demanda'!$F$77 -> 4516.047668
A47: (>0-10) | D47: 107521.36 | E47: 103022.66 | F47: ='Proy Demanda'!G117*'Proy Demanda'!$F77-F46 -> 36465.58897 | G47: ='Proy Demanda'!H117*'Proy Demanda'!$F77-G46 -> 38132.43596 | H47: ='Proy Demanda'!I117*'Proy Demanda'!$F77-H46 -> 39867.07865 | I47: ='Proy Demanda'!J117*'Proy Demanda'!$F77-I46 -> 41672.2745 | J47: ='Proy Demanda'!K117*'Proy Demanda'!$F77-J46 -> 43550.89312 | K47: ='Proy Demanda'!L117*'Proy Demanda'!$F77-K46 -> 45505.92084
A48: (>10-35) | D48: 233278.27 | E48: 392516.45 | F48: ='Proy Demanda'!G118*'Proy Demanda'!$F78 -> 156429.9741 | G48: ='Proy Demanda'!H118*'Proy Demanda'!$F78 -> 162792.4538 | H48: ='Proy Demanda'!I118*'Proy Demanda'!$F78 -> 169413.7148 | I48: ='Proy Demanda'!J118*'Proy Demanda'!$F78 -> 176304.2824 | J48: ='Proy Demanda'!K118*'Proy Demanda'!$F78 -> 183475.1103 | K48: ='Proy Demanda'!L118*'Proy Demanda'!$F78 -> 190937.5974
A49: (>35-70) | D49: 4044434.05 | E49: 4241813.13 | F49: ='Proy Demanda'!G119*'Proy Demanda'!$F79 -> 2375126.531 | G49: ='Proy Demanda'!H119*'Proy Demanda'!$F79 -> 2471730.104 | H49: ='Proy Demanda'!I119*'Proy Demanda'!$F79 -> 2572262.835 | I49: ='Proy Demanda'!J119*'Proy Demanda'!$F79 -> 2676884.537 | J49: ='Proy Demanda'!K119*'Proy Demanda'!$F79 -> 2785761.519 | K49: ='Proy Demanda'!L119*'Proy Demanda'!$F79 -> 2899066.857
A50: (>70-105) | D50: 215391.6 | E50: 399578.9 | F50: ='Proy Demanda'!G120*'Proy Demanda'!$F80 -> 219710.9988 | G50: ='Proy Demanda'!H120*'Proy Demanda'!$F80 -> 228647.3089 | H50: ='Proy Demanda'!I120*'Proy Demanda'!$F80 -> 237947.0859 | I50: ='Proy Demanda'!J120*'Proy Demanda'!$F80 -> 247625.1128 | J50: ='Proy Demanda'!K120*'Proy Demanda'!$F80 -> 257696.7743 | K50: ='Proy Demanda'!L120*'Proy Demanda'!$F80 -> 268178.0808
A51: (>105) | D51: 20572.06 | E51: 3159.02 | F51: ='Proy Demanda'!G121*'Proy Demanda'!$F81 -> 657.5013777 | G51: ='Proy Demanda'!H121*'Proy Demanda'!$F81 -> 684.2439454 | H51: ='Proy Demanda'!I121*'Proy Demanda'!$F81 -> 712.0742141 | I51: ='Proy Demanda'!J121*'Proy Demanda'!$F81 -> 741.0364239 | J51: ='Proy Demanda'!K121*'Proy Demanda'!$F81 -> 771.1766143 | K51: ='Proy Demanda'!L121*'Proy Demanda'!$F81 -> 802.5426973
D52: =SUM(D47:D51) -> 4621197.34 | E52: 5140090.16 | F52: 2788390.594 | G52: 2901986.546 | H52: 3020202.789 | I52: 3143227.243 | J52: 3271255.474 | K52: 3404490.999

Sheet DETALLE_GOA_GT
A2: DESAGREGADO DE GASTOS DE PERSONAL AL INCORPORARSE NECESIDADES DE LA GERENCIA TÉCNICA Y GERENCIA DE OPERACIONES AERONAUTICAS 2013 AL 2017 (INCLUYENDO PROYECTO PPTO 2014)
A5: PARTIDA PRESP. | B5: RUBROS | C5: PERSONAL ADICIONAL GOA (55 PLAZAS 2013) EFECTO ANUALIZADO (1) | D5: PRESUPUESTO APROBADO TERCERA MODIFICACIÓN PRESUPUESTAL | E5: PERSONAL ADICIONAL GT (36 PLAZAS NO COBERTURADAS) NOV- DIC | F5: ESTIMADO ANUAL PARA EL AÑO 2013 | G5: PROYECTO DE PRESUPUESTO 2014 PRESENTADO A FONAFE | H5: IMPACTO INCREMENTAL POR RECAT. DE 55 PLAZAS ADICIONALES GOA O2 A C4 EN EL 2014 | I5: PERSONAL ADICIONAL GT (36 PLAZAS 2013) EFECTO ANUALIZADO | J5: PERSONAL ADICIONAL GT (75 PLAZAS 2014) EFECTO ANUALIZADO | K5: ESTIMADO ANUAL PARA EL AÑO 2014 | L5: PERSONAL ADICIONAL GT (29 PLAZAS 2015) EFECTO ANUALIZADO | M5: ESTIMADO ANUAL PARA EL AÑO 2015 | N5: PERSONAL ADICIONAL GT (86 PLAZAS 2016) EFECTO ANUALIZADO | O5: PERSONAL ADICIONAL GOA (5 PLAZAS 2016) EFECTO ANUALIZADO | P5: ESTIMADO ANUAL PARA EL AÑO 2016 | Q5: PERSONAL ADICIONAL GOA (17 PLAZAS 2017) EFECTO ANUALIZADO | R5: ESTIMADO ANUAL PARA EL AÑO 2017
A7: 2.2 | B7: GASTOS DE PERSONAL (GIP) | C7: 3462366.746 | D7: 141416557.4 | E7: 325609.6244 | F7: 141742167 | G7: 162029983 | H7: 1411493.914 | I7: 2008553.747 | J7: 4319401 | K7: 169769431.7 | L7: 1597684 | M7: 171367115.7 | N7: 4848034 | O7: 395695.9683 | P7: 176610845.6 | Q7: 1341766.292 | R7: 177952611.9
A8: 2.2.1 | B8: SUELDOS Y SALARIOS | C8: 2667170.917 | D8: 106540263.4 | E8: 230410.5609 | F8: 106770674 | G8: 124191199 | H8: 1217573.615 | I8: 1538663.365 | J8: 3320437 | K8: 130267873 | L8: 1221481 | M8: 131489354 | N8: 3625436 | O8: 312430.125 | P8: 135427220.1 | Q8: 1058662.425 | R8: 136485882.5
A9: 2.2.1.1 | B9: BASICA | C9: 1617000 | D9: 53690228 | E9: 166780 | F9: 53857008 | G9: 62576947 | H9: 838200 | I9: 1000680 | J9: 2177040 | K9: 66592867 | L9: 795960 | M9: 67388827 | N9: 2459520 | O9: 223200 | P9: 70071547 | Q9: 758880 | R9: 70830427
A10: 221101 | B10: Sueldo Básico | C10: 1482250 | D10: 49202059.67 | E10: 152881.6667 | F10: 49354941.33 | G10: 57362201 | H10: 768350 | I10: 917290 | J10: 1995620 | K10: 61043461 | L10: 729630 | M10: 61773091 | N10: 2254560 | O10: 204600 | P10: 64232251 | Q10: 695640 | R10: 64927891
A11: 221102 | B11: Sueldo Vacacional | C11: 134750 | D11: 4488168.333 | E11: 13898.33333 | F11: 4502066.667 | G11: 5214746 | H11: 69850 | I11: 83390 | J11: 181420 | K11: 5549406 | L11: 66330 | M11: 5615736 | N11: 204960 | O11: 18600 | P11: 5839296 | Q11: 63240 | R11: 5902536
A12: 2.2.1.2 | B12: BONIFICACIONES | C12: 490069.25 | D12: 21385303 | E12: 16532.9949 | F12: 21401835.99 | G12: 26927035 | H12: 192815.9062 | I12: 171197.9694 | J12: 365829.8984 | K12: 27656878.77 | L12: 136884 | M12: 27793762.77 | N12: 409659 | O12: 22052.625 | P12: 28225474.4 | Q12: 74978.925 | R12: 28300453.32
A13: 221201 | B13: Bonificacion por Retorno Vacacional | C13: 134750 | D13: 4488168.333 | E13: 13898.33333 | F13: 4502066.667 | G13: 5214746 | H13: 69850 | I13: 83390 | J13: 181420 | K13: 5549406 | L13: 66330 | M13: 5615736 | N13: 204960 | O13: 18600 | P13: 5839296 | Q13: 63240 | R13: 5902536
A14: 221202 | B14: Quinquenio (Remuneracion por Tiempo de Servicio) | C14: 0 | D14: 2870236.8 | E14: 0 | F14: 2870236.8 | G14: 3388273 | H14: 0 | I14: 0 | J14: 0 | K14: 3388273 | L14: 0 | M14: 3388273 | N14: 0 | O14: 0 | P14: 3388273 | Q14: 0 | R14: 3388273
A15: 221203 | B15: Bonificacion por Antigüedad 30% | C15: 0 | D15: 4823387.4 | E15: 0 | F15: 4823387.4 | G15: 5347108 | H15: 0 | I15: 0 | J15: 0 | K15: 5347108 | L15: 0 | M15: 5347108 | N15: 0 | O15: 0 | P15: 5347108 | Q15: 0 | R15: 5347108
A16: 221204 | B16: Bonificacion Consolidada (Incremento 10.23 Remun) | C16: 0 | D16: 657202.68 | E16: 0 | F16: 657202.68 | G16: 585264 | H16: 0 | I16: 0 | J16: 0 | K16: 585264 | L16: 0 | M16: 585264 | N16: 0 | O16: 0 | P16: 585264 | Q16: 0 | R16: 585264
A17: 221205 | B17: Otras Bonificaciones (Bolsa de cierre y otro similares) | C17: 330000 | D17: 7400000 | E17: 0 | F17: 7400000 | G17: 11084000 | H17: 110000 | I17: 72000 | J17: 150000 | K17: 11416000 | L17: 58000 | M17: 11474000 | N17: 166000 | O17: 0 | P17: 11640000 | Q17: 0 | R17: 11640000
A18: 221206 | B18: Bonificacion unica por productividad (por Norma Legal). | C18: 0 | D18: 0 | E18: 0 | F18: 0 | G18: 0 | H18: 0 | I18: 0 | J18: 0 | K18: 0 | L18: 0 | M18: 0 | N18: 0 | O18: 0 | P18: 0 | Q18: 0 | R18: 0
A19: 221207 | B19: Bonificación Extraordinaria (Ley 29714) | C19: 25319.25 | D19: 1146307.786 | E19: 2634.661562 | F19: 1148942.447 | G19: 1307645 | H19: 12965.90625 | I19: 15807.96938 | J19: 34409.89837 | K19: 1370828.774 | L19: 12553.62 | M19: 1383382.394 | N19: 38698.98 | O19: 3452.625 | P19: 1425533.999 | Q19: 11738.925 | R19: 1437272.924
A20: 2.2.1.3 | B20: GRATIFICACIONES | C20: 281325 | D20: 14066151.29 | E20: 29274.01736 | F20: 14095425.3 | G20: 16210853 | H20: 144065.625 | I20: 175644.1042 | J20: 382332.4542 | K20: 16912895.18 | L20: 139484.6667 | M20: 17052379.85 | N20: 429988.6667 | O20: 38362.5 | P20: 17520731.02 | Q20: 130432.5 | R20: 17651163.52
A21: 221301 | B21: GRATIFICACIONES ORDINARIAS | C21: 281325 | D21: 12455759.29 | E21: 29274.01736 | F21: 12485033.3 | G21: 14529384 | H21: 144065.625 | I21: 175644.1042 | J21: 382332.2042 | K21: 15231425.93 | L21: 139484.6667 | M21: 15370910.6 | N21: 429988.6667 | O21: 38362.5 | P21: 15839261.77 | Q21: 130432.5 | R21: 15969694.27
A22: 221301.1 | B22: Gratificaciones Ordinarias (1er y 2do semestre) | C22: 281325 | D22: 12455759.29 | E22: 29274.01736 | F22: 12485033.3 | G22: 14529384 | H22: 144065.625 | I22: 175644.1042 | J22: 382332.2042 | K22: 15231425.93 | L22: 139484.6667 | M22: 15370910.6 | N22: 429988.6667 | O22: 38362.5 | P22: 15839261.77 | Q22: 130432.5 | R22: 15969694.27
A23: 221302 | B23: GRATIFICACIONES EXTRAORDINARIAS | C23: 0 | D23: 1610392 | E23: 0 | F23: 1610392 | G23: 1681468 | H23: 0 | I23: 0 | J23: 0.25 | K23: 1681468.25 | L23: 0 | M23: 1681468.25 | N23: 0 | O23: 0 | P23: 1681468.25 | Q23: 0 | R23: 1681468.25
A24: 221302.1 | B24: Gratificacion Extraordinario por Antigüedad (Tiempo de Ss.) | C24: 0 | D24: 1525164.5 | E24: 0 | F24: 1525164.5 | G24: 1578240 | H24: 0 | I24: 0 | J24: 0 | K24: 1578240 | L24: 0 | M24: 1578240 | N24: 0 | O24: 0 | P24: 1578240 | Q24: 0 | R24: 1578240
A25: 221302.2 | B25: Gratificacion por Balance | C25: 0 | D25: 85227.5 | E25: 0 | F25: 85227.5 | G25: 103228 | H25: 0 | I25: 0 | J25: 0.25 | K25: 103228.25 | L25: 0 | M25: 103228.25 | N25: 0 | O25: 0 | P25: 103228.25 | Q25: 0 | R25: 103228.25
A26: 2.2.1.4 | B26: ASIGNACIONES | C26: 227626.6667 | D26: 4360778.925 | E26: 13399.44444 | F26: 4374178.369 | G26: 5333650 | H26: 16298.33333 | I26: 164596.6667 | J26: 334261 | K26: 5848806 | L26: 128544.6667 | M26: 5977350.667 | N26: 367916.1667 | O26: 21840 | P26: 6367106.833 | Q26: 70656 | R26: 6437762.833
A27: 221401 | B27: Asignacion Familiar | C27: 19800 | D27: 686704.7999 | E27: 4440 | F27: 691144.7999 | G27: 878566 | H27: 0 | I27: 26640 | J27: 55980 | K27: 961186 | L27: 20340 | M27: 981526 | N27: 54060 | O27: 0 | P27: 1035586 | Q27: 0 | R27: 1035586
A28: 221402 | B28: Asignacion Escolar | C28: 176000 | D28: 2323200 | E28: 0 | F28: 2323200 | G28: 2969238 | H28: 0 | I28: 115200 | J28: 240003 | K28: 3324441 | L28: 92800 | M28: 3417241 | N28: 265600 | O28: 16000 | P28: 3698841 | Q28: 54400 | R28: 3753241
A29: 221403 | B29: Asignación por Diferencia Remunerativa (Encargaturas) | C29: 0 | D29: 650584.44 | E29: 0 | F29: 650584.44 | G29: 613337 | H29: 0 | I29: 0 | J29: 0 | K29: 613337 | L29: 0 | M29: 613337 | N29: 0 | O29: 0 | P29: 613337 | Q29: 0 | R29: 613337
A30: 221404 | B30: Asignacion Sepelio y Luto | C30: 0 | D30: 104000 | E30: 6000 | F30: 110000 | G30: 142500 | H30: 0 | I30: 5000 | J30: 5000 | K30: 152500 | M30: 152500 | N30: 10000 | O30: 1500 | P30: 164000 | Q30: 1500 | R30: 165500
A31: 221405 | B31: Asignación por Día 31 trabajado para Grupo CTA | C31: 31826.66667 | D31: 596289.6849 | E31: 2959.444444 | F31: 599249.1293 | G31: 730009 | H31: 16298.33333 | I31: 17756.66667 | J31: 33278 | K31: 797342 | L31: 15404.66667 | M31: 812746.6667 | N31: 38256.16667 | O31: 4340 | P31: 855342.8333 | Q31: 14756 | R31: 870098.8333
A32: 2.2.1.5 | B32: HORAS EXTRAS | C32: 51150 | D32: 13037802.23 | E32: 4424.104167 | F32: 13042226.33 | G32: 13142715 | H32: 26193.75 | I32: 26544.625 | J32: 60973.225 | K32: 13256426.6 | L32: 20608 | M32: 13277034.6 | N32: 66352 | O32: 6975 | P32: 13350361.6 | Q32: 23715 | R32: 13374076.6
A33: 221501 | B33: Horas Extraordinarias (25% -35%) | C33: 0 | D33: 3538219.091 | E33: 0 | F33: 3538219.091 | G33: 3719003 | H33: 0 | I33: 0 | J33: 954.85 | K33: 3719957.85 | L33: 0 | M33: 3719957.85 | N33: 0 | O33: 0 | P33: 3719957.85 | Q33: 0 | R33: 3719957.85
A34: 221502 | B34: Feriados Trabajados | C34: 51150 | D34: 699326.2388 | E34: 4424.104167 | F34: 703750.343 | G34: 1044538 | H34: 26193.75 | I34: 26544.625 | J34: 59283.875 | K34: 1156560.25 | L34: 20608 | M34: 1177168.25 | N34: 66352 | O34: 6975 | P34: 1250495.25 | Q34: 23715 | R34: 1274210.25
A35: 221503 | B35: Horas Libres Laborados | C35: 0 | D35: 8800256.897 | E35: 0 | F35: 8800256.897 | G35: 8379174 | H35: 0 | I35: 0 | J35: 734.5 | K35: 8379908.5 | L35: 0 | M35: 8379908.5 | N35: 0 | O35: 0 | P35: 8379908.5 | Q35: 0 | R35: 8379908.5
A36: 2.2.2 | B36: COMPENSACION POR TIEMPO DE SERVICIO | C36: 177916.4438 | D36: 7802617.455 | E36: 18473.93241 | F36: 7821091.388 | G36: 8913629 | H36: 91180.8221 | I36: 110843.5945 | J36: 240822.2516 | K36: 9356475.668 | L36: 88142.00687 | M36: 9444617.675 | N36: 270986.2982 | O36: 24280.07575 | P36: 9739884.049 | Q36: 82552.25755 | R36: 9822436.307
A37: 222001 | B37: Compensacion Tiempo Servicio Empleado Depositado | C37: 177916.4438 | D37: 7802617.455 | E37: 18473.93241 | F37: 7821091.388 | G37: 8913629 | H37: 91180.8221 | I37: 110843.5945 | J37: 240822.2516 | K37: 9356475.668 | L37: 88142.00687 | M37: 9444617.675 | N37: 270986.2982 | O37: 24280.07575 | P37: 9739884.049 | Q37: 82552.25755 | R37: 9822436.307
A38: 2.2.3 | B38: SEGURIDAD Y PREVISION SOCIAL | C38: 174332.4 | D38: 7758976.387 | E38: 17992.60938 | F38: 7776968.996 | G38: 9185929 | H38: 85548.7875 | I38: 107955.6562 | J38: 234125.4803 | K38: 9613558.924 | L38: 85903.8 | M38: 9699462.724 | N38: 263316.255 | O38: 23336.55 | P38: 9986115.529 | Q38: 79344.27 | R38: 10065459.8
A39: 223001 | B39: Essalud - Seguro Social | C39: 174332.4 | D39: 7165753.387 | E39: 17992.60938 | F39: 7183745.996 | G39: 8531929 | H39: 85548.7875 | I39: 107955.6562 | J39: 234125.4803 | K39: 8959558.924 | L39: 85903.8 | M39: 9045462.724 | N39: 263316.255 | O39: 23336.55 | P39: 9332115.529 | Q39: 79344.27 | R39: 9411459.799
A40: 223002 | B40: Seguro de Vida Ley DL 688 | C40: 0 | D40: 527223 | E40: 0 | F40: 527223 | G40: 576000 | H40: 0 | I40: 0 | J40: 0 | K40: 576000 | L40: 0 | M40: 576000 | N40: 0 | O40: 0 | P40: 576000 | Q40: 0 | R40: 576000
A41: 223003 | B41: Seguro Accidente Personal (Seguro Accidente de Viaje) | C41: 0 | D41: 66000 | E41: 0 | F41: 66000 | G41: 78000 | H41: 0 | I41: 0 | J41: 0 | K41: 78000 | L41: 0 | M41: 78000 | N41: 0 | O41: 0 | P41: 78000 | Q41: 0 | R41: 78000
A42: 2.2.4 | B42: DIETAS DEL DIRECTORIO | C42: 0 | D42: 124600 | E42: 0 | F42: 124600 | G42: 168000 | H42: 0 | I42: 0 | J42: 0 | K42: 168000 | L42: 0 | M42: 168000 | N42: 0 | O42: 0 | P42: 168000 | Q42: 0 | R42: 168000
A43: 224001 | B43: Dietas del Directorio (Asignacion por Sesion) | C43: 0 | D43: 124600 | E43: 0 | F43: 124600 | G43: 168000 | H43: 0 | I43: 0 | J43: 0 | K43: 168000 | L43: 0 | M43: 168000 | N43: 0 | O43: 0 | P43: 168000 | Q43: 0 | R43: 168000
A44: 2.2.5 | B44: CAPACITACION | C44: 0 | D44: 1968481 | E44: 0 | F44: 1968481 | G44: 1890000 | H44: 0 | I44: 0 | J44: 0 | K44: 1890000 | L44: 0 | M44: 1890000 | N44: 0 | O44: 0 | P44: 1890000 | Q44: 0 | R44: 1890000
A45: 225001 | B45: Capacitacion Empleados (Personal Administrativo | C45: 0 | D45: 266810 | E45: 0 | F45: 266810 | G45: 340000 | H45: 0 | I45: 0 | J45: 0 | K45: 340000 | L45: 0 | M45: 340000 | N45: 0 | O45: 0 | P45: 340000 | Q45: 0 | R45: 340000
A46: 225002 | B46: Curso Basico Formacion C.T.A. | C46: 0 | D46: 1269812 | E46: 0 | F46: 1269812 | G46: 900000 | H46: 0 | I46: 0 | J46: 0 | K46: 900000 | L46: 0 | M46: 900000 | N46: 0 | O46: 0 | P46: 900000 | Q46: 0 | R46: 900000
A47: 225003 | B47: Capacitacion Personal Tecnico | C47: 0 | D47: 431859 | E47: 0 | F47: 431859 | G47: 650000 | H47: 0 | I47: 0 | J47: 0 | K47: 650000 | L47: 0 | M47: 650000 | N47: 0 | O47: 0 | P47: 650000 | Q47: 0 | R47: 650000
A48: 2.2.6 | B48: JUBILACIONES Y PENSIONES | C48: 0 | D48: 0 | E48: 0 | F48: 0 | G48: 0 | H48: 0 | I48: 0 | J48: 0 | K48: 0 | L48: 0 | M48: 0 | N48: 0 | O48: 0 | P48: 0 | Q48: 0 | R48: 0
A49: 216001 | B49: Pension y Jubilacion | C49: 0 | D49: 0 | E49: 0 | F49: 0 | G49: 0 | H49: 0 | I49: 0 | J49: 0 | K49: 0 | L49: 0 | M49: 0 | N49: 0 | O49: 0 | P49: 0 | Q49: 0 | R49: 0
A50: 2.2.7 | B50: OTROS GASTOS DE PERSONAL | C50: 442946.985 | D50: 17221619.1 | E50: 58732.52177 | F50: 17280351.62 | G50: 17681226 | H50: 17190.68937 | I50: 251091.1306 | J50: 524016.3162 | K50: 18473524.14 | L50: 202157.6677 | M50: 18675681.8 | N50: 580295.1569 | O50: 35649.2175 | P50: 19291626.18 | Q50: 121207.3395 | R50: 19412833.52
A51: 227101 | B51: REFRIGERIO | C51: 0 | D51: 93205 | E51: 0 | F51: 93205 | G51: 93205 | H51: 0 | I51: 0 | J51: 0 | K51: 93205 | L51: 0 | M51: 93205 | N51: 0 | O51: 0 | P51: 93205 | Q51: 0 | R51: 93205
B52: Alimentos por Vales | C52: 0 | D52: 93205 | E52: 0 | F52: 93205 | G52: 93205 | H52: 0 | I52: 0 | J52: 0 | K52: 93205 | L52: 0 | M52: 93205 | N52: 0 | O52: 0 | P52: 93205 | Q52: 0 | R52: 93205
A53: 227201 | B53: UNIFORMES (COMPENSACIÓN ECONÓMICA) | C53: 82500 | D53: 1989264 | E53: 0 | F53: 1989264 | G53: 2350500 | H53: 0 | I53: 44496 | J53: 92703 | K53: 2487699 | L53: 35844 | M53: 2523543 | N53: 102588 | O53: 6180 | P53: 2632311 | Q53: 21012 | R53: 2653323
B54: Asignacion Vestuarios y Otros Implementos | C54: 82500 | D54: 1989264 | E54: 0 | F54: 1989264 | G54: 2350500 | H54: 0 | I54: 44496 | J54: 92703 | K54: 2487699 | L54: 35844 | M54: 2523543 | N54: 102588 | O54: 6180 | P54: 2632311 | Q54: 21012 | R54: 2653323
A55: 227300 | B55: ASISTENCIA MEDICA | C55: 300327.2 | D55: 6662939.52 | E55: 27953.28 | F55: 6690892.8 | G55: 7672153 | H55: 5911.2 | I55: 167719.68 | J55: 349416 | K55: 8195199.88 | L55: 135107.52 | M55: 8330307.4 | N55: 386687.04 | O55: 23294.4 | P55: 8740288.84 | Q55: 79200.96 | R55: 8819489.8
A56: 227301 | B56: (Auto) Seguro de Asistencia Medica Trabajadores | C56: 300327.2 | D56: 6327923.8 | E56: 27953.28 | F56: 6355877.08 | G56: 7212723 | H56: 5911.2 | I56: 167719.68 | J56: 349416 | K56: 7735769.88 | L56: 135107.52 | M56: 7870877.4 | N56: 386687.04 | O56: 23294.4 | P56: 8280858.84 | Q56: 79200.96 | R56: 8360059.8
A57: 227302 | B57: Seguro Medico Practicante | C57: 0 | D57: 70800 | E57: 0 | F57: 70800 | G57: 78000 | H57: 0 | I57: 0 | J57: 0 | K57: 78000 | L57: 0 | M57: 78000 | N57: 0 | O57: 0 | P57: 78000 | Q57: 0 | R57: 78000
A58: 227303 | B58: Servicio Médico Personal Aeronáutico | C58: 0 | D58: 142319.72 | E58: 0 | F58: 142319.72 | G58: 120790 | H58: 0 | I58: 0 | J58: 0 | K58: 120790 | L58: 0 | M58: 120790 | N58: 0 | O58: 0 | P58: 120790 | Q58: 0 | R58: 120790
A59: 227304 | B59: Habilitación y Renovacion Licencia Personal Aeronáutico | C59: 0 | D59: 121896 | E59: 0 | F59: 121896 | G59: 93798 | H59: 0 | I59: 0 | J59: 0 | K59: 93798 | L59: 0 | M59: 93798 | N59: 0 | O59: 0 | P59: 93798 | Q59: 0 | R59: 93798
A60: 227305 | B60: Examenes de Retiro D.S.009.2005 | C60: 0 | D60: 0 | E60: 0 | F60: 0 | G60: 166842 | H60: 0 | I60: 0 | J60: 0 | K60: 166842 | L60: 0 | M60: 166842 | N60: 0 | O60: 0 | P60: 166842 | Q60: 0 | R60: 166842
A61: 227306 | B61: Programa Médico Oncologico (titulares) | C61: 0 | D61: 0 | F61: 0 | G61: 0 | H61: 0 | K61: 0 | M61: 0 | P61: 0 | R61: 0
A62: 227401 | B62: SEGURO COMPLEMENTARIO DE TRABAJO DE RIESGO | C62: 15569.785 | D62: 481495.5794 | E62: 1619.241766 | F62: 483114.8212 | G62: 562958 | H62: 7979.489375 | I62: 9715.450596 | J62: 21147.31618 | K62: 601800.2561 | L62: 7716.147733 | M62: 609516.4039 | N62: 23790.11693 | O62: 2124.8175 | P62: 635431.3383 | Q62: 7224.3795 | R62: 642655.7178
B63: Seguro Complementario de Trabajo de Alto Riesgo | C63: 15569.785 | D63: 481495.5794 | E63: 1619.241766 | F63: 483114.8212 | G63: 562958 | H63: 7979.489375 | I63: 9715.450596 | J63: 21147.31618 | K63: 601800.2561 | L63: 7716.147733 | M63: 609516.4039 | N63: 23790.11693 | O63: 2124.8175 | P63: 635431.3383 | Q63: 7224.3795 | R63: 642655.7178
A64: 227501 | B64: PAGO DE INDEMNIZACION POR CESE DE RELACION LABORAL | C64: 0 | D64: 1100000 | E64: 0 | F64: 1100000 | G64: 300000 | H64: 0 | I64: 0 | J64: 0 | K64: 300000 | L64: 0 | M64: 300000 | N64: 0 | O64: 0 | P64: 300000 | Q64: 0 | R64: 300000
B65: Indemnizacion Especial según D.L. 728 | C65: 0 | D65: 1100000 | E65: 0 | F65: 1100000 | G65: 300000 | H65: 0 | I65: 0 | J65: 0 | K65: 300000 | L65: 0 | M65: 300000 | N65: 0 | O65: 0 | P65: 300000 | Q65: 0 | R65: 300000
A66: 227601 | B66: INCENTIVOS POR RETIRO VOLUNTARIO (GIP) | C66: 0 | D66: 0 | E66: 0 | F66: 0 | G66: 0 | H66: 0 | I66: 0 | J66: 0 | K66: 0 | L66: 0 | M66: 0 | N66: 0 | O66: 0 | P66: 0 | Q66: 0 | R66: 0
B67: Programa Retiro Voluntario con Incentivo | C67: 0 | D67: 0 | E67: 0 | F67: 0 | G67: 0 | H67: 0 | I67: 0 | J67: 0 | K67: 0 | L67: 0 | M67: 0 | N67: 0 | O67: 0 | P67: 0 | Q67: 0 | R67: 0
A68: 227701 | B68: CELEBRACIONES | C68: 0 | D68: 121568 | E68: 0 | F68: 121568 | G68: 150000 | H68: 0 | I68: 0 | J68: 0 | K68: 150000 | L68: 0 | M68: 150000 | N68: 0 | O68: 0 | P68: 150000 | Q68: 0 | R68: 150000
B69: Celebracion | C69: 0 | D69: 121568 | E69: 0 | F69: 121568 | G69: 150000 | H69: 0 | I69: 0 | J69: 0 | K69: 150000 | L69: 0 | M69: 150000 | N69: 0 | O69: 0 | P69: 150000 | Q69: 0 | R69: 150000
A70: 227801 | B70: BONOS DE PRODUCTIVIDAD (Convenio de Gestión) | D70: 0 | F70: 0 | G70: 0 | H70: 0 | I70: 0 | K70: 0 | L70: 0 | M70: 0 | N70: 0 | P70: 0 | R70: 0
B71: Bono de Productividad | D71: 0 | F71: 0 | G71: 0 | H71: 0 | I71: 0 | K71: 0 | L71: 0 | M71: 0 | N71: 0 | P71: 0 | R71: 0
C72: 0 | D72: 1182377 | E72: 0 | F72: 1182377 | G72: 1000000 | K72: 1000000 | M72: 1000000 | O72: 0 | P72: 1000000 | Q72: 0 | R72: 1000000
C73: 0 | D73: 1182377 | E73: 0 | F73: 1182377 | G73: 1000000 | K73: 1000000 | M73: 1000000 | O73: 0 | P73: 1000000 | Q73: 0 | R73: 1000000
A74: 227900 | B74: OTROS (GIP) | C74: 44550 | D74: 5590770 | E74: 29160 | F74: 5619930 | G74: 5552410 | H74: 3300 | I74: 29160 | J74: 60750 | K74: 5645620 | L74: 23490 | M74: 5669110 | N74: 67230 | O74: 4050 | P74: 5740390 | Q74: 13770 | R74: 5754160
A75: 227901 | B75: Gastos Rehabilitacion y Becas Hijos Trabajadores | C75: 0 | D75: 75303 | E75: 0 | F75: 75303 | G75: 105000 | H75: 0 | I75: 0 | J75: 0 | K75: 105000 | L75: 0 | M75: 105000 | N75: 0 | O75: 0 | P75: 105000 | Q75: 0 | R75: 105000
A76: 227902 | B76: Indemnizacion Vacaciones No Disfrutadas | C76: 0 | D76: 0 | E76: 0 | F76: 0 | G76: 0 | H76: 0 | I76: 0 | J76: 0 | K76: 0 | L76: 0 | M76: 0 | N76: 0 | O76: 0 | P76: 0 | Q76: 0 | R76: 0
A77: 227903 | B77: Reduccion Periodo Vacacional | C77: 0 | D77: 160000 | E77: 0 | F77: 160000 | G77: 160000 | H77: 0 | I77: 0 | J77: 0 | K77: 160000 | L77: 0 | M77: 160000 | N77: 0 | O77: 0 | P77: 160000 | Q77: 0 | R77: 160000
A78: 227904 | B78: Programa de Asistencia Social | C78: 0 | D78: 429000 | E78: 0 | F78: 429000 | G78: 429000 | H78: 0 | I78: 0 | J78: 0 | K78: 429000 | L78: 0 | M78: 429000 | N78: 0 | O78: 0 | P78: 429000 | Q78: 0 | R78: 429000
A79: 227905 | B79: Practicas Pro y Pre Profesionales | C79: 0 | D79: 810000 | E79: 0 | F79: 810000 | G79: 1020000 | H79: 0 | I79: 0 | J79: 0 | K79: 1020000 | L79: 0 | M79: 1020000 | N79: 0 | O79: 0 | P79: 1020000 | Q79: 0 | R79: 1020000
A80: 227906 | B80: Otros | C80: 44550 | D80: 1137506 | E80: 29160 | F80: 1166666 | G80: 1338410 | H80: 3300 | I80: 29160 | J80: 60750 | K80: 1431620 | L80: 23490 | M80: 1455110 | N80: 67230 | O80: 4050 | P80: 1526390 | Q80: 13770 | R80: 1540160
A81: 227907 | B81: Ejercicios Anteriores Otros | D81: 2978961 | F81: 2978961 | G81: 2500000 | K81: 2500000 | M81: 2500000 | P81: 2500000 | R81: 2500000

Sheet Personal
A1: Objetivo:
A2: Calcular los costos directos de personal de servicios de aeronavegación.
B4: Gasto de personal (CORPAC S.A.)
B5: (Nuevos soles) | C5: 2011 | D5: 2012 | E5: 2013 | F5: 2014 | G5: 2015 | H5: 2016 | I5: 2017 | J5: 2018
B6: Trabajadores Base | E6: =DETALLE_GOA_GT!D7 -> 141416557.4 | F6: =DETALLE_GOA_GT!G7 -> 162029983 | G6: =F10 -> 169769431.7 | H6: =G10 -> 171367115.7 | I6: =H10 -> 176610845.6 | J6: =I10 -> 177952611.9
B7: Adicionales GOA | H7: =DETALLE_GOA_GT!O7 -> 395695.9683 | I7: =DETALLE_GOA_GT!Q7 -> 1341766.292
B8: Adicionales GT | E8: =DETALLE_GOA_GT!E7 -> 325609.6244 | F8: =SUM(DETALLE_GOA_GT!I7:J7) -> 6327954.747 | G8: =DETALLE_GOA_GT!L7 -> 1597684 | H8: =DETALLE_GOA_GT!N7 -> 4848034
B9: De I2 a C4 | F9: =DETALLE_GOA_GT!H7 -> 1411493.914
B10: TOTAL | C10: ='C_EEFF-2011'!E13+'C_EEFF-2011'!F13+'C_EEFF-2011'!G13+'C_EEFF-2011'!R13+'C_EEFF-2011'!S13 -> 94066357.56 | D10: ='C_EEFF-2012'!E14+'C_EEFF-2012'!F14+'C_EEFF-2012'!G14+'C_EEFF-2012'!R14+'C_EEFF-2012'!S14 -> 110834324.9 | E10: =SUM(E6:E9) -> 141742167 | F10: 169769431.7 | G10: 171367115.7 | H10: 176610845.6 | I10: 177952611.9 | J10: 177952611.9
A12: Nota: Cabe precisar, que los 141,416,557 ya contemplan 40 plazas adicionales de la Gerencia Técnica (2,466,883) y 55 plazas adicionales de la GOA (3,462,367), los cuales se encuentran vigentes y aprobados por FONAFE para este periodo.
A14: Nota: Representa al incremento restante de la Gerencia Técnica (36 plazas correspondiente a los meses de Noviembre y Diciembre).
A15: Nota: Representa al impacto anual de las 36 plazas (2,008,554) y el adicional según requerimiento de la Gerencia Técnica por 75 plazas (4,319,401).
A16: Nota: Representa a la promoción de las 55 plazas de la GOA coberturadas en el 2013.
A17: Nota: Representa al impacto anual de las 29 plazas a incorporarse en el 2015 ( 1,597,684) y 86 plazas al 2016 (4,848,034).
A18: Nota: Representa al impacto de las 5 plazas faltantes para la GOA para el 2016 (395,696) y las 15 plazas para el 2017 (1,341,766).
B21: Gasto de personal TOTAL
B22: (Nuevos soles) | C22: 2011 | D22: 2012 | E22: 2013 | F22: 2014 | G22: 2015 | H22: 2016 | I22: 2017 | J22: 2018 | N22: PARTIDA 225003 Capacitación Personal Técnico Operacional | W22: PARTIDA 225002 Formacion Personal Aeronáutico-2012
B23: Movilidad | E23: =38040 -> 38040 | F23: =E23 -> 38040 | G23: =F23 -> 38040 | H23: 38040 | I23: 38040 | J23: 38040 | N23: 237898 | W23: 1447312
B24: Plan de contingencia | E24: =48061 -> 48061 | F24: =E24 -> 48061 | G24: 48061 | H24: 48061 | I24: 48061 | J24: 48061 | N24: Ingenieros, Personal Técnico, CTAS, Personal operacional | W24: Nuevos Controladores y Especialistas Aeronaúticos.
B25: Contingencias (Aumento de remuneraciones) | F25: =2263802+403239 -> 2667041 | N25: *Pago a Instructores - Cursos a Personal Operativo | Q25: *PAGO A INSTITUCIONES - CURSOS A PERSONAL OPERATIVO
B26: Contingencias (Bono pacto colectivo) | F26: =5415750+640785.57 -> 6056535.57 | W26: PAGOS REALIZADOS A FAVOR DE INSTRUCTORES EXTERNOS | Z26: 39120
B27: Capacitaciones (Pago a instructores) | E27: =N23+W23 -> 1685210 | F27: =E27 -> 1685210 | G27: =F27 -> 1685210 | H27: =G27 -> 1685210 | I27: =H27 -> 1685210 | J27: =I27 -> 1685210 | N27: ENERO | O27: 12531.64557 | Q27: ENERO | R27: 5238.19 | W27: PAGOS REALIZADOS A FAVOR DE INSTRUCTORES INTERNOS | Z27: 949439.25
B28: Presupuesto Corpac | D28: =D10 -> 110834324.9 | E28: 141742167 | F28: 169769431.7 | G28: 171367115.7 | H28: 176610845.6 | I28: 177952611.9 | J28: 177952611.9 | N28: FEBRERO | O28: 17409.02457 | Q28: FEBRERO | R28: 2561 | W28: PAGOS REALIZADOS A FAVOR DE ALUMNOS | Z28: 312925 | AB28: 1301484.25
B29: TOTAL Personal Aeronavegación | D29: =SUM(D23:D28) -> 110834324.9 | E29: 143513478 | F29: 180264319.2 | G29: 173138426.7 | H29: 178382156.6 | I29: 179723922.9 | J29: 179723922.9 | N29: MARZO | O29: 1647.06 | Q29: MARZO | R29: 11927.02 | W29: DEVENGADOS
N30: JUNIO | O30: - | Q30: JUNIO | R30: 4531 | S30: 2400 | W30: PAGO A INSTRUCTORES MARCELO/RIVAS (EXTERNOS) | Z30: 3600
B32: Driver | D32: Ingresos C.R. (USD) | O32: 117756.4196 | R32: 105748.74 | S32: 13500 | T32: (PROF. INGLES)
B33: Ingresos (US$) | C33: % | D33: 2012
B34: Aproximación | C34: =+D34/$D$41 -> 0.05046983244 | D34: =+'C_EEFF-2012'!G12/'Panel de control'!$J$7 -> 2617405.202 | Q34: TOTAL GRAL | R34: 237005.1596
B35: Snar Nacional | C35: 0.1665080918 | D35: =+'C_EEFF-2012'!E12/'Panel de control'!$J$7 -> 8635240.588
B36: Snar Internacional | C36: 0.3360962093 | D36: =+'C_EEFF-2012'!F12/'Panel de control'!$J$7 -> 17430213.74
B37: Aterrizaje y despegue | C37: 0.03234076526 | D37: =+'C_EEFF-2012'!H12/'Panel de control'!$J$7 -> 1677217.521
B38: Sobrevuelo | C38: 0.4120831493 | D38: =+'C_EEFF-2012'!R12/'Panel de control'!$J$7 -> 21370956.21
B39: Mensaje Clase B | C39: 0.0008262929539 | D39: 42852.20243
B40: Otros | C40: 0.001675658904 | D40: ='C_EEFF-2012'!S12/CostosyGastos!E7-D39 -> 86900.98859
B41: Total general | C41: =SUM(C34:C40) -> 1 | D41: =SUM(D34:D40) -> 51860786.45
B43: Gasto de personal por servicio
B44: (Nuevos soles) | C44: 2011 | D44: 2012 | E44: 2013 | F44: 2014 | G44: 2015 | H44: 2016 | I44: 2017 | J44: 2018
B45: SNAR Nacional | E45: =E29*$C$35 -> 23896155.36 | F45: 30015467.81 | G45: 28828949.03 | H45: 29702072.5 | I45: 29925487.45 | J45: 29925487.45
B46: SNAR Internacional | E46: =E29*$C$36 -> 48234335.95 | F46: 60586154.37 | G46: 58191168.89 | H46: 59953566.66 | I46: 60404529.22 | J46: 60404529.22
B47: Aproximación | E47: =E29*$C$34 -> 7243101.188 | F47: 9097909.987 | G47: 8738267.383 | H47: 9002917.556 | I47: 9070636.276 | J47: 9070636.276

Sheet CostosyGastos
A1: Objetivo:
A2: Calcular los costos y gastos respectivos de los tres servicios de aeronavegación. Estos son asignados de acuerdo a los porcentajes de ingresos (escenario de ingresos considerando operaciones en AIJCH).
A4: Supuestos:
A5: Solo el costo de personal aumenta de acuerdo al crecimiento de demanda, el resto incrementa de acuerdo a las nuevas inversiones en proyectos.
A7: Tipo de Cambio | B7: ='Panel de control'!G7 -> 3.012 | C7: ='Panel de control'!H7 -> 2.83 | D7: ='Panel de control'!I7 -> 2.75 | E7: ='Panel de control'!J7 -> 2.67 | F7: ='Panel de control'!K7 -> 2.75 | G7: ='Panel de control'!L7 -> 2.82 | H7: ='Panel de control'!M7 -> 2.82 | I7: ='Panel de control'!N7 -> 2.82 | J7: ='Panel de control'!O7 -> 2.82 | K7: ='Panel de control'!P7 -> 2.82
A9: TOTAL (sin costos incrementales)
A11: AERONAVEGACIÓN (S/.) | B11: 2009 | C11: 2010 | D11: 2011 | E11: 2012 | F11: 2013 | G11: 2014 | H11: 2015 | I11: 2016 | J11: 2017 | K11: 2018
A12: Gastos de Personal | B12: =+'C_EEFF-2009'!E13+'C_EEFF-2009'!F13+'C_EEFF-2009'!G13+'C_EEFF-2009'!R13+'C_EEFF-2009'!S13 -> 69315931.72 | C12: =+'C_EEFF-2010'!E13+'C_EEFF-2010'!F13+'C_EEFF-2010'!G13+'C_EEFF-2010'!R13+'C_EEFF-2010'!S13 -> 83180361.35 | D12: =+'C_EEFF-2011'!E13+'C_EEFF-2011'!F13+'C_EEFF-2011'!G13+'C_EEFF-2011'!R13+'C_EEFF-2011'!S13 -> 94066357.56 | E12: =+'C_EEFF-2012'!E14+'C_EEFF-2012'!F14+'C_EEFF-2012'!G14+'C_EEFF-2012'!R14+'C_EEFF-2012'!S14 -> 110834324.9 | F12: =Personal!E29 -> 143513478 | G12: =Personal!F29 -> 180264319.2 | H12: =Personal!G29 -> 173138426.7 | I12: =Personal!H29 -> 178382156.6 | J12: =Personal!I29 -> 179723922.9 | K12: =Personal!J29 -> 179723922.9
A13: Depreciación activos (hasta 2011) | B13: =+'C_EEFF-2009'!E14+'C_EEFF-2009'!F14+'C_EEFF-2009'!G14+'C_EEFF-2009'!R14+'C_EEFF-2009'!S14 -> 9838403.009 | C13: =+'C_EEFF-2010'!E14+'C_EEFF-2010'!F14+'C_EEFF-2010'!G14+'C_EEFF-2010'!R14+'C_EEFF-2010'!S14 -> 12724595.64 | D13: =+'C_EEFF-2011'!E14+'C_EEFF-2011'!F14+'C_EEFF-2011'!G14+'C_EEFF-2011'!R14+'C_EEFF-2011'!S14 -> 18558629.09 | E13: =+'C_EEFF-2012'!E15+'C_EEFF-2012'!F15+'C_EEFF-2012'!G15+'C_EEFF-2012'!R15+'C_EEFF-2012'!S15 -> 13970788.34 | F13: =+SUM(CostosyGastos!F115:F115)*F7 -> -7293844.423 | G13: =+SUM(CostosyGastos!G115:G115)*G7 -> -6692862.962 | H13: =+SUM(CostosyGastos!H115:H115)*H7 -> -4973490.204 | I13: =+SUM(CostosyGastos!I115:I115)*I7 -> -4379763.117 | J13: =+SUM(CostosyGastos!J115:J115)*J7 -> -3384925.627 | K13: =+SUM(CostosyGastos!K115:K115)*K7 -> -1894664.554
A14: Amortización de Intangibles | B14: =+'C_EEFF-2009'!E15+'C_EEFF-2009'!F15+'C_EEFF-2009'!G15+'C_EEFF-2009'!R15+'C_EEFF-2009'!S15 -> 120493.0319 | C14: =+'C_EEFF-2010'!E15+'C_EEFF-2010'!F15+'C_EEFF-2010'!G15+'C_EEFF-2010'!R15+'C_EEFF-2010'!S15 -> 145209.11 | D14: =+'C_EEFF-2011'!E15+'C_EEFF-2011'!F15+'C_EEFF-2011'!G15+'C_EEFF-2011'!R15+'C_EEFF-2011'!S15 -> 25355.86148 | E14: =+'C_EEFF-2012'!E16+'C_EEFF-2012'!F16+'C_EEFF-2012'!G16+'C_EEFF-2012'!R16+'C_EEFF-2012'!S16 -> 16253.18879 | F14: =+E14 -> 16253.18879 | G14: =+F14 -> 16253.18879 | H14: 16253.18879 | I14: 16253.18879 | J14: 16253.18879 | K14: 16253.18879
A15: Servicios Prestados por Terceros | B15: =+'C_EEFF-2009'!E16+'C_EEFF-2009'!F16+'C_EEFF-2009'!G16+'C_EEFF-2009'!R16+'C_EEFF-2009'!S16 -> 15055659.04 | C15: =+'C_EEFF-2010'!E16+'C_EEFF-2010'!F16+'C_EEFF-2010'!G16+'C_EEFF-2010'!R16+'C_EEFF-2010'!S16 -> 19521395.78 | D15: =+'C_EEFF-2011'!E16+'C_EEFF-2011'!F16+'C_EEFF-2011'!G16+'C_EEFF-2011'!R16+'C_EEFF-2011'!S16 -> 19807202.16 | E15: =+'C_EEFF-2012'!E17+'C_EEFF-2012'!F17+'C_EEFF-2012'!G17+'C_EEFF-2012'!R17+'C_EEFF-2012'!S17 -> 21834786.89 | F15: =+E15 -> 21834786.89 | G15: 21834786.89 | H15: 21834786.89 | I15: 21834786.89 | J15: 21834786.89 | K15: 21834786.89
A16: Mantenimiento de Activos | B16: =+'C_EEFF-2009'!E17+'C_EEFF-2009'!F17+'C_EEFF-2009'!G17+'C_EEFF-2009'!R17+'C_EEFF-2009'!S17 -> 1532622.108 | C16: =+'C_EEFF-2010'!E17+'C_EEFF-2010'!F17+'C_EEFF-2010'!G17+'C_EEFF-2010'!R17+'C_EEFF-2010'!S17 -> 2119046.877 | D16: =+'C_EEFF-2011'!E17+'C_EEFF-2011'!F17+'C_EEFF-2011'!G17+'C_EEFF-2011'!R17+'C_EEFF-2011'!S17 -> 2390263.612 | E16: =+'C_EEFF-2012'!E18+'C_EEFF-2012'!F18+'C_EEFF-2012'!G18+'C_EEFF-2012'!R18+'C_EEFF-2012'!S18 -> 2250697.266 | F16: =+E16 -> 2250697.266 | G16: 2250697.266 | H16: 2250697.266 | I16: 2250697.266 | J16: 2250697.266 | K16: 2250697.266
A17: Suministros y Materiales | B17: =+'C_EEFF-2009'!E18+'C_EEFF-2009'!F18+'C_EEFF-2009'!G18+'C_EEFF-2009'!R18+'C_EEFF-2009'!S18 -> 3051974.178 | C17: =+'C_EEFF-2010'!E18+'C_EEFF-2010'!F18+'C_EEFF-2010'!G18+'C_EEFF-2010'!R18+'C_EEFF-2010'!S18 -> 3974226.683 | D17: =+'C_EEFF-2011'!E18+'C_EEFF-2011'!F18+'C_EEFF-2011'!G18+'C_EEFF-2011'!R18+'C_EEFF-2011'!S18 -> 4516924.251 | E17: =+'C_EEFF-2012'!E19+'C_EEFF-2012'!F19+'C_EEFF-2012'!G19+'C_EEFF-2012'!R19+'C_EEFF-2012'!S19 -> 3585438.068 | F17: =+E17 -> 3585438.068 | G17: 3585438.068 | H17: 3585438.068 | I17: 3585438.068 | J17: 3585438.068 | K17: 3585438.068
A18: Tributos y Seguros | B18: =+'C_EEFF-2009'!E19+'C_EEFF-2009'!F19+'C_EEFF-2009'!G19+'C_EEFF-2009'!R19+'C_EEFF-2009'!S19 -> 4642704.571 | C18: =+'C_EEFF-2010'!E19+'C_EEFF-2010'!F19+'C_EEFF-2010'!G19+'C_EEFF-2010'!R19+'C_EEFF-2010'!S19 -> 4835355.426 | D18: =+'C_EEFF-2011'!E19+'C_EEFF-2011'!F19+'C_EEFF-2011'!G19+'C_EEFF-2011'!R19+'C_EEFF-2011'!S19 -> 5305765.326 | E18: =+'C_EEFF-2012'!E20+'C_EEFF-2012'!F20+'C_EEFF-2012'!G20+'C_EEFF-2012'!R20+'C_EEFF-2012'!S20 -> 4013387.217 | F18: =+E18 -> 4013387.217 | G18: 4013387.217 | H18: 4013387.217 | I18: 4013387.217 | J18: 4013387.217 | K18: 4013387.217
A19: Contribución | B19: =+'C_EEFF-2009'!E20+'C_EEFF-2009'!F20+'C_EEFF-2009'!G20+'C_EEFF-2009'!R20+'C_EEFF-2009'!S20 -> 11568353.73 | C19: =+'C_EEFF-2010'!E20+'C_EEFF-2010'!F20+'C_EEFF-2010'!G20+'C_EEFF-2010'!R20+'C_EEFF-2010'!S20 -> 12063231.26 | D19: =+'C_EEFF-2011'!E20+'C_EEFF-2011'!F20+'C_EEFF-2011'!G20+'C_EEFF-2011'!R20+'C_EEFF-2011'!S20 -> 13318649.08 | E19: =+'C_EEFF-2012'!E21+'C_EEFF-2012'!F21+'C_EEFF-2012'!G21+'C_EEFF-2012'!R21+'C_EEFF-2012'!S21 -> 12123851.92 | F19: =(CostosyGastos!F130+CostosyGastos!F133)*F$7 -> 8675952.291 | G19: =(CostosyGastos!G130+CostosyGastos!G133)*G$7 -> 10662195.42 | H19: =(CostosyGastos!H130+CostosyGastos!H133)*H$7 -> 12600872.67 | I19: =(CostosyGastos!I130+CostosyGastos!I133)*I$7 -> 13319417.16 | J19: =(CostosyGastos!J130+CostosyGastos!J133)*J$7 -> 14080582.88 | K19: =(CostosyGastos!K130+CostosyGastos!K133)*K$7 -> 14886974.2
A20: Otros Costos | B20: =+'C_EEFF-2009'!E21+'C_EEFF-2009'!F21+'C_EEFF-2009'!G21+'C_EEFF-2009'!R21+'C_EEFF-2009'!S21 -> 2395223.517 | C20: =+'C_EEFF-2010'!E21+'C_EEFF-2010'!F21+'C_EEFF-2010'!G21+'C_EEFF-2010'!R21+'C_EEFF-2010'!S21 -> 3909219.691 | D20: =+'C_EEFF-2011'!E21+'C_EEFF-2011'!F21+'C_EEFF-2011'!G21+'C_EEFF-2011'!R21+'C_EEFF-2011'!S21 -> 1710195.575 | E20: =+'C_EEFF-2012'!E22+'C_EEFF-2012'!F22+'C_EEFF-2012'!G22+'C_EEFF-2012'!R22+'C_EEFF-2012'!S22 -> 1420058.863 | F20: =+E20 -> 1420058.863 | G20: 1420058.863 | H20: 1420058.863 | I20: 1420058.863 | J20: 1420058.863 | K20: 1420058.863
A21: Concesión LAP (50% A/D + 20% TUUA Int) | B21: =SUM('C_EEFF-2009'!W22) -> 0 | C21: ='C_EEFF-2010'!W22 -> 0 | D21: ='C_EEFF-2011'!W22 -> 0 | E21: ='C_EEFF-2012'!W23+'C_EEFF-2012'!X23 -> 8454921.373 | F21: =E21*(1+Modelo!$A$46) -> 8907623.11 | G21: =F21*(1+Modelo!$A$46) -> 9384563.85 | H21: =G21*(1+Modelo!$A$46) -> 9887041.421 | I21: =H21*(1+Modelo!$A$46) -> 10416423.14 | J21: =I21*(1+Modelo!$A$46) -> 10974149.54 | K21: =J21*(1+Modelo!$A$46) -> 11561738.28
A23: Cálculo Costos Incrementales
E24: 0.001562369367 | F24: 0.003410040966 | G24: 0.003670435861
A25: Costos de Operación y Mantenimiento (en US$) | B25: Año de inversión | C25: Cantidad invertida (US$) | D25: servicio | E25: Servicios de Terceros | F25: Suministros | G25: Cargas Diversas de Gestión
A26: =+Inv!B12 -> 1.1 Modernización de Sistemas de Ayudas Luminosas en Aeropuertos del Perú (II Etapa). | B26: =+Inv!C12 -> 2013 | C26: =-Inv!D12 -> 2638154.615 | D26: =+Inv!E12 -> A | E26: =+$C26*$E$24 -> 4121.771957 | F26: =+$C26*$F$24 -> 8996.215314 | G26: =+$C26*$G$24 -> 9683.177307
A27: =+Inv!B13 -> 1.2 Modernización de la Estación Meteorológica en el Aeropuerto de Chiclayo. | B27: =+Inv!C13 -> 2013 | C27: =-Inv!D13 -> 441636.9231 | D27: =+Inv!E13 -> 0 | E27: =+$C27*$E$24 -> 690 | F27: 1506 | G27: 1621
A28: =+Inv!B14 -> 1.3 Modernización de la Estación Meteorológica en el Aeropuerto de Pisco. | B28: =+Inv!C14 -> 2013 | C28: =-Inv!D14 -> 441636.9231 | D28: =+Inv!E14 -> 0 | E28: 690 | F28: 1506 | G28: 1621
A29: =+Inv!B15 -> 1.4 Adquisición de Aeronave de Inspección en Vuelo (incluye UP Grade de Consola ADFIS - 14). | B29: =+Inv!C15 -> 2013 | C29: =-Inv!D15 -> 1708756.538 | D29: =+Inv!E15 -> 0 | E29: 2669.708872 | F29: 5826.929798 | G29: 6271.881276
A30: =+Inv!B16 -> 1.7 Proyecto de Comunicaciones Satelitales VSAT (Mejoramiento de la Conectividad de la Red de Comunicaciones Aeronáuticas de CORPAC S.A.) | B30: =+Inv!C16 -> 2013 | C30: =-Inv!D16 -> 1384961.923 | D30: =+Inv!E16 -> 0 | E30: 2163.822083 | F30: 4722.776895 | G30: 5083.413909
A31: =+Inv!B17 -> 1.9 Proyecto de Ampliación del Sistema de Ayudas Luminosas en el Aeropuerto Internacional del Cusco | B31: =+Inv!C17 -> 2013 | C31: =-Inv!D17 -> 3105466.923 | D31: =+Inv!E17 -> A | E31: 4851.886391 | F31: 10589.76943 | G31: 11398.41716
A32: =+Inv!B18 -> 1.4 Adquisición de Aeronave de Inspección en Vuelo (incluye UP Grade de Consola ADFIS - 14). | B32: =+Inv!C18 -> 2014 | C32: =-Inv!D18 -> 8533407 | D32: =+Inv!E18 -> 0 | E32: 13332.33369 | F32: 29099.26745 | G32: 31321.32307
A33: =+Inv!B19 -> 1.7 Proyecto de Comunicaciones Satelitales VSAT (Mejoramiento de la Conectividad de la Red de Comunicaciones Aeronáuticas de CORPAC S.A.) | B33: =+Inv!C19 -> 2014 | C33: =-Inv!D19 -> 5576518 | D33: =+Inv!E19 -> 0 | E33: 8712.580898 | F33: 19016.15483 | G33: 20468.25165
A34: =+Inv!B20 -> 1.13 Construcción de la torre de control del Aeródromo de Atalaya. | B34: =+Inv!C20 -> 2014 | C34: =-Inv!D20 -> 1500000 | D34: =+Inv!E20 -> 0 | E34: 2343.554051 | F34: 5115.06145 | G34: 5505.653791
A35: =+Inv!B21 -> 1.4 Adquisición de Aeronave de Inspección en Vuelo (incluye UP Grade de Consola ADFIS - 14). | B35: =+Inv!C21 -> 2015 | C35: =-Inv!D21 -> 2939455 | D35: =+Inv!E21 -> 0 | E35: 4592.514448 | F35: 10023.66197 | G35: 10789.08104
A36: =+Inv!B22 -> 1.5 Adquisición de un Sistema de Vigilancia de Superfície para el Aeropuerto Internacional Jorge Chávez. | B36: =+Inv!C22 -> 2015 | C36: =-Inv!D22 -> 360000 | D36: =+Inv!E22 -> 0 | E36: 562.4529722 | F36: 1227.614748 | G36: 1321.35691
A37: =+Inv!B23 -> 1.6 Implantación de Estaciones Automáticas de Observaciones Meteorológicas (AWOS). | B37: =+Inv!C23 -> 2015 | C37: =-Inv!D23 -> 348733 | D37: =+Inv!E23 -> A | E37: 544.8497565 | F37: 1189.193816 | G37: 1280.002109
A38: =+Inv!B24 -> 1.7 Proyecto de Comunicaciones Satelitales VSAT (Mejoramiento de la Conectividad de la Red de Comunicaciones Aeronáuticas de CORPAC S.A.) | B38: =+Inv!C24 -> 2015 | C38: =-Inv!D24 -> 2323549 | D38: =+Inv!E24 -> 0 | E38: 3630.241781 | F38: 7923.397278 | G38: 8528.437574
A39: =+Inv!B25 -> 1.10 Construcción de la nueva torre de control del Aeropuerto de Puerto Maldonado. | B39: =+Inv!C25 -> 2015 | C39: =-Inv!D25 -> 2100000 | D39: =+Inv!E25 -> 0 | E39: 3280.975671 | F39: 7161.08603 | G39: 7707.915308
A40: =+Inv!B26 -> 1.12 Construcción de la nueva torre de control del Aeropuerto de Iquitos. | B40: =+Inv!C26 -> 2015 | C40: =-Inv!D26 -> 1500000 | D40: =+Inv!E26 -> 0 | E40: 2343.554051 | F40: 5115.06145 | G40: 5505.653791
A41: =+Inv!B27 -> 1.5 Adquisición de un Sistema de Vigilancia de Superfície para el Aeropuerto Internacional Jorge Chávez. | B41: =+Inv!C27 -> 2016 | C41: =-Inv!D27 -> 1440000 | D41: =+Inv!E27 -> 0 | E41: 2249.811889 | F41: 4910.458992 | G41: 5285.42764
A42: =+Inv!B28 -> 1.6 Implantación de Estaciones Automáticas de Observaciones Meteorológicas (AWOS). | B42: =+Inv!C28 -> 2016 | C42: =-Inv!D28 -> 1743665 | D42: =+Inv!E28 -> A | E42: 2724.248783 | F42: 5945.969082 | G42: 6400.010546
A43: =+Inv!B29 -> 1.8 Proyecto de Comunicaciones Satelitales VSAT (Mejoramiento de la Conectividad de la Red de Comunicaciones Aeronáuticas de CORPAC S.A.) - II ETAPA | B43: =+Inv!C29 -> 2016 | C43: =-Inv!D29 -> 1060000 | D43: =+Inv!E29 -> 0 | E43: 1656.111529 | F43: 3614.643424 | G43: 3890.662013
A44: =+Inv!B30 -> 1.11 Construcción de la nueva torre de control del Aeropuerto de Tarapoto. | B44: =+Inv!C30 -> 2016 | C44: =-Inv!D30 -> 1500000 | D44: =+Inv!E30 -> 0 | E44: 2343.554051 | F44: 5115.06145 | G44: 5505.653791
A45: =+Inv!B31 -> 1.14 Construcción de la torre de control del Aeródromo de Huánuco. | B45: =+Inv!C31 -> 2016 | C45: =-Inv!D31 -> 1500000 | D45: =+Inv!E31 -> 0 | E45: 2343.554051 | F45: 5115.06145 | G45: 5505.653791
A46: =+Inv!B32 -> 1.15 Construcción torres de control de los Aeropuertos de Jauja y Mazamari | B46: =+Inv!C32 -> 2016 | C46: =-Inv!D32 -> 1500000 | D46: =+Inv!E32 -> 0 | E46: 2343.554051 | F46: 5115.06145 | G46: 5505.653791
A47: =+Inv!B33 -> 1.6 Implantación de Estaciones Automáticas de Observaciones Meteorológicas (AWOS). | B47: =+Inv!C33 -> 2017 | C47: =-Inv!D33 -> 1394932 | D47: =+Inv!E33 -> A | E47: 2179.399026 | F47: 4756.775265 | G47: 5120.008436
A48: =+Inv!B34 -> 1.8 Proyecto de Comunicaciones Satelitales VSAT (Mejoramiento de la Conectividad de la Red de Comunicaciones Aeronáuticas de CORPAC S.A.) - II ETAPA | B48: =+Inv!C34 -> 2017 | C48: =-Inv!D34 -> 4240000 | D48: =+Inv!E34 -> 0 | E48: 6624.446117 | F48: 14458.5737 | G48: 15562.64805
A49: =+Inv!B35 -> 1.15 Construcción torres de control de los Aeropuertos de Jauja y Mazamari | B49: =+Inv!C35 -> 2017 | C49: =-Inv!D35 -> 1500000 | D49: =+Inv!E35 -> 0 | E49: 2343.554051 | F49: 5115.06145 | G49: 5505.653791
F52: 2013 | G52: 2014 | H52: 2015 | I52: 2016 | J52: 2017 | K52: 2017
A53: Variaciones en los costos incrementales (para análisis de sensibilidad) | F53: =+'Panel de control'!D45 -> 0 | G53: =+F53 -> 0 | H53: =+G53 -> 0 | I53: =+H53 -> 0 | J53: =+I53 -> 0 | K53: =+J53 -> 0
A55: Costos Incrementales (US$) por concepto | B55: TOTAL | C55: 2010 | D55: 2011 | E55: 2012 | F55: 2013 | G55: =+F55+1 -> 2014 | H55: =+G55+1 -> 2015 | I55: =+H55+1 -> 2016 | J55: =+I55+1 -> 2017 | K55: =+J55+1 -> 2018
A56: Servicios de Terceros | F56: =+SUMIFS($E$26:$E$49,$B$26:$B$49,F$55)*(1+F$53)+E56 -> 15187.1893 | G56: 39575.65795 | H56: 54530.24662 | I56: 68191.08098 | J56: 79338.48017 | K56: 79338.48017
A57: Suministros | F57: =+SUMIFS($F$26:$F$49,$B$26:$B$49,F$55)*(1+F$53)+E57 -> 33147.69143 | G57: 86378.17517 | H57: 119018.1905 | I57: 148834.4463 | J57: 173164.8567 | K57: 173164.8567
A58: Cargas Diversas de Gestión | F58: =+SUMIFS($G$26:$G$49,$B$26:$B$49,F$55)*(1+F$53)+E58 -> 35678.88965 | G58: 92974.11816 | H58: 128106.5649 | I58: 160199.6265 | J58: 186387.9367 | K58: 186387.9367
A59: Total Costos de Operación y Mantenim | F59: =+SUM(F56:F58) -> 84013.77039 | G59: 218927.9513 | H59: 301655.002 | I59: 377225.1538 | J59: 438891.2736 | K59: 438891.2736
A61: Costos Incrementales (US$) por concepto | B61: A | C61: 2010 | D61: 2011 | E61: 2012 | F61: 2013 | G61: =+F61+1 -> 2014 | H61: =+G61+1 -> 2015 | I61: =+H61+1 -> 2016 | J61: =+I61+1 -> 2017 | K61: =+J61+1 -> 2018
A62: Servicios de Terceros | F62: =+SUMIFS($E$26:$E$50,$B$26:$B$50,F$55,$D$26:$D$50,$B$61)*(1+F$53)+E62 -> 8973.658348 | G62: 8973.658348 | H62: 9518.508104 | I62: 12242.75689 | J62: 14422.15591 | K62: 14422.15591
A63: Suministros | F63: =+SUMIFS($F$26:$F$50,$B$26:$B$50,F$55,$D$26:$D$50,$B$61)*(1+F$53)+E63 -> 19585.98474 | G63: 19585.98474 | H63: 20775.17856 | I63: 26721.14764 | J63: 31477.92291 | K63: 31477.92291
A64: Cargas Diversas de Gestión | F64: =+SUMIFS($G$26:$G$50,$B$26:$B$50,F$55,$D$26:$D$50,$B$61)*(1+F$53)+E64 -> 21081.59447 | G64: 21081.59447 | H64: 22361.59658 | I64: 28761.60712 | J64: 33881.61556 | K64: 33881.61556
A65: Total Costos de Operación y Mantenim | F65: =+SUM(F62:F64) -> 49641.23756 | G65: 49641.23756 | H65: 52655.28324 | I65: 67725.51165 | J65: 79781.69438 | K65: 79781.69438
A67: Costos Incrementales (US$) por concepto | B67: Total - A | C67: 2010 | D67: 2011 | E67: 2012 | F67: 2013 | G67: =+F67+1 -> 2014 | H67: =+G67+1 -> 2015 | I67: =+H67+1 -> 2016 | J67: =+I67+1 -> 2017 | K67: =+J67+1 -> 2018
A68: Servicios de Terceros | F68: =+F56-F62 -> 6213.530955 | G68: 30601.9996 | H68: 45011.73852 | I68: 55948.32409 | J68: 64916.32426 | K68: 64916.32426
A69: Suministros | F69: =+F57-F63 -> 13561.70669 | G69: 66792.19043 | H69: 98243.0119 | I69: 122113.2987 | J69: 141686.9338 | K69: 141686.9338
A70: Cargas Diversas de Gestión | F70: 14597.29519 | G70: 71892.52369 | H70: 105744.9683 | I70: 131438.0193 | J70: 152506.3212 | K70: 152506.3212
A71: Total Costos de Operación y Mantenim | F71: =+SUM(F68:F70) -> 34372.53283 | G71: 169286.7137 | H71: 248999.7187 | I71: 309499.6421 | J71: 359109.5793 | K71: 359109.5793
A74: COSTO POR SERVICIO (incl incrementales)
A76: SNAR NACIONAL (US$) | B76: 2009 | C76: 2010 | D76: 2011 | E76: 2012 | F76: 2013 | G76: 2014 | H76: 2015 | I76: 2016 | J76: 2017 | K76: 2018
A77: Gastos de Personal | D77: ='C_EEFF-2011'!F13/D$7 -> 9505467.768 | E77: ='C_EEFF-2012'!E14/E$7 -> 6383088.61 | F77: =Personal!E45/CostosyGastos!F7 -> 8689511.041 | G77: =Personal!F45/CostosyGastos!G7 -> 10643782.91 | H77: =Personal!G45/CostosyGastos!H7 -> 10223031.57 | I77: =Personal!H45/CostosyGastos!I7 -> 10532649.82 | J77: =Personal!I45/CostosyGastos!J7 -> 10611874.98 | K77: =Personal!J45/CostosyGastos!K7 -> 10611874.98
A78: Depreciación | D78: ='C_EEFF-2011'!F14/D$7 -> 1959962.78 | E78: ='C_EEFF-2012'!E15/E$7 -> 864979.2495 | F78: =-'Panel de control'!$C$17*F119 -> 895404.2077 | G78: =-'Panel de control'!$C$17*G119 -> 1155585.421 | H78: =-'Panel de control'!$C$17*H119 -> 1623941.757 | I78: =-'Panel de control'!$C$17*I119 -> 2093912.522 | J78: =-'Panel de control'!$C$17*J119 -> 2431651.058 | K78: =-'Panel de control'!$C$17*K119 -> 2595392.265
A79: Amortización de Intangibles | D79: ='C_EEFF-2011'!F15/D$7 -> 3588.162147 | E79: ='C_EEFF-2012'!E16/E$7 -> 1049.524981 | F79: =+'Panel de control'!$C$17*F14/F$7 -> 1016.994922 | G79: =+'Panel de control'!$C$17*G14/G$7 -> 991.7503667 | H79: =+'Panel de control'!$C$17*H14/H$7 -> 991.7503667 | I79: =+'Panel de control'!$C$17*I14/I$7 -> 991.7503667 | J79: =+'Panel de control'!$C$17*J14/J$7 -> 991.7503667 | K79: =+'Panel de control'!$C$17*K14/K$7 -> 991.7503667
A80: Servicios Prestados por Terceros | D80: ='C_EEFF-2011'!F16/D$7 -> 2178080.823 | E80: ='C_EEFF-2012'!E17/E$7 -> 1509077.593 | F80: =+'Panel de control'!$C$17*F15/F$7+'Panel de control'!$C$17*F68 -> 1367315.994 | G80: =+'Panel de control'!$C$17*G15/G$7+'Panel de control'!$C$17*G68 -> 1337598.664 | H80: =+'Panel de control'!$C$17*H15/H$7+'Panel de control'!$C$17*H68 -> 1340078.192 | I80: =+'Panel de control'!$C$17*I15/I$7+'Panel de control'!$C$17*I68 -> 1341960.084 | J80: =+'Panel de control'!$C$17*J15/J$7+'Panel de control'!$C$17*J68 -> 1343503.235 | K80: =+'Panel de control'!$C$17*K15/K$7+'Panel de control'!$C$17*K68 -> 1343503.235
A81: Mantenimiento de Activos | D81: ='C_EEFF-2011'!F17/D$7 -> 232381.2462 | E81: ='C_EEFF-2012'!E18/E$7 -> 151112.3345 | F81: =+'Panel de control'!$C$17*F16/F$7 -> 140830.6837 | G81: =+'Panel de control'!$C$17*G16/G$7 -> 137334.8866 | H81: =+'Panel de control'!$C$17*H16/H$7 -> 137334.8866 | I81: =+'Panel de control'!$C$17*I16/I$7 -> 137334.8866 | J81: =+'Panel de control'!$C$17*J16/J$7 -> 137334.8866 | K81: =+'Panel de control'!$C$17*K16/K$7 -> 137334.8866
A82: Suministros y Materiales | D82: ='C_EEFF-2011'!F18/D$7 -> 330746.9835 | E82: ='C_EEFF-2012'!E19/E$7 -> 208101.4145 | F82: =+'Panel de control'!$C$17*F17/F$7+'Panel de control'!$C$17*F69 -> 226681.7218 | G82: =+'Panel de control'!$C$17*G17/G$7+'Panel de control'!$C$17*G69 -> 230272.3295 | H82: =+'Panel de control'!$C$17*H17/H$7+'Panel de control'!$C$17*H69 -> 235684.1688 | I82: =+'Panel de control'!$C$17*I17/I$7+'Panel de control'!$C$17*I69 -> 239791.6022 | J82: =+'Panel de control'!$C$17*J17/J$7+'Panel de control'!$C$17*J69 -> 243159.6977 | K82: =+'Panel de control'!$C$17*K17/K$7+'Panel de control'!$C$17*K69 -> 243159.6977
A83: Tributos y Seguros | D83: ='C_EEFF-2011'!F19/D$7 -> 411451.7759 | E83: ='C_EEFF-2012'!E20/E$7 -> 199685.6767 | F83: =+'Panel de control'!$C$17*F18/F$7 -> 251125.7618 | G83: =+'Panel de control'!$C$17*G18/G$7 -> 244892.1436 | H83: =+'Panel de control'!$C$17*H18/H$7 -> 244892.1436 | I83: =+'Panel de control'!$C$17*I18/I$7 -> 244892.1436 | J83: =+'Panel de control'!$C$17*J18/J$7 -> 244892.1436 | K83: =+'Panel de control'!$C$17*K18/K$7 -> 244892.1436
A84: Contribución | D84: ='C_EEFF-2011'!F20/D$7 -> 1769015.307 | E84: ='C_EEFF-2012'!E21/E$7 -> 791668.8996
A85: Otros Costos | D85: ='C_EEFF-2011'!F21/D$7 -> 222227.4935 | E85: ='C_EEFF-2012'!E22/E$7 -> 78543.04519 | F85: =+'Panel de control'!$C$17*F20/F$7+'Panel de control'!$C$17*F70 -> 91367.75881 | G85: =+'Panel de control'!$C$17*G20/G$7+'Panel de control'!$C$17*G70 -> 99021.08014 | H85: =+'Panel de control'!$C$17*H20/H$7+'Panel de control'!$C$17*H70 -> 104846.1741 | I85: =+'Panel de control'!$C$17*I20/I$7+'Panel de control'!$C$17*I70 -> 109267.2562 | J85: =+'Panel de control'!$C$17*J20/J$7+'Panel de control'!$C$17*J70 -> 112892.5435 | K85: =+'Panel de control'!$C$17*K20/K$7+'Panel de control'!$C$17*K70 -> 112892.5435
A88: SNAR INTERNACIONAL(US$) | B88: 2009 | C88: 2010 | D88: 2011 | E88: 2012 | F88: 2013 | G88: 2014 | H88: 2015 | I88: 2016 | J88: 2017 | K88: 2018
A89: Gastos de Personal | D89: =+'C_EEFF-2011'!F13/$E$7 -> 9790275.791 | E89: =+'C_EEFF-2012'!F14/$E$7 -> 9006039.373 | F89: =Personal!E46/CostosyGastos!F7 -> 17539758.53 | G89: =Personal!F46/CostosyGastos!G7 -> 21484451.91 | H89: =Personal!G46/CostosyGastos!H7 -> 20635166.27 | I89: =Personal!H46/CostosyGastos!I7 -> 21260130.02 | J89: =Personal!I46/CostosyGastos!J7 -> 21420045.82 | K89: =Personal!J46/CostosyGastos!K7 -> 21420045.82
A90: Depreciación | D90: =+'C_EEFF-2011'!F14/$E$7 -> 2018688.257 | E90: =+'C_EEFF-2012'!F15/$E$7 -> 875265.8829 | F90: =-'Panel de control'!$C$18*F119 -> 1807371.383 | G90: =-'Panel de control'!$C$18*G119 -> 2332546.578 | H90: =-'Panel de control'!$C$18*H119 -> 3277922.79 | I90: =-'Panel de control'!$C$18*I119 -> 4226557.723 | J90: =-'Panel de control'!$C$18*J119 -> 4908282.2 | K90: =-'Panel de control'!$C$18*K119 -> 5238793.459
A91: Amortización de Intangibles | D91: =+'C_EEFF-2011'!F15/$E$7 -> 3695.672623 | E91: =+'C_EEFF-2012'!F16/$E$7 -> 2239.430283 | F91: =+'Panel de control'!$C$18*F14/F$7 -> 2052.801966 | G91: =+'Panel de control'!$C$18*G14/G$7 -> 2001.845888 | H91: =+'Panel de control'!$C$18*H14/H$7 -> 2001.845888 | I91: =+'Panel de control'!$C$18*I14/I$7 -> 2001.845888 | J91: =+'Panel de control'!$C$18*J14/J$7 -> 2001.845888 | K91: =+'Panel de control'!$C$18*K14/K$7 -> 2001.845888
A92: Servicios Prestados por Terceros | D92: =+'C_EEFF-2011'!F16/$E$7 -> 2243341.672 | E92: =+'C_EEFF-2012'!F17/$E$7 -> 1501594.479 | F92: =+'Panel de control'!$C$18*F15/F$7+'Panel de control'!$C$18*F68 -> 2759924.263 | G92: =+'Panel de control'!$C$18*G15/G$7+'Panel de control'!$C$18*G68 -> 2699939.901 | H92: =+'Panel de control'!$C$18*H15/H$7+'Panel de control'!$C$18*H68 -> 2704944.822 | I92: =+'Panel de control'!$C$18*I15/I$7+'Panel de control'!$C$18*I68 -> 2708743.417 | J92: =+'Panel de control'!$C$18*J15/J$7+'Panel de control'!$C$18*J68 -> 2711858.264 | K92: =+'Panel de control'!$C$18*K15/K$7+'Panel de control'!$C$18*K68 -> 2711858.264
A93: Mantenimiento de Activos | D93: =+'C_EEFF-2011'!F17/$E$7 -> 239343.9802 | E93: =+'C_EEFF-2012'!F18/$E$7 -> 214676.4192 | F93: =+'Panel de control'!$C$18*F16/F$7 -> 284266.4188 | G93: =+'Panel de control'!$C$18*G16/G$7 -> 277210.1602 | H93: =+'Panel de control'!$C$18*H16/H$7 -> 277210.1602 | I93: =+'Panel de control'!$C$18*I16/I$7 -> 277210.1602 | J93: =+'Panel de control'!$C$18*J16/J$7 -> 277210.1602 | K93: =+'Panel de control'!$C$18*K16/K$7 -> 277210.1602
A94: Suministros y Materiales | D94: =+'C_EEFF-2011'!F18/$E$7 -> 340657.0055 | E94: =+'C_EEFF-2012'!F19/$E$7 -> 286228.2256 | F94: =+'Panel de control'!$C$18*F17/F$7+'Panel de control'!$C$18*F69 -> 457556.5466 | G94: =+'Panel de control'!$C$18*G17/G$7+'Panel de control'!$C$18*G69 -> 464804.1801 | H94: =+'Panel de control'!$C$18*H17/H$7+'Panel de control'!$C$18*H69 -> 475727.9655 | I94: =+'Panel de control'!$C$18*I17/I$7+'Panel de control'!$C$18*I69 -> 484018.8107 | J94: =+'Panel de control'!$C$18*J17/J$7+'Panel de control'!$C$18*J69 -> 490817.3037 | K94: =+'Panel de control'!$C$18*K17/K$7+'Panel de control'!$C$18*K69 -> 490817.3037
A95: Tributos y Seguros | D95: =+'C_EEFF-2011'!F19/$E$7 -> 423779.919 | E95: =+'C_EEFF-2012'!F20/$E$7 -> 295662.5807 | F95: =+'Panel de control'!$C$18*F18/F$7 -> 506896.7864 | G95: =+'Panel de control'!$C$18*G18/G$7 -> 494314.2421 | H95: =+'Panel de control'!$C$18*H18/H$7 -> 494314.2421 | I95: =+'Panel de control'!$C$18*I18/I$7 -> 494314.2421 | J95: =+'Panel de control'!$C$18*J18/J$7 -> 494314.2421 | K95: =+'Panel de control'!$C$18*K18/K$7 -> 494314.2421
A96: Contribución | D96: =+'C_EEFF-2011'!F20/$E$7 -> 1822019.511 | E96: =+'C_EEFF-2012'!F21/$E$7 -> 1547337.891
A97: Otros Costos | D97: =+'C_EEFF-2011'!F21/$E$7 -> 228885.9952 | E97: =+'C_EEFF-2012'!F22/$E$7 -> 144733.7243 | F97: =+'Panel de control'!$C$18*F20/F$7+'Panel de control'!$C$18*F70 -> 184425.616 | G97: =+'Panel de control'!$C$18*G20/G$7+'Panel de control'!$C$18*G70 -> 199873.8279 | H97: =+'Panel de control'!$C$18*H20/H$7+'Panel de control'!$C$18*H70 -> 211631.767 | I97: =+'Panel de control'!$C$18*I20/I$7+'Panel de control'!$C$18*I70 -> 220555.7112 | J97: =+'Panel de control'!$C$18*J20/J$7+'Panel de control'!$C$18*J70 -> 227873.3455 | K97: =+'Panel de control'!$C$18*K20/K$7+'Panel de control'!$C$18*K70 -> 227873.3455
A100: APROXIMACIÓN(US$) | B100: 2009 | C100: 2010 | D100: 2011 | E100: 2012 | F100: 2013 | G100: 2014 | H100: 2015 | I100: 2016 | J100: 2017 | K100: 2018
A101: Gastos de Personal | D101: =+'C_EEFF-2011'!G13/$E$7 -> 11642167.46 | E101: =+'C_EEFF-2012'!G14/$E$7 -> 15061997.2 | F101: =Personal!E47/CostosyGastos!F7 -> 2633854.977 | G101: =Personal!F47/CostosyGastos!G7 -> 3226209.215 | H101: =Personal!G47/CostosyGastos!H7 -> 3098676.377 | I101: =Personal!H47/CostosyGastos!I7 -> 3192523.956 | J101: =Personal!I47/CostosyGastos!J7 -> 3216537.686 | K101: =Personal!J47/CostosyGastos!K7 -> 3216537.686
A102: Depreciación | D102: =+'C_EEFF-2011'!G14/$E$7 -> 2388074.258 | E102: =+'C_EEFF-2012'!G15/$E$7 -> 2451493.026 | F102: =-'Panel de control'!$C$16*F119 -> 271403.6288 | G102: =-'Panel de control'!$C$16*G119 -> 350266.4763 | H102: =-'Panel de control'!$C$16*H119 -> 492228.7409 | I102: =-'Panel de control'!$C$16*I119 -> 634680.351 | J102: =-'Panel de control'!$C$16*J119 -> 737051.3957 | K102: =-'Panel de control'!$C$16*K119 -> 786682.565
A103: Amortización de Intangibles | D103: =+'C_EEFF-2011'!G15/$E$7 -> 231.0449438 | E103: =+'C_EEFF-2012'!G16/$E$7 -> 1.198975898 | F103: =+'Panel de control'!$C$16*F14/F$7 -> 308.2586723 | G103: =+'Panel de control'!$C$16*G14/G$7 -> 300.6068612 | H103: =+'Panel de control'!$C$16*H14/H$7 -> 300.6068612 | I103: =+'Panel de control'!$C$16*I14/I$7 -> 300.6068612 | J103: =+'Panel de control'!$C$16*J14/J$7 -> 300.6068612 | K103: =+'Panel de control'!$C$16*K14/K$7 -> 300.6068612
A104: Servicios Prestados por Terceros | D104: =+'C_EEFF-2011'!G16/$E$7 -> 1810528.607 | E104: =+'C_EEFF-2012'!G17/$E$7 -> 3352347.666 | F104: =+'Panel de control'!$C$16*F15/F$7+F62+'Panel de control'!$C$16*F68 -> 423417.2351 | G104: =+'Panel de control'!$C$16*G15/G$7+G62+'Panel de control'!$C$16*G68 -> 414409.693 | H104: =+'Panel de control'!$C$16*H15/H$7+H62+'Panel de control'!$C$16*H68 -> 415706.106 | I104: =+'Panel de control'!$C$16*I15/I$7+I62+'Panel de control'!$C$16*I68 -> 419000.7701 | J104: =+'Panel de control'!$C$16*J15/J$7+J62+'Panel de control'!$C$16*J68 -> 421647.9097 | K104: =+'Panel de control'!$C$16*K15/K$7+K62+'Panel de control'!$C$16*K68 -> 421647.9097
A105: Mantenimiento de Activos | D105: =+'C_EEFF-2011'!G17/$E$7 -> 441324.7566 | E105: =+'C_EEFF-2012'!G18/$E$7 -> 200086.0657 | F105: =+'Panel de control'!$C$16*F16/F$7 -> 42686.8204 | G105: =+'Panel de control'!$C$16*G16/G$7 -> 41627.21848 | H105: =+'Panel de control'!$C$16*H16/H$7 -> 41627.21848 | I105: =+'Panel de control'!$C$16*I16/I$7 -> 41627.21848 | J105: =+'Panel de control'!$C$16*J16/J$7 -> 41627.21848 | K105: =+'Panel de control'!$C$16*K16/K$7 -> 41627.21848
A106: Suministros y Materiales | D106: =+'C_EEFF-2011'!G18/$E$7 -> 858592.6105 | E106: =+'C_EEFF-2012'!G19/$E$7 -> 495047.0334 | F106: =+'Panel de control'!$C$16*F17/F$7+F63+'Panel de control'!$C$16*F69 -> 88294.88891 | G106: =+'Panel de control'!$C$16*G17/G$7+G63+'Panel de control'!$C$16*G69 -> 89383.22861 | H106: =+'Panel de control'!$C$16*H17/H$7+H63+'Panel de control'!$C$16*H69 -> 92212.79089 | I106: =+'Panel de control'!$C$16*I17/I$7+I63+'Panel de control'!$C$16*I69 -> 99403.75338 | J106: =+'Panel de control'!$C$16*J17/J$7+J63+'Panel de control'!$C$16*J69 -> 105181.4232 | K106: =+'Panel de control'!$C$16*K17/K$7+K63+'Panel de control'!$C$16*K69 -> 105181.4232
A107: Tributos y Seguros | D107: =+'C_EEFF-2011'!G19/$E$7 -> 941157.5693 | E107: =+'C_EEFF-2012'!G20/$E$7 -> 638077.7662 | F107: =+'Panel de control'!$C$16*F18/F$7 -> 76118.07323 | G107: =+'Panel de control'!$C$16*G18/G$7 -> 74228.61752 | H107: =+'Panel de control'!$C$16*H18/H$7 -> 74228.61752 | I107: =+'Panel de control'!$C$16*I18/I$7 -> 74228.61752 | J107: =+'Panel de control'!$C$16*J18/J$7 -> 74228.61752 | K107: =+'Panel de control'!$C$16*K18/K$7 -> 74228.61752
A108: Contribución | D108: =+'C_EEFF-2011'!G20/$E$7 -> 492319.2659 | E108: =+'C_EEFF-2012'!G21/$E$7 -> 309932.5869
A109: Otros Costos | D109: =+'C_EEFF-2011'!G21/$E$7 -> 33975.60674 | E109: =+'C_EEFF-2012'!G22/$E$7 -> 138309.1584 | F109: =+'Panel de control'!$C$16*F20/F$7+F64+'Panel de control'!$C$16*F70 -> 48775.83701 | G109: =+'Panel de control'!$C$16*G20/G$7+G64+'Panel de control'!$C$16*G70 -> 51095.61523 | H109: =+'Panel de control'!$C$16*H20/H$7+H64+'Panel de control'!$C$16*H70 -> 54141.24634 | I109: =+'Panel de control'!$C$16*I20/I$7+I64+'Panel de control'!$C$16*I70 -> 61881.31952 | J109: =+'Panel de control'!$C$16*J20/J$7+J64+'Panel de control'!$C$16*J70 -> 68100.17931 | K109: =+'Panel de control'!$C$16*K20/K$7+K64+'Panel de control'!$C$16*K70 -> 68100.17931
A112: Cálculo Depreciación (en US$)
A114: ACTIVOS | B114: 2009 | C114: 2010 | D114: 2011 | E114: 2012 | F114: 2013 | G114: 2014 | H114: 2015 | I114: 2016 | J114: 2017 | K114: 2018
A115: Depreciación anual | E115: =Activos!U4777 -> -2806668.71 | F115: =Activos!V4777 -> -2652307.063 | G115: =Activos!W4777 -> -2373355.66 | H115: =Activos!X4777 -> -1763649.009 | I115: =Activos!Y4777 -> -1553107.488 | J115: =Activos!Z4777 -> -1200328.236 | K115: =Activos!AA4777 -> -671866.8631
A116: INVERSIONES
A117: Dep Inversiones Proyectos | F117: =Inv!N36 -> -2031355.359 | G117: =Inv!O36 -> -2917978.917 | H117: =Inv!P36 -> -3977301.067 | I117: =Inv!Q36 -> -4607502.017 | J117: =Inv!R36 -> -5256868.517 | K117: =Inv!S36 -> -5895361.717
A118: Dep Inversiones reposiciones | F118: =Inv!N192 -> -519965.4692 | G118: =Inv!O192 -> -1424332.466 | H118: =Inv!P192 -> -3696562.666 | I118: =Inv!Q192 -> -6008131.166 | J118: =Inv!R192 -> -7674306.266 | K118: =Inv!S192 -> -8515853.966
A119: TOTAL DEPRECIACIÓN | E119: =SUM(E115:E118) -> -2806668.71 | F119: =SUM(F115:F118) -> -5203627.891 | G119: -6715667.044 | H119: -9437512.742 | I119: -12168740.67 | J119: -14131503.02 | K119: -15083082.55
A121: Contribución | B121: La contribución constituye lo pagado a Ositran (1% de los ingresos de todos los servicios) y lo pagado a la DGAC (10% sólo del servicio SNAR).
A123: INGRESOS (US$) | C123: 2010 | D123: 2011 | E123: 2012 | F123: 2013 | G123: 2014 | H123: 2015 | I123: 2016 | J123: 2017 | K123: 2018
A124: SNAR Nacional | F124: =Modelo!D43 -> 9446823.656 | G124: =Modelo!E43 -> 11148806.73 | H124: =Modelo!F43 -> 12973595.83 | I124: =Modelo!G43 -> 13501183.47 | J124: =Modelo!H43 -> 14050229.69 | K124: =Modelo!I43 -> 14621607.29
A125: SNAR Internacional | F125: =Modelo!D44 -> 18976959.38 | G125: =Modelo!E44 -> 22919778.23 | H125: =Modelo!F44 -> 27295024.33 | I125: =Modelo!G44 -> 29069392.41 | J125: =Modelo!H44 -> 30959107.61 | K125: =Modelo!I44 -> 32971668.34
A126: Aproximación | F126: =Modelo!D45 -> 2827560.776 | G126: =Modelo!E45 -> 3337601.514 | H126: =Modelo!F45 -> 3884634.693 | I126: =Modelo!G45 -> 4043422.845 | J126: =Modelo!H45 -> 4208739.437 | K126: =Modelo!I45 -> 4380854.551
A127: Total Ingresos | F127: =SUM(F124:F126) -> 31251343.82 | G127: 37406186.47 | H127: 44153254.85 | I127: 46613998.72 | J127: 49218076.74 | K127: 51974130.18
A129: OSITRAN (1%) - Todos los servicios | B129: 0.01 | C129: 2010 | D129: 2011 | E129: 2012 | F129: 2013 | G129: 2014 | H129: 2015 | I129: 2016 | J129: 2017 | K129: 2018
A130: SNAR y Aproximación | F130: =F127*$B$129 -> 312513.4382 | G130: 374061.8647 | H130: 441532.5485 | I130: 466139.9872 | J130: 492180.7674 | K130: 519741.3018
A132: DGAC (10%) - Snar | B132: 0.1 | C132: 2010 | D132: 2011 | E132: 2012 | F132: 2013 | G132: 2014 | H132: 2015 | I132: 2016 | J132: 2017 | K132: 2018
A133: SNAR | F133: =$B$132*(F124+F125) -> 2842378.304 | G133: 3406858.496 | H133: 4026862.016 | I133: 4257057.588 | J133: 4500933.73 | K133: 4759327.563

Sheet Activos
B1: Objetivo: | K1: RPI es lo que debe recuperarse con la tarifa
B2: Calcular retribución por inversiones, depreciación, valor de activos al inicio y final del periodo regulatorio de los activos contabilizados en los EEFF de CORPAC al 2012.
K3: El neto entre el valor de recupero y la inversion es lo que se debe recuperar con la tarifa.
B4: Supuestos:
B5: Las reposiciones a estos activos se consideran en la Hoja "Inv" | K5: En esta hoja los activos no deben reponerse pues tenemos el plan de reposiciones.
B7: Período de análisis | E7: "ACTIVOS QUE NO SE REPONEN"
B8: Año 0 | C8: ='Panel de control'!G10 -> 2012 | D8: 1 | E8: Activos que ya pasaron su vida útil
B9: Año 1 | C9: 2013 | D9: 2 | E9: Activos que terminan su vida útil en el horizonte
B10: Año de cambio de tarifa | C10: ='Panel de control'!G11 -> 2014 | D10: 3 | E10: Activos que poseen vida útil durante todo el período
B11: Año de fin de periodo tarifario | C11: ='Panel de control'!G12 -> 2018
M12: 2 | P12: 3 | U12: Depreciación
B13: Descripción del Activo | C13: Valor Adquisición (S/.) | D13: Valor Adquisición ($.) | E13: Año de adquisición | F13: Inicio de Uso | G13: Años de uso | H13: Vida útil (años) | I13: Fin vida útil | J13: Estado | K13: Depreciación anual | L13: RPI | M13: RPI | N13: Depreciación | O13: Valor inicial de activos Año 0 | P13: RPI | Q13: Depreciación | R13: Periodos | S13: VA RPI actualizado al último periodo | T13: Valor inicial de activos Año 0 | U13: 2012 | V13: 2013 | W13: 2014 | X13: 2015 | Y13: 2016 | Z13: 2017 | AA13: 2018
B14: TERRENO | C14: =-(130324546.128567+7418894.75485121/2) -> -134033993.5 | D14: =+C14/CostosyGastos!$D$7 -> -48739634 | L14: =-D14*wacc -> 4044660.152 | P14: =+IF(J14=1,0,L14) -> 4044660.152 | S14: =-D14 -> 48739634 | T14: =D14 -> -48739634
B15: CENTRO CONTROL TRANSITO AEREO | C15: -244898.43 | D15: =+C15/CostosyGastos!$D$7 -> -89053.97455 | E15: =+YEAR(F15)-1 -> 1977 | F15: 1978-12-31 | G15: =C$8-YEAR(F15) -> 34 | H15: 20 | I15: =+(YEAR(F15)+H15) -> 1998 | J15: =+IF(I15<=Activos!$C$8,"1",+IF(I15<=Activos!$C$11,"2","3")) -> 1 | K15: =IF(J15="1",0,D15/H15) -> 0 | L15: =IF(J15="1",PMT(wacc,G15,D15),PMT(wacc,H15,D15)) -> 7916.620352 | M15: =+IF(J15="2",L15,0) -> 0 | N15: =+IF(J15="2",K15,0) -> 0 | O15: =PV(wacc,H15-(Activos!$C$8-E15),M15) -> 0 | P15: =+IF($J15="3",L15,0) -> 0 | Q15: =+IF($J15="3",K15,0) -> 0 | R15: =IF(J15="3",ABS(I15-Activos!$C$11),0) -> 0 | S15: =-PV(wacc,R15,P15) -> 0 | T15: =PV(wacc,H15-($C$8-E15),P15) -> 0 | U15: =+IF($J15="1",0,IF(U$13<$I15,$K15,0)) -> 0 | V15: =+IF($J15="1",0,IF(V$13<$I15,$K15,0)) -> 0 | W15: 0 | X15: 0 | Y15: 0 | Z15: 0 | AA15: 0
B16: CENTRO CONTROL TRAFICO AEREO RADAR | C16: -4031992.16 | D16: =+C16/CostosyGastos!$D$7 -> -1466178.967 | E16: 1977 | F16: 1978-12-31 | G16: 34 | H16: 20 | I16: =+(YEAR(F16)+H16) -> 1998 | J16: =+IF(I16<=Activos!$C$8,"1",+IF(I16<=Activos!$C$11,"2","3")) -> 1 | K16: 0 | L16: 130338.7335 | M16: =+IF(J16="2",L16,0) -> 0 | N16: =+IF(J16="2",K16,0) -> 0 | O16: =PV(wacc,H16-(Activos!$C$8-E16),M16) -> 0 | P16: 0 | Q16: 0 | R16: =IF(J16="3",ABS(I16-Activos!$C$11),0) -> 0 | S16: 0 | T16: 0 | U16: =+IF($J16="1",0,IF(U$13<$I16,$K16,0)) -> 0 | V16: 0 | W16: 0 | X16: 0 | Y16: 0 | Z16: 0 | AA16: 0
B17: CENTRO CONTROL TRAFICO -AEREO-RADAR ADMINIST | C17: -325511.38 | D17: =+C17/CostosyGastos!$D$7 -> -118367.7745 | E17: 1977 | F17: 1978-12-31 | G17: 34 | H17: 20 | I17: 1998 | J17: =+IF(I17<=Activos!$C$8,"1",+IF(I17<=Activos!$C$11,"2","3")) -> 1 | K17: 0 | L17: 10522.52567 | M17: 0 | N17: 0 | O17: =PV(wacc,H17-(Activos!$C$8-E17),M17) -> 0 | P17: 0 | Q17: 0 | R17: =IF(J17="3",ABS(I17-Activos!$C$11),0) -> 0 | S17: 0 | T17: 0 | U17: 0 | V17: 0 | W17: 0 | X17: 0 | Y17: 0 | Z17: 0 | AA17: 0
B18: ESTUDIO CENTRO CONTROL TRAFICO AEREO RADAR | C18: -244898.43 | D18: =+C18/CostosyGastos!$D$7 -> -89053.97455 | E18: 1977 | F18: 1978-12-31 | G18: 34 | H18: 20 | I18: 1998 | J18: =+IF(I18<=Activos!$C$8,"1",+IF(I18<=Activos!$C$11,"2","3")) -> 1 | K18: 0 | L18: 7916.620352 | M18: 0 | N18: 0 | O18: =PV(wacc,H18-(Activos!$C$8-E18),M18) -> 0 | P18: 0 | Q18: 0 | R18: =IF(J18="3",ABS(I18-Activos!$C$11),0) -> 0 | S18: 0 | T18: 0 | U18: 0 | V18: 0 | W18: 0 | X18: 0 | Y18: 0 | Z18: 0 | AA18: 0
B19: CENTRO CONTROL TRAFICO AEREO | C19: -244898.43 | D19: =+C19/CostosyGastos!$D$7 -> -89053.97455 | E19: 1977 | F19: 1978-12-31 | G19: 34 | H19: 20 | I19: 1998 | J19: =+IF(I19<=Activos!$C$8,"1",+IF(I19<=Activos!$C$11,"2","3")) -> 1 | K19: 0 | L19: 7916.620352 | M19: 0 | N19: 0 | O19: =PV(wacc,H19-(Activos!$C$8-E19),M19) -> 0 | P19: 0 | Q19: 0 | R19: =IF(J19="3",ABS(I19-Activos!$C$11),0) -> 0 | S19: 0 | T19: 0 | U19: 0 | V19: 0 | W19: 0 | X19: 0 | Y19: 0 | Z19: 0 | AA19: 0
B20: CENTRO CONTROL TRAFICO AEREO | C20: -244898.43 | D20: =+C20/CostosyGastos!$D$7 -> -89053.97455 | E20: 1977 | F20: 1978-12-31 | G20: 34 | H20: 20 | I20: 1998 | J20: =+IF(I20<=Activos!$C$8,"1",+IF(I20<=Activos!$C$11,"2","3")) -> 1 | K20: 0 | L20: 7916.620352 | M20: 0 | N20: 0 | O20: =PV(wacc,H20-(Activos!$C$8-E20),M20) -> 0 | P20: 0 | Q20: 0 | R20: =IF(J20="3",ABS(I20-Activos!$C$11),0) -> 0 | S20: 0 | T20: 0 | U20: 0 | V20: 0 | W20: 0 | X20: 0 | Y20: 0 | Z20: 0 | AA20: 0
B21: TELEFONO | C21: -83.87 | D21: =+C21/CostosyGastos!$D$7 -> -30.49818182 | E21: 1999 | F21: 2000-05-31 | G21: 12 | H21: 30.00001 | I21: 2030.00001 | J21: =+IF(I21<=Activos!$C$8,"1",+IF(I21<=Activos!$C$11,"2","3")) -> 3 | K21: -1.016605722 | L21: 2.785731243 | M21: 0 | N21: 0 | O21: =PV(wacc,H21-(Activos!$C$8-E21),M21) -> 0 | P21: 2.785731243 | Q21: -1.016605722 | R21: =IF(J21="3",ABS(I21-Activos!$C$11),0) -> 12.00001 | S21: 20.67264629 | T21: -24.91228064 | U21: -1.016605722 | V21: -1.016605722 | W21: -1.016605722 | X21: -1.016605722 | Y21: -1.016605722 | Z21: -1.016605722 | AA21: -1.016605722
B22: TELEFONO | C22: -83.87 | D22: =+C22/CostosyGastos!$D$7 -> -30.49818182 | E22: 1999 | F22: 2000-05-31 | G22: 12 | H22: 30.00001 | I22: 2030.00001 | J22: =+IF(I22<=Activos!$C$8,"1",+IF(I22<=Activos!$C$11,"2","3")) -> 3 | K22: -1.016605722 | L22: 2.785731243 | M22: 0 | N22: 0 | O22: =PV(wacc,H22-(Activos!$C$8-E22),M22) -> 0 | P22: 2.785731243 | Q22: -1.016605722 | R22: =IF(J22="3",ABS(I22-Activos!$C$11),0) -> 12.00001 | S22: 20.67264629 | T22: -24.91228064 | U22: -1.016605722 | V22: -1.016605722 | W22: -1.016605722 | X22: -1.016605722 | Y22: -1.016605722 | Z22: -1.016605722 | AA22: -1.016605722
B23: PAPELERA DE ALUMINIO | C23: -196.96 | D23: =+C23/CostosyGastos!$D$7 -> -71.62181818 | E23: 1999 | F23: 2000-07-17 | G23: 12 | H23: 20.000008 | I23: 2020.000008 | J23: =+IF(I23<=Activos!$C$8,"1",+IF(I23<=Activos!$C$11,"2","3")) -> 3 | K23: -3.581089477 | L23: 7.457627695 | M23: 0 | N23: 0 | O23: =PV(wacc,H23-(Activos!$C$8-E23),M23) -> 0 | P23: 7.457627695 | Q23: -3.581089477 | R23: =IF(J23="3",ABS(I23-Activos!$C$11),0) -> 2.000008 | S23: 13.24474315 | T23: -38.43395056 | U23: -3.581089477 | V23: -3.581089477 | W23: -3.581089477 | X23: -3.581089477 | Y23: -3.581089477 | Z23: -3.581089477 | AA23: -3.581089477
B24: PAPELERA | C24: -196.96 | D24: =+C24/CostosyGastos!$D$7 -> -71.62181818 | E24: 1999 | F24: 2000-07-17 | G24: 12 | H24: 20.000008 | I24: 2020.000008 | J24: =+IF(I24<=Activos!$C$8,"1",+IF(I24<=Activos!$C$11,"2","3")) -> 3 | K24: -3.581089477 | L24: 7.457627695 | M24: 0 | N24: 0 | O24: =PV(wacc,H24-(Activos!$C$8-E24),M24) -> 0 | P24: 7.457627695 | Q24: -3.581089477 | R24: =IF(J24="3",ABS(I24-Activos!$C$11),0) -> 2.000008 | S24: 13.24474315 | T24: -38.43395056 | U24: -3.581089477 | V24: -3.581089477 | W24: -3.581089477 | X24: -3.581089477 | Y24: -3.581089477 | Z24: -3.581089477 | AA24: -3.581089477
B25: PAPELERA | C25: -196.96 | D25: =+C25/CostosyGastos!$D$7 -> -71.62181818 | E25: 1999 | F25: 2000-07-17 | G25: 12 | H25: 20.000008 | I25: 2020.000008 | J25: =+IF(I25<=Activos!$C$8,"1",+IF(I25<=Activos!$C$11,"2","3")) -> 3 | K25: -3.581089477 | L25: 7.457627695 | M25: 0 | N25: 0 | O25: =PV(wacc,H25-(Activos!$C$8-E25),M25) -> 0 | P25: 7.457627695 | Q25: -3.581089477 | R25: =IF(J25="3",ABS(I25-Activos!$C$11),0) -> 2.000008 | S25: 13.24474315 | T25: -38.43395056 | U25: -3.581089477 | V25: -3.581089477 | W25: -3.581089477 | X25: -3.581089477 | Y25: -3.581089477 | Z25: -3.581089477 | AA25: -3.581089477
B26: CONSOLA | C26: -552.89 | D26: =+C26/CostosyGastos!$D$7 -> -201.0509091 | E26: 1999 | F26: 2000-07-31 | G26: 12 | H26: 20.000008 | I26: 2020.000008 | J26: =+IF(I26<=Activos!$C$8,"1",+IF(I26<=Activos!$C$11,"2","3")) -> 3 | K26: -10.05254143 | L26: 20.93444241 | M26: 0 | N26: 0 | O26: =PV(wacc,H26-(Activos!$C$8-E26),M26) -> 0 | P26: 20.93444241 | Q26: -10.05254143 | R26: =IF(J26="3",ABS(I26-Activos!$C$11),0) -> 2.000008 | S26: 37.17955951 | T26: -107.888642 | U26: -10.05254143 | V26: -10.05254143 | W26: -10.05254143 | X26: -10.05254143 | Y26: -10.05254143 | Z26: -10.05254143 | AA26: -10.05254143
B27: TELEFONO | C27: -104.08 | D27: =+C27/CostosyGastos!$D$7 -> -37.84727273 | E27: 1999 | F27: 2000-07-31 | G27: 12 | H27: 20.000008 | I27: 2020.000008 | J27: =+IF(I27<=Activos!$C$8,"1",+IF(I27<=Activos!$C$11,"2","3")) -> 3 | K27: -1.892362879 | L27: 3.940850378 | M27: 0 | N27: 0 | O27: =PV(wacc,H27-(Activos!$C$8-E27),M27) -> 0 | P27: 3.940850378 | Q27: -1.892362879 | R27: =IF(J27="3",ABS(I27-Activos!$C$11),0) -> 2.000008 | S27: 6.998948351 | T27: -20.30973586 | U27: -1.892362879 | V27: -1.892362879 | W27: -1.892362879 | X27: -1.892362879 | Y27: -1.892362879 | Z27: -1.892362879 | AA27: -1.892362879
B28: TELEFONO | C28: -104.08 | D28: =+C28/CostosyGastos!$D$7 -> -37.84727273 | E28: 1999 | F28: 2000-07-31 | G28: 12 | H28: 20.000008 | I28: 2020.000008 | J28: =+IF(I28<=Activos!$C$8,"1",+IF(I28<=Activos!$C$11,"2","3")) -> 3 | K28: -1.892362879 | L28: 3.940850378 | M28: 0 | N28: 0 | O28: =PV(wacc,H28-(Activos!$C$8-E28),M28) -> 0 | P28: 3.940850378 | Q28: -1.892362879 | R28: =IF(J28="3",ABS(I28-Activos!$C$11),0) -> 2.000008 | S28: 6.998948351 | T28: -20.30973586 | U28: -1.892362879 | V28: -1.892362879 | W28: -1.892362879 | X28: -1.892362879 | Y28: -1.892362879 | Z28: -1.892362879 | AA28: -1.892362879
B29: TELEFONO | C29: -104.08 | D29: =+C29/CostosyGastos!$D$7 -> -37.84727273 | E29: 1999 | F29: 2000-07-31 | G29: 12 | H29: 20.000008 | I29: 2020.000008 | J29: =+IF(I29<=Activos!$C$8,"1",+IF(I29<=Activos!$C$11,"2","3")) -> 3 | K29: -1.892362879 | L29: 3.940850378 | M29: 0 | N29: 0 | O29: =PV(wacc,H29-(Activos!$C$8-E29),M29) -> 0 | P29: 3.940850378 | Q29: -1.892362879 | R29: =IF(J29="3",ABS(I29-Activos!$C$11),0) -> 2.000008 | S29: 6.998948351 | T29: -20.30973586 | U29: -1.892362879 | V29: -1.892362879 | W29: -1.892362879 | X29: -1.892362879 | Y29: -1.892362879 | Z29: -1.892362879 | AA29: -1.892362879
B30: TELEFONO | C30: -104.08 | D30: =+C30/CostosyGastos!$D$7 -> -37.84727273 | E30: 1999 | F30: 2000-07-31 | G30: 12 | H30: 20.000008 | I30: 2020.000008 | J30: =+IF(I30<=Activos!$C$8,"1",+IF(I30<=Activos!$C$11,"2","3")) -> 3 | K30: -1.892362879 | L30: 3.940850378 | M30: 0 | N30: 0 | O30: =PV(wacc,H30-(Activos!$C$8-E30),M30) -> 0 | P30: 3.940850378 | Q30: -1.892362879 | R30: =IF(J30="3",ABS(I30-Activos!$C$11),0) -> 2.000008 | S30: 6.998948351 | T30: -20.30973586 | U30: -1.892362879 | V30: -1.892362879 | W30: -1.892362879 | X30: -1.892362879 | Y30: -1.892362879 | Z30: -1.892362879 | AA30: -1.892362879
B31: MOTOGUADAÑA | C31: -2513.67 | D31: =+C31/CostosyGastos!$D$7 -> -914.0618182 | E31: 1999 | F31: 2000-09-25 | G31: 12 | H31: 10.000004 | I31: 2010.000004 | J31: =+IF(I31<=Activos!$C$8,"1",+IF(I31<=Activos!$C$11,"2","3")) -> 1 | K31: 0 | L31: 123.173966 | M31: 0 | N31: 0 | O31: =PV(wacc,H31-(Activos!$C$8-E31),M31) -> 0 | P31: 0 | Q31: 0 | R31: =IF(J31="3",ABS(I31-Activos!$C$11),0) -> 0 | S31: 0 | T31: 0 | U31: 0 | V31: 0 | W31: 0 | X31: 0 | Y31: 0 | Z31: 0 | AA31: 0
B32: MOTOGUADAÑA | C32: -2513.67 | D32: =+C32/CostosyGastos!$D$7 -> -914.0618182 | E32: 1999 | F32: 2000-09-25 | G32: 12 | H32: 10.000004 | I32: 2010.000004 | J32: =+IF(I32<=Activos!$C$8,"1",+IF(I32<=Activos!$C$11,"2","3")) -> 1 | K32: 0 | L32: 123.173966 | M32: 0 | N32: 0 | O32: =PV(wacc,H32-(Activos!$C$8-E32),M32) -> 0 | P32: 0 | Q32: 0 | R32: =IF(J32="3",ABS(I32-Activos!$C$11),0) -> 0 | S32: 0 | T32: 0 | U32: 0 | V32: 0 | W32: 0 | X32: 0 | Y32: 0 | Z32: 0 | AA32: 0
B33: DUPLEXOR DE ANTENA | C33: -1085.67 | D33: =+C33/CostosyGastos!$D$7 -> -394.7890909 | E33: 1999 | F33: 2000-10-13 | G33: 12 | H33: 10.000004 | I33: 2010.000004 | J33: =+IF(I33<=Activos!$C$8,"1",+IF(I33<=Activos!$C$11,"2","3")) -> 1 | K33: 0 | L33: 53.19961638 | M33: 0 | N33: 0 | O33: =PV(wacc,H33-(Activos!$C$8-E33),M33) -> 0 | P33: 0 | Q33: 0 | R33: =IF(J33="3",ABS(I33-Activos!$C$11),0) -> 0 | S33: 0 | T33: 0 | U33: 0 | V33: 0 | W33: 0 | X33: 0 | Y33: 0 | Z33: 0 | AA33: 0
B34: EQUIPO PORTATIL | C34: -1078.41 | D34: =+C34/CostosyGastos!$D$7 -> -392.1490909 | E34: 1999 | F34: 2000-10-13 | G34: 12 | H34: 10.000004 | I34: 2010.000004 | J34: =+IF(I34<=Activos!$C$8,"1",+IF(I34<=Activos!$C$11,"2","3")) -> 1 | K34: 0 | L34: 52.84386443 | M34: 0 | N34: 0 | O34: =PV(wacc,H34-(Activos!$C$8-E34),M34) -> 0 | P34: 0 | Q34: 0 | R34: =IF(J34="3",ABS(I34-Activos!$C$11),0) -> 0 | S34: 0 | T34: 0 | U34: 0 | V34: 0 | W34: 0 | X34: 0 | Y34: 0 | Z34: 0 | AA34: 0
B35: RADIO TRANSMISOR RECEPTOR | C35: -1078.41 | D35: =+C35/CostosyGastos!$D$7 -> -392.1490909 | E35: 1999 | F35: 2000-10-13 | G35: 12 | H35: 10.000004 | I35: 2010.000004 | J35: =+IF(I35<=Activos!$C$8,"1",+IF(I35<=Activos!$C$11,"2","3")) -> 1 | K35: 0 | L35: 52.84386443 | M35: 0 | N35: 0 | O35: =PV(wacc,H35-(Activos!$C$8-E35),M35) -> 0 | P35: 0 | Q35: 0 | R35: =IF(J35="3",ABS(I35-Activos!$C$11),0) -> 0 | S35: 0 | T35: 0 | U35: 0 | V35: 0 | W35: 0 | X35: 0 | Y35: 0 | Z35: 0 | AA35: 0
B36: REGULADOR DE VOLTAJE | C36: -1078.41 | D36: =+C36/CostosyGastos!$D$7 -> -392.1490909 | E36: 1999 | F36: 2000-10-13 | G36: 12 | H36: 10.000004 | I36: 2010.000004 | J36: =+IF(I36<=Activos!$C$8,"1",+IF(I36<=Activos!$C$11,"2","3")) -> 1 | K36: 0 | L36: 52.84386443 | M36: 0 | N36: 0 | O36: =PV(wacc,H36-(Activos!$C$8-E36),M36) -> 0 | P36: 0 | Q36: 0 | R36: =IF(J36="3",ABS(I36-Activos!$C$11),0) -> 0 | S36: 0 | T36: 0 | U36: 0 | V36: 0 | W36: 0 | X36: 0 | Y36: 0 | Z36: 0 | AA36: 0
B37: RADIO TRANSMISOR RECEPTOR | C37: -1078.41 | D37: =+C37/CostosyGastos!$D$7 -> -392.1490909 | E37: 1999 | F37: 2000-10-13 | G37: 12 | H37: 10.000004 | I37: 2010.000004 | J37: =+IF(I37<=Activos!$C$8,"1",+IF(I37<=Activos!$C$11,"2","3")) -> 1 | K37: 0 | L37: 52.84386443 | M37: 0 | N37: 0 | O37: =PV(wacc,H37-(Activos!$C$8-E37),M37) -> 0 | P37: 0 | Q37: 0 | R37: =IF(J37="3",ABS(I37-Activos!$C$11),0) -> 0 | S37: 0 | T37: 0 | U37: 0 | V37: 0 | W37: 0 | X37: 0 | Y37: 0 | Z37: 0 | AA37: 0
B38: RADIO TRANSMISOR RECEPTOR | C38: -1078.41 | D38: =+C38/CostosyGastos!$D$7 -> -392.1490909 | E38: 1999 | F38: 2000-10-13 | G38: 12 | H38: 10.000004 | I38: 2010.000004 | J38: =+IF(I38<=Activos!$C$8,"1",+IF(I38<=Activos!$C$11,"2","3")) -> 1 | K38: 0 | L38: 52.84386443 | M38: 0 | N38: 0 | O38: =PV(wacc,H38-(Activos!$C$8-E38),M38) -> 0 | P38: 0 | Q38: 0 | R38: =IF(J38="3",ABS(I38-Activos!$C$11),0) -> 0 | S38: 0 | T38: 0 | U38: 0 | V38: 0 | W38: 0 | X38: 0 | Y38: 0 | Z38: 0 | AA38: 0
B39: RADIO TRANSMISOR RECEPTOR | C39: -1078.41 | D39: =+C39/CostosyGastos!$D$7 -> -392.1490909 | E39: 1999 | F39: 2000-10-13 | G39: 12 | H39: 10.000004 | I39: 2010.000004 | J39: =+IF(I39<=Activos!$C$8,"1",+IF(I39<=Activos!$C$11,"2","3")) -> 1 | K39: 0 | L39: 52.84386443 | M39: 0 | N39: 0 | O39: =PV(wacc,H39-(Activos!$C$8-E39),M39) -> 0 | P39: 0 | Q39: 0 | R39: =IF(J39="3",ABS(I39-Activos!$C$11),0) -> 0 | S39: 0 | T39: 0 | U39: 0 | V39: 0 | W39: 0 | X39: 0 | Y39: 0 | Z39: 0 | AA39: 0
B40: RADIO TRANSMISOR RECEPTOR | C40: -1078.41 | D40: =+C40/CostosyGastos!$D$7 -> -392.1490909 | E40: 1999 | F40: 2000-10-13 | G40: 12 | H40: 10.000004 | I40: 2010.000004 | J40: =+IF(I40<=Activos!$C$8,"1",+IF(I40<=Activos!$C$11,"2","3")) -> 1 | K40: 0 | L40: 52.84386443 | M40: 0 | N40: 0 | O40: =PV(wacc,H40-(Activos!$C$8-E40),M40) -> 0 | P40: 0 | Q40: 0 | R40: =IF(J40="3",ABS(I40-Activos!$C$11),0) -> 0 | S40: 0 | T40: 0 | U40: 0 | V40: 0 | W40: 0 | X40: 0 | Y40: 0 | Z40: 0 | AA40: 0
B41: RADIO TRANSMISOR RECEPTOR | C41: -1078.41 | D41: =+C41/CostosyGastos!$D$7 -> -392.1490909 | E41: 1999 | F41: 2000-10-13 | G41: 12 | H41: 10.000004 | I41: 2010.000004 | J41: =+IF(I41<=Activos!$C$8,"1",+IF(I41<=Activos!$C$11,"2","3")) -> 1 | K41: 0 | L41: 52.84386443 | M41: 0 | N41: 0 | O41: =PV(wacc,H41-(Activos!$C$8-E41),M41) -> 0 | P41: 0 | Q41: 0 | R41: =IF(J41="3",ABS(I41-Activos!$C$11),0) -> 0 | S41: 0 | T41: 0 | U41: 0 | V41: 0 | W41: 0 | X41: 0 | Y41: 0 | Z41: 0 | AA41: 0
B42: RADIO TRANSMISOR RECEPTOR | C42: -1078.41 | D42: =+C42/CostosyGastos!$D$7 -> -392.1490909 | E42: 1999 | F42: 2000-10-13 | G42: 12 | H42: 10.000004 | I42: 2010.000004 | J42: =+IF(I42<=Activos!$C$8,"1",+IF(I42<=Activos!$C$11,"2","3")) -> 1 | K42: 0 | L42: 52.84386443 | M42: 0 | N42: 0 | O42: =PV(wacc,H42-(Activos!$C$8-E42),M42) -> 0 | P42: 0 | Q42: 0 | R42: =IF(J42="3",ABS(I42-Activos!$C$11),0) -> 0 | S42: 0 | T42: 0 | U42: 0 | V42: 0 | W42: 0 | X42: 0 | Y42: 0 | Z42: 0 | AA42: 0
B43: RADIO TRANSMISOR RECEPTOR | C43: -1078.41 | D43: =+C43/CostosyGastos!$D$7 -> -392.1490909 | E43: 1999 | F43: 2000-10-13 | G43: 12 | H43: 10.000004 | I43: 2010.000004 | J43: =+IF(I43<=Activos!$C$8,"1",+IF(I43<=Activos!$C$11,"2","3")) -> 1 | K43: 0 | L43: 52.84386443 | M43: 0 | N43: 0 | O43: =PV(wacc,H43-(Activos!$C$8-E43),M43) -> 0 | P43: 0 | Q43: 0 | R43: =IF(J43="3",ABS(I43-Activos!$C$11),0) -> 0 | S43: 0 | T43: 0 | U43: 0 | V43: 0 | W43: 0 | X43: 0 | Y43: 0 | Z43: 0 | AA43: 0
B44: ANTENA (OTRAS) (MAYOR A 1/8 UIT) | C44: -795.06 | D44: =+C44/CostosyGastos!$D$7 -> -289.1127273 | E44: 1999 | F44: 2000-11-07 | G44: 12 | H44: 10.000004 | I44: 2010.000004 | J44: =+IF(I44<=Activos!$C$8,"1",+IF(I44<=Activos!$C$11,"2","3")) -> 1 | K44: 0 | L44: 38.9592482 | M44: 0 | N44: 0 | O44: =PV(wacc,H44-(Activos!$C$8-E44),M44) -> 0 | P44: 0 | Q44: 0 | R44: =IF(J44="3",ABS(I44-Activos!$C$11),0) -> 0 | S44: 0 | T44: 0 | U44: 0 | V44: 0 | W44: 0 | X44: 0 | Y44: 0 | Z44: 0 | AA44: 0
B45: FUENTE DE PODER | C45: -668.37 | D45: =+C45/CostosyGastos!$D$7 -> -243.0436364 | E45: 1999 | F45: 2000-11-07 | G45: 12 | H45: 10.000004 | I45: 2010.000004 | J45: =+IF(I45<=Activos!$C$8,"1",+IF(I45<=Activos!$C$11,"2","3")) -> 1 | K45: 0 | L45: 32.75122975 | M45: 0 | N45: 0 | O45: =PV(wacc,H45-(Activos!$C$8-E45),M45) -> 0 | P45: 0 | Q45: 0 | R45: =IF(J45="3",ABS(I45-Activos!$C$11),0) -> 0 | S45: 0 | T45: 0 | U45: 0 | V45: 0 | W45: 0 | X45: 0 | Y45: 0 | Z45: 0 | AA45: 0
B46: CORTADORA DE CESPED | C46: -2655.93 | D46: =+C46/CostosyGastos!$D$7 -> -965.7927273 | E46: 1999 | F46: 2000-11-15 | G46: 12 | H46: 12.0000048 | I46: 2012.000005 | J46: =+IF(I46<=Activos!$C$8,"1",+IF(I46<=Activos!$C$11,"2","3")) -> 2 | K46: -80.48269508 | L46: 130.144909 | M46: 130.144909 | N46: -80.48269508 | O46: =PV(wacc,H46-(Activos!$C$8-E46),M46) -> 130.1442591 | P46: 0 | Q46: 0 | R46: =IF(J46="3",ABS(I46-Activos!$C$11),0) -> 0 | S46: 0 | T46: 0 | U46: -80.48269508 | V46: 0 | W46: 0 | X46: 0 | Y46: 0 | Z46: 0 | AA46: 0
B47: SISTEMA ININTERRUMPIDO DE ENERGIA (UPS) | C47: -2281.92 | D47: =+C47/CostosyGastos!$D$7 -> -829.7890909 | E47: 1999 | F47: 2000-12-19 | G47: 12 | H47: 10.000004 | I47: 2010.000004 | J47: =+IF(I47<=Activos!$C$8,"1",+IF(I47<=Activos!$C$11,"2","3")) -> 1 | K47: 0 | L47: 111.8178347 | M47: 0 | N47: 0 | O47: =PV(wacc,H47-(Activos!$C$8-E47),M47) -> 0 | P47: 0 | Q47: 0 | R47: =IF(J47="3",ABS(I47-Activos!$C$11),0) -> 0 | S47: 0 | T47: 0 | U47: 0 | V47: 0 | W47: 0 | X47: 0 | Y47: 0 | Z47: 0 | AA47: 0
B48: RACK (OTROS) | C48: -645.52 | D48: =+C48/CostosyGastos!$D$7 -> -234.7345455 | E48: 1999 | F48: 2000-12-22 | G48: 12 | H48: 10.000004 | I48: 2010.000004 | J48: =+IF(I48<=Activos!$C$8,"1",+IF(I48<=Activos!$C$11,"2","3")) -> 1 | K48: 0 | L48: 31.63154215 | M48: 0 | N48: 0 | O48: =PV(wacc,H48-(Activos!$C$8-E48),M48) -> 0 | P48: 0 | Q48: 0 | R48: =IF(J48="3",ABS(I48-Activos!$C$11),0) -> 0 | S48: 0 | T48: 0 | U48: 0 | V48: 0 | W48: 0 | X48: 0 | Y48: 0 | Z48: 0 | AA48: 0
B49: SILLON GERENCIAL | C49: -350.42 | D49: =+C49/CostosyGastos!$D$7 -> -127.4254545 | E49: 1999 | F49: 2000-12-25 | G49: 12 | H49: 10.000004 | I49: 2010.000004 | J49: =+IF(I49<=Activos!$C$8,"1",+IF(I49<=Activos!$C$11,"2","3")) -> 1 | K49: 0 | L49: 17.17115659 | M49: 0 | N49: 0 | O49: =PV(wacc,H49-(Activos!$C$8-E49),M49) -> 0 | P49: 0 | Q49: 0 | R49: =IF(J49="3",ABS(I49-Activos!$C$11),0) -> 0 | S49: 0 | T49: 0 | U49: 0 | V49: 0 | W49: 0 | X49: 0 | Y49: 0 | Z49: 0 | AA49: 0
B50: SILLON GERENCIAL | C50: -350.42 | D50: =+C50/CostosyGastos!$D$7 -> -127.4254545 | E50: 1999 | F50: 2000-12-25 | G50: 12 | H50: 10.000004 | I50: 2010.000004 | J50: =+IF(I50<=Activos!$C$8,"1",+IF(I50<=Activos!$C$11,"2","3")) -> 1 | K50: 0 | L50: 17.17115659 | M50: 0 | N50: 0 | O50: =PV(wacc,H50-(Activos!$C$8-E50),M50) -> 0 | P50: 0 | Q50: 0 | R50: =IF(J50="3",ABS(I50-Activos!$C$11),0) -> 0 | S50: 0 | T50: 0 | U50: 0 | V50: 0 | W50: 0 | X50: 0 | Y50: 0 | Z50: 0 | AA50: 0
B51: RELOJ DIGITAL | C51: -114.92 | D51: =+C51/CostosyGastos!$D$7 -> -41.78909091 | E51: 1999 | F51: 2000-12-27 | G51: 12 | H51: 10.000004 | I51: 2010.000004 | J51: =+IF(I51<=Activos!$C$8,"1",+IF(I51<=Activos!$C$11,"2","3")) -> 1 | K51: 0 | L51: 5.631269091 | M51: 0 | N51: 0 | O51: =PV(wacc,H51-(Activos!$C$8-E51),M51) -> 0 | P51: 0 | Q51: 0 | R51: =IF(J51="3",ABS(I51-Activos!$C$11),0) -> 0 | S51: 0 | T51: 0 | U51: 0 | V51: 0 | W51: 0 | X51: 0 | Y51: 0 | Z51: 0 | AA51: 0
B52: RELOJ DIGITAL | C52: -114.92 | D52: =+C52/CostosyGastos!$D$7 -> -41.78909091 | E52: 1999 | F52: 2000-12-27 | G52: 12 | H52: 10.000004 | I52: 2010.000004 | J52: =+IF(I52<=Activos!$C$8,"1",+IF(I52<=Activos!$C$11,"2","3")) -> 1 | K52: 0 | L52: 5.631269091 | M52: 0 | N52: 0 | O52: =PV(wacc,H52-(Activos!$C$8-E52),M52) -> 0 | P52: 0 | Q52: 0 | R52: =IF(J52="3",ABS(I52-Activos!$C$11),0) -> 0 | S52: 0 | T52: 0 | U52: 0 | V52: 0 | W52: 0 | X52: 0 | Y52: 0 | Z52: 0 | AA52: 0
B53: ACUMULADOR DE ENERGIA - EQUIPO DE UPS | C53: -12589.91 | D53: =+C53/CostosyGastos!$D$7 -> -4578.149091 | E53: 1999 | F53: 2000-12-28 | G53: 12 | H53: 10.000004 | I53: 2010.000004 | J53: =+IF(I53<=Activos!$C$8,"1",+IF(I53<=Activos!$C$11,"2","3")) -> 1 | K53: 0 | L53: 616.9263056 | M53: 0 | N53: 0 | O53: =PV(wacc,H53-(Activos!$C$8-E53),M53) -> 0 | P53: 0 | Q53: 0 | R53: =IF(J53="3",ABS(I53-Activos!$C$11),0) -> 0 | S53: 0 | T53: 0 | U53: 0 | V53: 0 | W53: 0 | X53: 0 | Y53: 0 | Z53: 0 | AA53: 0
B54: ACUMULADOR DE ENERGIA - EQUIPO DE UPS | C54: -12589.91 | D54: =+C54/CostosyGastos!$D$7 -> -4578.149091 | E54: 1999 | F54: 2000-12-28 | G54: 12 | H54: 10.000004 | I54: 2010.000004 | J54: =+IF(I54<=Activos!$C$8,"1",+IF(I54<=Activos!$C$11,"2","3")) -> 1 | K54: 0 | L54: 616.9263056 | M54: 0 | N54: 0 | O54: =PV(wacc,H54-(Activos!$C$8-E54),M54) -> 0 | P54: 0 | Q54: 0 | R54: =IF(J54="3",ABS(I54-Activos!$C$11),0) -> 0 | S54: 0 | T54: 0 | U54: 0 | V54: 0 | W54: 0 | X54: 0 | Y54: 0 | Z54: 0 | AA54: 0
B55: ACUMULADOR DE ENERGIA - EQUIPO DE UPS | C55: -12589.91 | D55: =+C55/CostosyGastos!$D$7 -> -4578.149091 | E55: 1999 | F55: 2000-12-28 | G55: 12 | H55: 10.000004 | I55: 2010.000004 | J55: =+IF(I55<=Activos!$C$8,"1",+IF(I55<=Activos!$C$11,"2","3")) -> 1 | K55: 0 | L55: 616.9263056 | M55: 0 | N55: 0 | O55: =PV(wacc,H55-(Activos!$C$8-E55),M55) -> 0 | P55: 0 | Q55: 0 | R55: =IF(J55="3",ABS(I55-Activos!$C$11),0) -> 0 | S55: 0 | T55: 0 | U55: 0 | V55: 0 | W55: 0 | X55: 0 | Y55: 0 | Z55: 0 | AA55: 0
B56: ACUMULADOR DE ENERGIA - EQUIPO DE UPS | C56: -12589.91 | D56: =+C56/CostosyGastos!$D$7 -> -4578.149091 | E56: 1999 | F56: 2000-12-28 | G56: 12 | H56: 10.000004 | I56: 2010.000004 | J56: =+IF(I56<=Activos!$C$8,"1",+IF(I56<=Activos!$C$11,"2","3")) -> 1 | K56: 0 | L56: 616.9263056 | M56: 0 | N56: 0 | O56: =PV(wacc,H56-(Activos!$C$8-E56),M56) -> 0 | P56: 0 | Q56: 0 | R56: =IF(J56="3",ABS(I56-Activos!$C$11),0) -> 0 | S56: 0 | T56: 0 | U56: 0 | V56: 0 | W56: 0 | X56: 0 | Y56: 0 | Z56: 0 | AA56: 0
B57: ACUMULADOR DE ENERGIA - EQUIPO DE UPS | C57: -12589.91 | D57: =+C57/CostosyGastos!$D$7 -> -4578.149091 | E57: 1999 | F57: 2000-12-28 | G57: 12 | H57: 10.000004 | I57: 2010.000004 | J57: =+IF(I57<=Activos!$C$8,"1",+IF(I57<=Activos!$C$11,"2","3")) -> 1 | K57: 0 | L57: 616.9263056 | M57: 0 | N57: 0 | O57: =PV(wacc,H57-(Activos!$C$8-E57),M57) -> 0 | P57: 0 | Q57: 0 | R57: =IF(J57="3",ABS(I57-Activos!$C$11),0) -> 0 | S57: 0 | T57: 0 | U57: 0 | V57: 0 | W57: 0 | X57: 0 | Y57: 0 | Z57: 0 | AA57: 0
B58: ACUMULADOR DE ENERGIA - EQUIPO DE UPS | C58: -12589.91 | D58: =+C58/CostosyGastos!$D$7 -> -4578.149091 | E58: 1999 | F58: 2000-12-28 | G58: 12 | H58: 10.000004 | I58: 2010.000004 | J58: =+IF(I58<=Activos!$C$8,"1",+IF(I58<=Activos!$C$11,"2","3")) -> 1 | K58: 0 | L58: 616.9263056 | M58: 0 | N58: 0 | O58: =PV(wacc,H58-(Activos!$C$8-E58),M58) -> 0 | P58: 0 | Q58: 0 | R58: =IF(J58="3",ABS(I58-Activos!$C$11),0) -> 0 | S58: 0 | T58: 0 | U58: 0 | V58: 0 | W58: 0 | X58: 0 | Y58: 0 | Z58: 0 | AA58: 0
B59: ACUMULADOR DE ENERGIA - EQUIPO DE UPS | C59: -12589.91 | D59: =+C59/CostosyGastos!$D$7 -> -4578.149091 | E59: 1999 | F59: 2000-12-28 | G59: 12 | H59: 10.000004 | I59: 2010.000004 | J59: =+IF(I59<=Activos!$C$8,"1",+IF(I59<=Activos!$C$11,"2","3")) -> 1 | K59: 0 | L59: 616.9263056 | M59: 0 | N59: 0 | O59: =PV(wacc,H59-(Activos!$C$8-E59),M59) -> 0 | P59: 0 | Q59: 0 | R59: =IF(J59="3",ABS(I59-Activos!$C$11),0) -> 0 | S59: 0 | T59: 0 | U59: 0 | V59: 0 | W59: 0 | X59: 0 | Y59: 0 | Z59: 0 | AA59: 0
B60: ACUMULADOR DE ENERGIA - EQUIPO DE UPS | C60: -12589.91 | D60: =+C60/CostosyGastos!$D$7 -> -4578.149091 | E60: 1999 | F60: 2000-12-28 | G60: 12 | H60: 10.000004 | I60: 2010.000004 | J60: =+IF(I60<=Activos!$C$8,"1",+IF(I60<=Activos!$C$11,"2","3")) -> 1 | K60: 0 | L60: 616.9263056 | M60: 0 | N60: 0 | O60: =PV(wacc,H60-(Activos!$C$8-E60),M60) -> 0 | P60: 0 | Q60: 0 | R60: =IF(J60="3",ABS(I60-Activos!$C$11),0) -> 0 | S60: 0 | T60: 0 | U60: 0 | V60: 0 | W60: 0 | X60: 0 | Y60: 0 | Z60: 0 | AA60: 0
B61: UPS | C61: -12589.91 | D61: =+C61/CostosyGastos!$D$7 -> -4578.149091 | E61: 1999 | F61: 2000-12-28 | G61: 12 | H61: 10.000004 | I61: 2010.000004 | J61: =+IF(I61<=Activos!$C$8,"1",+IF(I61<=Activos!$C$11,"2","3")) -> 1 | K61: 0 | L61: 616.9263056 | M61: 0 | N61: 0 | O61: =PV(wacc,H61-(Activos!$C$8-E61),M61) -> 0 | P61: 0 | Q61: 0 | R61: =IF(J61="3",ABS(I61-Activos!$C$11),0) -> 0 | S61: 0 | T61: 0 | U61: 0 | V61: 0 | W61: 0 | X61: 0 | Y61: 0 | Z61: 0 | AA61: 0
B62: RADIO TRANSMISOR RECEPTOR | C62: -2128.25 | D62: =+C62/CostosyGastos!$D$7 -> -773.9090909 | E62: 1999 | F62: 2000-12-31 | G62: 12 | H62: 10.90909527 | I62: 2010.909095 | J62: =+IF(I62<=Activos!$C$8,"1",+IF(I62<=Activos!$C$11,"2","3")) -> 1 | K62: 0 | L62: 104.2877519 | M62: 0 | N62: 0 | O62: =PV(wacc,H62-(Activos!$C$8-E62),M62) -> 0 | P62: 0 | Q62: 0 | R62: =IF(J62="3",ABS(I62-Activos!$C$11),0) -> 0 | S62: 0 | T62: 0 | U62: 0 | V62: 0 | W62: 0 | X62: 0 | Y62: 0 | Z62: 0 | AA62: 0
B63: ELECTROBOMBA | C63: -2101.99 | D63: =+C63/CostosyGastos!$D$7 -> -764.36 | E63: 1999 | F63: 2000-12-31 | G63: 12 | H63: 10.90909527 | I63: 2010.909095 | J63: =+IF(I63<=Activos!$C$8,"1",+IF(I63<=Activos!$C$11,"2","3")) -> 1 | K63: 0 | L63: 103.0009686 | M63: 0 | N63: 0 | O63: =PV(wacc,H63-(Activos!$C$8-E63),M63) -> 0 | P63: 0 | Q63: 0 | R63: =IF(J63="3",ABS(I63-Activos!$C$11),0) -> 0 | S63: 0 | T63: 0 | U63: 0 | V63: 0 | W63: 0 | X63: 0 | Y63: 0 | Z63: 0 | AA63: 0
B64: TANQUE DE METAL - CISTERNA | C64: -2101.99 | D64: =+C64/CostosyGastos!$D$7 -> -764.36 | E64: 1999 | F64: 2000-12-31 | G64: 12 | H64: 10.90909527 | I64: 2010.909095 | J64: =+IF(I64<=Activos!$C$8,"1",+IF(I64<=Activos!$C$11,"2","3")) -> 1 | K64: 0 | L64: 103.0009686 | M64: 0 | N64: 0 | O64: =PV(wacc,H64-(Activos!$C$8-E64),M64) -> 0 | P64: 0 | Q64: 0 | R64: =IF(J64="3",ABS(I64-Activos!$C$11),0) -> 0 | S64: 0 | T64: 0 | U64: 0 | V64: 0 | W64: 0 | X64: 0 | Y64: 0 | Z64: 0 | AA64: 0
B65: TANQUE DE METAL - CISTERNA | C65: -2101.99 | D65: =+C65/CostosyGastos!$D$7 -> -764.36 | E65: 1999 | F65: 2000-12-31 | G65: 12 | H65: 10.90909527 | I65: 2010.909095 | J65: =+IF(I65<=Activos!$C$8,"1",+IF(I65<=Activos!$C$11,"2","3")) -> 1 | K65: 0 | L65: 103.0009686 | M65: 0 | N65: 0 | O65: =PV(wacc,H65-(Activos!$C$8-E65),M65) -> 0 | P65: 0 | Q65: 0 | R65: =IF(J65="3",ABS(I65-Activos!$C$11),0) -> 0 | S65: 0 | T65: 0 | U65: 0 | V65: 0 | W65: =+IF($J65="1",0,IF(W$13<$I65,$K65,0)) -> 0 | X65: 0 | Y65: 0 | Z65: 0 | AA65: 0
B66: PRENSA MECANICA | C66: -1839.23 | D66: =+C66/CostosyGastos!$D$7 -> -668.8109091 | E66: 1999 | F66: 2000-12-31 | G66: 12 | H66: 10.000048 | I66: 2010.000048 | J66: =+IF(I66<=Activos!$C$8,"1",+IF(I66<=Activos!$C$11,"2","3")) -> 1 | K66: 0 | L66: 90.1252963 | M66: 0 | N66: 0 | O66: =PV(wacc,H66-(Activos!$C$8-E66),M66) -> 0 | P66: 0 | Q66: 0 | R66: =IF(J66="3",ABS(I66-Activos!$C$11),0) -> 0 | S66: 0 | T66: 0 | U66: =+IF($J66="1",0,IF(U$13<$I66,$K66,0)) -> 0 | V66: 0 | W66: 0 | X66: 0 | Y66: 0 | Z66: 0 | AA66: 0
B67: AMPLIFICADOR (OTROS) | C67: -1839.01 | D67: =+C67/CostosyGastos!$D$7 -> -668.7309091 | E67: 1999 | F67: 2000-12-31 | G67: 12 | H67: 10.000048 | I67: 2010.000048 | J67: =+IF(I67<=Activos!$C$8,"1",+IF(I67<=Activos!$C$11,"2","3")) -> 1 | K67: 0 | L67: 90.11451593 | M67: 0 | N67: 0 | O67: =PV(wacc,H67-(Activos!$C$8-E67),M67) -> 0 | P67: 0 | Q67: 0 | R67: =IF(J67="3",ABS(I67-Activos!$C$11),0) -> 0 | S67: 0 | T67: 0 | U67: 0 | V67: 0 | W67: 0 | X67: 0 | Y67: 0 | Z67: 0 | AA67: 0
B68: AMPLIFICADOR (OTROS) | C68: -1839.01 | D68: =+C68/CostosyGastos!$D$7 -> -668.7309091 | E68: 1999 | F68: 2000-12-31 | G68: 12 | H68: 10.000048 | I68: 2010.000048 | J68: =+IF(I68<=Activos!$C$8,"1",+IF(I68<=Activos!$C$11,"2","3")) -> 1 | K68: 0 | L68: 90.11451593 | M68: 0 | N68: 0 | O68: =PV(wacc,H68-(Activos!$C$8-E68),M68) -> 0 | P68: 0 | Q68: 0 | R68: =IF(J68="3",ABS(I68-Activos!$C$11),0) -> 0 | S68: 0 | T68: 0 | U68: 0 | V68: 0 | W68: 0 | X68: 0 | Y68: 0 | Z68: 0 | AA68: 0
B69: TANQUE PARA ALMACENAMIENTO DE COMBUSTIBLE | C69: -1726.63 | D69: =+C69/CostosyGastos!$D$7 -> -627.8654545 | E69: 1999 | F69: 2000-12-31 | G69: 12 | H69: 10.000048 | I69: 2010.000048 | J69: =+IF(I69<=Activos!$C$8,"1",+IF(I69<=Activos!$C$11,"2","3")) -> 1 | K69: 0 | L69: 84.60771102 | M69: 0 | N69: 0 | O69: =PV(wacc,H69-(Activos!$C$8-E69),M69) -> 0 | P69: 0 | Q69: 0 | R69: =IF(J69="3",ABS(I69-Activos!$C$11),0) -> 0 | S69: 0 | T69: 0 | U69: 0 | V69: 0 | W69: 0 | X69: 0 | Y69: 0 | Z69: 0 | AA69: 0
B70: CAMARA FOTOGRAFICA DIGITAL | C70: -1715.42 | D70: =+C70/CostosyGastos!$D$7 -> -623.7890909 | E70: 1999 | F70: 2000-12-31 | G70: 12 | H70: 10.000004 | I70: 2010.000004 | J70: =+IF(I70<=Activos!$C$8,"1",+IF(I70<=Activos!$C$11,"2","3")) -> 1 | K70: 0 | L70: 84.05840258 | M70: 0 | N70: 0 | O70: =PV(wacc,H70-(Activos!$C$8-E70),M70) -> 0 | P70: 0 | Q70: 0 | R70: =IF(J70="3",ABS(I70-Activos!$C$11),0) -> 0 | S70: 0 | T70: 0 | U70: 0 | V70: 0 | W70: 0 | X70: 0 | Y70: 0 | Z70: 0 | AA70: 0
B71: EQUIPO TRANSCEPTOR VHF | C71: -1629.03 | D71: =+C71/CostosyGastos!$D$7 -> -592.3745455 | E71: 1999 | F71: 2000-12-31 | G71: 12 | H71: 10.000048 | I71: 2010.000048 | J71: =+IF(I71<=Activos!$C$8,"1",+IF(I71<=Activos!$C$11,"2","3")) -> 1 | K71: 0 | L71: 79.82515043 | M71: 0 | N71: 0 | O71: =PV(wacc,H71-(Activos!$C$8-E71),M71) -> 0 | P71: 0 | Q71: 0 | R71: =IF(J71="3",ABS(I71-Activos!$C$11),0) -> 0 | S71: 0 | T71: 0 | U71: 0 | V71: 0 | W71: 0 | X71: 0 | Y71: 0 | Z71: 0 | AA71: 0
B72: EQUIPO TRANSCEPTOR VHF | C72: -1629.03 | D72: =+C72/CostosyGastos!$D$7 -> -592.3745455 | E72: 1999 | F72: 2000-12-31 | G72: 12 | H72: 10.000048 | I72: 2010.000048 | J72: =+IF(I72<=Activos!$C$8,"1",+IF(I72<=Activos!$C$11,"2","3")) -> 1 | K72: 0 | L72: 79.82515043 | M72: 0 | N72: 0 | O72: =PV(wacc,H72-(Activos!$C$8-E72),M72) -> 0 | P72: 0 | Q72: 0 | R72: =IF(J72="3",ABS(I72-Activos!$C$11),0) -> 0 | S72: 0 | T72: 0 | U72: 0 | V72: 0 | W72: 0 | X72: 0 | Y72: 0 | Z72: 0 | AA72: 0
B73: ANTENA (OTRAS) (MAYOR A 1/8 UIT) | C73: -1426.35 | D73: =+C73/CostosyGastos!$D$7 -> -518.6727273 | E73: 1999 | F73: 2000-12-31 | G73: 12 | H73: 10.000048 | I73: 2010.000048 | J73: =+IF(I73<=Activos!$C$8,"1",+IF(I73<=Activos!$C$11,"2","3")) -> 1 | K73: 0 | L73: 69.89349694 | M73: 0 | N73: 0 | O73: =PV(wacc,H73-(Activos!$C$8-E73),M73) -> 0 | P73: 0 | Q73: 0 | R73: =IF(J73="3",ABS(I73-Activos!$C$11),0) -> 0 | S73: 0 | T73: 0 | U73: 0 | V73: 0 | W73: 0 | X73: 0 | Y73: 0 | Z73: 0 | AA73: 0
B74: ANTENA (OTRAS) (MAYOR A 1/8 UIT) | C74: -1426.35 | D74: =+C74/CostosyGastos!$D$7 -> -518.6727273 | E74: 1999 | F74: 2000-12-31 | G74: 12 | H74: 10.000048 | I74: 2010.000048 | J74: =+IF(I74<=Activos!$C$8,"1",+IF(I74<=Activos!$C$11,"2","3")) -> 1 | K74: 0 | L74: 69.89349694 | M74: 0 | N74: 0 | O74: =PV(wacc,H74-(Activos!$C$8-E74),M74) -> 0 | P74: 0 | Q74: 0 | R74: =IF(J74="3",ABS(I74-Activos!$C$11),0) -> 0 | S74: 0 | T74: 0 | U74: 0 | V74: 0 | W74: 0 | X74: 0 | Y74: 0 | Z74: 0 | AA74: 0
B75: ANTENA (OTRAS) (MAYOR A 1/8 UIT) | C75: -1426.35 | D75: =+C75/CostosyGastos!$D$7 -> -518.6727273 | E75: 1999 | F75: 2000-12-31 | G75: 12 | H75: 10.000048 | I75: 2010.000048 | J75: =+IF(I75<=Activos!$C$8,"1",+IF(I75<=Activos!$C$11,"2","3")) -> 1 | K75: 0 | L75: 69.89349694 | M75: 0 | N75: 0 | O75: =PV(wacc,H75-(Activos!$C$8-E75),M75) -> 0 | P75: 0 | Q75: 0 | R75: =IF(J75="3",ABS(I75-Activos!$C$11),0) -> 0 | S75: 0 | T75: 0 | U75: 0 | V75: 0 | W75: 0 | X75: 0 | Y75: 0 | Z75: 0 | AA75: 0
B76: TORRE METALICA | C76: -1313.74 | D76: =+C76/CostosyGastos!$D$7 -> -477.7236364 | E76: 1999 | F76: 2000-12-31 | G76: 12 | H76: 10.000048 | I76: 2010.000048 | J76: =+IF(I76<=Activos!$C$8,"1",+IF(I76<=Activos!$C$11,"2","3")) -> 1 | K76: 0 | L76: 64.37542165 | M76: 0 | N76: 0 | O76: =PV(wacc,H76-(Activos!$C$8-E76),M76) -> 0 | P76: 0 | Q76: 0 | R76: =IF(J76="3",ABS(I76-Activos!$C$11),0) -> 0 | S76: 0 | T76: 0 | U76: 0 | V76: 0 | W76: 0 | X76: 0 | Y76: 0 | Z76: 0 | AA76: 0
B77: TORRE METALICA | C77: -1313.74 | D77: =+C77/CostosyGastos!$D$7 -> -477.7236364 | E77: 1999 | F77: 2000-12-31 | G77: 12 | H77: 10.000048 | I77: 2010.000048 | J77: =+IF(I77<=Activos!$C$8,"1",+IF(I77<=Activos!$C$11,"2","3")) -> 1 | K77: 0 | L77: 64.37542165 | M77: 0 | N77: 0 | O77: =PV(wacc,H77-(Activos!$C$8-E77),M77) -> 0 | P77: 0 | Q77: 0 | R77: =IF(J77="3",ABS(I77-Activos!$C$11),0) -> 0 | S77: 0 | T77: 0 | U77: 0 | V77: 0 | W77: 0 | X77: 0 | Y77: 0 | Z77: 0 | AA77: 0
B78: TORRE METALICA | C78: -1313.74 | D78: =+C78/CostosyGastos!$D$7 -> -477.7236364 | E78: 1999 | F78: 2000-12-31 | G78: 12 | H78: 10.000048 | I78: 2010.000048 | J78: =+IF(I78<=Activos!$C$8,"1",+IF(I78<=Activos!$C$11,"2","3")) -> 1 | K78: 0 | L78: 64.37542165 | M78: 0 | N78: 0 | O78: =PV(wacc,H78-(Activos!$C$8-E78),M78) -> 0 | P78: 0 | Q78: 0 | R78: =IF(J78="3",ABS(I78-Activos!$C$11),0) -> 0 | S78: 0 | T78: 0 | U78: 0 | V78: 0 | W78: 0 | X78: 0 | Y78: 0 | Z78: 0 | AA78: 0
B79: TORRE METALICA | C79: -1313.74 | D79: =+C79/CostosyGastos!$D$7 -> -477.7236364 | E79: =+YEAR(F79)-1 -> 1999 | F79: 2000-12-31 | G79: =C$8-YEAR(F79) -> 12 | H79: 10.000048 | I79: 2010.000048 | J79: =+IF(I79<=Activos!$C$8,"1",+IF(I79<=Activos!$C$11,"2","3")) -> 1 | K79: =IF(J79="1",0,D79/H79) -> 0 | L79: =IF(J79="1",PMT(wacc,G79,D79),PMT(wacc,H79,D79)) -> 64.37542165 | M79: 0 | N79: 0 | O79: =PV(wacc,H79-(Activos!$C$8-E79),M79) -> 0 | P79: =+IF($J79="3",L79,0) -> 0 | Q79: =+IF($J79="3",K79,0) -> 0 | R79: =IF(J79="3",ABS(I79-Activos!$C$11),0) -> 0 | S79: =-PV(wacc,R79,P79) -> 0 | T79: =PV(wacc,H79-($C$8-E79),P79) -> 0 | U79: 0 | V79: 0 | W79: 0 | X79: 0 | Y79: 0 | Z79: 0 | AA79: 0
B80: TORRE METALICA | C80: -1313.74 | D80: =+C80/CostosyGastos!$D$7 -> -477.7236364 | E80: 1999 | F80: 2000-12-31 | G80: 12 | H80: 10.000048 | I80: =+(YEAR(F80)+H80) -> 2010.000048 | J80: =+IF(I80<=Activos!$C$8,"1",+IF(I80<=Activos!$C$11,"2","3")) -> 1 | K80: 0 | L80: 64.37542165 | M80: =+IF(J80="2",L80,0) -> 0 | N80: =+IF(J80="2",K80,0) -> 0 | O80: =PV(wacc,H80-(Activos!$C$8-E80),M80) -> 0 | P80: 0 | Q80: 0 | R80: =IF(J80="3",ABS(I80-Activos!$C$11),0) -> 0 | S80: 0 | T80: 0 | U80: 0 | V80: 0 | W80: 0 | X80: 0 | Y80: 0 | Z80: 0 | AA80: 0
B81: BANCO DE BATERIAS | C81: -1313.74 | D81: =+C81/CostosyGastos!$D$7 -> -477.7236364 | E81: 1999 | F81: 2000-12-31 | G81: 12 | H81: 10.000048 | I81: 2010.000048 | J81: =+IF(I81<=Activos!$C$8,"1",+IF(I81<=Activos!$C$11,"2","3")) -> 1 | K81: 0 | L81: 64.37542165 | M81: 0 | N81: 0 | O81: =PV(wacc,H81-(Activos!$C$8-E81),M81) -> 0 | P81: 0 | Q81: 0 | R81: =IF(J81="3",ABS(I81-Activos!$C$11),0) -> 0 | S81: 0 | T81: 0 | U81: 0 | V81: 0 | W81: 0 | X81: 0 | Y81: 0 | Z81: 0 | AA81: 0
B82: DETECTOR DE HUMO | C82: -1276.21 | D82: =+C82/CostosyGastos!$D$7 -> -464.0763636 | E82: 1999 | F82: 2000-12-31 | G82: 12 | H82: 10.000048 | I82: 2010.000048 | J82: =+IF(I82<=Activos!$C$8,"1",+IF(I82<=Activos!$C$11,"2","3")) -> 1 | K82: 0 | L82: 62.53638989 | M82: 0 | N82: 0 | O82: =PV(wacc,H82-(Activos!$C$8-E82),M82) -> 0 | P82: 0 | Q82: 0 | R82: =IF(J82="3",ABS(I82-Activos!$C$11),0) -> 0 | S82: 0 | T82: 0 | U82: 0 | V82: 0 | W82: 0 | X82: 0 | Y82: 0 | Z82: 0 | AA82: 0
B83: ANTENA DIPOLO | C83: -1201.13 | D83: =+C83/CostosyGastos!$D$7 -> -436.7745455 | E83: 1999 | F83: 2000-12-31 | G83: 12 | H83: 10.000048 | I83: 2010.000048 | J83: =+IF(I83<=Activos!$C$8,"1",+IF(I83<=Activos!$C$11,"2","3")) -> 1 | K83: 0 | L83: 58.85734636 | M83: 0 | N83: 0 | O83: =PV(wacc,H83-(Activos!$C$8-E83),M83) -> 0 | P83: 0 | Q83: 0 | R83: =IF(J83="3",ABS(I83-Activos!$C$11),0) -> 0 | S83: 0 | T83: 0 | U83: 0 | V83: 0 | W83: 0 | X83: 0 | Y83: 0 | Z83: 0 | AA83: 0
B84: PARARRAYOS | C84: -1201.13 | D84: =+C84/CostosyGastos!$D$7 -> -436.7745455 | E84: 1999 | F84: 2000-12-31 | G84: 12 | H84: 10.000048 | I84: 2010.000048 | J84: =+IF(I84<=Activos!$C$8,"1",+IF(I84<=Activos!$C$11,"2","3")) -> 1 | K84: 0 | L84: 58.85734636 | M84: 0 | N84: 0 | O84: =PV(wacc,H84-(Activos!$C$8-E84),M84) -> 0 | P84: 0 | Q84: 0 | R84: =IF(J84="3",ABS(I84-Activos!$C$11),0) -> 0 | S84: 0 | T84: 0 | U84: 0 | V84: 0 | W84: 0 | X84: 0 | Y84: 0 | Z84: 0 | AA84: 0
B85: PARARRAYOS | C85: -1201.13 | D85: =+C85/CostosyGastos!$D$7 -> -436.7745455 | E85: 1999 | F85: 2000-12-31 | G85: 12 | H85: 10.000048 | I85: 2010.000048 | J85: =+IF(I85<=Activos!$C$8,"1",+IF(I85<=Activos!$C$11,"2","3")) -> 1 | K85: 0 | L85: 58.85734636 | M85: 0 | N85: 0 | O85: =PV(wacc,H85-(Activos!$C$8-E85),M85) -> 0 | P85: 0 | Q85: 0 | R85: =IF(J85="3",ABS(I85-Activos!$C$11),0) -> 0 | S85: 0 | T85: 0 | U85: 0 | V85: 0 | W85: 0 | X85: 0 | Y85: 0 | Z85: 0 | AA85: 0
B86: PARARRAYOS | C86: -1201.13 | D86: =+C86/CostosyGastos!$D$7 -> -436.7745455 | E86: 1999 | F86: 2000-12-31 | G86: 12 | H86: 10.000048 | I86: 2010.000048 | J86: =+IF(I86<=Activos!$C$8,"1",+IF(I86<=Activos!$C$11,"2","3")) -> 1 | K86: 0 | L86: 58.85734636 | M86: 0 | N86: 0 | O86: =PV(wacc,H86-(Activos!$C$8-E86),M86) -> 0 | P86: 0 | Q86: 0 | R86: =IF(J86="3",ABS(I86-Activos!$C$11),0) -> 0 | S86: 0 | T86: 0 | U86: 0 | V86: 0 | W86: 0 | X86: 0 | Y86: 0 | Z86: 0 | AA86: 0
B87: PARARRAYOS | C87: -1201.13 | D87: =+C87/CostosyGastos!$D$7 -> -436.7745455 | E87: 1999 | F87: 2000-12-31 | G87: 12 | H87: 10.000048 | I87: 2010.000048 | J87: =+IF(I87<=Activos!$C$8,"1",+IF(I87<=Activos!$C$11,"2","3")) -> 1 | K87: 0 | L87: 58.85734636 | M87: 0 | N87: 0 | O87: =PV(wacc,H87-(Activos!$C$8-E87),M87) -> 0 | P87: 0 | Q87: 0 | R87: =IF(J87="3",ABS(I87-Activos!$C$11),0) -> 0 | S87: 0 | T87: 0 | U87: 0 | V87: 0 | W87: 0 | X87: 0 | Y87: 0 | Z87: 0 | AA87: 0
B88: PARARRAYOS | C88: -1201.13 | D88: =+C88/CostosyGastos!$D$7 -> -436.7745455 | E88: 1999 | F88: 2000-12-31 | G88: 12 | H88: 10.000048 | I88: 2010.000048 | J88: =+IF(I88<=Activos!$C$8,"1",+IF(I88<=Activos!$C$11,"2","3")) -> 1 | K88: 0 | L88: 58.85734636 | M88: 0 | N88: 0 | O88: =PV(wacc,H88-(Activos!$C$8-E88),M88) -> 0 | P88: 0 | Q88: 0 | R88: =IF(J88="3",ABS(I88-Activos!$C$11),0) -> 0 | S88: 0 | T88: 0 | U88: 0 | V88: 0 | W88: 0 | X88: 0 | Y88: 0 | Z88: 0 | AA88: 0
B89: PARARRAYOS | C89: -1201.13 | D89: =+C89/CostosyGastos!$D$7 -> -436.7745455 | E89: 1999 | F89: 2000-12-31 | G89: 12 | H89: 10.000048 | I89: 2010.000048 | J89: =+IF(I89<=Activos!$C$8,"1",+IF(I89<=Activos!$C$11,"2","3")) -> 1 | K89: 0 | L89: 58.85734636 | M89: 0 | N89: 0 | O89: =PV(wacc,H89-(Activos!$C$8-E89),M89) -> 0 | P89: 0 | Q89: 0 | R89: =IF(J89="3",ABS(I89-Activos!$C$11),0) -> 0 | S89: 0 | T89: 0 | U89: 0 | V89: 0 | W89: 0 | X89: 0 | Y89: 0 | Z89: 0 | AA89: 0
B90: PLATAFORMA TIPO CARRETA | C90: -1201.13 | D90: =+C90/CostosyGastos!$D$7 -> -436.7745455 | E90: 1999 | F90: 2000-12-31 | G90: 12 | H90: 10.000048 | I90: 2010.000048 | J90: =+IF(I90<=Activos!$C$8,"1",+IF(I90<=Activos!$C$11,"2","3")) -> 1 | K90: 0 | L90: 58.85734636 | M90: 0 | N90: 0 | O90: =PV(wacc,H90-(Activos!$C$8-E90),M90) -> 0 | P90: 0 | Q90: 0 | R90: =IF(J90="3",ABS(I90-Activos!$C$11),0) -> 0 | S90: 0 | T90: 0 | U90: 0 | V90: 0 | W90: 0 | X90: 0 | Y90: 0 | Z90: 0 | AA90: 0
B91: PLATAFORMA TIPO CARRETA | C91: -1201.13 | D91: =+C91/CostosyGastos!$D$7 -> -436.7745455 | E91: 1999 | F91: 2000-12-31 | G91: 12 | H91: 10.000048 | I91: 2010.000048 | J91: =+IF(I91<=Activos!$C$8,"1",+IF(I91<=Activos!$C$11,"2","3")) -> 1 | K91: 0 | L91: 58.85734636 | M91: 0 | N91: 0 | O91: =PV(wacc,H91-(Activos!$C$8-E91),M91) -> 0 | P91: 0 | Q91: 0 | R91: =IF(J91="3",ABS(I91-Activos!$C$11),0) -> 0 | S91: 0 | T91: 0 | U91: 0 | V91: 0 | W91: 0 | X91: 0 | Y91: 0 | Z91: 0 | AA91: 0
B92: TABLERO ELECTRICO DE CONTROL | C92: -1201.13 | D92: =+C92/CostosyGastos!$D$7 -> -436.7745455 | E92: 1999 | F92: 2000-12-31 | G92: 12 | H92: 10.000048 | I92: 2010.000048 | J92: =+IF(I92<=Activos!$C$8,"1",+IF(I92<=Activos!$C$11,"2","3")) -> 1 | K92: 0 | L92: 58.85734636 | M92: 0 | N92: 0 | O92: =PV(wacc,H92-(Activos!$C$8-E92),M92) -> 0 | P92: 0 | Q92: 0 | R92: =IF(J92="3",ABS(I92-Activos!$C$11),0) -> 0 | S92: 0 | T92: 0 | U92: 0 | V92: 0 | W92: 0 | X92: 0 | Y92: 0 | Z92: 0 | AA92: 0
B93: TABLERO ELECTRICO DE CONTROL | C93: -1201.13 | D93: =+C93/CostosyGastos!$D$7 -> -436.7745455 | E93: 1999 | F93: 2000-12-31 | G93: 12 | H93: 10.000048 | I93: 2010.000048 | J93: =+IF(I93<=Activos!$C$8,"1",+IF(I93<=Activos!$C$11,"2","3")) -> 1 | K93: 0 | L93: 58.85734636 | M93: 0 | N93: 0 | O93: =PV(wacc,H93-(Activos!$C$8-E93),M93) -> 0 | P93: 0 | Q93: 0 | R93: =IF(J93="3",ABS(I93-Activos!$C$11),0) -> 0 | S93: 0 | T93: 0 | U93: 0 | V93: 0 | W93: 0 | X93: 0 | Y93: 0 | Z93: 0 | AA93: 0
B94: TRANSCEIVER | C94: -1201.13 | D94: =+C94/CostosyGastos!$D$7 -> -436.7745455 | E94: 1999 | F94: 2000-12-31 | G94: 12 | H94: 10.000048 | I94: 2010.000048 | J94: =+IF(I94<=Activos!$C$8,"1",+IF(I94<=Activos!$C$11,"2","3")) -> 1 | K94: 0 | L94: 58.85734636 | M94: 0 | N94: 0 | O94: =PV(wacc,H94-(Activos!$C$8-E94),M94) -> 0 | P94: 0 | Q94: 0 | R94: =IF(J94="3",ABS(I94-Activos!$C$11),0) -> 0 | S94: 0 | T94: 0 | U94: 0 | V94: 0 | W94: 0 | X94: 0 | Y94: 0 | Z94: 0 | AA94: 0
B95: TRANSCEIVER | C95: -1201.13 | D95: =+C95/CostosyGastos!$D$7 -> -436.7745455 | E95: 1999 | F95: 2000-12-31 | G95: 12 | H95: 10.000048 | I95: 2010.000048 | J95: =+IF(I95<=Activos!$C$8,"1",+IF(I95<=Activos!$C$11,"2","3")) -> 1 | K95: 0 | L95: 58.85734636 | M95: 0 | N95: 0 | O95: =PV(wacc,H95-(Activos!$C$8-E95),M95) -> 0 | P95: 0 | Q95: 0 | R95: =IF(J95="3",ABS(I95-Activos!$C$11),0) -> 0 | S95: 0 | T95: 0 | U95: 0 | V95: 0 | W95: 0 | X95: 0 | Y95: 0 | Z95: 0 | AA95: 0
B96: TRANSCEIVER | C96: -1201.13 | D96: =+C96/CostosyGastos!$D$7 -> -436.7745455 | E96: 1999 | F96: 2000-12-31 | G96: 12 | H96: 10.000048 | I96: 2010.000048 | J96: =+IF(I96<=Activos!$C$8,"1",+IF(I96<=Activos!$C$11,"2","3")) -> 1 | K96: 0 | L96: 58.85734636 | M96: 0 | N96: 0 | O96: =PV(wacc,H96-(Activos!$C$8-E96),M96) -> 0 | P96: 0 | Q96: 0 | R96: =IF(J96="3",ABS(I96-Activos!$C$11),0) -> 0 | S96: 0 | T96: 0 | U96: 0 | V96: 0 | W96: 0 | X96: 0 | Y96: 0 | Z96: 0 | AA96: 0
B97: TRANSCEIVER | C97: -1201.13 | D97: =+C97/CostosyGastos!$D$7 -> -436.7745455 | E97: 1999 | F97: 2000-12-31 | G97: 12 | H97: 10.000048 | I97: 2010.000048 | J97: =+IF(I97<=Activos!$C$8,"1",+IF(I97<=Activos!$C$11,"2","3")) -> 1 | K97: 0 | L97: 58.85734636 | M97: 0 | N97: 0 | O97: =PV(wacc,H97-(Activos!$C$8-E97),M97) -> 0 | P97: 0 | Q97: 0 | R97: =IF(J97="3",ABS(I97-Activos!$C$11),0) -> 0 | S97: 0 | T97: 0 | U97: 0 | V97: 0 | W97: 0 | X97: 0 | Y97: 0 | Z97: 0 | AA97: 0
B98: TRANSCEIVER | C98: -1201.13 | D98: =+C98/CostosyGastos!$D$7 -> -436.7745455 | E98: 1999 | F98: 2000-12-31 | G98: 12 | H98: 10.000048 | I98: 2010.000048 | J98: =+IF(I98<=Activos!$C$8,"1",+IF(I98<=Activos!$C$11,"2","3")) -> 1 | K98: 0 | L98: 58.85734636 | M98: 0 | N98: 0 | O98: =PV(wacc,H98-(Activos!$C$8-E98),M98) -> 0 | P98: 0 | Q98: 0 | R98: =IF(J98="3",ABS(I98-Activos!$C$11),0) -> 0 | S98: 0 | T98: 0 | U98: 0 | V98: 0 | W98: 0 | X98: 0 | Y98: 0 | Z98: 0 | AA98: 0
B99: TRANSCEIVER | C99: -1201.13 | D99: =+C99/CostosyGastos!$D$7 -> -436.7745455 | E99: 1999 | F99: 2000-12-31 | G99: 12 | H99: 10.000048 | I99: 2010.000048 | J99: =+IF(I99<=Activos!$C$8,"1",+IF(I99<=Activos!$C$11,"2","3")) -> 1 | K99: 0 | L99: 58.85734636 | M99: 0 | N99: 0 | O99: =PV(wacc,H99-(Activos!$C$8-E99),M99) -> 0 | P99: 0 | Q99: 0 | R99: =IF(J99="3",ABS(I99-Activos!$C$11),0) -> 0 | S99: 0 | T99: 0 | U99: 0 | V99: 0 | W99: 0 | X99: 0 | Y99: 0 | Z99: 0 | AA99: 0
B100: TRANSCEIVER | C100: -1201.13 | D100: =+C100/CostosyGastos!$D$7 -> -436.7745455 | E100: 1999 | F100: 2000-12-31 | G100: 12 | H100: 10.000048 | I100: 2010.000048 | J100: =+IF(I100<=Activos!$C$8,"1",+IF(I100<=Activos!$C$11,"2","3")) -> 1 | K100: 0 | L100: 58.85734636 | M100: 0 | N100: 0 | O100: =PV(wacc,H100-(Activos!$C$8-E100),M100) -> 0 | P100: 0 | Q100: 0 | R100: =IF(J100="3",ABS(I100-Activos!$C$11),0) -> 0 | S100: 0 | T100: 0 | U100: 0 | V100: 0 | W100: 0 | X100: 0 | Y100: 0 | Z100: 0 | AA100: 0
B101: TRANSCEIVER | C101: -1201.13 | D101: =+C101/CostosyGastos!$D$7 -> -436.7745455 | E101: 1999 | F101: 2000-12-31 | G101: 12 | H101: 10.000048 | I101: 2010.000048 | J101: =+IF(I101<=Activos!$C$8,"1",+IF(I101<=Activos!$C$11,"2","3")) -> 1 | K101: 0 | L101: 58.85734636 | M101: 0 | N101: 0 | O101: =PV(wacc,H101-(Activos!$C$8-E101),M101) -> 0 | P101: 0 | Q101: 0 | R101: =IF(J101="3",ABS(I101-Activos!$C$11),0) -> 0 | S101: 0 | T101: 0 | U101: 0 | V101: 0 | W101: 0 | X101: 0 | Y101: 0 | Z101: 0 | AA101: 0
B102: TRANSCEIVER | C102: -1201.13 | D102: =+C102/CostosyGastos!$D$7 -> -436.7745455 | E102: 1999 | F102: 2000-12-31 | G102: 12 | H102: 10.000048 | I102: 2010.000048 | J102: =+IF(I102<=Activos!$C$8,"1",+IF(I102<=Activos!$C$11,"2","3")) -> 1 | K102: 0 | L102: 58.85734636 | M102: 0 | N102: 0 | O102: =PV(wacc,H102-(Activos!$C$8-E102),M102) -> 0 | P102: 0 | Q102: 0 | R102: =IF(J102="3",ABS(I102-Activos!$C$11),0) -> 0 | S102: 0 | T102: 0 | U102: 0 | V102: 0 | W102: 0 | X102: 0 | Y102: 0 | Z102: 0 | AA102: 0
B103: TRANSCEIVER | C103: -1201.13 | D103: =+C103/CostosyGastos!$D$7 -> -436.7745455 | E103: 1999 | F103: 2000-12-31 | G103: 12 | H103: 10.000048 | I103: 2010.000048 | J103: =+IF(I103<=Activos!$C$8,"1",+IF(I103<=Activos!$C$11,"2","3")) -> 1 | K103: 0 | L103: 58.85734636 | M103: 0 | N103: 0 | O103: =PV(wacc,H103-(Activos!$C$8-E103),M103) -> 0 | P103: 0 | Q103: 0 | R103: =IF(J103="3",ABS(I103-Activos!$C$11),0) -> 0 | S103: 0 | T103: 0 | U103: 0 | V103: 0 | W103: 0 | X103: 0 | Y103: 0 | Z103: 0 | AA103: 0
B104: TRANSCEIVER | C104: -1201.13 | D104: =+C104/CostosyGastos!$D$7 -> -436.7745455 | E104: 1999 | F104: 2000-12-31 | G104: 12 | H104: 10.000048 | I104: 2010.000048 | J104: =+IF(I104<=Activos!$C$8,"1",+IF(I104<=Activos!$C$11,"2","3")) -> 1 | K104: 0 | L104: 58.85734636 | M104: 0 | N104: 0 | O104: =PV(wacc,H104-(Activos!$C$8-E104),M104) -> 0 | P104: 0 | Q104: 0 | R104: =IF(J104="3",ABS(I104-Activos!$C$11),0) -> 0 | S104: 0 | T104: 0 | U104: 0 | V104: 0 | W104: 0 | X104: 0 | Y104: 0 | Z104: 0 | AA104: 0
B105: TRANSCEIVER | C105: -1201.13 | D105: =+C105/CostosyGastos!$D$7 -> -436.7745455 | E105: 1999 | F105: 2000-12-31 | G105: 12 | H105: 10.000048 | I105: 2010.000048 | J105: =+IF(I105<=Activos!$C$8,"1",+IF(I105<=Activos!$C$11,"2","3")) -> 1 | K105: 0 | L105: 58.85734636 | M105: 0 | N105: 0 | O105: =PV(wacc,H105-(Activos!$C$8-E105),M105) -> 0 | P105: 0 | Q105: 0 | R105: =IF(J105="3",ABS(I105-Activos!$C$11),0) -> 0 | S105: 0 | T105: 0 | U105: 0 | V105: 0 | W105: 0 | X105: 0 | Y105: 0 | Z105: 0 | AA105: 0
B106: TRANSCEIVER | C106: -1201.13 | D106: =+C106/CostosyGastos!$D$7 -> -436.7745455 | E106: 1999 | F106: 2000-12-31 | G106: 12 | H106: 10.000048 | I106: 2010.000048 | J106: =+IF(I106<=Activos!$C$8,"1",+IF(I106<=Activos!$C$11,"2","3")) -> 1 | K106: 0 | L106: 58.85734636 | M106: 0 | N106: 0 | O106: =PV(wacc,H106-(Activos!$C$8-E106),M106) -> 0 | P106: 0 | Q106: 0 | R106: =IF(J106="3",ABS(I106-Activos!$C$11),0) -> 0 | S106: 0 | T106: 0 | U106: 0 | V106: 0 | W106: 0 | X106: 0 | Y106: 0 | Z106: 0 | AA106: 0
B107: TRANSCEIVER | C107: -1201.13 | D107: =+C107/CostosyGastos!$D$7 -> -436.7745455 | E107: 1999 | F107: 2000-12-31 | G107: 12 | H107: 10.000048 | I107: 2010.000048 | J107: =+IF(I107<=Activos!$C$8,"1",+IF(I107<=Activos!$C$11,"2","3")) -> 1 | K107: 0 | L107: 58.85734636 | M107: 0 | N107: 0 | O107: =PV(wacc,H107-(Activos!$C$8-E107),M107) -> 0 | P107: 0 | Q107: 0 | R107: =IF(J107="3",ABS(I107-Activos!$C$11),0) -> 0 | S107: 0 | T107: 0 | U107: 0 | V107: 0 | W107: 0 | X107: 0 | Y107: 0 | Z107: =+IF($J107="1",0,IF(Z$13<$I107,$K107,0)) -> 0 | AA107: 0
B108: TRANSCEIVER | C108: -1201.13 | D108: =+C108/CostosyGastos!$D$7 -> -436.7745455 | E108: 1999 | F108: 2000-12-31 | G108: 12 | H108: 10.000048 | I108: 2010.000048 | J108: =+IF(I108<=Activos!$C$8,"1",+IF(I108<=Activos!$C$11,"2","3")) -> 1 | K108: 0 | L108: 58.85734636 | M108: 0 | N108: 0 | O108: =PV(wacc,H108-(Activos!$C$8-E108),M108) -> 0 | P108: 0 | Q108: 0 | R108: =IF(J108="3",ABS(I108-Activos!$C$11),0) -> 0 | S108: 0 | T108: 0 | U108: 0 | V108: 0 | W108: 0 | X108: 0 | Y108: 0 | Z108: 0 | AA108: 0
B109: TANQUE DE METAL - CISTERNA | C109: -1201.13 | D109: =+C109/CostosyGastos!$D$7 -> -436.7745455 | E109: 1999 | F109: 2000-12-31 | G109: 12 | H109: 10.000048 | I109: 2010.000048 | J109: =+IF(I109<=Activos!$C$8,"1",+IF(I109<=Activos!$C$11,"2","3")) -> 1 | K109: 0 | L109: 58.85734636 | M109: 0 | N109: 0 | O109: =PV(wacc,H109-(Activos!$C$8-E109),M109) -> 0 | P109: 0 | Q109: 0 | R109: =IF(J109="3",ABS(I109-Activos!$C$11),0) -> 0 | S109: 0 | T109: 0 | U109: 0 | V109: 0 | W109: 0 | X109: 0 | Y109: 0 | Z109: 0 | AA109: 0
B110: TANQUE DE METAL - CISTERNA | C110: -1201.13 | D110: =+C110/CostosyGastos!$D$7 -> -436.7745455 | E110: 1999 | F110: 2000-12-31 | G110: 12 | H110: 10.000048 | I110: 2010.000048 | J110: =+IF(I110<=Activos!$C$8,"1",+IF(I110<=Activos!$C$11,"2","3")) -> 1 | K110: 0 | L110: 58.85734636 | M110: 0 | N110: 0 | O110: =PV(wacc,H110-(Activos!$C$8-E110),M110) -> 0 | P110: 0 | Q110: 0 | R110: =IF(J110="3",ABS(I110-Activos!$C$11),0) -> 0 | S110: 0 | T110: 0 | U110: 0 | V110: 0 | W110: 0 | X110: 0 | Y110: 0 | Z110: 0 | AA110: 0
B111: TANQUE DE METAL - CISTERNA | C111: -1201.13 | D111: =+C111/CostosyGastos!$D$7 -> -436.7745455 | E111: 1999 | F111: 2000-12-31 | G111: 12 | H111: 10.000048 | I111: 2010.000048 | J111: =+IF(I111<=Activos!$C$8,"1",+IF(I111<=Activos!$C$11,"2","3")) -> 1 | K111: 0 | L111: 58.85734636 | M111: 0 | N111: 0 | O111: =PV(wacc,H111-(Activos!$C$8-E111),M111) -> 0 | P111: 0 | Q111: 0 | R111: =IF(J111="3",ABS(I111-Activos!$C$11),0) -> 0 | S111: 0 | T111: 0 | U111: 0 | V111: 0 | W111: 0 | X111: 0 | Y111: 0 | Z111: 0 | AA111: 0
B112: TANQUE PARA ALMACENAMIENTO DE COMBUSTIBLE | C112: -1201.13 | D112: =+C112/CostosyGastos!$D$7 -> -436.7745455 | E112: 1999 | F112: 2000-12-31 | G112: 12 | H112: 10.000048 | I112: 2010.000048 | J112: =+IF(I112<=Activos!$C$8,"1",+IF(I112<=Activos!$C$11,"2","3")) -> 1 | K112: 0 | L112: 58.85734636 | M112: 0 | N112: 0 | O112: =PV(wacc,H112-(Activos!$C$8-E112),M112) -> 0 | P112: 0 | Q112: 0 | R112: =IF(J112="3",ABS(I112-Activos!$C$11),0) -> 0 | S112: 0 | T112: 0 | U112: 0 | V112: 0 | W112: 0 | X112: 0 | Y112: 0 | Z112: 0 | AA112: 0
B113: CARGADOR DE BATERIA EN GENERAL | C113: -1117.05 | D113: =+C113/CostosyGastos!$D$7 -> -406.2 | E113: 1999 | F113: 2000-12-31 | G113: 12 | H113: 10.000048 | I113: 2010.000048 | J113: =+IF(I113<=Activos!$C$8,"1",+IF(I113<=Activos!$C$11,"2","3")) -> 1 | K113: 0 | L113: 54.73728801 | M113: 0 | N113: 0 | O113: =PV(wacc,H113-(Activos!$C$8-E113),M113) -> 0 | P113: 0 | Q113: 0 | R113: =IF(J113="3",ABS(I113-Activos!$C$11),0) -> 0 | S113: 0 | T113: 0 | U113: 0 | V113: 0 | W113: 0 | X113: 0 | Y113: 0 | Z113: 0 | AA113: 0
B114: CARGADOR DE BATERIA EN GENERAL | C114: -1117.05 | D114: =+C114/CostosyGastos!$D$7 -> -406.2 | E114: 1999 | F114: 2000-12-31 | G114: 12 | H114: 10.000048 | I114: 2010.000048 | J114: =+IF(I114<=Activos!$C$8,"1",+IF(I114<=Activos!$C$11,"2","3")) -> 1 | K114: 0 | L114: 54.73728801 | M114: 0 | N114: 0 | O114: =PV(wacc,H114-(Activos!$C$8-E114),M114) -> 0 | P114: 0 | Q114: 0 | R114: =IF(J114="3",ABS(I114-Activos!$C$11),0) -> 0 | S114: 0 | T114: 0 | U114: 0 | V114: 0 | W114: 0 | X114: 0 | Y114: 0 | Z114: 0 | AA114: 0
B115: TORRE METALICA | C115: -1111.05 | D115: =+C115/CostosyGastos!$D$7 -> -404.0181818 | E115: 1999 | F115: 2000-12-31 | G115: 12 | H115: 10.000048 | I115: 2010.000048 | J115: =+IF(I115<=Activos!$C$8,"1",+IF(I115<=Activos!$C$11,"2","3")) -> 1 | K115: 0 | L115: 54.44327814 | M115: 0 | N115: 0 | O115: =PV(wacc,H115-(Activos!$C$8-E115),M115) -> 0 | P115: 0 | Q115: 0 | R115: =IF(J115="3",ABS(I115-Activos!$C$11),0) -> 0 | S115: 0 | T115: 0 | U115: 0 | V115: 0 | W115: 0 | X115: 0 | Y115: 0 | Z115: 0 | AA115: 0
B116: BINOCULAR (OTROS) | C116: -1103.55 | D116: =+C116/CostosyGastos!$D$7 -> -401.2909091 | E116: 1999 | F116: 2000-12-31 | G116: 12 | H116: 10.000048 | I116: 2010.000048 | J116: =+IF(I116<=Activos!$C$8,"1",+IF(I116<=Activos!$C$11,"2","3")) -> 1 | K116: 0 | L116: 54.0757658 | M116: 0 | N116: 0 | O116: =PV(wacc,H116-(Activos!$C$8-E116),M116) -> 0 | P116: 0 | Q116: 0 | R116: =IF(J116="3",ABS(I116-Activos!$C$11),0) -> 0 | S116: 0 | T116: 0 | U116: 0 | V116: 0 | W116: 0 | X116: 0 | Y116: 0 | Z116: 0 | AA116: 0
B117: BINOCULAR (OTROS) | C117: -1103.55 | D117: =+C117/CostosyGastos!$D$7 -> -401.2909091 | E117: 1999 | F117: 2000-12-31 | G117: 12 | H117: 10.000048 | I117: 2010.000048 | J117: =+IF(I117<=Activos!$C$8,"1",+IF(I117<=Activos!$C$11,"2","3")) -> 1 | K117: 0 | L117: 54.0757658 | M117: 0 | N117: 0 | O117: =PV(wacc,H117-(Activos!$C$8-E117),M117) -> 0 | P117: 0 | Q117: 0 | R117: =IF(J117="3",ABS(I117-Activos!$C$11),0) -> 0 | S117: 0 | T117: 0 | U117: 0 | V117: 0 | W117: 0 | X117: 0 | Y117: 0 | Z117: 0 | AA117: 0
B118: MOSTRADOR METALICO | C118: -1103.55 | D118: =+C118/CostosyGastos!$D$7 -> -401.2909091 | E118: 1999 | F118: 2000-12-31 | G118: 12 | H118: 10.000048 | I118: 2010.000048 | J118: =+IF(I118<=Activos!$C$8,"1",+IF(I118<=Activos!$C$11,"2","3")) -> 1 | K118: 0 | L118: 54.0757658 | M118: 0 | N118: 0 | O118: =PV(wacc,H118-(Activos!$C$8-E118),M118) -> 0 | P118: 0 | Q118: 0 | R118: =IF(J118="3",ABS(I118-Activos!$C$11),0) -> 0 | S118: 0 | T118: 0 | U118: 0 | V118: 0 | W118: 0 | X118: 0 | Y118: 0 | Z118: 0 | AA118: 0
B119: MOSTRADOR METALICO | C119: -1103.55 | D119: =+C119/CostosyGastos!$D$7 -> -401.2909091 | E119: 1999 | F119: 2000-12-31 | G119: 12 | H119: 10.000048 | I119: 2010.000048 | J119: =+IF(I119<=Activos!$C$8,"1",+IF(I119<=Activos!$C$11,"2","3")) -> 1 | K119: 0 | L119: 54.0757658 | M119: 0 | N119: 0 | O119: =PV(wacc,H119-(Activos!$C$8-E119),M119) -> 0 | P119: 0 | Q119: 0 | R119: =IF(J119="3",ABS(I119-Activos!$C$11),0) -> 0 | S119: 0 | T119: 0 | U119: 0 | V119: 0 | W119: 0 | X119: 0 | Y119: 0 | Z119: 0 | AA119: 0
B120: CARGADOR DE BATERIA EN GENERAL | C120: -1103.55 | D120: =+C120/CostosyGastos!$D$7 -> -401.2909091 | E120: 1999 | F120: 2000-12-31 | G120: 12 | H120: 10.000048 | I120: 2010.000048 | J120: =+IF(I120<=Activos!$C$8,"1",+IF(I120<=Activos!$C$11,"2","3")) -> 1 | K120: 0 | L120: 54.0757658 | M120: 0 | N120: 0 | O120: =PV(wacc,H120-(Activos!$C$8-E120),M120) -> 0 | P120: 0 | Q120: 0 | R120: =IF(J120="3",ABS(I120-Activos!$C$11),0) -> 0 | S120: 0 | T120: 0 | U120: 0 | V120: 0 | W120: 0 | X120: 0 | Y120: 0 | Z120: 0 | AA120: 0
B121: EQUIPO PARA AIRE ACONDICIONADO TIPO DOMESTICO | C121: -1103.55 | D121: =+C121/CostosyGastos!$D$7 -> -401.2909091 | E121: 1999 | F121: 2000-12-31 | G121: 12 | H121: 10 | I121: 2010 | J121: =+IF(I121<=Activos!$C$8,"1",+IF(I121<=Activos!$C$11,"2","3")) -> 1 | K121: 0 | L121: 54.0757658 | M121: 0 | N121: 0 | O121: =PV(wacc,H121-(Activos!$C$8-E121),M121) -> 0 | P121: 0 | Q121: 0 | R121: =IF(J121="3",ABS(I121-Activos!$C$11),0) -> 0 | S121: 0 | T121: 0 | U121: 0 | V121: 0 | W121: 0 | X121: 0 | Y121: 0 | Z121: 0 | AA121: 0
B122: EQUIPO PARA AIRE ACONDICIONADO TIPO DOMESTICO | C122: -1089.43 | D122: =+C122/CostosyGastos!$D$7 -> -396.1563636 | E122: 1999 | F122: 2000-12-31 | G122: 12 | H122: 10 | I122: 2010 | J122: =+IF(I122<=Activos!$C$8,"1",+IF(I122<=Activos!$C$11,"2","3")) -> 1 | K122: 0 | L122: 53.38386256 | M122: 0 | N122: 0 | O122: =PV(wacc,H122-(Activos!$C$8-E122),M122) -> 0 | P122: 0 | Q122: 0 | R122: =IF(J122="3",ABS(I122-Activos!$C$11),0) -> 0 | S122: 0 | T122: 0 | U122: 0 | V122: 0 | W122: 0 | X122: 0 | Y122: 0 | Z122: 0 | AA122: 0
B123: MAQUINA DE SOLDAR | C123: -1081.02 | D123: =+C123/CostosyGastos!$D$7 -> -393.0981818 | E123: 1999 | F123: 2000-12-31 | G123: 12 | H123: 10.000048 | I123: 2010.000048 | J123: =+IF(I123<=Activos!$C$8,"1",+IF(I123<=Activos!$C$11,"2","3")) -> 1 | K123: 0 | L123: 52.97175873 | M123: 0 | N123: 0 | O123: =PV(wacc,H123-(Activos!$C$8-E123),M123) -> 0 | P123: 0 | Q123: 0 | R123: =IF(J123="3",ABS(I123-Activos!$C$11),0) -> 0 | S123: 0 | T123: 0 | U123: 0 | V123: 0 | W123: 0 | X123: 0 | Y123: 0 | Z123: 0 | AA123: 0
B124: MAQUINA DE SOLDAR | C124: -1081.02 | D124: =+C124/CostosyGastos!$D$7 -> -393.0981818 | E124: 1999 | F124: 2000-12-31 | G124: 12 | H124: 10.000048 | I124: 2010.000048 | J124: =+IF(I124<=Activos!$C$8,"1",+IF(I124<=Activos!$C$11,"2","3")) -> 1 | K124: 0 | L124: 52.97175873 | M124: 0 | N124: 0 | O124: =PV(wacc,H124-(Activos!$C$8-E124),M124) -> 0 | P124: 0 | Q124: 0 | R124: =IF(J124="3",ABS(I124-Activos!$C$11),0) -> 0 | S124: 0 | T124: 0 | U124: 0 | V124: 0 | W124: 0 | X124: 0 | Y124: 0 | Z124: 0 | AA124: 0
B125: MAQUINA DE SOLDAR | C125: -1081.02 | D125: =+C125/CostosyGastos!$D$7 -> -393.0981818 | E125: 1999 | F125: 2000-12-31 | G125: 12 | H125: 10.000048 | I125: 2010.000048 | J125: =+IF(I125<=Activos!$C$8,"1",+IF(I125<=Activos!$C$11,"2","3")) -> 1 | K125: 0 | L125: 52.97175873 | M125: 0 | N125: 0 | O125: =PV(wacc,H125-(Activos!$C$8-E125),M125) -> 0 | P125: 0 | Q125: 0 | R125: =IF(J125="3",ABS(I125-Activos!$C$11),0) -> 0 | S125: 0 | T125: 0 | U125: 0 | V125: 0 | W125: 0 | X125: 0 | Y125: 0 | Z125: 0 | AA125: 0
B126: MAQUINA DE SOLDAR | C126: -1081.02 | D126: =+C126/CostosyGastos!$D$7 -> -393.0981818 | E126: 1999 | F126: 2000-12-31 | G126: 12 | H126: 10.000048 | I126: 2010.000048 | J126: =+IF(I126<=Activos!$C$8,"1",+IF(I126<=Activos!$C$11,"2","3")) -> 1 | K126: 0 | L126: 52.97175873 | M126: 0 | N126: 0 | O126: =PV(wacc,H126-(Activos!$C$8-E126),M126) -> 0 | P126: 0 | Q126: 0 | R126: =IF(J126="3",ABS(I126-Activos!$C$11),0) -> 0 | S126: 0 | T126: 0 | U126: 0 | V126: 0 | W126: 0 | X126: 0 | Y126: 0 | Z126: 0 | AA126: 0
B127: MAQUINA DE SOLDAR | C127: -1081.02 | D127: =+C127/CostosyGastos!$D$7 -> -393.0981818 | E127: 1999 | F127: 2000-12-31 | G127: 12 | H127: 10.000048 | I127: 2010.000048 | J127: =+IF(I127<=Activos!$C$8,"1",+IF(I127<=Activos!$C$11,"2","3")) -> 1 | K127: 0 | L127: 52.97175873 | M127: 0 | N127: 0 | O127: =PV(wacc,H127-(Activos!$C$8-E127),M127) -> 0 | P127: 0 | Q127: 0 | R127: =IF(J127="3",ABS(I127-Activos!$C$11),0) -> 0 | S127: 0 | T127: 0 | U127: 0 | V127: 0 | W127: 0 | X127: 0 | Y127: 0 | Z127: 0 | AA127: 0
B128: MAQUINA DE SOLDAR | C128: -1081.02 | D128: =+C128/CostosyGastos!$D$7 -> -393.0981818 | E128: 1999 | F128: 2000-12-31 | G128: 12 | H128: 10.000048 | I128: 2010.000048 | J128: =+IF(I128<=Activos!$C$8,"1",+IF(I128<=Activos!$C$11,"2","3")) -> 1 | K128: 0 | L128: 52.97175873 | M128: 0 | N128: 0 | O128: =PV(wacc,H128-(Activos!$C$8-E128),M128) -> 0 | P128: 0 | Q128: 0 | R128: =IF(J128="3",ABS(I128-Activos!$C$11),0) -> 0 | S128: 0 | T128: 0 | U128: 0 | V128: 0 | W128: 0 | X128: 0 | Y128: 0 | Z128: 0 | AA128: 0
B129: TABLERO DE TRANSFERENCIA AUTOMATICA | C129: -1073.51 | D129: =+C129/CostosyGastos!$D$7 -> -390.3672727 | E129: 1999 | F129: 2000-12-31 | G129: 12 | H129: 10.000048 | I129: 2010.000048 | J129: =+IF(I129<=Activos!$C$8,"1",+IF(I129<=Activos!$C$11,"2","3")) -> 1 | K129: 0 | L129: 52.60375637 | M129: 0 | N129: 0 | O129: =PV(wacc,H129-(Activos!$C$8-E129),M129) -> 0 | P129: 0 | Q129: 0 | R129: =IF(J129="3",ABS(I129-Activos!$C$11),0) -> 0 | S129: 0 | T129: 0 | U129: 0 | V129: 0 | W129: 0 | X129: 0 | Y129: 0 | Z129: 0 | AA129: 0
B130: TABLERO DE TRANSFERENCIA AUTOMATICA | C130: -1073.51 | D130: =+C130/CostosyGastos!$D$7 -> -390.3672727 | E130: 1999 | F130: 2000-12-31 | G130: 12 | H130: 10.000048 | I130: 2010.000048 | J130: =+IF(I130<=Activos!$C$8,"1",+IF(I130<=Activos!$C$11,"2","3")) -> 1 | K130: 0 | L130: 52.60375637 | M130: 0 | N130: 0 | O130: =PV(wacc,H130-(Activos!$C$8-E130),M130) -> 0 | P130: 0 | Q130: 0 | R130: =IF(J130="3",ABS(I130-Activos!$C$11),0) -> 0 | S130: 0 | T130: 0 | U130: =+IF($J130="1",0,IF(U$13<$I130,$K130,0)) -> 0 | V130: 0 | W130: 0 | X130: 0 | Y130: 0 | Z130: 0 | AA130: 0
B131: TABLERO DE TRANSFERENCIA AUTOMATICA | C131: -1073.51 | D131: =+C131/CostosyGastos!$D$7 -> -390.3672727 | E131: 1999 | F131: 2000-12-31 | G131: 12 | H131: 10.000048 | I131: 2010.000048 | J131: =+IF(I131<=Activos!$C$8,"1",+IF(I131<=Activos!$C$11,"2","3")) -> 1 | K131: 0 | L131: 52.60375637 | M131: 0 | N131: 0 | O131: =PV(wacc,H131-(Activos!$C$8-E131),M131) -> 0 | P131: 0 | Q131: 0 | R131: =IF(J131="3",ABS(I131-Activos!$C$11),0) -> 0 | S131: 0 | T131: 0 | U131: 0 | V131: 0 | W131: 0 | X131: 0 | Y131: 0 | Z131: 0 | AA131: 0
B132: TABLERO DE TRANSFERENCIA AUTOMATICA | C132: -1073.51 | D132: =+C132/CostosyGastos!$D$7 -> -390.3672727 | E132: 1999 | F132: 2000-12-31 | G132: 12 | H132: 10.000048 | I132: 2010.000048 | J132: =+IF(I132<=Activos!$C$8,"1",+IF(I132<=Activos!$C$11,"2","3")) -> 1 | K132: 0 | L132: 52.60375637 | M132: 0 | N132: 0 | O132: =PV(wacc,H132-(Activos!$C$8-E132),M132) -> 0 | P132: 0 | Q132: 0 | R132: =IF(J132="3",ABS(I132-Activos!$C$11),0) -> 0 | S132: 0 | T132: 0 | U132: 0 | V132: 0 | W132: 0 | X132: 0 | Y132: 0 | Z132: 0 | AA132: 0
B133: TABLERO DE TRANSFERENCIA AUTOMATICA | C133: -1073.51 | D133: =+C133/CostosyGastos!$D$7 -> -390.3672727 | E133: 1999 | F133: 2000-12-31 | G133: 12 | H133: 10.000048 | I133: 2010.000048 | J133: =+IF(I133<=Activos!$C$8,"1",+IF(I133<=Activos!$C$11,"2","3")) -> 1 | K133: 0 | L133: 52.60375637 | M133: 0 | N133: 0 | O133: =PV(wacc,H133-(Activos!$C$8-E133),M133) -> 0 | P133: 0 | Q133: 0 | R133: =IF(J133="3",ABS(I133-Activos!$C$11),0) -> 0 | S133: 0 | T133: 0 | U133: 0 | V133: 0 | W133: 0 | X133: 0 | Y133: 0 | Z133: 0 | AA133: 0
B134: TABLERO DE TRANSFERENCIA AUTOMATICA | C134: -1073.51 | D134: =+C134/CostosyGastos!$D$7 -> -390.3672727 | E134: 1999 | F134: 2000-12-31 | G134: 12 | H134: 10.000048 | I134: 2010.000048 | J134: =+IF(I134<=Activos!$C$8,"1",+IF(I134<=Activos!$C$11,"2","3")) -> 1 | K134: 0 | L134: 52.60375637 | M134: 0 | N134: 0 | O134: =PV(wacc,H134-(Activos!$C$8-E134),M134) -> 0 | P134: 0 | Q134: 0 | R134: =IF(J134="3",ABS(I134-Activos!$C$11),0) -> 0 | S134: 0 | T134: 0 | U134: 0 | V134: 0 | W134: 0 | X134: 0 | Y134: 0 | Z134: 0 | AA134: 0
B135: TABLERO ELECTRICO DE CONTROL | C135: -1073.51 | D135: =+C135/CostosyGastos!$D$7 -> -390.3672727 | E135: 1999 | F135: 2000-12-31 | G135: 12 | H135: 10.000048 | I135: 2010.000048 | J135: =+IF(I135<=Activos!$C$8,"1",+IF(I135<=Activos!$C$11,"2","3")) -> 1 | K135: 0 | L135: 52.60375637 | M135: 0 | N135: 0 | O135: =PV(wacc,H135-(Activos!$C$8-E135),M135) -> 0 | P135: 0 | Q135: 0 | R135: =IF(J135="3",ABS(I135-Activos!$C$11),0) -> 0 | S135: 0 | T135: 0 | U135: 0 | V135: 0 | W135: 0 | X135: 0 | Y135: 0 | Z135: 0 | AA135: 0
B136: ANTENA (OTRAS) (MAYOR A 1/8 UIT) | C136: -900.85 | D136: =+C136/CostosyGastos!$D$7 -> -327.5818182 | E136: 1999 | F136: 2000-12-31 | G136: 12 | H136: 10.000048 | I136: 2010.000048 | J136: =+IF(I136<=Activos!$C$8,"1",+IF(I136<=Activos!$C$11,"2","3")) -> 1 | K136: 0 | L136: 44.14313227 | M136: 0 | N136: 0 | O136: =PV(wacc,H136-(Activos!$C$8-E136),M136) -> 0 | P136: 0 | Q136: 0 | R136: =IF(J136="3",ABS(I136-Activos!$C$11),0) -> 0 | S136: 0 | T136: 0 | U136: 0 | V136: 0 | W136: 0 | X136: 0 | Y136: 0 | Z136: 0 | AA136: 0
B137: ANTENA (OTRAS) (MAYOR A 1/8 UIT) | C137: -900.85 | D137: =+C137/CostosyGastos!$D$7 -> -327.5818182 | E137: 1999 | F137: 2000-12-31 | G137: 12 | H137: 10.000048 | I137: 2010.000048 | J137: =+IF(I137<=Activos!$C$8,"1",+IF(I137<=Activos!$C$11,"2","3")) -> 1 | K137: 0 | L137: 44.14313227 | M137: 0 | N137: 0 | O137: =PV(wacc,H137-(Activos!$C$8-E137),M137) -> 0 | P137: 0 | Q137: 0 | R137: =IF(J137="3",ABS(I137-Activos!$C$11),0) -> 0 | S137: 0 | T137: 0 | U137: 0 | V137: 0 | W137: 0 | X137: 0 | Y137: 0 | Z137: 0 | AA137: 0
B138: CONTROL REMOTO EN GENERAL | C138: -900.85 | D138: =+C138/CostosyGastos!$D$7 -> -327.5818182 | E138: 1999 | F138: 2000-12-31 | G138: 12 | H138: 10.000048 | I138: 2010.000048 | J138: =+IF(I138<=Activos!$C$8,"1",+IF(I138<=Activos!$C$11,"2","3")) -> 1 | K138: 0 | L138: 44.14313227 | M138: 0 | N138: 0 | O138: =PV(wacc,H138-(Activos!$C$8-E138),M138) -> 0 | P138: 0 | Q138: 0 | R138: =IF(J138="3",ABS(I138-Activos!$C$11),0) -> 0 | S138: 0 | T138: 0 | U138: 0 | V138: 0 | W138: 0 | X138: 0 | Y138: 0 | Z138: 0 | AA138: 0
B139: CONTROL REMOTO EN GENERAL | C139: -900.85 | D139: =+C139/CostosyGastos!$D$7 -> -327.5818182 | E139: 1999 | F139: 2000-12-31 | G139: 12 | H139: 10.000048 | I139: 2010.000048 | J139: =+IF(I139<=Activos!$C$8,"1",+IF(I139<=Activos!$C$11,"2","3")) -> 1 | K139: 0 | L139: 44.14313227 | M139: 0 | N139: 0 | O139: =PV(wacc,H139-(Activos!$C$8-E139),M139) -> 0 | P139: 0 | Q139: 0 | R139: =IF(J139="3",ABS(I139-Activos!$C$11),0) -> 0 | S139: 0 | T139: 0 | U139: 0 | V139: 0 | W139: 0 | X139: 0 | Y139: 0 | Z139: 0 | AA139: 0
B140: EQUIPO DE ILUMINACION DE EMERGENCIA | C140: -900.85 | D140: =+C140/CostosyGastos!$D$7 -> -327.5818182 | E140: 1999 | F140: 2000-12-31 | G140: 12 | H140: 10.000048 | I140: 2010.000048 | J140: =+IF(I140<=Activos!$C$8,"1",+IF(I140<=Activos!$C$11,"2","3")) -> 1 | K140: 0 | L140: 44.14313227 | M140: 0 | N140: 0 | O140: =PV(wacc,H140-(Activos!$C$8-E140),M140) -> 0 | P140: 0 | Q140: 0 | R140: =IF(J140="3",ABS(I140-Activos!$C$11),0) -> 0 | S140: 0 | T140: 0 | U140: 0 | V140: 0 | W140: 0 | X140: 0 | Y140: 0 | Z140: 0 | AA140: 0
B141: EQUIPO PARA AIRE ACONDICIONADO TIPO DOMESTICO | C141: -900.85 | D141: =+C141/CostosyGastos!$D$7 -> -327.5818182 | E141: 1999 | F141: 2000-12-31 | G141: 12 | H141: 10 | I141: 2010 | J141: =+IF(I141<=Activos!$C$8,"1",+IF(I141<=Activos!$C$11,"2","3")) -> 1 | K141: 0 | L141: 44.14313227 | M141: 0 | N141: 0 | O141: =PV(wacc,H141-(Activos!$C$8-E141),M141) -> 0 | P141: 0 | Q141: 0 | R141: =IF(J141="3",ABS(I141-Activos!$C$11),0) -> 0 | S141: 0 | T141: 0 | U141: 0 | V141: 0 | W141: 0 | X141: 0 | Y141: 0 | Z141: 0 | AA141: 0
B142: ESCALERA METALICA | C142: -900.85 | D142: =+C142/CostosyGastos!$D$7 -> -327.5818182 | E142: 1999 | F142: 2000-12-31 | G142: 12 | H142: 10.000048 | I142: 2010.000048 | J142: =+IF(I142<=Activos!$C$8,"1",+IF(I142<=Activos!$C$11,"2","3")) -> 1 | K142: 0 | L142: 44.14313227 | M142: 0 | N142: 0 | O142: =PV(wacc,H142-(Activos!$C$8-E142),M142) -> 0 | P142: 0 | Q142: 0 | R142: =IF(J142="3",ABS(I142-Activos!$C$11),0) -> 0 | S142: 0 | T142: 0 | U142: 0 | V142: 0 | W142: 0 | X142: 0 | Y142: 0 | Z142: 0 | AA142: 0
B143: ESCALERA METALICA | C143: -900.85 | D143: =+C143/CostosyGastos!$D$7 -> -327.5818182 | E143: =+YEAR(F143)-1 -> 1999 | F143: 2000-12-31 | G143: =C$8-YEAR(F143) -> 12 | H143: 10.000048 | I143: 2010.000048 | J143: =+IF(I143<=Activos!$C$8,"1",+IF(I143<=Activos!$C$11,"2","3")) -> 1 | K143: =IF(J143="1",0,D143/H143) -> 0 | L143: =IF(J143="1",PMT(wacc,G143,D143),PMT(wacc,H143,D143)) -> 44.14313227 | M143: 0 | N143: 0 | O143: =PV(wacc,H143-(Activos!$C$8-E143),M143) -> 0 | P143: =+IF($J143="3",L143,0) -> 0 | Q143: =+IF($J143="3",K143,0) -> 0 | R143: =IF(J143="3",ABS(I143-Activos!$C$11),0) -> 0 | S143: =-PV(wacc,R143,P143) -> 0 | T143: =PV(wacc,H143-($C$8-E143),P143) -> 0 | U143: 0 | V143: 0 | W143: 0 | X143: 0 | Y143: 0 | Z143: 0 | AA143: 0
B144: ESCALERA METALICA | C144: -900.85 | D144: =+C144/CostosyGastos!$D$7 -> -327.5818182 | E144: 1999 | F144: 2000-12-31 | G144: 12 | H144: 10.000048 | I144: =+(YEAR(F144)+H144) -> 2010.000048 | J144: =+IF(I144<=Activos!$C$8,"1",+IF(I144<=Activos!$C$11,"2","3")) -> 1 | K144: 0 | L144: 44.14313227 | M144: =+IF(J144="2",L144,0) -> 0 | N144: =+IF(J144="2",K144,0) -> 0 | O144: =PV(wacc,H144-(Activos!$C$8-E144),M144) -> 0 | P144: 0 | Q144: 0 | R144: =IF(J144="3",ABS(I144-Activos!$C$11),0) -> 0 | S144: 0 | T144: 0 | U144: 0 | V144: 0 | W144: 0 | X144: 0 | Y144: 0 | Z144: 0 | AA144: 0
B145: INTERCAMBIADOR AUTOMATICO - AUTOMATIC CHANGER OVER | C145: -900.85 | D145: =+C145/CostosyGastos!$D$7 -> -327.5818182 | E145: 1999 | F145: 2000-12-31 | G145: 12 | H145: 10.000048 | I145: 2010.000048 | J145: =+IF(I145<=Activos!$C$8,"1",+IF(I145<=Activos!$C$11,"2","3")) -> 1 | K145: 0 | L145: 44.14313227 | M145: 0 | N145: 0 | O145: =PV(wacc,H145-(Activos!$C$8-E145),M145) -> 0 | P145: 0 | Q145: 0 | R145: =IF(J145="3",ABS(I145-Activos!$C$11),0) -> 0 | S145: 0 | T145: 0 | U145: 0 | V145: 0 | W145: 0 | X145: 0 | Y145: 0 | Z145: 0 | AA145: 0
B146: REGULADOR DE VOLTAJE | C146: -900.85 | D146: =+C146/CostosyGastos!$D$7 -> -327.5818182 | E146: 1999 | F146: 2000-12-31 | G146: 12 | H146: 10.000048 | I146: 2010.000048 | J146: =+IF(I146<=Activos!$C$8,"1",+IF(I146<=Activos!$C$11,"2","3")) -> 1 | K146: 0 | L146: 44.14313227 | M146: 0 | N146: 0 | O146: =PV(wacc,H146-(Activos!$C$8-E146),M146) -> 0 | P146: 0 | Q146: 0 | R146: =IF(J146="3",ABS(I146-Activos!$C$11),0) -> 0 | S146: 0 | T146: 0 | U146: 0 | V146: 0 | W146: 0 | X146: 0 | Y146: 0 | Z146: 0 | AA146: 0
B147: TANQUE HIDRONEUMATICO | C147: -900.85 | D147: =+C147/CostosyGastos!$D$7 -> -327.5818182 | E147: 1999 | F147: 2000-12-31 | G147: 12 | H147: 10.90909527 | I147: 2010.909095 | J147: =+IF(I147<=Activos!$C$8,"1",+IF(I147<=Activos!$C$11,"2","3")) -> 1 | K147: 0 | L147: 44.14313227 | M147: 0 | N147: 0 | O147: =PV(wacc,H147-(Activos!$C$8-E147),M147) -> 0 | P147: 0 | Q147: 0 | R147: =IF(J147="3",ABS(I147-Activos!$C$11),0) -> 0 | S147: 0 | T147: 0 | U147: 0 | V147: 0 | W147: 0 | X147: 0 | Y147: 0 | Z147: 0 | AA147: 0
B148: EQUIPO DE SONIDO | C148: -900.85 | D148: =+C148/CostosyGastos!$D$7 -> -327.5818182 | E148: 1999 | F148: 2000-12-31 | G148: 12 | H148: 10.000048 | I148: 2010.000048 | J148: =+IF(I148<=Activos!$C$8,"1",+IF(I148<=Activos!$C$11,"2","3")) -> 1 | K148: 0 | L148: 44.14313227 | M148: 0 | N148: 0 | O148: =PV(wacc,H148-(Activos!$C$8-E148),M148) -> 0 | P148: 0 | Q148: 0 | R148: =IF(J148="3",ABS(I148-Activos!$C$11),0) -> 0 | S148: 0 | T148: 0 | U148: 0 | V148: 0 | W148: 0 | X148: 0 | Y148: 0 | Z148: 0 | AA148: 0
B149: EQUIPO PARA AIRE ACONDICIONADO TIPO DOMESTICO | C149: -900.85 | D149: =+C149/CostosyGastos!$D$7 -> -327.5818182 | E149: 1999 | F149: 2000-12-31 | G149: 12 | H149: 10 | I149: 2010 | J149: =+IF(I149<=Activos!$C$8,"1",+IF(I149<=Activos!$C$11,"2","3")) -> 1 | K149: 0 | L149: 44.14313227 | M149: 0 | N149: 0 | O149: =PV(wacc,H149-(Activos!$C$8-E149),M149) -> 0 | P149: 0 | Q149: 0 | R149: =IF(J149="3",ABS(I149-Activos!$C$11),0) -> 0 | S149: 0 | T149: 0 | U149: 0 | V149: 0 | W149: 0 | X149: 0 | Y149: 0 | Z149: 0 | AA149: 0
B150: EQUIPO PARA AIRE ACONDICIONADO TIPO DOMESTICO | C150: -900.85 | D150: =+C150/CostosyGastos!$D$7 -> -327.5818182 | E150: 1999 | F150: 2000-12-31 | G150: 12 | H150: 10 | I150: 2010 | J150: =+IF(I150<=Activos!$C$8,"1",+IF(I150<=Activos!$C$11,"2","3")) -> 1 | K150: 0 | L150: 44.14313227 | M150: 0 | N150: 0 | O150: =PV(wacc,H150-(Activos!$C$8-E150),M150) -> 0 | P150: 0 | Q150: 0 | R150: =IF(J150="3",ABS(I150-Activos!$C$11),0) -> 0 | S150: 0 | T150: 0 | U150: 0 | V150: 0 | W150: =+IF($J150="1",0,IF(W$13<$I150,$K150,0)) -> 0 | X150: 0 | Y150: 0 | Z150: 0 | AA150: 0
B151: EQUIPO PARA AIRE ACONDICIONADO TIPO DOMESTICO | C151: -900.85 | D151: =+C151/CostosyGastos!$D$7 -> -327.5818182 | E151: 1999 | F151: 2000-12-31 | G151: 12 | H151: 10 | I151: 2010 | J151: =+IF(I151<=Activos!$C$8,"1",+IF(I151<=Activos!$C$11,"2","3")) -> 1 | K151: 0 | L151: 44.14313227 | M151: 0 | N151: 0 | O151: =PV(wacc,H151-(Activos!$C$8-E151),M151) -> 0 | P151: 0 | Q151: 0 | R151: =IF(J151="3",ABS(I151-Activos!$C$11),0) -> 0 | S151: 0 | T151: 0 | U151: 0 | V151: 0 | W151: 0 | X151: 0 | Y151: 0 | Z151: 0 | AA151: 0
B152: EQUIPO PARA AIRE ACONDICIONADO TIPO DOMESTICO | C152: -900.85 | D152: =+C152/CostosyGastos!$D$7 -> -327.5818182 | E152: 1999 | F152: 2000-12-31 | G152: 12 | H152: 10 | I152: 2010 | J152: =+IF(I152<=Activos!$C$8,"1",+IF(I152<=Activos!$C$11,"2","3")) -> 1 | K152: 0 | L152: 44.14313227 | M152: 0 | N152: 0 | O152: =PV(wacc,H152-(Activos!$C$8-E152),M152) -> 0 | P152: 0 | Q152: 0 | R152: =IF(J152="3",ABS(I152-Activos!$C$11),0) -> 0 | S152: 0 | T152: 0 | U152: 0 | V152: 0 | W152: 0 | X152: 0 | Y152: 0 | Z152: 0 | AA152: 0
B153: EQUIPO PARA AIRE ACONDICIONADO TIPO DOMESTICO | C153: -900.85 | D153: =+C153/CostosyGastos!$D$7 -> -327.5818182 | E153: 1999 | F153: 2000-12-31 | G153: 12 | H153: 10 | I153: 2010 | J153: =+IF(I153<=Activos!$C$8,"1",+IF(I153<=Activos!$C$11,"2","3")) -> 1 | K153: 0 | L153: 44.14313227 | M153: 0 | N153: 0 | O153: =PV(wacc,H153-(Activos!$C$8-E153),M153) -> 0 | P153: 0 | Q153: 0 | R153: =IF(J153="3",ABS(I153-Activos!$C$11),0) -> 0 | S153: 0 | T153: 0 | U153: 0 | V153: 0 | W153: 0 | X153: 0 | Y153: 0 | Z153: 0 | AA153: 0
B154: EQUIPO PARA AIRE ACONDICIONADO TIPO DOMESTICO | C154: -900.85 | D154: =+C154/CostosyGastos!$D$7 -> -327.5818182 | E154: 1999 | F154: 2000-12-31 | G154: 12 | H154: 10 | I154: 2010 | J154: =+IF(I154<=Activos!$C$8,"1",+IF(I154<=Activos!$C$11,"2","3")) -> 1 | K154: 0 | L154: 44.14313227 | M154: 0 | N154: 0 | O154: =PV(wacc,H154-(Activos!$C$8-E154),M154) -> 0 | P154: 0 | Q154: 0 | R154: =IF(J154="3",ABS(I154-Activos!$C$11),0) -> 0 | S154: 0 | T154: 0 | U154: 0 | V154: 0 | W154: 0 | X154: 0 | Y154: 0 | Z154: 0 | AA154: 0
B155: RADIO TRANSMISOR RECEPTOR | C155: -814.52 | D155: =+C155/CostosyGastos!$D$7 -> -296.1890909 | E155: 1999 | F155: 2000-12-31 | G155: 12 | H155: 10.000048 | I155: 2010.000048 | J155: =+IF(I155<=Activos!$C$8,"1",+IF(I155<=Activos!$C$11,"2","3")) -> 1 | K155: 0 | L155: 39.91282022 | M155: 0 | N155: 0 | O155: =PV(wacc,H155-(Activos!$C$8-E155),M155) -> 0 | P155: 0 | Q155: 0 | R155: =IF(J155="3",ABS(I155-Activos!$C$11),0) -> 0 | S155: 0 | T155: 0 | U155: 0 | V155: 0 | W155: 0 | X155: 0 | Y155: 0 | Z155: 0 | AA155: 0
B156: RADIO TRANSMISOR RECEPTOR | C156: -814.52 | D156: =+C156/CostosyGastos!$D$7 -> -296.1890909 | E156: 1999 | F156: 2000-12-31 | G156: 12 | H156: 10.000048 | I156: 2010.000048 | J156: =+IF(I156<=Activos!$C$8,"1",+IF(I156<=Activos!$C$11,"2","3")) -> 1 | K156: 0 | L156: 39.91282022 | M156: 0 | N156: 0 | O156: =PV(wacc,H156-(Activos!$C$8-E156),M156) -> 0 | P156: 0 | Q156: 0 | R156: =IF(J156="3",ABS(I156-Activos!$C$11),0) -> 0 | S156: 0 | T156: 0 | U156: 0 | V156: 0 | W156: 0 | X156: 0 | Y156: 0 | Z156: 0 | AA156: 0
B157: RADIO TRANSMISOR RECEPTOR | C157: -814.52 | D157: =+C157/CostosyGastos!$D$7 -> -296.1890909 | E157: 1999 | F157: 2000-12-31 | G157: 12 | H157: 10.000048 | I157: 2010.000048 | J157: =+IF(I157<=Activos!$C$8,"1",+IF(I157<=Activos!$C$11,"2","3")) -> 1 | K157: 0 | L157: 39.91282022 | M157: 0 | N157: 0 | O157: =PV(wacc,H157-(Activos!$C$8-E157),M157) -> 0 | P157: 0 | Q157: 0 | R157: =IF(J157="3",ABS(I157-Activos!$C$11),0) -> 0 | S157: 0 | T157: 0 | U157: 0 | V157: 0 | W157: 0 | X157: 0 | Y157: 0 | Z157: 0 | AA157: 0
B158: TRANSCEPTOR PORTATIL DE MANO | C158: -814.52 | D158: =+C158/CostosyGastos!$D$7 -> -296.1890909 | E158: 1999 | F158: 2000-12-31 | G158: 12 | H158: 10.000048 | I158: 2010.000048 | J158: =+IF(I158<=Activos!$C$8,"1",+IF(I158<=Activos!$C$11,"2","3")) -> 1 | K158: 0 | L158: 39.91282022 | M158: 0 | N158: 0 | O158: =PV(wacc,H158-(Activos!$C$8-E158),M158) -> 0 | P158: 0 | Q158: 0 | R158: =IF(J158="3",ABS(I158-Activos!$C$11),0) -> 0 | S158: 0 | T158: 0 | U158: 0 | V158: 0 | W158: 0 | X158: 0 | Y158: 0 | Z158: 0 | AA158: 0
B159: TRANSCEPTOR PORTATIL DE MANO | C159: -814.52 | D159: =+C159/CostosyGastos!$D$7 -> -296.1890909 | E159: 1999 | F159: 2000-12-31 | G159: 12 | H159: 10.000048 | I159: 2010.000048 | J159: =+IF(I159<=Activos!$C$8,"1",+IF(I159<=Activos!$C$11,"2","3")) -> 1 | K159: 0 | L159: 39.91282022 | M159: 0 | N159: 0 | O159: =PV(wacc,H159-(Activos!$C$8-E159),M159) -> 0 | P159: 0 | Q159: 0 | R159: =IF(J159="3",ABS(I159-Activos!$C$11),0) -> 0 | S159: 0 | T159: 0 | U159: 0 | V159: 0 | W159: 0 | X159: 0 | Y159: 0 | Z159: 0 | AA159: 0
B160: TRANSCEPTOR PORTATIL DE MANO | C160: -814.52 | D160: =+C160/CostosyGastos!$D$7 -> -296.1890909 | E160: 1999 | F160: 2000-12-31 | G160: 12 | H160: 10.000048 | I160: 2010.000048 | J160: =+IF(I160<=Activos!$C$8,"1",+IF(I160<=Activos!$C$11,"2","3")) -> 1 | K160: 0 | L160: 39.91282022 | M160: 0 | N160: 0 | O160: =PV(wacc,H160-(Activos!$C$8-E160),M160) -> 0 | P160: 0 | Q160: 0 | R160: =IF(J160="3",ABS(I160-Activos!$C$11),0) -> 0 | S160: 0 | T160: 0 | U160: 0 | V160: 0 | W160: 0 | X160: 0 | Y160: 0 | Z160: 0 | AA160: 0
B161: TRANSCEPTOR PORTATIL DE MANO | C161: -814.52 | D161: =+C161/CostosyGastos!$D$7 -> -296.1890909 | E161: 1999 | F161: 2000-12-31 | G161: 12 | H161: 10.000048 | I161: 2010.000048 | J161: =+IF(I161<=Activos!$C$8,"1",+IF(I161<=Activos!$C$11,"2","3")) -> 1 | K161: 0 | L161: 39.91282022 | M161: 0 | N161: 0 | O161: =PV(wacc,H161-(Activos!$C$8-E161),M161) -> 0 | P161: 0 | Q161: 0 | R161: =IF(J161="3",ABS(I161-Activos!$C$11),0) -> 0 | S161: 0 | T161: 0 | U161: 0 | V161: 0 | W161: 0 | X161: 0 | Y161: 0 | Z161: 0 | AA161: 0
B162: TRANSCEPTOR PORTATIL DE MANO | C162: -814.52 | D162: =+C162/CostosyGastos!$D$7 -> -296.1890909 | E162: 1999 | F162: 2000-12-31 | G162: 12 | H162: 10.000048 | I162: 2010.000048 | J162: =+IF(I162<=Activos!$C$8,"1",+IF(I162<=Activos!$C$11,"2","3")) -> 1 | K162: 0 | L162: 39.91282022 | M162: 0 | N162: 0 | O162: =PV(wacc,H162-(Activos!$C$8-E162),M162) -> 0 | P162: 0 | Q162: 0 | R162: =IF(J162="3",ABS(I162-Activos!$C$11),0) -> 0 | S162: 0 | T162: 0 | U162: 0 | V162: 0 | W162: 0 | X162: 0 | Y162: 0 | Z162: 0 | AA162: 0
B163: RECEPTOR PORTATIL ILS/VOR | C163: -54161.57 | D163: =+C163/CostosyGastos!$D$7 -> -19695.11636 | E163: 2000 | F163: 2001-01-12 | G163: 11 | H163: 10 | I163: 2011 | J163: =+IF(I163<=Activos!$C$8,"1",+IF(I163<=Activos!$C$11,"2","3")) -> 1 | K163: 0 | L163: 2798.903879 | M163: 0 | N163: 0 | O163: =PV(wacc,H163-(Activos!$C$8-E163),M163) -> 0 | P163: 0 | Q163: 0 | R163: =IF(J163="3",ABS(I163-Activos!$C$11),0) -> 0 | S163: 0 | T163: 0 | U163: 0 | V163: 0 | W163: 0 | X163: 0 | Y163: 0 | Z163: 0 | AA163: 0
B164: RECEPTOR PORTATIL ILS/VOR | C164: -54161.57 | D164: =+C164/CostosyGastos!$D$7 -> -19695.11636 | E164: 2000 | F164: 2001-01-12 | G164: 11 | H164: 10 | I164: 2011 | J164: =+IF(I164<=Activos!$C$8,"1",+IF(I164<=Activos!$C$11,"2","3")) -> 1 | K164: 0 | L164: 2798.903879 | M164: 0 | N164: 0 | O164: =PV(wacc,H164-(Activos!$C$8-E164),M164) -> 0 | P164: 0 | Q164: 0 | R164: =IF(J164="3",ABS(I164-Activos!$C$11),0) -> 0 | S164: 0 | T164: 0 | U164: 0 | V164: 0 | W164: 0 | X164: 0 | Y164: 0 | Z164: 0 | AA164: 0
B165: ARMARIO DISTRIBUCION MONITORES | C165: -41678.59 | D165: =+C165/CostosyGastos!$D$7 -> -15155.85091 | E165: 2000 | F165: 2001-01-26 | G165: 11 | H165: 10 | I165: 2011 | J165: =+IF(I165<=Activos!$C$8,"1",+IF(I165<=Activos!$C$11,"2","3")) -> 1 | K165: 0 | L165: 2153.821745 | M165: 0 | N165: 0 | O165: =PV(wacc,H165-(Activos!$C$8-E165),M165) -> 0 | P165: 0 | Q165: 0 | R165: =IF(J165="3",ABS(I165-Activos!$C$11),0) -> 0 | S165: 0 | T165: 0 | U165: 0 | V165: 0 | W165: 0 | X165: 0 | Y165: 0 | Z165: 0 | AA165: 0
B166: ANTENA MONITORA | C166: -39626.89 | D166: =+C166/CostosyGastos!$D$7 -> -14409.77818 | E166: 2000 | F166: 2001-01-26 | G166: 11 | H166: 10 | I166: 2011 | J166: =+IF(I166<=Activos!$C$8,"1",+IF(I166<=Activos!$C$11,"2","3")) -> 1 | K166: 0 | L166: 2047.79618 | M166: 0 | N166: 0 | O166: =PV(wacc,H166-(Activos!$C$8-E166),M166) -> 0 | P166: 0 | Q166: 0 | R166: =IF(J166="3",ABS(I166-Activos!$C$11),0) -> 0 | S166: 0 | T166: 0 | U166: 0 | V166: 0 | W166: 0 | X166: 0 | Y166: 0 | Z166: 0 | AA166: 0
B167: ARMARIO DISTRIBUCION ANTENAS | C167: -39192.28 | D167: =+C167/CostosyGastos!$D$7 -> -14251.73818 | E167: 2000 | F167: 2001-01-26 | G167: 11 | H167: 10 | I167: 2011 | J167: =+IF(I167<=Activos!$C$8,"1",+IF(I167<=Activos!$C$11,"2","3")) -> 1 | K167: 0 | L167: 2025.336867 | M167: 0 | N167: 0 | O167: =PV(wacc,H167-(Activos!$C$8-E167),M167) -> 0 | P167: 0 | Q167: 0 | R167: =IF(J167="3",ABS(I167-Activos!$C$11),0) -> 0 | S167: 0 | T167: 0 | U167: 0 | V167: 0 | W167: 0 | X167: 0 | Y167: 0 | Z167: 0 | AA167: 0
B168: RADIO PORTATIL TX/RX 16 CANALES(INCLUYE CARGADOR Y BATERIA) | C168: -1655.53 | D168: =+C168/CostosyGastos!$D$7 -> -602.0109091 | E168: 2000 | F168: 2001-03-31 | G168: 11 | H168: 40.000016 | I168: 2041.000016 | J168: =+IF(I168<=Activos!$C$8,"1",+IF(I168<=Activos!$C$11,"2","3")) -> 3 | K168: -15.05026671 | L168: 52.10565725 | M168: 0 | N168: 0 | O168: =PV(wacc,H168-(Activos!$C$8-E168),M168) -> 0 | P168: 52.10565725 | Q168: -15.05026671 | R168: =IF(J168="3",ABS(I168-Activos!$C$11),0) -> 23.000016 | S168: 527.5305063 | T168: -560.5238898 | U168: -15.05026671 | V168: -15.05026671 | W168: -15.05026671 | X168: -15.05026671 | Y168: -15.05026671 | Z168: -15.05026671 | AA168: -15.05026671
B169: RADIO PORTATIL TX/RX 16 CANALES(INCLUYE CARGADOR Y BATERIA) | C169: -1655.53 | D169: =+C169/CostosyGastos!$D$7 -> -602.0109091 | E169: 2000 | F169: 2001-03-31 | G169: 11 | H169: 40.000016 | I169: 2041.000016 | J169: =+IF(I169<=Activos!$C$8,"1",+IF(I169<=Activos!$C$11,"2","3")) -> 3 | K169: -15.05026671 | L169: 52.10565725 | M169: 0 | N169: 0 | O169: =PV(wacc,H169-(Activos!$C$8-E169),M169) -> 0 | P169: 52.10565725 | Q169: -15.05026671 | R169: =IF(J169="3",ABS(I169-Activos!$C$11),0) -> 23.000016 | S169: 527.5305063 | T169: -560.5238898 | U169: -15.05026671 | V169: -15.05026671 | W169: -15.05026671 | X169: -15.05026671 | Y169: -15.05026671 | Z169: -15.05026671 | AA169: -15.05026671
B170: RADIO PORTATIL TX/RX 16 CANALES(INCLUYE CARGADOR Y BATERIA) | C170: -1655.53 | D170: =+C170/CostosyGastos!$D$7 -> -602.0109091 | E170: 2000 | F170: 2001-03-31 | G170: 11 | H170: 40.000016 | I170: 2041.000016 | J170: =+IF(I170<=Activos!$C$8,"1",+IF(I170<=Activos!$C$11,"2","3")) -> 3 | K170: -15.05026671 | L170: 52.10565725 | M170: 0 | N170: 0 | O170: =PV(wacc,H170-(Activos!$C$8-E170),M170) -> 0 | P170: 52.10565725 | Q170: -15.05026671 | R170: =IF(J170="3",ABS(I170-Activos!$C$11),0) -> 23.000016 | S170: 527.5305063 | T170: -560.5238898 | U170: -15.05026671 | V170: -15.05026671 | W170: -15.05026671 | X170: -15.05026671 | Y170: -15.05026671 | Z170: -15.05026671 | AA170: -15.05026671
B171: GENERADOR DE SEÐALES RF, VECFTORIAL Y DIGITAL 10KHZ | C171: -147117.53 | D171: =+C171/CostosyGastos!$D$7 -> -53497.28364 | E171: 2000 | F171: 2001-04-30 | G171: 11 | H171: 30.00001 | I171: 2031.00001 | J171: =+IF(I171<=Activos!$C$8,"1",+IF(I171<=Activos!$C$11,"2","3")) -> 3 | K171: -1783.242193 | L171: 4886.489803 | M171: 0 | N171: 0 | O171: =PV(wacc,H171-(Activos!$C$8-E171),M171) -> 0 | P171: 4886.489803 | Q171: -1783.242193 | R171: =IF(J171="3",ABS(I171-Activos!$C$11),0) -> 13.00001 | S171: 37995.59925 | T171: -44862.54678 | U171: -1783.242193 | V171: -1783.242193 | W171: -1783.242193 | X171: -1783.242193 | Y171: -1783.242193 | Z171: -1783.242193 | AA171: -1783.242193
B172: TERMOMETRO C/ RAYOS INFRARROJOS | C172: -1413.24 | D172: =+C172/CostosyGastos!$D$7 -> -513.9054545 | E172: 2000 | F172: 2001-04-30 | G172: 11 | H172: 30.00001 | I172: 2031.00001 | J172: =+IF(I172<=Activos!$C$8,"1",+IF(I172<=Activos!$C$11,"2","3")) -> 3 | K172: -17.13017611 | L172: 46.9405845 | M172: 0 | N172: 0 | O172: =PV(wacc,H172-(Activos!$C$8-E172),M172) -> 0 | P172: 46.9405845 | Q172: -17.13017611 | R172: =IF(J172="3",ABS(I172-Activos!$C$11),0) -> 13.00001 | S172: 364.9932179 | T172: -430.9584698 | U172: -17.13017611 | V172: -17.13017611 | W172: -17.13017611 | X172: -17.13017611 | Y172: -17.13017611 | Z172: -17.13017611 | AA172: -17.13017611
B173: MODULO PARA COMPUTADORA | C173: -211.97 | D173: =+C173/CostosyGastos!$D$7 -> -77.08 | E173: 2000 | F173: 2001-04-30 | G173: 11 | H173: 30.00001 | I173: 2031.00001 | J173: =+IF(I173<=Activos!$C$8,"1",+IF(I173<=Activos!$C$11,"2","3")) -> 3 | K173: -2.569332477 | L173: 7.040556237 | M173: 0 | N173: 0 | O173: =PV(wacc,H173-(Activos!$C$8-E173),M173) -> 0 | P173: 7.040556237 | Q173: -2.569332477 | R173: =IF(J173="3",ABS(I173-Activos!$C$11),0) -> 13.00001 | S173: 54.74485041 | T173: -64.63889137 | U173: -2.569332477 | V173: -2.569332477 | W173: -2.569332477 | X173: -2.569332477 | Y173: -2.569332477 | Z173: -2.569332477 | AA173: -2.569332477
B174: GENERADOR DE SEÐALES XPOR/DME - CREDITO DOCUMENTARIO N¦ 62303202101 | C174: -92258.24 | D174: =+C174/CostosyGastos!$D$7 -> -33548.45091 | E174: 2000 | F174: 2001-05-31 | G174: 11 | H174: 24.0000096 | I174: 2025.00001 | J174: =+IF(I174<=Activos!$C$8,"1",+IF(I174<=Activos!$C$11,"2","3")) -> 3 | K174: -1397.851562 | L174: 3266.061586 | M174: 0 | N174: 0 | O174: =PV(wacc,H174-(Activos!$C$8-E174),M174) -> 0 | P174: 3266.061586 | Q174: -1397.851562 | R174: =IF(J174="3",ABS(I174-Activos!$C$11),0) -> 7.0000096 | S174: 16832.11822 | T174: -24237.13154 | U174: -1397.851562 | V174: -1397.851562 | W174: -1397.851562 | X174: -1397.851562 | Y174: -1397.851562 | Z174: -1397.851562 | AA174: -1397.851562
B175: TABLERO DE TRANSFERENCIA AUTOMATICA 70A 220V (EQUIPO VOR DE ANDAHUAYLAS ) | C175: -12963.12 | D175: =+C175/CostosyGastos!$D$7 -> -4713.861818 | E175: 2000 | F175: 2001-05-31 | G175: 11 | H175: 24.0000096 | I175: 2025.00001 | J175: =+IF(I175<=Activos!$C$8,"1",+IF(I175<=Activos!$C$11,"2","3")) -> 3 | K175: -196.4108305 | L175: 458.9112937 | M175: 0 | N175: 0 | O175: =PV(wacc,H175-(Activos!$C$8-E175),M175) -> 0 | P175: 458.9112937 | Q175: -196.4108305 | R175: =IF(J175="3",ABS(I175-Activos!$C$11),0) -> 7.0000096 | S175: 2365.065367 | T175: -3405.536943 | U175: -196.4108305 | V175: -196.4108305 | W175: -196.4108305 | X175: -196.4108305 | Y175: -196.4108305 | Z175: -196.4108305 | AA175: -196.4108305
B176: TELEFONO | C176: -280.46 | D176: =+C176/CostosyGastos!$D$7 -> -101.9854545 | E176: 2000 | F176: 2001-05-31 | G176: 11 | H176: 24.0000096 | I176: 2025.00001 | J176: =+IF(I176<=Activos!$C$8,"1",+IF(I176<=Activos!$C$11,"2","3")) -> 3 | K176: -4.24939224 | L176: 9.92864846 | M176: 0 | N176: 0 | O176: =PV(wacc,H176-(Activos!$C$8-E176),M176) -> 0 | P176: 9.92864846 | Q176: -4.24939224 | R176: =IF(J176="3",ABS(I176-Activos!$C$11),0) -> 7.0000096 | S176: 51.1687181 | T176: -73.67955331 | U176: -4.24939224 | V176: -4.24939224 | W176: -4.24939224 | X176: -4.24939224 | Y176: -4.24939224 | Z176: -4.24939224 | AA176: -4.24939224
B177: BRUJULA DE MANO | C177: -3795.42 | D177: =+C177/CostosyGastos!$D$7 -> -1380.152727 | E177: 2000 | F177: 2001-06-30 | G177: 11 | H177: 20.000008 | I177: 2021.000008 | J177: =+IF(I177<=Activos!$C$8,"1",+IF(I177<=Activos!$C$11,"2","3")) -> 3 | K177: -69.00760876 | L177: 143.708516 | M177: 0 | N177: 0 | O177: =PV(wacc,H177-(Activos!$C$8-E177),M177) -> 0 | P177: 143.708516 | Q177: -69.00760876 | R177: =IF(J177="3",ABS(I177-Activos!$C$11),0) -> 3.000008 | S177: 368.3659127 | T177: -816.5679785 | U177: -69.00760876 | V177: -69.00760876 | W177: -69.00760876 | X177: -69.00760876 | Y177: -69.00760876 | Z177: -69.00760876 | AA177: -69.00760876
B178: BRUJULA DE MANO | C178: -3795.41 | D178: =+C178/CostosyGastos!$D$7 -> -1380.149091 | E178: 2000 | F178: 2001-06-30 | G178: 11 | H178: 20.000008 | I178: 2021.000008 | J178: =+IF(I178<=Activos!$C$8,"1",+IF(I178<=Activos!$C$11,"2","3")) -> 3 | K178: -69.00742694 | L178: 143.7081373 | M178: 0 | N178: 0 | O178: =PV(wacc,H178-(Activos!$C$8-E178),M178) -> 0 | P178: 143.7081373 | Q178: -69.00742694 | R178: =IF(J178="3",ABS(I178-Activos!$C$11),0) -> 3.000008 | S178: 368.3649422 | T178: -816.565827 | U178: -69.00742694 | V178: -69.00742694 | W178: -69.00742694 | X178: -69.00742694 | Y178: -69.00742694 | Z178: -69.00742694 | AA178: -69.00742694
B179: BRUJULA DE MANO | C179: -3795.41 | D179: =+C179/CostosyGastos!$D$7 -> -1380.149091 | E179: 2000 | F179: 2001-06-30 | G179: 11 | H179: 20.000008 | I179: 2021.000008 | J179: =+IF(I179<=Activos!$C$8,"1",+IF(I179<=Activos!$C$11,"2","3")) -> 3 | K179: -69.00742694 | L179: 143.7081373 | M179: 0 | N179: 0 | O179: =PV(wacc,H179-(Activos!$C$8-E179),M179) -> 0 | P179: 143.7081373 | Q179: -69.00742694 | R179: =IF(J179="3",ABS(I179-Activos!$C$11),0) -> 3.000008 | S179: 368.3649422 | T179: -816.565827 | U179: -69.00742694 | V179: -69.00742694 | W179: -69.00742694 | X179: -69.00742694 | Y179: -69.00742694 | Z179: -69.00742694 | AA179: -69.00742694
B180: EQUIPO DE AIRE ACONDICIONADO TIPO VENTANA,18000 BTU 220 VAC | C180: -2553.43 | D180: =+C180/CostosyGastos!$D$7 -> -928.52 | E180: 2000 | F180: 2001-06-30 | G180: 11 | H180: 10 | I180: 2011 | J180: =+IF(I180<=Activos!$C$8,"1",+IF(I180<=Activos!$C$11,"2","3")) -> 1 | K180: 0 | L180: 131.9534336 | M180: 0 | N180: 0 | O180: =PV(wacc,H180-(Activos!$C$8-E180),M180) -> 0 | P180: 0 | Q180: 0 | R180: =IF(J180="3",ABS(I180-Activos!$C$11),0) -> 0 | S180: 0 | T180: 0 | U180: 0 | V180: 0 | W180: 0 | X180: 0 | Y180: 0 | Z180: 0 | AA180: 0
B181: MODULO PARA COMPUTADORA DE MADERA CEDRO | C181: -318.62 | D181: =+C181/CostosyGastos!$D$7 -> -115.8618182 | E181: 2000 | F181: 2001-06-30 | G181: 11 | H181: 20.000008 | I181: 2021.000008 | J181: =+IF(I181<=Activos!$C$8,"1",+IF(I181<=Activos!$C$11,"2","3")) -> 3 | K181: -5.793088592 | L181: 12.06412132 | M181: 0 | N181: 0 | O181: =PV(wacc,H181-(Activos!$C$8-E181),M181) -> 0 | P181: 12.06412132 | Q181: -5.793088592 | R181: =IF(J181="3",ABS(I181-Activos!$C$11),0) -> 3.000008 | S181: 30.9237837 | T181: -68.54969656 | U181: -5.793088592 | V181: -5.793088592 | W181: -5.793088592 | X181: -5.793088592 | Y181: -5.793088592 | Z181: -5.793088592 | AA181: -5.793088592
B182: VENTILADOR DE TECHO | C182: -227.49 | D182: =+C182/CostosyGastos!$D$7 -> -82.72363636 | E182: 2000 | F182: 2001-06-30 | G182: 11 | H182: 20.000008 | I182: 2021.000008 | J182: =+IF(I182<=Activos!$C$8,"1",+IF(I182<=Activos!$C$11,"2","3")) -> 3 | K182: -4.136180164 | L182: 8.613605424 | M182: 0 | N182: 0 | O182: =PV(wacc,H182-(Activos!$C$8-E182),M182) -> 0 | P182: 8.613605424 | Q182: -4.136180164 | R182: =IF(J182="3",ABS(I182-Activos!$C$11),0) -> 3.000008 | S182: 22.07912734 | T182: -48.94347646 | U182: -4.136180164 | V182: -4.136180164 | W182: -4.136180164 | X182: -4.136180164 | Y182: -4.136180164 | Z182: -4.136180164 | AA182: -4.136180164
B183: VENTILADOR DE TECHO | C183: -227.49 | D183: =+C183/CostosyGastos!$D$7 -> -82.72363636 | E183: 2000 | F183: 2001-06-30 | G183: 11 | H183: 20.000008 | I183: 2021.000008 | J183: =+IF(I183<=Activos!$C$8,"1",+IF(I183<=Activos!$C$11,"2","3")) -> 3 | K183: -4.136180164 | L183: 8.613605424 | M183: 0 | N183: 0 | O183: =PV(wacc,H183-(Activos!$C$8-E183),M183) -> 0 | P183: 8.613605424 | Q183: -4.136180164 | R183: =IF(J183="3",ABS(I183-Activos!$C$11),0) -> 3.000008 | S183: 22.07912734 | T183: -48.94347646 | U183: -4.136180164 | V183: -4.136180164 | W183: -4.136180164 | X183: -4.136180164 | Y183: -4.136180164 | Z183: -4.136180164 | AA183: -4.136180164
B184: VENTILADOR DE TECHO | C184: -227.49 | D184: =+C184/CostosyGastos!$D$7 -> -82.72363636 | E184: 2000 | F184: 2001-06-30 | G184: 11 | H184: 20.000008 | I184: 2021.000008 | J184: =+IF(I184<=Activos!$C$8,"1",+IF(I184<=Activos!$C$11,"2","3")) -> 3 | K184: -4.136180164 | L184: 8.613605424 | M184: 0 | N184: 0 | O184: =PV(wacc,H184-(Activos!$C$8-E184),M184) -> 0 | P184: 8.613605424 | Q184: -4.136180164 | R184: =IF(J184="3",ABS(I184-Activos!$C$11),0) -> 3.000008 | S184: 22.07912734 | T184: -48.94347646 | U184: -4.136180164 | V184: -4.136180164 | W184: -4.136180164 | X184: -4.136180164 | Y184: -4.136180164 | Z184: -4.136180164 | AA184: -4.136180164
B185: VENTILADOR DE TECHO | C185: -227.49 | D185: =+C185/CostosyGastos!$D$7 -> -82.72363636 | E185: 2000 | F185: 2001-06-30 | G185: 11 | H185: 20.000008 | I185: 2021.000008 | J185: =+IF(I185<=Activos!$C$8,"1",+IF(I185<=Activos!$C$11,"2","3")) -> 3 | K185: -4.136180164 | L185: 8.613605424 | M185: 0 | N185: 0 | O185: =PV(wacc,H185-(Activos!$C$8-E185),M185) -> 0 | P185: 8.613605424 | Q185: -4.136180164 | R185: =IF(J185="3",ABS(I185-Activos!$C$11),0) -> 3.000008 | S185: 22.07912734 | T185: -48.94347646 | U185: -4.136180164 | V185: -4.136180164 | W185: -4.136180164 | X185: -4.136180164 | Y185: -4.136180164 | Z185: -4.136180164 | AA185: -4.136180164
B186: TELEFONO CELULAR | C186: -185.49 | D186: =+C186/CostosyGastos!$D$7 -> -67.45090909 | E186: 2000 | F186: 2001-06-30 | G186: 11 | H186: 20.000008 | I186: 2021.000008 | J186: =+IF(I186<=Activos!$C$8,"1",+IF(I186<=Activos!$C$11,"2","3")) -> 3 | K186: -3.372544106 | L186: 7.023331443 | M186: 0 | N186: 0 | O186: =PV(wacc,H186-(Activos!$C$8-E186),M186) -> 0 | P186: 7.023331443 | Q186: -3.372544106 | R186: =IF(J186="3",ABS(I186-Activos!$C$11),0) -> 3.000008 | S186: 18.00280157 | T186: -39.90736054 | U186: -3.372544106 | V186: -3.372544106 | W186: -3.372544106 | X186: -3.372544106 | Y186: -3.372544106 | Z186: -3.372544106 | AA186: -3.372544106
B187: ASPIRADORA INDUSTRIAL | C187: -1061.68 | D187: =+C187/CostosyGastos!$D$7 -> -386.0654545 | E187: 2000 | F187: 2001-09-30 | G187: 11 | H187: 13.33333867 | I187: 2014.333339 | J187: =+IF(I187<=Activos!$C$8,"1",+IF(I187<=Activos!$C$11,"2","3")) -> 2 | K187: -28.95489751 | L187: =IF(J187="1",PMT(wacc,G187,D187),PMT(wacc,H187,D187)) -> 48.94499959 | M187: 48.94499959 | N187: -28.95489751 | O187: =PV(wacc,H187-(Activos!$C$8-E187),M187) -> -59.47648363 | P187: 0 | Q187: 0 | R187: =IF(J187="3",ABS(I187-Activos!$C$11),0) -> 0 | S187: 0 | T187: 0 | U187: -28.95489751 | V187: -28.95489751 | W187: -28.95489751 | X187: 0 | Y187: 0 | Z187: 0 | AA187: 0
B188: COMPRESORA PORTATIL DE 0-80 LBS C/ACCESO RIOS | C188: -939.16 | D188: =+C188/CostosyGastos!$D$7 -> -341.5127273 | E188: 2000 | F188: 2001-09-30 | G188: 11 | H188: 13.33333867 | I188: 2014.333339 | J188: =+IF(I188<=Activos!$C$8,"1",+IF(I188<=Activos!$C$11,"2","3")) -> 2 | K188: -25.6134443 | L188: 43.29664853 | M188: 43.29664853 | N188: -25.6134443 | O188: =PV(wacc,H188-(Activos!$C$8-E188),M188) -> -52.6127782 | P188: 0 | Q188: 0 | R188: =IF(J188="3",ABS(I188-Activos!$C$11),0) -> 0 | S188: 0 | T188: 0 | U188: -25.6134443 | V188: -25.6134443 | W188: -25.6134443 | X188: 0 | Y188: 0 | Z188: 0 | AA188: 0
B189: MALETA DE HERRAMIENTAS | C189: -1348.77 | D189: =+C189/CostosyGastos!$D$7 -> -490.4618182 | E189: 2000 | F189: 2001-10-31 | G189: 11 | H189: 12.0000048 | I189: 2013.000005 | J189: =+IF(I189<=Activos!$C$8,"1",+IF(I189<=Activos!$C$11,"2","3")) -> 2 | K189: -40.87180183 | L189: 66.09193351 | M189: 66.09193351 | N189: -40.87180183 | O189: =PV(wacc,H189-(Activos!$C$8-E189),M189) -> -0.000304763925 | P189: 0 | Q189: 0 | R189: =IF(J189="3",ABS(I189-Activos!$C$11),0) -> 0 | S189: 0 | T189: 0 | U189: -40.87180183 | V189: -40.87180183 | W189: 0 | X189: 0 | Y189: 0 | Z189: 0 | AA189: 0
B190: LUCES DE APROXIMACION EQUIPOS DE BALIZAJE | C190: -16126.41 | D190: =+C190/CostosyGastos!$D$7 -> -5864.149091 | E190: 2000 | F190: 2001-12-31 | G190: 11 | H190: 10.000004 | I190: 2011.000004 | J190: =+IF(I190<=Activos!$C$8,"1",+IF(I190<=Activos!$C$11,"2","3")) -> 1 | K190: 0 | L190: 833.3634254 | M190: 0 | N190: 0 | O190: =PV(wacc,H190-(Activos!$C$8-E190),M190) -> 0 | P190: 0 | Q190: 0 | R190: =IF(J190="3",ABS(I190-Activos!$C$11),0) -> 0 | S190: 0 | T190: 0 | U190: 0 | V190: 0 | W190: 0 | X190: 0 | Y190: 0 | Z190: 0 | AA190: 0
B191: SISTEMA INTERRUMPIDA DE ENERGIA UPS 3KVA/MOD ULT-3000 TRANSFORMADOR DE AISLAMIENTO | C191: -8679.31 | D191: =+C191/CostosyGastos!$D$7 -> -3156.112727 | E191: 2000 | F191: 2001-12-31 | G191: 11 | H191: 10.000004 | I191: 2011.000004 | J191: =+IF(I191<=Activos!$C$8,"1",+IF(I191<=Activos!$C$11,"2","3")) -> 1 | K191: 0 | L191: 448.5201302 | M191: 0 | N191: 0 | O191: =PV(wacc,H191-(Activos!$C$8-E191),M191) -> 0 | P191: 0 | Q191: 0 | R191: =IF(J191="3",ABS(I191-Activos!$C$11),0) -> 0 | S191: 0 | T191: 0 | U191: 0 | V191: 0 | W191: 0 | X191: 0 | Y191: 0 | Z191: 0 | AA191: 0
B192: SISTEMA INTERRUMPIDA DE ENERGIA UPS 3KVA/MOD ULT-3000 TRANSFORMADOR DE AISLAMIENTO | C192: -8679.31 | D192: =+C192/CostosyGastos!$D$7 -> -3156.112727 | E192: 2000 | F192: 2001-12-31 | G192: 11 | H192: 10.000004 | I192: 2011.000004 | J192: =+IF(I192<=Activos!$C$8,"1",+IF(I192<=Activos!$C$11,"2","3")) -> 1 | K192: 0 | L192: 448.5201302 | M192: 0 | N192: 0 | O192: =PV(wacc,H192-(Activos!$C$8-E192),M192) -> 0 | P192: 0 | Q192: 0 | R192: =IF(J192="3",ABS(I192-Activos!$C$11),0) -> 0 | S192: 0 | T192: 0 | U192: 0 | V192: 0 | W192: 0 | X192: 0 | Y192: 0 | Z192: =+IF($J192="1",0,IF(Z$13<$I192,$K192,0)) -> 0 | AA192: 0
B193: MULTIMETRO DIGITAL 4 1/2 DIGITOS | C193: -1360.21 | D193: =+C193/CostosyGastos!$D$7 -> -494.6218182 | E193: 2000 | F193: 2001-12-31 | G193: 11 | H193: 10.000004 | I193: 2011.000004 | J193: =+IF(I193<=Activos!$C$8,"1",+IF(I193<=Activos!$C$11,"2","3")) -> 1 | K193: 0 | L193: 70.29148241 | M193: 0 | N193: 0 | O193: =PV(wacc,H193-(Activos!$C$8-E193),M193) -> 0 | P193: 0 | Q193: 0 | R193: =IF(J193="3",ABS(I193-Activos!$C$11),0) -> 0 | S193: 0 | T193: 0 | U193: 0 | V193: 0 | W193: 0 | X193: 0 | Y193: 0 | Z193: 0 | AA193: 0
B194: FUENTE DE PODER | C194: -665.61 | D194: =+C194/CostosyGastos!$D$7 -> -242.04 | E194: 2000 | F194: 2001-12-31 | G194: 11 | H194: 10.000004 | I194: 2011.000004 | J194: =+IF(I194<=Activos!$C$8,"1",+IF(I194<=Activos!$C$11,"2","3")) -> 1 | K194: 0 | L194: 34.39668405 | M194: 0 | N194: 0 | O194: =PV(wacc,H194-(Activos!$C$8-E194),M194) -> 0 | P194: 0 | Q194: 0 | R194: =IF(J194="3",ABS(I194-Activos!$C$11),0) -> 0 | S194: 0 | T194: 0 | U194: =+IF($J194="1",0,IF(U$13<$I194,$K194,0)) -> 0 | V194: 0 | W194: 0 | X194: 0 | Y194: 0 | Z194: 0 | AA194: 0
B195: FUENTE DE PODER | C195: -665.61 | D195: =+C195/CostosyGastos!$D$7 -> -242.04 | E195: 2000 | F195: 2001-12-31 | G195: 11 | H195: 10.000004 | I195: 2011.000004 | J195: =+IF(I195<=Activos!$C$8,"1",+IF(I195<=Activos!$C$11,"2","3")) -> 1 | K195: 0 | L195: 34.39668405 | M195: 0 | N195: 0 | O195: =PV(wacc,H195-(Activos!$C$8-E195),M195) -> 0 | P195: 0 | Q195: 0 | R195: =IF(J195="3",ABS(I195-Activos!$C$11),0) -> 0 | S195: 0 | T195: 0 | U195: 0 | V195: 0 | W195: 0 | X195: 0 | Y195: 0 | Z195: 0 | AA195: 0
B196: FUENTE DE PODER | C196: -665.61 | D196: =+C196/CostosyGastos!$D$7 -> -242.04 | E196: 2000 | F196: 2001-12-31 | G196: 11 | H196: 10.000004 | I196: 2011.000004 | J196: =+IF(I196<=Activos!$C$8,"1",+IF(I196<=Activos!$C$11,"2","3")) -> 1 | K196: 0 | L196: 34.39668405 | M196: 0 | N196: 0 | O196: =PV(wacc,H196-(Activos!$C$8-E196),M196) -> 0 | P196: 0 | Q196: 0 | R196: =IF(J196="3",ABS(I196-Activos!$C$11),0) -> 0 | S196: 0 | T196: 0 | U196: 0 | V196: 0 | W196: 0 | X196: 0 | Y196: 0 | Z196: 0 | AA196: 0
B197: FUENTE DE PODER | C197: -665.61 | D197: =+C197/CostosyGastos!$D$7 -> -242.04 | E197: 2000 | F197: 2001-12-31 | G197: 11 | H197: 10.000004 | I197: 2011.000004 | J197: =+IF(I197<=Activos!$C$8,"1",+IF(I197<=Activos!$C$11,"2","3")) -> 1 | K197: 0 | L197: 34.39668405 | M197: 0 | N197: 0 | O197: =PV(wacc,H197-(Activos!$C$8-E197),M197) -> 0 | P197: 0 | Q197: 0 | R197: =IF(J197="3",ABS(I197-Activos!$C$11),0) -> 0 | S197: 0 | T197: 0 | U197: 0 | V197: 0 | W197: 0 | X197: 0 | Y197: 0 | Z197: 0 | AA197: 0
B198: FUENTE DE PODER | C198: -665.61 | D198: =+C198/CostosyGastos!$D$7 -> -242.04 | E198: 2000 | F198: 2001-12-31 | G198: 11 | H198: 10.000004 | I198: 2011.000004 | J198: =+IF(I198<=Activos!$C$8,"1",+IF(I198<=Activos!$C$11,"2","3")) -> 1 | K198: 0 | L198: 34.39668405 | M198: 0 | N198: 0 | O198: =PV(wacc,H198-(Activos!$C$8-E198),M198) -> 0 | P198: 0 | Q198: 0 | R198: =IF(J198="3",ABS(I198-Activos!$C$11),0) -> 0 | S198: 0 | T198: 0 | U198: 0 | V198: 0 | W198: 0 | X198: 0 | Y198: 0 | Z198: 0 | AA198: 0
B199: FUENTE DE PODER | C199: -665.61 | D199: =+C199/CostosyGastos!$D$7 -> -242.04 | E199: 2000 | F199: 2001-12-31 | G199: 11 | H199: 10.000004 | I199: 2011.000004 | J199: =+IF(I199<=Activos!$C$8,"1",+IF(I199<=Activos!$C$11,"2","3")) -> 1 | K199: 0 | L199: 34.39668405 | M199: 0 | N199: 0 | O199: =PV(wacc,H199-(Activos!$C$8-E199),M199) -> 0 | P199: 0 | Q199: 0 | R199: =IF(J199="3",ABS(I199-Activos!$C$11),0) -> 0 | S199: 0 | T199: 0 | U199: 0 | V199: 0 | W199: 0 | X199: 0 | Y199: 0 | Z199: 0 | AA199: 0
B200: FUENTE DE PODER | C200: -665.61 | D200: =+C200/CostosyGastos!$D$7 -> -242.04 | E200: 2000 | F200: 2001-12-31 | G200: 11 | H200: 10.000004 | I200: 2011.000004 | J200: =+IF(I200<=Activos!$C$8,"1",+IF(I200<=Activos!$C$11,"2","3")) -> 1 | K200: 0 | L200: 34.39668405 | M200: 0 | N200: 0 | O200: =PV(wacc,H200-(Activos!$C$8-E200),M200) -> 0 | P200: 0 | Q200: 0 | R200: =IF(J200="3",ABS(I200-Activos!$C$11),0) -> 0 | S200: 0 | T200: 0 | U200: 0 | V200: 0 | W200: 0 | X200: 0 | Y200: 0 | Z200: 0 | AA200: 0
B201: ESTANTE DE MADERA ALT 1.03 X 0.80 X 0.33 CUBIERTA DE FORMICA Y TRIPLEY | C201: -322.76 | D201: =+C201/CostosyGastos!$D$7 -> -117.3672727 | E201: 2000 | F201: 2001-12-31 | G201: 11 | H201: 10.000004 | I201: 2011.000004 | J201: =+IF(I201<=Activos!$C$8,"1",+IF(I201<=Activos!$C$11,"2","3")) -> 1 | K201: 0 | L201: 16.67924722 | M201: 0 | N201: 0 | O201: =PV(wacc,H201-(Activos!$C$8-E201),M201) -> 0 | P201: 0 | Q201: 0 | R201: =IF(J201="3",ABS(I201-Activos!$C$11),0) -> 0 | S201: 0 | T201: 0 | U201: 0 | V201: 0 | W201: 0 | X201: 0 | Y201: 0 | Z201: 0 | AA201: 0
... 2049 more rows

Sheet Inv
B1: Objetivo:
B2: Calcular retribución por inversiones, depreciación, valor de activos al inicio y final del periodo regulatorio de las nuevas inversiones (activos) y reposiciones entre los años 2012 y 2017
B3: Año de cambio de tarifa | C3: ='Panel de control'!G11 -> 2014
B4: Año de fin de periodo tarifario | C4: ='Panel de control'!G12 -> 2018
B6: NUEVAS INVERSIONES LIGADAS A PROYECTOS | N6: Depreciación | T6: Inversión
B7: DESCRIPCIÓN DEL ACTIVO | C7: Año de adquisición | D7: VALOR ADQUISICIÓN (US$) | E7: Servicio | F7: Recursos Propios | G7: Factor de depreciación | H7: VIDA UTIL (años) | I7: DEPRECIACIÓN ANUAL | J7: RPI | K7: Fin vida útil | L7: periodos | M7: VA RPI actualizado al último periodo | N7: 2013 | O7: 2014 | P7: 2015 | Q7: 2016 | R7: 2017 | S7: 2018 | T7: 2012 | U7: 2013 | V7: 2014 | W7: 2015 | X7: 2016 | Y7: 2017
B8: 1.1 Modernización de Sistemas de Ayudas Luminosas en Aeropuertos del Perú (II Etapa). | C8: 2012 | D8: -614020.3846 | E8: A | F8: =+D8*(1+'Panel de control'!$H$45) -> -614020.3846 | G8: =1/H8 -> 0.1 | H8: 10 | I8: =+F8/H8 -> -61402.03846 | J8: =PMT(wacc,H8,F8) -> 92742.97048 | K8: =C8+H8 -> 2022 | L8: =K8-$C$4 -> 4 | M8: =-PV(wacc,L8,J8) -> 305146.5008 | N8: =+IF(N$7>$C8,$I8,0) -> -61402.03846 | O8: -61402.03846 | P8: -61402.03846 | Q8: -61402.03846 | R8: -61402.03846 | S8: -61402.03846 | T8: =+IF(T$7=$C8,$F8,0) -> -614020.3846 | U8: =+IF(U$7=$C8,$F8,0) -> 0 | V8: 0 | W8: 0 | X8: 0 | Y8: 0
B9: 1.5 Mejoramiento de Sistemas de Ayudas Luminosas del Aeropuerto Jorge Chávez (CAT III) | C9: 2012 | D9: -614020.3846 | E9: A | F9: =+D9*(1+'Panel de control'!$H$45) -> -614020.3846 | G9: =1/H9 -> 0.05 | H9: 20 | I9: -30701.01923 | J9: =PMT(wacc,H9,F9) -> 63934.93332 | K9: 2032 | L9: =K9-$C$4 -> 14 | M9: 518077.2606 | N9: -30701.01923 | O9: -30701.01923 | P9: -30701.01923 | Q9: -30701.01923 | R9: -30701.01923 | S9: -30701.01923 | T9: -614020.3846 | U9: 0 | V9: 0 | W9: 0 | X9: 0 | Y9: 0
B10: 1.11 Proyecto de Ampliación del Sistema de Ayudas Luminosas en el Aeropuerto Internacional del Cusco | C10: 2012 | D10: -760858.8462 | E10: A | F10: =+D10*(1+'Panel de control'!$H$45) -> -760858.8462 | G10: 0.05 | H10: 20 | I10: -38042.94231 | J10: 79224.50266 | K10: 2032 | L10: 14 | M10: 641971.6292 | N10: -38042.94231 | O10: -38042.94231 | P10: -38042.94231 | Q10: -38042.94231 | R10: -38042.94231 | S10: -38042.94231 | T10: -760858.8462 | U10: 0 | V10: 0 | W10: 0 | X10: 0 | Y10: 0
B11: Red de Radares de Vigilancia Aérea | C11: 2012 | D11: =-(34094128.46+3930058.73)*1 -> -38024187.19 | F11: =+D11*(1+'Panel de control'!$H$45) -> -38024187.19 | G11: 0.05 | H11: 20 | I11: -1901209.359 | J11: 3959272.254 | K11: 2032 | L11: 14 | M11: 32082756.9 | N11: -1901209.359 | O11: -1901209.359 | P11: -1901209.359 | Q11: -1901209.359 | R11: -1901209.359 | S11: -1901209.359 | T11: -38024187.19 | U11: 0 | V11: 0 | W11: 0 | X11: 0 | Y11: 0
B12: 1.1 Modernización de Sistemas de Ayudas Luminosas en Aeropuertos del Perú (II Etapa). | C12: 2013 | D12: -2638154.615 | E12: A | F12: =+D12*(1+'Panel de control'!$H$45) -> -2638154.615 | G12: 0.1 | H12: 10 | I12: -263815.4615 | J12: 398472.5943 | K12: 2023 | L12: 5 | M12: 1578546.748 | N12: 0 | O12: -263815.4615 | P12: -263815.4615 | Q12: -263815.4615 | R12: -263815.4615 | S12: -263815.4615 | T12: 0 | U12: -2638154.615 | V12: 0 | W12: 0 | X12: 0 | Y12: 0
B13: 1.2 Modernización de la Estación Meteorológica en el Aeropuerto de Chiclayo. | C13: 2013 | D13: -441636.9231 | F13: =+D13*(1+'Panel de control'!$H$45) -> -441636.9231 | G13: 0.1 | H13: 10 | I13: -44163.69231 | J13: 66705.79861 | K13: 2023 | L13: 5 | M13: 264254.6137 | N13: 0 | O13: -44163.69231 | P13: -44163.69231 | Q13: -44163.69231 | R13: -44163.69231 | S13: -44163.69231 | T13: 0 | U13: -441636.9231 | V13: 0 | W13: 0 | X13: 0 | Y13: 0
B14: 1.3 Modernización de la Estación Meteorológica en el Aeropuerto de Pisco. | C14: 2013 | D14: -441636.9231 | F14: =+D14*(1+'Panel de control'!$H$45) -> -441636.9231 | G14: 0.1 | H14: 10 | I14: -44163.69231 | J14: 66705.79861 | K14: 2023 | L14: 5 | M14: 264254.6137 | N14: 0 | O14: -44163.69231 | P14: -44163.69231 | Q14: -44163.69231 | R14: -44163.69231 | S14: -44163.69231 | T14: 0 | U14: -441636.9231 | V14: 0 | W14: 0 | X14: 0 | Y14: 0
B15: 1.4 Adquisición de Aeronave de Inspección en Vuelo (incluye UP Grade de Consola ADFIS - 14). | C15: 2013 | D15: -1708756.538 | F15: =+D15*(1+'Panel de control'!$H$45) -> -1708756.538 | G15: 0.05 | H15: 20 | I15: -85437.82692 | J15: 177924.4437 | K15: 2033 | L15: 15 | M15: 1495570.978 | N15: 0 | O15: -85437.82692 | P15: -85437.82692 | Q15: -85437.82692 | R15: -85437.82692 | S15: -85437.82692 | T15: 0 | U15: -1708756.538 | V15: 0 | W15: 0 | X15: 0 | Y15: 0
B16: 1.7 Proyecto de Comunicaciones Satelitales VSAT (Mejoramiento de la Conectividad de la Red de Comunicaciones Aeronáuticas de CORPAC S.A.) | C16: 2013 | D16: -1384961.923 | F16: =+D16*(1+'Panel de control'!$H$45) -> -1384961.923 | G16: 0.1 | H16: 10 | I16: -138496.1923 | J16: 209187.6523 | K16: 2023 | L16: 5 | M16: 828695.607 | N16: 0 | O16: -138496.1923 | P16: -138496.1923 | Q16: -138496.1923 | R16: -138496.1923 | S16: -138496.1923 | T16: 0 | U16: -1384961.923 | V16: 0 | W16: 0 | X16: 0 | Y16: 0
B17: 1.9 Proyecto de Ampliación del Sistema de Ayudas Luminosas en el Aeropuerto Internacional del Cusco | C17: 2013 | D17: -3105466.923 | E17: A | F17: =+D17*(1+'Panel de control'!$H$45) -> -3105466.923 | G17: 0.1 | H17: 10 | I17: -310546.6923 | J17: 469056.4587 | K17: 2023 | L17: 5 | M17: 1858164.296 | N17: 0 | O17: -310546.6923 | P17: -310546.6923 | Q17: -310546.6923 | R17: -310546.6923 | S17: -310546.6923 | T17: 0 | U17: -3105466.923 | V17: 0 | W17: 0 | X17: 0 | Y17: 0
B18: 1.4 Adquisición de Aeronave de Inspección en Vuelo (incluye UP Grade de Consola ADFIS - 14). | C18: 2014 | D18: -8533407 | F18: =+D18*(1+'Panel de control'!$H$45) -> -8533407 | G18: 0.05 | H18: 20 | I18: -426670.35 | J18: 888541.8484 | K18: 2034 | L18: 16 | M18: 7716926.151 | N18: 0 | O18: 0 | P18: -426670.35 | Q18: -426670.35 | R18: -426670.35 | S18: -426670.35 | T18: 0 | U18: 0 | V18: -8533407 | W18: 0 | X18: 0 | Y18: 0
B19: 1.7 Proyecto de Comunicaciones Satelitales VSAT (Mejoramiento de la Conectividad de la Red de Comunicaciones Aeronáuticas de CORPAC S.A.) | C19: 2014 | D19: -5576518 | F19: =+D19*(1+'Panel de control'!$H$45) -> -5576518 | G19: 0.1 | H19: 10 | I19: -557651.8 | J19: 842289.3722 | K19: 2024 | L19: 6 | M19: 3858791.624 | N19: 0 | O19: 0 | P19: -557651.8 | Q19: -557651.8 | R19: -557651.8 | S19: -557651.8 | T19: 0 | U19: 0 | V19: -5576518 | W19: 0 | X19: 0 | Y19: 0
B20: 1.13 Construcción de la torre de control del Aeródromo de Atalaya. | C20: 2014 | D20: -1500000 | F20: =+D20*(1+'Panel de control'!$H$45) -> -1500000 | G20: 0.05 | H20: 20 | I20: -75000 | J20: 156187.6485 | K20: 2034 | L20: 16 | M20: 1356479.215 | N20: 0 | O20: 0 | P20: -75000 | Q20: -75000 | R20: -75000 | S20: -75000 | T20: 0 | U20: 0 | V20: -1500000 | W20: 0 | X20: 0 | Y20: 0
B21: 1.4 Adquisición de Aeronave de Inspección en Vuelo (incluye UP Grade de Consola ADFIS - 14). | C21: 2015 | D21: -2939455 | F21: =+D21*(1+'Panel de control'!$H$45) -> -2939455 | G21: 0.05 | H21: 20 | I21: -146972.75 | J21: 306071.0428 | K21: 2035 | L21: 17 | M21: 2737136.118 | N21: 0 | O21: 0 | P21: 0 | Q21: -146972.75 | R21: -146972.75 | S21: -146972.75 | T21: 0 | U21: 0 | V21: 0 | W21: -2939455 | X21: 0 | Y21: 0
B22: 1.5 Adquisición de un Sistema de Vigilancia de Superfície para el Aeropuerto Internacional Jorge Chávez. | C22: 2015 | D22: -360000 | F22: =+D22*(1+'Panel de control'!$H$45) -> -360000 | G22: 0.1 | H22: 10 | I22: -36000 | J22: 54375.18071 | K22: 2025 | L22: 7 | M22: 280230.0288 | N22: 0 | O22: 0 | P22: 0 | Q22: -36000 | R22: -36000 | S22: -36000 | T22: 0 | U22: 0 | V22: 0 | W22: -360000 | X22: 0 | Y22: 0
B23: 1.6 Implantación de Estaciones Automáticas de Observaciones Meteorológicas (AWOS). | C23: 2015 | D23: -348733 | E23: A | F23: =+D23*(1+'Panel de control'!$H$45) -> -348733 | G23: 0.1 | H23: 10 | I23: -34873.3 | J23: 52673.3886 | K23: 2025 | L23: 7 | M23: 271459.6073 | N23: 0 | O23: 0 | P23: 0 | Q23: -34873.3 | R23: -34873.3 | S23: -34873.3 | T23: 0 | U23: 0 | V23: 0 | W23: -348733 | X23: 0 | Y23: 0
B24: 1.7 Proyecto de Comunicaciones Satelitales VSAT (Mejoramiento de la Conectividad de la Red de Comunicaciones Aeronáuticas de CORPAC S.A.) | C24: 2015 | D24: -2323549 | F24: =+D24*(1+'Panel de control'!$H$45) -> -2323549 | G24: 0.1 | H24: 10 | I24: -232354.9 | J24: 350953.8799 | K24: 2025 | L24: 7 | M24: 1808689.453 | N24: =+IF(N$7>$C24,$I24,0) -> 0 | O24: 0 | P24: 0 | Q24: -232354.9 | R24: -232354.9 | S24: -232354.9 | T24: =+IF(T$7=$C24,$F24,0) -> 0 | U24: 0 | V24: 0 | W24: -2323549 | X24: 0 | Y24: 0
B25: 1.10 Construcción de la nueva torre de control del Aeropuerto de Puerto Maldonado. | C25: 2015 | D25: -2100000 | F25: =+D25*(1+'Panel de control'!$H$45) -> -2100000 | G25: 0.05 | H25: 20 | I25: -105000 | J25: 218662.7078 | K25: 2035 | L25: 17 | M25: 1955459.719 | N25: 0 | O25: 0 | P25: 0 | Q25: -105000 | R25: -105000 | S25: -105000 | T25: 0 | U25: 0 | V25: 0 | W25: -2100000 | X25: 0 | Y25: 0
B26: 1.12 Construcción de la nueva torre de control del Aeropuerto de Iquitos. | C26: 2015 | D26: -1500000 | F26: =+D26*(1+'Panel de control'!$H$45) -> -1500000 | G26: 0.05 | H26: 20 | I26: -75000 | J26: 156187.6485 | K26: 2035 | L26: 17 | M26: 1396756.942 | N26: 0 | O26: 0 | P26: 0 | Q26: -75000 | R26: -75000 | S26: -75000 | T26: 0 | U26: 0 | V26: 0 | W26: -1500000 | X26: 0 | Y26: 0
B27: 1.5 Adquisición de un Sistema de Vigilancia de Superfície para el Aeropuerto Internacional Jorge Chávez. | C27: 2016 | D27: -1440000 | F27: =+D27*(1+'Panel de control'!$H$45) -> -1440000 | G27: 0.1 | H27: 10 | I27: -144000 | J27: 217500.7228 | K27: 2026 | L27: 8 | M27: 1235862.728 | N27: 0 | O27: 0 | P27: 0 | Q27: 0 | R27: -144000 | S27: -144000 | T27: 0 | U27: 0 | V27: 0 | W27: 0 | X27: -1440000 | Y27: 0
B28: 1.6 Implantación de Estaciones Automáticas de Observaciones Meteorológicas (AWOS). | C28: 2016 | D28: -1743665 | E28: A | F28: =+D28*(1+'Panel de control'!$H$45) -> -1743665 | G28: 0.1 | H28: 10 | I28: -174366.5 | J28: 263366.943 | K28: 2026 | L28: 8 | M28: 1496479.572 | N28: 0 | O28: 0 | P28: 0 | Q28: 0 | R28: -174366.5 | S28: -174366.5 | T28: 0 | U28: 0 | V28: 0 | W28: 0 | X28: -1743665 | Y28: 0
B29: 1.8 Proyecto de Comunicaciones Satelitales VSAT (Mejoramiento de la Conectividad de la Red de Comunicaciones Aeronáuticas de CORPAC S.A.) - II ETAPA | C29: 2016 | D29: -1060000 | F29: =+D29*(1+'Panel de control'!$H$45) -> -1060000 | G29: 0.1 | H29: 10 | I29: -106000 | J29: 160104.6988 | K29: 2026 | L29: 8 | M29: 909732.2861 | N29: 0 | O29: 0 | P29: 0 | Q29: 0 | R29: -106000 | S29: -106000 | T29: 0 | U29: 0 | V29: 0 | W29: 0 | X29: -1060000 | Y29: 0
B30: 1.11 Construcción de la nueva torre de control del Aeropuerto de Tarapoto. | C30: 2016 | D30: -1500000 | F30: =+D30*(1+'Panel de control'!$H$45) -> -1500000 | G30: 0.05 | H30: 20 | I30: -75000 | J30: 156187.6485 | K30: 2036 | L30: 18 | M30: 1433948.34 | N30: 0 | O30: 0 | P30: 0 | Q30: 0 | R30: -75000 | S30: -75000 | T30: 0 | U30: 0 | V30: 0 | W30: 0 | X30: -1500000 | Y30: 0
B31: 1.14 Construcción de la torre de control del Aeródromo de Huánuco. | C31: 2016 | D31: -1500000 | F31: =+D31*(1+'Panel de control'!$H$45) -> -1500000 | G31: 0.05 | H31: 20 | I31: -75000 | J31: 156187.6485 | K31: 2036 | L31: 18 | M31: 1433948.34 | N31: 0 | O31: 0 | P31: 0 | Q31: 0 | R31: -75000 | S31: -75000 | T31: 0 | U31: 0 | V31: 0 | W31: 0 | X31: -1500000 | Y31: 0
B32: 1.15 Construcción torres de control de los Aeropuertos de Jauja y Mazamari | C32: 2016 | D32: -1500000 | F32: =+D32*(1+'Panel de control'!$H$45) -> -1500000 | G32: 0.05 | H32: 20 | I32: -75000 | J32: =PMT(wacc,H32,F32) -> 156187.6485 | K32: 2036 | L32: 18 | M32: 1433948.34 | N32: 0 | O32: 0 | P32: 0 | Q32: 0 | R32: -75000 | S32: -75000 | T32: 0 | U32: 0 | V32: 0 | W32: 0 | X32: -1500000 | Y32: 0
B33: 1.6 Implantación de Estaciones Automáticas de Observaciones Meteorológicas (AWOS). | C33: 2017 | D33: -1394932 | E33: A | F33: =+D33*(1+'Panel de control'!$H$45) -> -1394932 | G33: 0.1 | H33: 10 | I33: -139493.2 | J33: 210693.5544 | K33: 2027 | L33: 9 | M33: 1299996.924 | N33: 0 | O33: 0 | P33: 0 | Q33: 0 | R33: 0 | S33: -139493.2 | T33: 0 | U33: 0 | V33: 0 | W33: 0 | X33: 0 | Y33: -1394932
B34: 1.8 Proyecto de Comunicaciones Satelitales VSAT (Mejoramiento de la Conectividad de la Red de Comunicaciones Aeronáuticas de CORPAC S.A.) - II ETAPA | C34: 2017 | D34: -4240000 | F34: =+D34*(1+'Panel de control'!$H$45) -> -4240000 | G34: 0.1 | H34: 10 | I34: -424000 | J34: =PMT(wacc,H34,F34) -> 640418.795 | K34: 2027 | L34: 9 | M34: 3951437.746 | N34: 0 | O34: 0 | P34: 0 | Q34: 0 | R34: 0 | S34: -424000 | T34: 0 | U34: 0 | V34: 0 | W34: 0 | X34: 0 | Y34: -4240000
B35: 1.15 Construcción torres de control de los Aeropuertos de Jauja y Mazamari | C35: 2017 | D35: -1500000 | F35: =+D35*(1+'Panel de control'!$H$45) -> -1500000 | G35: 0.05 | H35: 20 | I35: -75000 | J35: =PMT(wacc,H35,F35) -> 156187.6485 | K35: 2037 | L35: 19 | M35: 1468289.902 | N35: 0 | O35: 0 | P35: 0 | Q35: 0 | R35: 0 | S35: -75000 | T35: 0 | U35: 0 | V35: 0 | W35: 0 | X35: 0 | Y35: -1500000
B36: Total General | D36: =SUM(D8:D35) -> -90793959.65 | F36: =SUM(F8:F35) -> -90793959.65 | I36: =SUM(I8:I35) -> -5895361.717 | J36: =SUM(J8:J35) -> 10726005.43 | M36: =SUM(M8:M35) -> 75883012.19 | N36: -2031355.359 | O36: -2917978.917 | P36: -3977301.067 | Q36: -4607502.017 | R36: -5256868.517 | S36: -5895361.717 | T36: -40013086.81 | U36: -9720613.846 | V36: -15609925 | W36: -9571737 | X36: -8743665 | Y36: -7134932
B37: Solo aproximación | D37: =+SUMIFS(D8:D35,$E$8:$E$35,"A") -> -11219851.15 | F37: =+SUMIFS(F8:F35,$E$8:$E$35,"A") -> -11219851.15 | I37: =+SUMIFS(I8:I35,$E$8:$E$35,"A") -> -1053241.154 | J37: =+SUMIFS(J8:J35,$E$8:$E$35,"A") -> 1630165.345 | M37: =+SUMIFS(M8:M35,$E$8:$E$35,"A") -> 7969842.539 | N37: -130146 | O37: -704508.1538 | P37: -704508.1538 | Q37: -739381.4538 | R37: -913747.9538 | S37: -1053241.154 | T37: -1988899.615 | U37: -5743621.538 | V37: 0 | W37: -348733 | X37: -1743665 | Y37: -1394932
B38: Total - aproximación | D38: =+D36-D37 -> -79574108.5 | F38: =+F36-F37 -> -79574108.5 | I38: =+I36-I37 -> -4842120.563 | J38: =+J36-J37 -> 9095840.087 | M38: =+M36-M37 -> 67913169.65 | N38: =+N36-N37 -> -1901209.359 | O38: -2213470.763 | P38: -3272792.913 | Q38: -3868120.563 | R38: -4343120.563 | S38: -4842120.563 | T38: -38024187.19 | U38: -3976992.308 | V38: -15609925 | W38: -9223004 | X38: -7000000 | Y38: -5740000
B40: NUEVAS INVERSIONES No ligadas a proyectos (REPOSICIONES) | N40: Depreciación | T40: Inversión
B41: DESCRIPCIÓN DEL ACTIVO | C41: Año de adquisición | D41: VALOR ADQUISICIÓN (US$) | E41: servicio | F41: VALOR ADQUISICIÓN | G41: Factor de depreciación | H41: VIDA UTIL (años) | I41: DEPRECIACIÓN ANUAL | J41: RPI | K41: Fin vida útil | L41: periodos | M41: VA RPI actualizado al último periodo | N41: 2013 | O41: 2014 | P41: 2015 | Q41: 2016 | R41: 2017 | S41: 2018 | T41: 2012 | U41: 2013 | V41: 2014 | W41: 2015 | X41: 2016 | Y41: 2017
B42: - Sistemas de grabaciòn - Nivel nacional. | C42: 2012 | D42: =-1169100/2.6 -> -449653.8462 | F42: =+D42*(1+'Panel de control'!$L$45) -> -449653.8462 | G42: =1/H42 -> 0.1 | H42: 10 | I42: =+F42/H42 -> -44965.38462 | J42: =PMT(wacc,H42,F42) -> 67916.69206 | K42: =C42+H42 -> 2022 | L42: =K42-$C$4 -> 4 | M42: =-PV(wacc,L42,J42) -> 223462.1214 | N42: =+IF(N$7>$C42,$I42,0) -> -44965.38462 | O42: -44965.38462 | P42: -44965.38462 | Q42: -44965.38462 | R42: -44965.38462 | S42: -44965.38462 | T42: =+IF(T$7=$C42,$F42,0) -> -449653.8462 | U42: 0 | V42: 0 | W42: 0 | X42: 0 | Y42: 0
B43: - Equipos diversos- Nivel Nacional. | C43: 2012 | D43: =-541900/2.6 -> -208423.0769 | F43: =+D43*(1+'Panel de control'!$L$45) -> -208423.0769 | G43: =1/H43 -> 0.1 | H43: 10 | I43: -20842.30769 | J43: =PMT(wacc,H43,F43) -> 31480.67353 | K43: 2022 | L43: =K43-$C$4 -> 4 | M43: 103578.927 | N43: -20842.30769 | O43: -20842.30769 | P43: -20842.30769 | Q43: -20842.30769 | R43: -20842.30769 | S43: -20842.30769 | T43: -208423.0769 | U43: 0 | V43: 0 | W43: 0 | X43: 0 | Y43: 0
B44: - Equipos de aire acondicionado para estaciones - Nivel nacional | C44: 2012 | D44: =-104235/2.6 -> -40090.38462 | F44: =+D44*(1+'Panel de control'!$L$45) -> -40090.38462 | G44: 0.1 | H44: 10 | I44: -4009.038462 | J44: =PMT(wacc,H44,F44) -> 6055.338634 | K44: 2022 | L44: 4 | M44: 19923.50888 | N44: -4009.038462 | O44: -4009.038462 | P44: -4009.038462 | Q44: -4009.038462 | R44: -4009.038462 | S44: -4009.038462 | T44: -40090.38462 | U44: 0 | V44: 0 | W44: 0 | X44: 0 | Y44: 0
B45: - Reposición letreros señalización vertical para radioayudas | C45: 2012 | D45: =-252041/2.6 -> -96938.84615 | F45: =+D45*(1+'Panel de control'!$L$45) -> -96938.84615 | G45: 0.1 | H45: 10 | I45: -9693.884615 | J45: =PMT(wacc,H45,F45) -> 14641.85355 | K45: 2022 | L45: 4 | M45: 48175.19164 | N45: -9693.884615 | O45: -9693.884615 | P45: -9693.884615 | Q45: -9693.884615 | R45: -9693.884615 | S45: -9693.884615 | T45: -96938.84615 | U45: 0 | V45: 0 | W45: 0 | X45: 0 | Y45: 0
B46: - Estudios, equipos diversos,obras e instalación - Nivel nacional. | C46: 2012 | D46: -302112 | F46: =+D46*(1+'Panel de control'!$L$45) -> -302112 | G46: 0.1 | H46: 10 | I46: -30211.2 | J46: =PMT(wacc,H46,F46) -> 45631.65165 | K46: 2022 | L46: 4 | M46: 150139.0214 | N46: -30211.2 | O46: -30211.2 | P46: -30211.2 | Q46: -30211.2 | R46: -30211.2 | S46: -30211.2 | T46: -302112 | U46: 0 | V46: 0 | W46: 0 | X46: 0 | Y46: 0
B47: - Adquisición ILS CAT III - Aeropuerto Jorge Chávez. | C47: 2012 | D47: =-1674153/2.6 -> -643905 | E47: A | F47: =+D47*(1+'Panel de control'!$L$45) -> -643905 | G47: 0.1 | H47: 10 | I47: -64390.5 | J47: 97256.8076 | K47: 2022 | L47: 4 | M47: 319998.1019 | N47: -64390.5 | O47: -64390.5 | P47: -64390.5 | Q47: -64390.5 | R47: -64390.5 | S47: -64390.5 | T47: -643905 | U47: 0 | V47: 0 | W47: 0 | X47: 0 | Y47: 0
B48: - Equipos diversos, obras e instalación - Nivel nacional. | C48: 2012 | D48: =-438991/2.6 -> -168842.6923 | F48: =+D48*(1+'Panel de control'!$L$45) -> -168842.6923 | G48: 0.1 | H48: 10 | I48: -16884.26923 | J48: 25502.3664 | K48: 2022 | L48: 4 | M48: 83908.87019 | N48: -16884.26923 | O48: -16884.26923 | P48: -16884.26923 | Q48: -16884.26923 | R48: -16884.26923 | S48: -16884.26923 | T48: -168842.6923 | U48: 0 | V48: 0 | W48: 0 | X48: 0 | Y48: 0
B49: - Construcción y/o remodelacion casa de fuerza - Nivel nacional. | C49: 2012 | D49: =-162335/2.6 -> -62436.53846 | F49: =+D49*(1+'Panel de control'!$L$45) -> -62436.53846 | G49: 0.1 | H49: 10 | I49: -6243.653846 | J49: 9430.550172 | K49: 2022 | L49: 4 | M49: 31028.76014 | N49: -6243.653846 | O49: -6243.653846 | P49: -6243.653846 | Q49: -6243.653846 | R49: -6243.653846 | S49: -6243.653846 | T49: -62436.53846 | U49: 0 | V49: 0 | W49: 0 | X49: 0 | Y49: 0
B50: - Equipos diversos y gastos de instalación. | C50: 2012 | D50: =-319582/2.6 -> -122916.1538 | F50: =+D50*(1+'Panel de control'!$L$45) -> -122916.1538 | G50: 0.1 | H50: 10 | I50: -12291.61538 | J50: 18565.52244 | K50: 2022 | L50: 4 | M50: 61084.99845 | N50: -12291.61538 | O50: -12291.61538 | P50: -12291.61538 | Q50: -12291.61538 | R50: -12291.61538 | S50: -12291.61538 | T50: -122916.1538 | U50: 0 | V50: 0 | W50: 0 | X50: 0 | Y50: 0
B51: - Instalación estaciones VHF-AA para TWR/APP (Huánuco, Cajamarca, Trujillo) | C51: 2012 | D51: =-29897/2.6 -> -11498.84615 | F51: =+D51*(1+'Panel de control'!$L$45) -> -11498.84615 | G51: 0.1 | H51: 10 | I51: -1149.884615 | J51: 1736.81066 | K51: 2022 | L51: 4 | M51: 5714.521464 | N51: -1149.884615 | O51: -1149.884615 | P51: -1149.884615 | Q51: -1149.884615 | R51: -1149.884615 | S51: -1149.884615 | T51: -11498.84615 | U51: 0 | V51: 0 | W51: 0 | X51: 0 | Y51: 0
B52: - Renovación del Sistema Automático AWOS III (Lima). | C52: 2012 | D52: =-464304/2.6 -> -178578.4615 | F52: =+D52*(1+'Panel de control'!$L$45) -> -178578.4615 | G52: 0.1 | H52: 10 | I52: -17857.84615 | J52: 26972.8781 | K52: 2022 | L52: 4 | M52: 88747.20454 | N52: -17857.84615 | O52: -17857.84615 | P52: -17857.84615 | Q52: -17857.84615 | R52: -17857.84615 | S52: -17857.84615 | T52: -178578.4615 | U52: 0 | V52: 0 | W52: 0 | X52: 0 | Y52: 0
B53: - Equipos diversos de meteorologìa - Nivel nacional. | C53: 2012 | D53: =-164249/2.6 -> -63172.69231 | F53: =+D53*(1+'Panel de control'!$L$45) -> -63172.69231 | G53: 0.1 | H53: 10 | I53: -6317.269231 | J53: 9541.740445 | K53: 2022 | L53: 4 | M53: 31394.60267 | N53: -6317.269231 | O53: -6317.269231 | P53: -6317.269231 | Q53: -6317.269231 | R53: -6317.269231 | S53: -6317.269231 | T53: -63172.69231 | U53: 0 | V53: 0 | W53: 0 | X53: 0 | Y53: 0
B54: - Adquisición de equipos de cómputo. | C54: 2012 | D54: =-223975/2.6 -> -86144.23077 | F54: =+D54*(1+'Panel de control'!$L$45) -> -86144.23077 | G54: 0.1 | H54: 10 | I54: -8614.423077 | J54: 13011.41143 | K54: 2022 | L54: 4 | M54: 42810.64806 | N54: -8614.423077 | O54: -8614.423077 | P54: -8614.423077 | Q54: -8614.423077 | R54: -8614.423077 | S54: -8614.423077 | T54: -86144.23077 | U54: 0 | V54: 0 | W54: 0 | X54: 0 | Y54: 0
B55: - Adquisición de sistemas y/o licencias. | C55: 2012 | D55: =-431642/2.6 -> -166016.1538 | F55: =+D55*(1+'Panel de control'!$L$45) -> -166016.1538 | G55: 0.1 | H55: 10 | I55: -16601.61538 | J55: 25075.43991 | K55: 2022 | L55: 4 | M55: 82504.18015 | N55: -16601.61538 | O55: -16601.61538 | P55: -16601.61538 | Q55: -16601.61538 | R55: -16601.61538 | S55: -16601.61538 | T55: -166016.1538 | U55: 0 | V55: 0 | W55: 0 | X55: 0 | Y55: 0
B56: - Otras inversiones TIC. | C56: 2012 | D56: =-42022/2.6 -> -16162.30769 | F56: =+D56*(1+'Panel de control'!$L$45) -> -16162.30769 | G56: 0.1 | H56: 10 | I56: -1616.230769 | J56: 2441.190004 | K56: 2022 | L56: 4 | M56: 8032.097568 | N56: -1616.230769 | O56: -1616.230769 | P56: -1616.230769 | Q56: -1616.230769 | R56: -1616.230769 | S56: -1616.230769 | T56: -16162.30769 | U56: 0 | V56: 0 | W56: 0 | X56: 0 | Y56: 0
B57: - Sistema automatizado de Información Aeronáutica | C57: 2012 | D57: =-5385156/2.6 -> -2071213.846 | F57: =+D57*(1+'Panel de control'!$L$45) -> -2071213.846 | G57: 0.1 | H57: 10 | I57: -207121.3846 | J57: 312840.631 | K57: 2022 | L57: 4 | M57: 1029320.318 | N57: -207121.3846 | O57: -207121.3846 | P57: -207121.3846 | Q57: -207121.3846 | R57: -207121.3846 | S57: -207121.3846 | T57: -2071213.846 | U57: 0 | V57: 0 | W57: 0 | X57: 0 | Y57: 0
B58: - Gastos complementarios Proyecto PER/08/802 | C58: 2012 | D58: =-1153762/2.6 -> -443754.6154 | F58: =+D58*(1+'Panel de control'!$L$45) -> -443754.6154 | G58: 0.1 | H58: 10 | I58: -44375.46154 | J58: 67025.65945 | K58: 2022 | L58: 4 | M58: 220530.4115 | N58: =+IF(N$7>$C58,$I58,0) -> -44375.46154 | O58: -44375.46154 | P58: -44375.46154 | Q58: -44375.46154 | R58: -44375.46154 | S58: -44375.46154 | T58: =+IF(T$7=$C58,$F58,0) -> -443754.6154 | U58: 0 | V58: 0 | W58: 0 | X58: 0 | Y58: 0
B59: - Investigación,capacitación y actualización tecnológica GREPECAS | C59: 2012 | D59: -67795 | F59: =+D59*(1+'Panel de control'!$L$45) -> -67795 | G59: 0.1 | H59: 10 | I59: -6779.5 | J59: 10239.90382 | K59: 2022 | L59: 4 | M59: 33691.72676 | N59: -6779.5 | O59: -6779.5 | P59: -6779.5 | Q59: -6779.5 | R59: -6779.5 | S59: -6779.5 | T59: -67795 | U59: 0 | V59: 0 | W59: 0 | X59: 0 | Y59: 0
B60: - Equipos de radio VHF TWR -Dual - Nivel nacional | C60: 2013 | D60: -193456.1538 | F60: =+D60*(1+'Panel de control'!$L$45) -> -193456.1538 | G60: =1/H60 -> 0.1 | H60: 10 | I60: -19345.61538 | J60: 29220.03701 | K60: 2023 | L60: 5 | M60: 115754.9981 | N60: 0 | O60: -19345.61538 | P60: -19345.61538 | Q60: -19345.61538 | R60: -19345.61538 | S60: -19345.61538 | T60: 0 | U60: -193456.1538 | V60: 0 | W60: 0 | X60: 0 | Y60: 0
B61: - Sistemas de grabaciòn - Nivel nacional. | C61: 2013 | D61: -58496.15385 | F61: =+D61*(1+'Panel de control'!$L$45) -> -58496.15385 | G61: =1/H61 -> 0.1 | H61: 10 | I61: -5849.615385 | J61: 8835.385934 | K61: 2023 | L61: 5 | M61: 35001.32741 | N61: 0 | O61: -5849.615385 | P61: -5849.615385 | Q61: -5849.615385 | R61: -5849.615385 | S61: -5849.615385 | T61: 0 | U61: -58496.15385 | V61: 0 | W61: 0 | X61: 0 | Y61: 0
B62: - Sistemas ATIS (Lima, Cuzco, Arequipa, Pucallpa, Chiclayo y Tarapoto). | C62: 2013 | D62: -111783.4615 | F62: =+D62*(1+'Panel de control'!$L$45) -> -111783.4615 | G62: 0.1 | H62: 10 | I62: -11178.34615 | J62: 16884.01645 | K62: 2023 | L62: 5 | M62: 66885.92803 | N62: 0 | O62: -11178.34615 | P62: -11178.34615 | Q62: -11178.34615 | R62: -11178.34615 | S62: -11178.34615 | T62: 0 | U62: -111783.4615 | V62: 0 | W62: 0 | X62: 0 | Y62: 0
B63: - Equipos HF tierra-aire | C63: 2013 | D63: -71076.92308 | F63: =+D63*(1+'Panel de control'!$L$45) -> -71076.92308 | G63: 0.1 | H63: 10 | I63: -7107.692308 | J63: 10735.6126 | K63: 2023 | L63: 5 | M63: 42529.06375 | N63: 0 | O63: -7107.692308 | P63: -7107.692308 | Q63: -7107.692308 | R63: -7107.692308 | S63: -7107.692308 | T63: 0 | U63: -71076.92308 | V63: 0 | W63: 0 | X63: 0 | Y63: 0
B64: - Terminales AMHS | C64: 2013 | D64: -42307.69231 | F64: =+D64*(1+'Panel de control'!$L$45) -> -42307.69231 | G64: 0.1 | H64: 10 | I64: -4230.769231 | J64: =PMT(wacc,H64,F64) -> 6390.245596 | K64: 2023 | L64: 5 | M64: 25314.9189 | N64: 0 | O64: -4230.769231 | P64: -4230.769231 | Q64: -4230.769231 | R64: -4230.769231 | S64: -4230.769231 | T64: 0 | U64: -42307.69231 | V64: 0 | W64: 0 | X64: 0 | Y64: 0
B65: - Renovación central de canales orales ATS | C65: 2013 | D65: -12692 | F65: =+D65*(1+'Panel de control'!$L$45) -> -12692 | G65: 0.1 | H65: 10 | I65: -1269.2 | J65: 1917.027204 | K65: 2023 | L65: 5 | M65: 7594.29156 | N65: 0 | O65: -1269.2 | P65: -1269.2 | Q65: -1269.2 | R65: -1269.2 | S65: -1269.2 | T65: 0 | U65: -12692 | V65: 0 | W65: 0 | X65: 0 | Y65: 0
B66: - Interfase para sistemas AMHS | C66: 2013 | D66: -11635 | F66: =+D66*(1+'Panel de control'!$L$45) -> -11635 | G66: 0.1 | H66: 10 | I66: -1163.5 | J66: 1757.375632 | K66: 2023 | L66: 5 | M66: 6961.832832 | N66: 0 | O66: -1163.5 | P66: -1163.5 | Q66: -1163.5 | R66: -1163.5 | S66: -1163.5 | T66: 0 | U66: -11635 | V66: 0 | W66: 0 | X66: 0 | Y66: 0
B67: - Equipos diversos- Nivel Nacional. | C67: 2013 | D67: -636855.3846 | F67: =+D67*(1+'Panel de control'!$L$45) -> -636855.3846 | G67: 0.1 | H67: 10 | I67: -63685.53846 | J67: 96192.0184 | K67: 2023 | L67: 5 | M67: 381064.0933 | N67: 0 | O67: -63685.53846 | P67: -63685.53846 | Q67: -63685.53846 | R67: -63685.53846 | S67: -63685.53846 | T67: 0 | U67: -636855.3846 | V67: 0 | W67: 0 | X67: 0 | Y67: 0
B68: - Sistemas UPS para equipos de comunicaciones a nivel nacional | C68: 2013 | D68: -95906.15385 | F68: =+D68*(1+'Panel de control'!$L$45) -> -95906.15385 | G68: 0.1 | H68: 10 | I68: -9590.615385 | J68: 14485.87346 | K68: 2023 | L68: 5 | M68: 57385.69924 | N68: 0 | O68: -9590.615385 | P68: -9590.615385 | Q68: -9590.615385 | R68: -9590.615385 | S68: -9590.615385 | T68: 0 | U68: -95906.15385 | V68: 0 | W68: 0 | X68: 0 | Y68: 0
B69: - Equipos de aire acondicionado para estaciones - Nivel nacional | C69: 2013 | D69: -63076.92308 | F69: =+D69*(1+'Panel de control'!$L$45) -> -63076.92308 | G69: 0.1 | H69: 10 | I69: -6307.692308 | J69: 9527.275253 | K69: 2023 | L69: 5 | M69: 37742.24272 | N69: 0 | O69: -6307.692308 | P69: -6307.692308 | Q69: -6307.692308 | R69: -6307.692308 | S69: -6307.692308 | T69: 0 | U69: -63076.92308 | V69: 0 | W69: 0 | X69: 0 | Y69: 0
B70: - Luces de borde pista renovación Jorge Chávez | C70: 2013 | D70: -132712 | F70: =+D70*(1+'Panel de control'!$L$45) -> -132712 | G70: 0.1 | H70: 10 | I70: -13271.2 | J70: 20045.10828 | K70: 2023 | L70: 5 | M70: 79408.57403 | N70: 0 | O70: -13271.2 | P70: -13271.2 | Q70: -13271.2 | R70: -13271.2 | S70: -13271.2 | T70: 0 | U70: -132712 | V70: 0 | W70: 0 | X70: 0 | Y70: 0
B71: - Estudios, equipos diversos,obras e instalación - Nivel nacional. | C71: 2013 | D71: -840932 | F71: =+D71*(1+'Panel de control'!$L$45) -> -840932 | G71: 0.1 | H71: 10 | I71: -84093.2 | J71: 127016.193 | K71: 2023 | L71: 5 | M71: 503173.8726 | N71: 0 | O71: -84093.2 | P71: -84093.2 | Q71: -84093.2 | R71: -84093.2 | S71: -84093.2 | T71: 0 | U71: -840932 | V71: 0 | W71: 0 | X71: 0 | Y71: 0
B72: - Adquisición Sistemas VOR/DME (Asia). | C72: 2013 | D72: -211819 | F72: =+D72*(1+'Panel de control'!$L$45) -> -211819 | G72: 0.1 | H72: 10 | I72: -21181.9 | J72: 31993.60112 | K72: 2023 | L72: 5 | M72: 126742.4554 | N72: 0 | O72: -21181.9 | P72: -21181.9 | Q72: -21181.9 | R72: -21181.9 | S72: -21181.9 | T72: 0 | U72: -211819 | V72: 0 | W72: 0 | X72: 0 | Y72: 0
B73: - Renovación de Sistemas de Radioayudas: | C73: 2013 | D73: -1299522 | F73: =+D73*(1+'Panel de control'!$L$45) -> -1299522 | G73: 0.1 | H73: 10 | I73: -129952.2 | J73: 196282.6211 | K73: 2023 | L73: 5 | M73: 777572.4044 | N73: 0 | O73: -129952.2 | P73: -129952.2 | Q73: -129952.2 | R73: -129952.2 | S73: -129952.2 | T73: 0 | U73: -1299522 | V73: 0 | W73: 0 | X73: 0 | Y73: 0
B74: - Equipos diversos, obras e instalación - Nivel nacional. | C74: 2013 | D74: -1037833.846 | F74: =+D74*(1+'Panel de control'!$L$45) -> -1037833.846 | G74: 0.1 | H74: 10 | I74: -103783.3846 | J74: 156756.6748 | K74: 2023 | L74: 5 | M74: =-PV(wacc,L74,J74) -> 620990.6098 | N74: =+IF(N$7>$C74,$I74,0) -> 0 | O74: -103783.3846 | P74: -103783.3846 | Q74: -103783.3846 | R74: -103783.3846 | S74: -103783.3846 | T74: =+IF(T$7=$C74,$F74,0) -> 0 | U74: -1037833.846 | V74: 0 | W74: 0 | X74: 0 | Y74: 0
B75: - Grupos electrógenos - Nivel nacional. | C75: 2013 | D75: -402083.0769 | F75: =+D75*(1+'Panel de control'!$L$45) -> -402083.0769 | G75: 0.1 | H75: 10 | I75: -40208.30769 | J75: 60731.49991 | K75: 2023 | L75: 5 | M75: 240587.4659 | N75: 0 | O75: -40208.30769 | P75: -40208.30769 | Q75: -40208.30769 | R75: -40208.30769 | S75: -40208.30769 | T75: 0 | U75: -402083.0769 | V75: 0 | W75: 0 | X75: 0 | Y75: 0
B76: - Construcción y/o remodelacion casa de fuerza - Nivel nacional. | C76: 2013 | D76: -3884.615385 | F76: =+D76*(1+'Panel de control'!$L$45) -> -3884.615385 | G76: 0.05 | H76: 20 | I76: -194.2307692 | J76: 404.4859614 | K76: 2033 | L76: 15 | M76: 3399.968281 | N76: 0 | O76: -194.2307692 | P76: -194.2307692 | Q76: -194.2307692 | R76: -194.2307692 | S76: -194.2307692 | T76: 0 | U76: -3884.615385 | V76: 0 | W76: 0 | X76: 0 | Y76: 0
B77: - Equipos diversos y gastos de instalación. | C77: 2013 | D77: -230786.1538 | F77: =+D77*(1+'Panel de control'!$L$45) -> -230786.1538 | G77: 0.1 | H77: 10 | I77: -23078.61538 | J77: 34858.44117 | K77: 2023 | L77: 5 | M77: 138091.5018 | N77: 0 | O77: -23078.61538 | P77: -23078.61538 | Q77: -23078.61538 | R77: -23078.61538 | S77: -23078.61538 | T77: 0 | U77: -230786.1538 | V77: 0 | W77: 0 | X77: 0 | Y77: 0
B78: - Instalación estaciones VHF-AA para TWR/APP (Huánuco,Cajamarca, Trujillo) | C78: 2013 | D78: -47307.69231 | F78: =+D78*(1+'Panel de control'!$L$45) -> -47307.69231 | G78: 0.1 | H78: 10 | I78: -4730.769231 | J78: 7145.456439 | K78: 2023 | L78: 5 | M78: 28306.68204 | N78: 0 | O78: -4730.769231 | P78: -4730.769231 | Q78: -4730.769231 | R78: -4730.769231 | S78: -4730.769231 | T78: 0 | U78: -47307.69231 | V78: 0 | W78: 0 | X78: 0 | Y78: 0
B79: - Renovación equipos e instrumentos meteorológicos- Niv. Nac. - Fase I | C79: 2013 | D79: -299031 | F79: =+D79*(1+'Panel de control'!$L$45) -> -299031 | G79: 0.1 | H79: 10 | I79: -29903.1 | J79: 45166.29073 | K79: 2023 | L79: 5 | M79: 178925.9848 | N79: 0 | O79: -29903.1 | P79: -29903.1 | Q79: -29903.1 | R79: -29903.1 | S79: -29903.1 | T79: 0 | U79: -299031 | V79: 0 | W79: 0 | X79: 0 | Y79: 0
B80: - Renovación Sistema Mundial Pronostico Área WAFS (Lima). | C80: 2013 | D80: -67218.46154 | F80: =+D80*(1+'Panel de control'!$L$45) -> -67218.46154 | G80: 0.1 | H80: 10 | I80: -6721.846154 | J80: 10152.8222 | K80: 2023 | L80: 5 | M80: 40220.34314 | N80: 0 | O80: -6721.846154 | P80: -6721.846154 | Q80: -6721.846154 | R80: -6721.846154 | S80: -6721.846154 | T80: 0 | U80: -67218.46154 | V80: 0 | W80: 0 | X80: 0 | Y80: 0
B81: - Renovaciòn sistema GVAR (Lima). | C81: 2013 | D81: -15637.69231 | F81: =+D81*(1+'Panel de control'!$L$45) -> -15637.69231 | G81: 0.1 | H81: 10 | I81: -1563.769231 | J81: 2361.950959 | K81: 2023 | L81: 5 | M81: 9356.854295 | N81: 0 | O81: -1563.769231 | P81: -1563.769231 | Q81: -1563.769231 | R81: -1563.769231 | S81: -1563.769231 | T81: 0 | U81: -15637.69231 | V81: 0 | W81: 0 | X81: 0 | Y81: 0
B82: - Equipos diversos de meteorologìa - Nivel nacional. | C82: 2013 | D82: -226576.8 | F82: =+D82*(1+'Panel de control'!$L$45) -> -226576.8 | G82: 0.1 | H82: 10 | I82: -22657.68 | J82: 34222.65124 | K82: 2023 | L82: 5 | M82: 135572.8238 | N82: 0 | O82: -22657.68 | P82: -22657.68 | Q82: -22657.68 | R82: -22657.68 | S82: -22657.68 | T82: 0 | U82: -226576.8 | V82: 0 | W82: 0 | X82: 0 | Y82: 0
B83: - Adquisición de equipos, hardware y software. | C83: 2013 | D83: -806120.7 | F83: =+D83*(1+'Panel de control'!$L$45) -> -806120.7 | G83: 0.2 | H83: 5 | I83: -161224.14 | J83: 203489.068 | K83: 2018 | L83: 0 | M83: 0 | N83: 0 | O83: -161224.14 | P83: -161224.14 | Q83: -161224.14 | R83: -161224.14 | S83: -161224.14 | T83: 0 | U83: -806120.7 | V83: 0 | W83: 0 | X83: 0 | Y83: 0
B84: - Sistema de Gestión Administrativa de mantenimiento de Equipos de la Gerencia Tecnica. | C84: 2013 | D84: -75623.07692 | F84: =+D84*(1+'Panel de control'!$L$45) -> -75623.07692 | G84: 0.1 | H84: 10 | I84: -7562.307692 | J84: 11422.27354 | K84: 2023 | L84: 5 | M84: 45249.26685 | N84: 0 | O84: -7562.307692 | P84: -7562.307692 | Q84: -7562.307692 | R84: -7562.307692 | S84: -7562.307692 | T84: 0 | U84: -75623.07692 | V84: 0 | W84: 0 | X84: 0 | Y84: 0
B85: - Equipos del Sistema de Vigilancia Aérea. | C85: 2013 | D85: -290253.8462 | F85: =+D85*(1+'Panel de control'!$L$45) -> -290253.8462 | G85: 0.1 | H85: 10 | I85: -29025.38462 | J85: 43840.57038 | K85: 2023 | L85: 5 | M85: 173674.1518 | N85: 0 | O85: -29025.38462 | P85: -29025.38462 | Q85: -29025.38462 | R85: -29025.38462 | S85: -29025.38462 | T85: 0 | U85: -290253.8462 | V85: 0 | W85: 0 | X85: 0 | Y85: 0
B86: - Estudios para elaboración proyecto para implantación nuevos sistemas CNS/ATM | C86: 2013 | D86: -365538 | F86: =+D86*(1+'Panel de control'!$L$45) -> -365538 | G86: 0.1 | H86: 10 | I86: -36553.8 | J86: 55211.65224 | K86: 2023 | L86: 5 | M86: 218720.6231 | N86: 0 | O86: -36553.8 | P86: -36553.8 | Q86: -36553.8 | R86: -36553.8 | S86: -36553.8 | T86: 0 | U86: -365538 | V86: 0 | W86: 0 | X86: 0 | Y86: 0
B87: - Gastos complementarios Proyecto PER/08/802 | C87: 2013 | D87: -96153.84615 | F87: =+D87*(1+'Panel de control'!$L$45) -> -96153.84615 | G87: 0.1 | H87: 10 | I87: -9615.384615 | J87: 14523.28545 | K87: 2023 | L87: 5 | M87: 57533.90658 | N87: 0 | O87: -9615.384615 | P87: -9615.384615 | Q87: -9615.384615 | R87: -9615.384615 | S87: -9615.384615 | T87: 0 | U87: -96153.84615 | V87: 0 | W87: 0 | X87: 0 | Y87: 0
B88: - Investigación,capacitación y actualización tecnológica GREPECAS | C88: 2013 | D88: -269286.9231 | F88: =+D88*(1+'Panel de control'!$L$45) -> -269286.9231 | G88: 0.1 | H88: 10 | I88: -26928.69231 | J88: 40673.68085 | K88: 2023 | L88: 5 | M88: 161128.5382 | N88: 0 | O88: -26928.69231 | P88: -26928.69231 | Q88: -26928.69231 | R88: -26928.69231 | S88: -26928.69231 | T88: 0 | U88: -269286.9231 | V88: 0 | W88: 0 | X88: 0 | Y88: 0
B89: - Inversiones varias a nivel nacional | C89: 2013 | D89: -223885 | F89: =+D89*(1+'Panel de control'!$L$45) -> -223885 | G89: 0.1 | H89: 10 | I89: -22388.5 | J89: 33816.07593 | K89: 2023 | L89: 5 | M89: 133962.1782 | N89: 0 | O89: -22388.5 | P89: -22388.5 | Q89: -22388.5 | R89: -22388.5 | S89: -22388.5 | T89: 0 | U89: -223885 | V89: 0 | W89: 0 | X89: 0 | Y89: 0
B90: - Equipos de radio VHF TWR -Dual - Nivel nacional | C90: 2014 | D90: -1741106 | F90: =+D90*(1+'Panel de control'!$L$45) -> -1741106 | G90: 0.1 | H90: 10 | I90: -174110.6 | J90: 262980.4261 | K90: 2024 | L90: 6 | M90: 1204795.761 | N90: 0 | O90: 0 | P90: -174110.6 | Q90: -174110.6 | R90: -174110.6 | S90: -174110.6 | T90: 0 | U90: 0 | V90: -1741106 | W90: 0 | X90: 0 | Y90: 0
B91: - Sistemas de grabaciòn - Nivel nacional. | C91: 2014 | D91: -526466 | F91: =+D91*(1+'Panel de control'!$L$45) -> -526466 | G91: 0.1 | H91: 10 | I91: -52646.6 | J91: 79518.56635 | K91: 2024 | L91: 6 | M91: 364299.477 | N91: 0 | O91: 0 | P91: -52646.6 | Q91: -52646.6 | R91: -52646.6 | S91: -52646.6 | T91: 0 | U91: 0 | V91: -526466 | W91: 0 | X91: 0 | Y91: 0
B92: - Sistemas ATIS (Lima, Cuzco, Arequipa, Pucallpa, Chiclayo y Tarapoto). | C92: 2014 | D92: -1006052 | F92: =+D92*(1+'Panel de control'!$L$45) -> -1006052 | G92: 0.1 | H92: 10 | I92: -100605.2 | J92: 151956.2758 | K92: 2024 | L92: 6 | M92: 696159.3293 | N92: 0 | O92: 0 | P92: -100605.2 | Q92: -100605.2 | R92: -100605.2 | S92: -100605.2 | T92: 0 | U92: 0 | V92: -1006052 | W92: 0 | X92: 0 | Y92: 0
B93: - Equipos HF tierra-aire | C93: 2014 | D93: -639692 | F93: =+D93*(1+'Panel de control'!$L$45) -> -639692 | G93: 0.1 | H93: 10 | I93: -63969.2 | J93: 96620.46694 | K93: 2024 | L93: 6 | M93: 442648.6441 | N93: 0 | O93: 0 | P93: -63969.2 | Q93: -63969.2 | R93: -63969.2 | S93: -63969.2 | T93: 0 | U93: 0 | V93: -639692 | W93: 0 | X93: 0 | Y93: 0
B94: - Terminales AMHS | C94: 2014 | D94: -84615 | F94: =+D94*(1+'Panel de control'!$L$45) -> -84615 | G94: 0.1 | H94: 10 | I94: -8461.5 | J94: 12780.4331 | K94: 2024 | L94: 6 | M94: 58551.16997 | N94: 0 | O94: 0 | P94: -8461.5 | Q94: -8461.5 | R94: -8461.5 | S94: -8461.5 | T94: 0 | U94: 0 | V94: -84615 | W94: 0 | X94: 0 | Y94: 0
B95: - Renovación central de canales orales ATS | C95: 2014 | D95: -114231 | F95: =+D95*(1+'Panel de control'!$L$45) -> -114231 | G95: 0.1 | H95: 10 | I95: -11423.1 | J95: 17253.69797 | K95: 2024 | L95: 6 | M95: 79044.59843 | N95: 0 | O95: 0 | P95: -11423.1 | Q95: -11423.1 | R95: -11423.1 | S95: -11423.1 | T95: 0 | U95: 0 | V95: -114231 | W95: 0 | X95: 0 | Y95: 0
B96: - Interfase para sistemas AMHS | C96: 2014 | D96: -104711 | F96: =+D96*(1+'Panel de control'!$L$45) -> -104711 | G96: 0.1 | H96: 10 | I96: -10471.1 | J96: =PMT(wacc,H96,F96) -> 15815.77652 | K96: 2024 | L96: 6 | M96: 72457.02958 | N96: 0 | O96: 0 | P96: -10471.1 | Q96: -10471.1 | R96: -10471.1 | S96: -10471.1 | T96: 0 | U96: 0 | V96: -104711 | W96: 0 | X96: 0 | Y96: 0
B97: - Equipos diversos- Nivel Nacional. | C97: 2014 | D97: -250000 | F97: =+D97*(1+'Panel de control'!$L$45) -> -250000 | G97: 0.1 | H97: 10 | I97: -25000 | J97: 37760.54216 | K97: 2024 | L97: 6 | M97: 172992.8794 | N97: 0 | O97: 0 | P97: -25000 | Q97: -25000 | R97: -25000 | S97: -25000 | T97: 0 | U97: 0 | V97: -250000 | W97: 0 | X97: 0 | Y97: 0
B98: - Mejoramiento sistema eléctrico Edificio Radar | C98: 2014 | D98: -96997 | F98: =+D98*(1+'Panel de control'!$L$45) -> -96997 | G98: 0.1 | H98: 10 | I98: -9699.7 | J98: 14650.63723 | K98: 2024 | L98: 6 | M98: 67119.1613 | N98: 0 | O98: 0 | P98: -9699.7 | Q98: -9699.7 | R98: -9699.7 | S98: -9699.7 | T98: 0 | U98: 0 | V98: -96997 | W98: 0 | X98: 0 | Y98: 0
B99: - Instalación de sistemas APAPI (Chachapoyas y Atalaya). | C99: 2014 | D99: -60000 | E99: A | F99: =+D99*(1+'Panel de control'!$L$45) -> -60000 | G99: 0.1 | H99: 10 | I99: -6000 | J99: 9062.530118 | K99: 2024 | L99: 6 | M99: 41518.29106 | N99: 0 | O99: 0 | P99: -6000 | Q99: -6000 | R99: -6000 | S99: -6000 | T99: 0 | U99: 0 | V99: -60000 | W99: 0 | X99: 0 | Y99: 0
B100: - Sistemas UPS para equipos de comunicaciones a nivel nacional | C100: 2014 | D100: -75562 | F100: =+D100*(1+'Panel de control'!$L$45) -> -75562 | G100: 0.1 | H100: 10 | I100: -7556.2 | J100: 11413.04835 | K100: 2024 | L100: 6 | M100: 52286.75182 | N100: 0 | O100: 0 | P100: -7556.2 | Q100: -7556.2 | R100: -7556.2 | S100: -7556.2 | T100: 0 | U100: 0 | V100: -75562 | W100: 0 | X100: 0 | Y100: 0
B101: - Equipos de aire acondicionado para estaciones - Nivel nacional | C101: 2014 | D101: -600000 | F101: =+D101*(1+'Panel de control'!$L$45) -> -600000 | G101: 0.1 | H101: 10 | I101: -60000 | J101: 90625.30118 | K101: 2024 | L101: 6 | M101: 415182.9106 | N101: 0 | O101: 0 | P101: -60000 | Q101: -60000 | R101: -60000 | S101: -60000 | T101: 0 | U101: 0 | V101: -600000 | W101: 0 | X101: 0 | Y101: 0
B102: - Estudios, equipos diversos,obras e instalación - Nivel nacional. | C102: 2014 | D102: -142000 | F102: =+D102*(1+'Panel de control'!$L$45) -> -142000 | G102: 0.1 | H102: 10 | I102: -14200 | J102: 21447.98795 | K102: 2024 | L102: 6 | M102: 98259.95551 | N102: 0 | O102: 0 | P102: -14200 | Q102: -14200 | R102: -14200 | S102: -14200 | T102: 0 | U102: 0 | V102: -142000 | W102: 0 | X102: 0 | Y102: 0
B103: - Adquisición Sistemas VOR/DME (Asia). | C103: 2014 | D103: -1906373 | F103: =+D103*(1+'Panel de control'!$L$45) -> -1906373 | G103: 0.1 | H103: 10 | I103: -190637.3 | J103: 287942.7122 | K103: 2024 | L103: 6 | M103: 1319155.818 | N103: 0 | O103: 0 | P103: -190637.3 | Q103: -190637.3 | R103: -190637.3 | S103: -190637.3 | T103: 0 | U103: 0 | V103: -1906373 | W103: 0 | X103: 0 | Y103: 0
B104: - Renovación de Sistemas de Radioayudas: | C104: 2014 | D104: -5774493 | F104: =+D104*(1+'Panel de control'!$L$45) -> -5774493 | G104: 0.1 | H104: 10 | I104: -577449.3 | J104: 872191.9455 | K104: 2024 | L104: 6 | M104: 3995784.685 | N104: 0 | O104: 0 | P104: -577449.3 | Q104: -577449.3 | R104: -577449.3 | S104: -577449.3 | T104: 0 | U104: 0 | V104: -5774493 | W104: 0 | X104: 0 | Y104: 0
B105: - Equipos diversos, obras e instalación - Nivel nacional. | C105: 2014 | D105: -350000 | F105: =+D105*(1+'Panel de control'!$L$45) -> -350000 | G105: 0.1 | H105: 10 | I105: -35000 | J105: 52864.75902 | K105: 2024 | L105: 6 | M105: 242190.0312 | N105: 0 | O105: 0 | P105: -35000 | Q105: -35000 | R105: -35000 | S105: -35000 | T105: 0 | U105: 0 | V105: -350000 | W105: 0 | X105: 0 | Y105: 0
B106: - Grupos electrógenos - Nivel nacional. | C106: 2014 | D106: -627250 | F106: =+D106*(1+'Panel de control'!$L$45) -> -627250 | G106: 0.1 | H106: 10 | I106: =+F106/H106 -> -62725 | J106: 94741.20028 | K106: =C106+H106 -> 2024 | L106: 6 | M106: =-PV(wacc,L106,J106) -> 434039.1344 | N106: 0 | O106: 0 | P106: -62725 | Q106: -62725 | R106: -62725 | S106: -62725 | T106: 0 | U106: 0 | V106: -627250 | W106: 0 | X106: 0 | Y106: 0
B107: - Construcción y/o remodelacion casa de fuerza - Nivel nacional. | C107: 2014 | D107: -107200 | F107: =+D107*(1+'Panel de control'!$L$45) -> -107200 | G107: 0.05 | H107: 20 | I107: -5360 | J107: 11162.21061 | K107: 2034 | L107: =K107-$C$4 -> 16 | M107: 96943.04788 | N107: 0 | O107: 0 | P107: -5360 | Q107: -5360 | R107: -5360 | S107: -5360 | T107: 0 | U107: 0 | V107: -107200 | W107: 0 | X107: 0 | Y107: 0
B108: - Equipos diversos y gastos de instalación. | C108: 2014 | D108: -120000 | F108: =+D108*(1+'Panel de control'!$L$45) -> -120000 | G108: 0.1 | H108: 10 | I108: -12000 | J108: 18125.06024 | K108: 2024 | L108: 6 | M108: 83036.58212 | N108: 0 | O108: 0 | P108: -12000 | Q108: -12000 | R108: -12000 | S108: -12000 | T108: 0 | U108: 0 | V108: -120000 | W108: 0 | X108: 0 | Y108: 0
B109: - Obras e instalación | C109: 2014 | D109: -50000 | F109: =+D109*(1+'Panel de control'!$L$45) -> -50000 | G109: 0.1 | H109: 10 | I109: -5000 | J109: 7552.108432 | K109: 2024 | L109: 6 | M109: 34598.57588 | N109: 0 | O109: 0 | P109: -5000 | Q109: -5000 | R109: -5000 | S109: -5000 | T109: 0 | U109: 0 | V109: -50000 | W109: 0 | X109: 0 | Y109: 0
B110: - Renovación equipos e instrumentos meteorológicos- Niv. Nac. - Fase I | C110: 2014 | D110: -1275485 | F110: =+D110*(1+'Panel de control'!$L$45) -> -1275485 | G110: 0.1 | H110: 10 | I110: -127548.5 | J110: 192652.0205 | K110: 2024 | L110: 6 | M110: 882599.2912 | N110: 0 | O110: 0 | P110: -127548.5 | Q110: -127548.5 | R110: -127548.5 | S110: -127548.5 | T110: 0 | U110: 0 | V110: -1275485 | W110: 0 | X110: 0 | Y110: 0
B111: - Renovaciòn sistema GVAR (Lima). | C111: 2014 | D111: -141430 | F111: =+D111*(1+'Panel de control'!$L$45) -> -141430 | G111: 0.1 | H111: 10 | I111: -14143 | J111: 21361.89391 | K111: 2024 | L111: 6 | M111: 97865.53174 | N111: 0 | O111: 0 | P111: -14143 | Q111: -14143 | R111: -14143 | S111: -14143 | T111: 0 | U111: 0 | V111: -141430 | W111: 0 | X111: 0 | Y111: 0
B112: - Equipos diversos de meteorologìa - Nivel nacional. | C112: 2014 | D112: -435539 | F112: =+D112*(1+'Panel de control'!$L$45) -> -435539 | G112: 0.1 | H112: 10 | I112: -43553.9 | J112: 65784.75509 | K112: 2024 | L112: 6 | M112: 301380.5828 | N112: 0 | O112: 0 | P112: -43553.9 | Q112: -43553.9 | R112: -43553.9 | S112: -43553.9 | T112: 0 | U112: 0 | V112: -435539 | W112: 0 | X112: 0 | Y112: 0
B113: - Adquisición de equipos, hardware y software. | C113: 2014 | D113: -1050000 | F113: =+D113*(1+'Panel de control'!$L$45) -> -1050000 | G113: 0.2 | H113: 5 | I113: -210000 | J113: 265051.5257 | K113: 2019 | L113: 1 | M113: 244741.6331 | N113: 0 | O113: 0 | P113: -210000 | Q113: -210000 | R113: -210000 | S113: -210000 | T113: 0 | U113: 0 | V113: -1050000 | W113: 0 | X113: 0 | Y113: 0
B114: - Modernización de Estaciones de Trabajo de Torres de Control en los Aeropuertos Controlados - Nivel nacional.. | C114: 2014 | D114: -1500000 | F114: =+D114*(1+'Panel de control'!$L$45) -> -1500000 | G114: 0.1 | H114: 10 | I114: -150000 | J114: 226563.253 | K114: 2024 | L114: 6 | M114: 1037957.276 | N114: 0 | O114: 0 | P114: -150000 | Q114: -150000 | R114: -150000 | S114: -150000 | T114: 0 | U114: 0 | V114: -1500000 | W114: 0 | X114: 0 | Y114: 0
B115: - Sistema de Gestión Administrativa de mantenimiento de Equipos de la Gerencia Tecnica. | C115: 2014 | D115: -680608 | F115: =+D115*(1+'Panel de control'!$L$45) -> -680608 | G115: 0.1 | H115: 10 | I115: -68060.8 | J115: 102800.5083 | K115: 2024 | L115: 6 | M115: 470961.3507 | N115: 0 | O115: 0 | P115: -68060.8 | Q115: -68060.8 | R115: -68060.8 | S115: -68060.8 | T115: 0 | U115: 0 | V115: -680608 | W115: 0 | X115: 0 | Y115: 0
B116: - Sistema radar primario | C116: 2014 | D116: -650000 | F116: =+D116*(1+'Panel de control'!$L$45) -> -650000 | G116: 0.1 | H116: 10 | I116: -65000 | J116: 98177.40962 | K116: 2024 | L116: 6 | M116: 449781.4865 | N116: 0 | O116: 0 | P116: -65000 | Q116: =+IF(Q$7>$C116,$I116,0) -> -65000 | R116: -65000 | S116: -65000 | T116: 0 | U116: 0 | V116: -650000 | W116: =+IF(W$7=$C116,$F116,0) -> 0 | X116: 0 | Y116: 0
B117: - Equipos del Sistema de Vigilancia Aérea. | C117: 2014 | D117: -220000 | F117: =+D117*(1+'Panel de control'!$L$45) -> -220000 | G117: 0.1 | H117: 10 | I117: -22000 | J117: 33229.2771 | K117: 2024 | L117: 6 | M117: 152233.7339 | N117: 0 | O117: 0 | P117: -22000 | Q117: -22000 | R117: -22000 | S117: -22000 | T117: 0 | U117: 0 | V117: -220000 | W117: 0 | X117: 0 | Y117: 0
B118: - Estudios para elaboración proyecto para implantación nuevos sistemas CNS/ATM | C118: 2014 | D118: -243692 | F118: =+D118*(1+'Panel de control'!$L$45) -> -243692 | G118: 0.1 | H118: 10 | I118: -24369.2 | J118: 36807.76816 | K118: 2024 | L118: 6 | M118: 168627.9231 | N118: 0 | O118: 0 | P118: -24369.2 | Q118: -24369.2 | R118: -24369.2 | S118: -24369.2 | T118: 0 | U118: 0 | V118: -243692 | W118: 0 | X118: 0 | Y118: 0
B119: - Sistemas de Módulo NOTAM Office e integrado de diseño procedimiento de vuelo | C119: 2014 | D119: -802400 | F119: =+D119*(1+'Panel de control'!$L$45) -> -802400 | G119: 0.1 | H119: 10 | I119: -80240 | J119: 121196.2361 | K119: 2024 | L119: 6 | M119: 555237.9458 | N119: 0 | O119: 0 | P119: -80240 | Q119: -80240 | R119: -80240 | S119: -80240 | T119: 0 | U119: 0 | V119: -802400 | W119: 0 | X119: 0 | Y119: 0
B120: - Investigación,capacitación y actualización tecnológica GREPECAS | C120: 2014 | D120: -250000 | F120: =+D120*(1+'Panel de control'!$L$45) -> -250000 | G120: 0.1 | H120: 10 | I120: -25000 | J120: 37760.54216 | K120: 2024 | L120: 6 | M120: 172992.8794 | N120: 0 | O120: 0 | P120: -25000 | Q120: -25000 | R120: -25000 | S120: -25000 | T120: 0 | U120: 0 | V120: -250000 | W120: 0 | X120: 0 | Y120: 0
B121: - Inversiones varias a nivel nacional | C121: 2014 | D121: -100000 | F121: =+D121*(1+'Panel de control'!$L$45) -> -100000 | G121: 0.1 | H121: 10 | I121: -10000 | J121: 15104.21686 | K121: 2024 | L121: 6 | M121: 69197.15176 | N121: 0 | O121: 0 | P121: -10000 | Q121: -10000 | R121: -10000 | S121: -10000 | T121: 0 | U121: 0 | V121: -100000 | W121: 0 | X121: 0 | Y121: 0
B122: - Equipos de radio VHF TWR -Dual - Nivel nacional | C122: 2015 | D122: -231909 | F122: =+D122*(1+'Panel de control'!$L$45) -> -231909 | G122: 0.1 | H122: 10 | I122: -23190.9 | J122: 35028.03829 | K122: 2025 | L122: 7 | M122: 180521.8493 | N122: 0 | O122: 0 | P122: 0 | Q122: -23190.9 | R122: -23190.9 | S122: -23190.9 | T122: 0 | U122: 0 | V122: 0 | W122: -231909 | X122: 0 | Y122: 0
B123: - Equipos HF tierra-aire | C123: 2015 | D123: -420000 | F123: =+D123*(1+'Panel de control'!$L$45) -> -420000 | G123: 0.1 | H123: 10 | I123: -42000 | J123: 63437.71083 | K123: 2025 | L123: 7 | M123: 326935.0336 | N123: 0 | O123: 0 | P123: 0 | Q123: -42000 | R123: -42000 | S123: -42000 | T123: 0 | U123: 0 | V123: 0 | W123: -420000 | X123: 0 | Y123: 0
B124: - Terminales AMHS | C124: 2015 | D124: -42308 | F124: =+D124*(1+'Panel de control'!$L$45) -> -42308 | G124: 0.1 | H124: 10 | I124: -4230.8 | J124: 6390.292071 | K124: 2025 | L124: 7 | M124: 32933.25572 | N124: 0 | O124: 0 | P124: 0 | Q124: -4230.8 | R124: -4230.8 | S124: -4230.8 | T124: 0 | U124: 0 | V124: 0 | W124: -42308 | X124: 0 | Y124: 0
B125: - Equipos diversos- Nivel Nacional. | C125: 2015 | D125: -250000 | F125: =+D125*(1+'Panel de control'!$L$45) -> -250000 | G125: =1/H125 -> 0.1 | H125: 10 | I125: -25000 | J125: 37760.54216 | K125: 2025 | L125: 7 | M125: 194604.1867 | N125: 0 | O125: 0 | P125: 0 | Q125: -25000 | R125: -25000 | S125: -25000 | T125: 0 | U125: 0 | V125: 0 | W125: -250000 | X125: 0 | Y125: 0
B126: - Sistemas UPS para Torres de Control de aeropuertos controlados Nivel nacional. | C126: 2015 | D126: -40000 | F126: =+D126*(1+'Panel de control'!$L$45) -> -40000 | G126: 0.1 | H126: 10 | I126: -4000 | J126: 6041.686746 | K126: 2025 | L126: 7 | M126: 31136.66986 | N126: 0 | O126: 0 | P126: 0 | Q126: -4000 | R126: -4000 | S126: -4000 | T126: 0 | U126: 0 | V126: 0 | W126: -40000 | X126: 0 | Y126: 0
B127: - Sistemas UPS para equipos de comunicaciones a nivel nacional | C127: 2015 | D127: -75562 | F127: =+D127*(1+'Panel de control'!$L$45) -> -75562 | G127: 0.1 | H127: 10 | I127: -7556.2 | J127: 11413.04835 | K127: 2025 | L127: 7 | M127: 58818.72621 | N127: 0 | O127: 0 | P127: 0 | Q127: -7556.2 | R127: -7556.2 | S127: -7556.2 | T127: 0 | U127: 0 | V127: 0 | W127: -75562 | X127: 0 | Y127: 0
B128: - Equipos de aire acondicionado para estaciones - Nivel nacional | C128: 2015 | D128: -620000 | F128: =+D128*(1+'Panel de control'!$L$45) -> -620000 | G128: 0.1 | H128: 10 | I128: -62000 | J128: 93646.14456 | K128: 2025 | L128: 7 | M128: 482618.3829 | N128: 0 | O128: 0 | P128: 0 | Q128: -62000 | R128: -62000 | S128: -62000 | T128: 0 | U128: 0 | V128: 0 | W128: -620000 | X128: 0 | Y128: 0
B129: - Estudios, equipos diversos,obras e instalación - Nivel nacional. | C129: 2015 | D129: -115000 | F129: =+D129*(1+'Panel de control'!$L$45) -> -115000 | G129: 0.1 | H129: 10 | I129: -11500 | J129: 17369.84939 | K129: 2025 | L129: 7 | M129: 89517.92586 | N129: 0 | O129: 0 | P129: 0 | Q129: -11500 | R129: -11500 | S129: -11500 | T129: 0 | U129: 0 | V129: 0 | W129: -115000 | X129: 0 | Y129: 0
B130: - Renovación de Sistemas de Radioayudas: | C130: 2015 | D130: -5384621 | F130: =+D130*(1+'Panel de control'!$L$45) -> -5384621 | G130: 0.1 | H130: 10 | I130: -538462.1 | J130: 813304.8331 | K130: 2025 | L130: 7 | M130: 4191479.161 | N130: 0 | O130: 0 | P130: 0 | Q130: -538462.1 | R130: -538462.1 | S130: -538462.1 | T130: 0 | U130: 0 | V130: 0 | W130: -5384621 | X130: 0 | Y130: 0
B131: - Equipos diversos, obras e instalación - Nivel nacional. | C131: 2015 | D131: -200000 | F131: =+D131*(1+'Panel de control'!$L$45) -> -200000 | G131: 0.1 | H131: 10 | I131: -20000 | J131: 30208.43373 | K131: 2025 | L131: 7 | M131: 155683.3493 | N131: 0 | O131: 0 | P131: 0 | Q131: -20000 | R131: -20000 | S131: -20000 | T131: 0 | U131: 0 | V131: 0 | W131: -200000 | X131: 0 | Y131: 0
B132: - Grupos electrógenos - Nivel nacional. | C132: 2015 | D132: -832400 | F132: =+D132*(1+'Panel de control'!$L$45) -> -832400 | G132: 0.1 | H132: 10 | I132: -83240 | J132: 125727.5012 | K132: 2025 | L132: 7 | M132: 647954.0999 | N132: 0 | O132: 0 | P132: 0 | Q132: -83240 | R132: -83240 | S132: -83240 | T132: 0 | U132: 0 | V132: 0 | W132: -832400 | X132: 0 | Y132: 0
B133: - Construcción y/o remodelacion casa de fuerza - Nivel nacional. | C133: 2015 | D133: -160800 | F133: =+D133*(1+'Panel de control'!$L$45) -> -160800 | G133: 0.05 | H133: 20 | I133: -8040 | J133: 16743.31591 | K133: 2035 | L133: 17 | M133: 149732.3442 | N133: 0 | O133: 0 | P133: 0 | Q133: -8040 | R133: -8040 | S133: -8040 | T133: 0 | U133: 0 | V133: 0 | W133: -160800 | X133: 0 | Y133: 0
B134: - Equipos diversos y gastos de instalación. | C134: 2015 | D134: -100000 | F134: =+D134*(1+'Panel de control'!$L$45) -> -100000 | G134: 0.1 | H134: 10 | I134: -10000 | J134: 15104.21686 | K134: 2025 | L134: 7 | M134: 77841.67466 | N134: 0 | O134: 0 | P134: 0 | Q134: -10000 | R134: -10000 | S134: -10000 | T134: 0 | U134: 0 | V134: 0 | W134: -100000 | X134: 0 | Y134: 0
B135: - Renovaciòn de REDAP y RED de VHF-AA del ACC | C135: 2015 | D135: -893000 | F135: =+D135*(1+'Panel de control'!$L$45) -> -893000 | G135: 0.1 | H135: 10 | I135: -89300 | J135: 134880.6566 | K135: 2025 | L135: 7 | M135: 695126.1547 | N135: 0 | O135: 0 | P135: 0 | Q135: -89300 | R135: -89300 | S135: -89300 | T135: 0 | U135: 0 | V135: 0 | W135: -893000 | X135: 0 | Y135: 0
B136: - VHF-AA frecuencia Emergencia 121.5 Mhz | C136: 2015 | D136: -600000 | F136: =+D136*(1+'Panel de control'!$L$45) -> -600000 | G136: 0.1 | H136: 10 | I136: -60000 | J136: 90625.30118 | K136: 2025 | L136: 7 | M136: 467050.048 | N136: 0 | O136: 0 | P136: 0 | Q136: -60000 | R136: -60000 | S136: -60000 | T136: 0 | U136: 0 | V136: 0 | W136: -600000 | X136: 0 | Y136: 0
B137: - Obras e instalación | C137: 2015 | D137: -50000 | F137: =+D137*(1+'Panel de control'!$L$45) -> -50000 | G137: 0.1 | H137: 10 | I137: -5000 | J137: 7552.108432 | K137: 2025 | L137: 7 | M137: 38920.83733 | N137: 0 | O137: 0 | P137: 0 | Q137: -5000 | R137: -5000 | S137: -5000 | T137: 0 | U137: 0 | V137: 0 | W137: -50000 | X137: 0 | Y137: 0
B138: - Renovación equipos e instrumentos meteorológicos- Niv. Nac. - Fase I | C138: 2015 | D138: -1275485 | F138: =+D138*(1+'Panel de control'!$L$45) -> -1275485 | G138: 0.1 | H138: 10 | I138: -127548.5 | J138: 192652.0205 | K138: 2025 | L138: 7 | M138: =-PV(wacc,L138,J138) -> 992858.8841 | N138: 0 | O138: 0 | P138: 0 | Q138: -127548.5 | R138: -127548.5 | S138: -127548.5 | T138: 0 | U138: 0 | V138: 0 | W138: -1275485 | X138: 0 | Y138: 0
B139: - Renovación equipos e instrumentos meteorológicos - Nivel nacional Fase II. | C139: 2015 | D139: -266400 | F139: =+D139*(1+'Panel de control'!$L$45) -> -266400 | G139: 0.1 | H139: 10 | I139: -26640 | J139: 40237.63373 | K139: 2025 | L139: 7 | M139: 207370.2213 | N139: 0 | O139: 0 | P139: 0 | Q139: -26640 | R139: -26640 | S139: -26640 | T139: 0 | U139: 0 | V139: 0 | W139: -266400 | X139: 0 | Y139: 0
B140: - Renovación Sistema Automático Radiosondaje (Lima) | C140: 2015 | D140: -200000 | F140: =+D140*(1+'Panel de control'!$L$45) -> -200000 | G140: 0.1 | H140: 10 | I140: -20000 | J140: 30208.43373 | K140: 2025 | L140: 7 | M140: 155683.3493 | N140: 0 | O140: 0 | P140: 0 | Q140: -20000 | R140: -20000 | S140: -20000 | T140: 0 | U140: 0 | V140: 0 | W140: -200000 | X140: 0 | Y140: 0
B141: - Renovación sistema AWOS de Cusco,Arequipa e Iquitos | C141: 2015 | D141: -96000 | E141: A | F141: =+D141*(1+'Panel de control'!$L$45) -> -96000 | G141: 0.1 | H141: 10 | I141: -9600 | J141: 14500.04819 | K141: 2025 | L141: 7 | M141: 74728.00768 | N141: 0 | O141: 0 | P141: 0 | Q141: -9600 | R141: -9600 | S141: -9600 | T141: 0 | U141: 0 | V141: 0 | W141: -96000 | X141: 0 | Y141: 0
B142: - Equipos diversos de meteorologìa - Nivel nacional. | C142: 2015 | D142: -344000 | F142: =+D142*(1+'Panel de control'!$L$45) -> -344000 | G142: 0.1 | H142: 10 | I142: -34400 | J142: 51958.50601 | K142: 2025 | L142: 7 | M142: 267775.3608 | N142: 0 | O142: 0 | P142: 0 | Q142: -34400 | R142: -34400 | S142: -34400 | T142: 0 | U142: 0 | V142: 0 | W142: -344000 | X142: 0 | Y142: 0
B143: - Adquisición de equipos, hardware y software. | C143: 2015 | D143: -1050000 | F143: =+D143*(1+'Panel de control'!$L$45) -> -1050000 | G143: 0.05 | H143: 20 | I143: -52500 | J143: 109331.3539 | K143: 2035 | L143: 17 | M143: 977729.8593 | N143: 0 | O143: 0 | P143: 0 | Q143: -52500 | R143: -52500 | S143: -52500 | T143: 0 | U143: 0 | V143: 0 | W143: -1050000 | X143: 0 | Y143: 0
B144: - Simulador de Control de Tránsito Aéreo de Aeródromos | C144: 2015 | D144: -1100000 | F144: =+D144*(1+'Panel de control'!$L$45) -> -1100000 | G144: 0.1 | H144: 10 | I144: -110000 | J144: 166146.3855 | K144: 2025 | L144: 7 | M144: 856258.4213 | N144: 0 | O144: 0 | P144: 0 | Q144: -110000 | R144: -110000 | S144: -110000 | T144: 0 | U144: 0 | V144: 0 | W144: -1100000 | X144: 0 | Y144: 0
B145: - Modernización de Estaciones de Trabajo de Torres de Control en los Aeropuertos Controlados - Nivel nacional.. | C145: 2015 | D145: -1500000 | F145: =+D145*(1+'Panel de control'!$L$45) -> -1500000 | G145: 0.1 | H145: 10 | I145: -150000 | J145: 226563.253 | K145: 2025 | L145: 7 | M145: 1167625.12 | N145: 0 | O145: 0 | P145: 0 | Q145: -150000 | R145: -150000 | S145: -150000 | T145: 0 | U145: 0 | V145: 0 | W145: -1500000 | X145: 0 | Y145: 0
B146: - Sistema radar primario | C146: 2015 | D146: -5850000 | F146: =+D146*(1+'Panel de control'!$L$45) -> -5850000 | G146: 0.1 | H146: 10 | I146: -585000 | J146: 883596.6865 | K146: 2025 | L146: 7 | M146: 4553737.968 | N146: 0 | O146: 0 | P146: 0 | Q146: -585000 | R146: -585000 | S146: -585000 | T146: 0 | U146: 0 | V146: 0 | W146: -5850000 | X146: 0 | Y146: 0
B147: - Equipos del Sistema de Vigilancia Aérea. | C147: 2015 | D147: -220000 | F147: =+D147*(1+'Panel de control'!$L$45) -> -220000 | G147: 0.1 | H147: 10 | I147: -22000 | J147: 33229.2771 | K147: 2025 | L147: 7 | M147: 171251.6843 | N147: 0 | O147: 0 | P147: 0 | Q147: -22000 | R147: -22000 | S147: -22000 | T147: 0 | U147: 0 | V147: 0 | W147: -220000 | X147: 0 | Y147: 0
B148: - Sistema integrado de calibración y monitoreo en tierra para el mantenimiento de sistemas de radioayudas | C148: 2015 | D148: -50000 | F148: =+D148*(1+'Panel de control'!$L$45) -> -50000 | G148: 0.1 | H148: 10 | I148: -5000 | J148: 7552.108432 | K148: 2025 | L148: 7 | M148: 38920.83733 | N148: 0 | O148: 0 | P148: 0 | Q148: -5000 | R148: -5000 | S148: -5000 | T148: 0 | U148: 0 | V148: 0 | W148: -50000 | X148: 0 | Y148: 0
B149: - Sistemas de Módulo NOTAM Office e integrado de diseño procedimiento de vuelo | C149: 2015 | D149: -1203600 | F149: =+D149*(1+'Panel de control'!$L$45) -> -1203600 | G149: 0.1 | H149: 10 | I149: -120360 | J149: 181794.3542 | K149: 2025 | L149: 7 | M149: 936902.3962 | N149: 0 | O149: 0 | P149: 0 | Q149: -120360 | R149: -120360 | S149: -120360 | T149: 0 | U149: 0 | V149: 0 | W149: -1203600 | X149: 0 | Y149: 0
B150: - Investigación,capacitación y actualización tecnológica GREPECAS | C150: 2015 | D150: -250000 | F150: =+D150*(1+'Panel de control'!$L$45) -> -250000 | G150: 0.1 | H150: 10 | I150: -25000 | J150: 37760.54216 | K150: 2025 | L150: 7 | M150: 194604.1867 | N150: 0 | O150: 0 | P150: 0 | Q150: -25000 | R150: -25000 | S150: -25000 | T150: 0 | U150: 0 | V150: 0 | W150: -250000 | X150: 0 | Y150: 0
B151: - Inversiones varias a nivel nacional | C151: 2015 | D151: -300000 | F151: =+D151*(1+'Panel de control'!$L$45) -> -300000 | G151: 0.1 | H151: 10 | I151: -30000 | J151: 45312.65059 | K151: 2025 | L151: 7 | M151: 233525.024 | N151: 0 | O151: 0 | P151: 0 | Q151: -30000 | R151: -30000 | S151: -30000 | T151: 0 | U151: 0 | V151: 0 | W151: -300000 | X151: 0 | Y151: 0
B152: - Equipos HF tierra-aire | C152: 2016 | D152: -323077 | F152: =+D152*(1+'Panel de control'!$L$45) -> -323077 | G152: 0.1 | H152: 10 | I152: -32307.7 | J152: 48798.25072 | K152: 2026 | L152: 8 | M152: 277276.9602 | N152: 0 | O152: 0 | P152: 0 | Q152: 0 | R152: -32307.7 | S152: -32307.7 | T152: 0 | U152: 0 | V152: 0 | W152: 0 | X152: -323077 | Y152: 0
B153: - Terminales AMHS | C153: 2016 | D153: -42308 | F153: =+D153*(1+'Panel de control'!$L$45) -> -42308 | G153: 0.1 | H153: 10 | I153: -4230.8 | J153: 6390.292071 | K153: 2026 | L153: 8 | M153: 36310.33355 | N153: 0 | O153: 0 | P153: 0 | Q153: 0 | R153: -4230.8 | S153: -4230.8 | T153: 0 | U153: 0 | V153: 0 | W153: 0 | X153: -42308 | Y153: 0
B154: - Equipos diversos- Nivel Nacional. | C154: 2016 | D154: -250000 | F154: =+D154*(1+'Panel de control'!$L$45) -> -250000 | G154: 0.1 | H154: 10 | I154: -25000 | J154: 37760.54216 | K154: 2026 | L154: 8 | M154: 214559.5014 | N154: 0 | O154: 0 | P154: 0 | Q154: 0 | R154: -25000 | S154: -25000 | T154: 0 | U154: 0 | V154: 0 | W154: 0 | X154: -250000 | Y154: 0
B155: - Sistemas UPS para Torres de Control de aeropuertos controlados Nivel nacional. | C155: 2016 | D155: -360000 | F155: =+D155*(1+'Panel de control'!$L$45) -> -360000 | G155: 0.1 | H155: 10 | I155: -36000 | J155: 54375.18071 | K155: 2026 | L155: 8 | M155: 308965.6821 | N155: 0 | O155: 0 | P155: 0 | Q155: 0 | R155: -36000 | S155: -36000 | T155: 0 | U155: 0 | V155: 0 | W155: 0 | X155: -360000 | Y155: 0
B156: - Equipos de aire acondicionado para estaciones - Nivel nacional | C156: 2016 | D156: -610000 | F156: =+D156*(1+'Panel de control'!$L$45) -> -610000 | G156: 0.1 | H156: 10 | I156: -61000 | J156: 92135.72287 | K156: 2026 | L156: 8 | M156: 523525.1835 | N156: 0 | O156: 0 | P156: 0 | Q156: 0 | R156: -61000 | S156: -61000 | T156: 0 | U156: 0 | V156: 0 | W156: 0 | X156: -610000 | Y156: 0
B157: - Estudios, equipos diversos,obras e instalación - Nivel nacional. | C157: 2016 | D157: -50000 | F157: =+D157*(1+'Panel de control'!$L$45) -> -50000 | G157: 0.1 | H157: 10 | I157: -5000 | J157: 7552.108432 | K157: 2026 | L157: 8 | M157: 42911.90029 | N157: 0 | O157: 0 | P157: 0 | Q157: 0 | R157: -5000 | S157: -5000 | T157: 0 | U157: 0 | V157: 0 | W157: 0 | X157: -50000 | Y157: 0
B158: - Renovación de Sistemas de Radioayudas: | C158: 2016 | D158: -7354566 | F158: =+D158*(1+'Panel de control'!$L$45) -> -7354566 | G158: 0.1 | H158: 10 | I158: -735456.6 | J158: 1110849.598 | K158: 2026 | L158: 8 | M158: 6311968.057 | N158: =+IF(N$7>$C158,$I158,0) -> 0 | O158: 0 | P158: 0 | Q158: 0 | R158: -735456.6 | S158: -735456.6 | T158: =+IF(T$7=$C158,$F158,0) -> 0 | U158: 0 | V158: 0 | W158: 0 | X158: -7354566 | Y158: 0
B159: - Equipos diversos, obras e instalación - Nivel nacional. | C159: 2016 | D159: -200000 | F159: =+D159*(1+'Panel de control'!$L$45) -> -200000 | G159: 0.1 | H159: 10 | I159: -20000 | J159: =PMT(wacc,H159,F159) -> 30208.43373 | K159: 2026 | L159: 8 | M159: 171647.6011 | N159: 0 | O159: 0 | P159: 0 | Q159: 0 | R159: -20000 | S159: -20000 | T159: 0 | U159: 0 | V159: 0 | W159: 0 | X159: -200000 | Y159: 0
B160: - Equipos diversos y gastos de instalación. | C160: 2016 | D160: -120000 | F160: =+D160*(1+'Panel de control'!$L$45) -> -120000 | G160: 0.1 | H160: 10 | I160: -12000 | J160: 18125.06024 | K160: 2026 | L160: 8 | M160: 102988.5607 | N160: 0 | O160: 0 | P160: 0 | Q160: 0 | R160: -12000 | S160: -12000 | T160: 0 | U160: 0 | V160: 0 | W160: 0 | X160: -120000 | Y160: 0
B161: - Renovaciòn de REDAP y RED de VHF-AA del ACC | C161: 2016 | D161: -893000 | F161: =+D161*(1+'Panel de control'!$L$45) -> -893000 | G161: 0.1 | H161: 10 | I161: -89300 | J161: 134880.6566 | K161: 2026 | L161: 8 | M161: 766406.5391 | N161: 0 | O161: 0 | P161: 0 | Q161: 0 | R161: -89300 | S161: -89300 | T161: 0 | U161: 0 | V161: 0 | W161: 0 | X161: -893000 | Y161: 0
B162: - Obras e instalación | C162: 2016 | D162: -50000 | F162: =+D162*(1+'Panel de control'!$L$45) -> -50000 | G162: 0.1 | H162: 10 | I162: -5000 | J162: 7552.108432 | K162: 2026 | L162: 8 | M162: 42911.90029 | N162: 0 | O162: 0 | P162: 0 | Q162: 0 | R162: -5000 | S162: -5000 | T162: 0 | U162: 0 | V162: 0 | W162: 0 | X162: -50000 | Y162: 0
B163: - Renovación equipos e instrumentos meteorológicos - Nivel nacional Fase II. | C163: 2016 | D163: -1198800 | F163: =+D163*(1+'Panel de control'!$L$45) -> -1198800 | G163: 0.1 | H163: 10 | I163: -119880 | J163: 181069.3518 | K163: 2026 | L163: 8 | M163: 1028855.721 | N163: 0 | O163: 0 | P163: 0 | Q163: 0 | R163: -119880 | S163: -119880 | T163: 0 | U163: 0 | V163: 0 | W163: 0 | X163: -1198800 | Y163: 0
B164: - Renovación sistema AWOS de Cusco,Arequipa e Iquitos | C164: 2016 | D164: -576000 | E164: A | F164: =+D164*(1+'Panel de control'!$L$45) -> -576000 | G164: 0.1 | H164: 10 | I164: -57600 | J164: 87000.28914 | K164: 2026 | L164: 8 | M164: 494345.0913 | N164: 0 | O164: 0 | P164: 0 | Q164: 0 | R164: -57600 | S164: -57600 | T164: 0 | U164: 0 | V164: 0 | W164: 0 | X164: -576000 | Y164: 0
B165: - Equipos diversos de meteorologìa - Nivel nacional. | C165: 2016 | D165: -344000 | F165: =+D165*(1+'Panel de control'!$L$45) -> -344000 | G165: 0.1 | H165: 10 | I165: -34400 | J165: 51958.50601 | K165: 2026 | L165: 8 | M165: 295233.874 | N165: 0 | O165: 0 | P165: 0 | Q165: 0 | R165: -34400 | S165: -34400 | T165: 0 | U165: 0 | V165: 0 | W165: 0 | X165: -344000 | Y165: 0
B166: - Adquisición de equipos, hardware y software. | C166: 2016 | D166: -1400000 | F166: =+D166*(1+'Panel de control'!$L$45) -> -1400000 | G166: 0.05 | H166: 20 | I166: -70000 | J166: 145775.1386 | K166: 2036 | L166: 18 | M166: 1338351.784 | N166: 0 | O166: 0 | P166: 0 | Q166: 0 | R166: -70000 | S166: -70000 | T166: 0 | U166: 0 | V166: 0 | W166: 0 | X166: -1400000 | Y166: 0
B167: - Simulador de Control de Tránsito Aéreo de Aeródromos | C167: 2016 | D167: -1100000 | F167: =+D167*(1+'Panel de control'!$L$45) -> -1100000 | G167: 0.1 | H167: 10 | I167: -110000 | J167: 166146.3855 | K167: 2026 | L167: 8 | M167: 944061.8063 | N167: 0 | O167: 0 | P167: 0 | Q167: 0 | R167: -110000 | S167: -110000 | T167: 0 | U167: 0 | V167: 0 | W167: 0 | X167: -1100000 | Y167: 0
B168: - Modernización de Estaciones de Trabajo de Torres de Control en los Aeropuertos Controlados - Nivel nacional.. | C168: 2016 | D168: -1500000 | F168: =+D168*(1+'Panel de control'!$L$45) -> -1500000 | G168: 0.1 | H168: 10 | I168: -150000 | J168: 226563.253 | K168: 2026 | L168: 8 | M168: 1287357.009 | N168: 0 | O168: 0 | P168: 0 | Q168: 0 | R168: -150000 | S168: -150000 | T168: 0 | U168: 0 | V168: 0 | W168: 0 | X168: -1500000 | Y168: 0
B169: - Equipos del Sistema de Vigilancia Aérea. | C169: 2016 | D169: -140000 | F169: =+D169*(1+'Panel de control'!$L$45) -> -140000 | G169: 0.1 | H169: 10 | I169: -14000 | J169: 21145.90361 | K169: 2026 | L169: 8 | M169: 120153.3208 | N169: 0 | O169: 0 | P169: 0 | Q169: 0 | R169: -14000 | S169: -14000 | T169: 0 | U169: 0 | V169: 0 | W169: 0 | X169: -140000 | Y169: 0
B170: - Sistema integrado de calibración y monitoreo en tierra para el mantenimiento de sistemas de radioayudas | C170: 2016 | D170: -450000 | F170: =+D170*(1+'Panel de control'!$L$45) -> -450000 | G170: 0.1 | H170: 10 | I170: =+F170/H170 -> -45000 | J170: 67968.97589 | K170: =C170+H170 -> 2026 | L170: 8 | M170: =-PV(wacc,L170,J170) -> 386207.1026 | N170: 0 | O170: 0 | P170: 0 | Q170: 0 | R170: -45000 | S170: -45000 | T170: 0 | U170: 0 | V170: 0 | W170: 0 | X170: -450000 | Y170: 0
B171: - Investigación,capacitación y actualización tecnológica GREPECAS | C171: 2016 | D171: -250000 | F171: =+D171*(1+'Panel de control'!$L$45) -> -250000 | G171: 0.1 | H171: 10 | I171: -25000 | J171: 37760.54216 | K171: 2026 | L171: =K171-$C$4 -> 8 | M171: 214559.5014 | N171: 0 | O171: 0 | P171: 0 | Q171: 0 | R171: -25000 | S171: -25000 | T171: 0 | U171: 0 | V171: 0 | W171: 0 | X171: -250000 | Y171: 0
B172: - Inversiones varias a nivel nacional | C172: 2016 | D172: -150000 | F172: =+D172*(1+'Panel de control'!$L$45) -> -150000 | G172: 0.1 | H172: 10 | I172: -15000 | J172: 22656.3253 | K172: 2026 | L172: 8 | M172: 128735.7009 | N172: 0 | O172: 0 | P172: 0 | Q172: 0 | R172: -15000 | S172: -15000 | T172: 0 | U172: 0 | V172: 0 | W172: 0 | X172: -150000 | Y172: 0
